{"text_format":"1","workbook":"xlsx","n_sheets":6,"sheets":["Outpatient Hourly Rates","Rate Degrees","Outpatient Rates","NTP Rates","Other Rates","Invoice Summary"],"not_rendered":{"charts":0,"images":0,"macros":1,"external_links":0,"defined_names":2,"comments":0,"pivot_tables":0},"unopened":[],"bounds":{"document_bytes":16777216,"sheet_cells":100000,"rows_first":2000,"rows_last":500,"rows_between":2000,"halvings":0,"cell_chars":16384,"cell_head_chars":4096},"cells_cut":0,"cells_raw":0,"read":"whole","date_system":"1900"}

{"sheet":"Outpatient Hourly Rates","index":0,"n_rows":14,"n_cols":3,"rows_kept":14,"cut":false,"hidden":false,"merged":[]}
["Group Name","Group Description","Hourly Rate"]
["AOD Group","Alcohol and Drug Counselors",100]
["LPHA Group","LPHAs (MFT  LCSW  LPCC)/ Intern or Waivered LPHAs (MFT  LCSW  LPCC)",110]
["LVN Group","Licensed Vocational Nurse",120]
["MA Group","Medical Assistants",130]
["MD Group","Licensed Physicians",140]
["NP Group","Nurse Practitioners",150]
["OT Group","Occupational Therapists",160]
["PA Group","Physicians Assistants",170]
["PEER Group","Peer Support Specialists",180]
["PHARM Group","Pharmacists",190]
["PSY Group","Psychologists (Licensed or Waivered)",200]
["PT Group","Licensed Psychiatric Technicians",210]
["RN Group","Registered Nurses",220]

{"sheet":"Rate Degrees","index":1,"n_rows":39,"n_cols":4,"rows_kept":39,"cut":false,"hidden":true,"merged":[]}
["GlobalCodeId","Description","Short Name","Rate Group"]
["25239","AOD Certified AOD Counselor","AOD","AOD Group"]
["11134497","AMFT Associate Marriage Family Therapist","AMFT","LPHA Group"]
["25240","APCC Associate Professional Clinical Counselor","APCC","LPHA Group"]
["11125345","Medical Intern","INTERN","MD Group"]
["25198","LCSW Licensed Clinical Social Worker","LCSW","LPHA Group"]
["25201","LPCC Licensed Professional Clinical Counselor","LPCC","LPHA Group"]
["25200","MFT Marriage and Family Therapist","MFT","LPHA Group"]
["25663","ASW Associate Social Worker","SW","LPHA Group"]
["25781","DO Doctor of Osteopathy","DO","MD Group"]
["25661","LP Licensed Physician","LP","MD Group"]
["25204","MD Medical Doctor","MD","MD Group"]
["25208","NP Nurse Practitioner","NP","NP Group"]
["25210","PA Physician Assistant","PA","PA Group"]
["25238","Certified Peer Specialist","PEER","PEER Group"]
["25241","Registered Pharmacist or Advanced Practice Pharmacist","PHARM","PHARM Group"]
["25237","PhD Doctor of Philosophy,Clinical Psychologist","PHD","PSY Group"]
["25242","Psy Psychologist (Licensed or Waivered)","PSY","PSY Group"]
["25659","PsyD Doctor of Psychology,Clinical Psychologist","PSYD","PSY Group"]
["25209","RN Registered Nurse","RN","RN Group"]
["54304","Masters Degree Student","STUDENT","LPHA Group"]
["11136312","Medical Resident","MR","MD Group"]
["11136343","Psych Associate/RPS","PARPS","PSY Group"]
["11136466","Registered AOD Counselor","RAOD","AOD Group"]
["11136467","Medical Student","MS","MD Group"]
["11136477","NP Trainee","NPT","NP Group"]
["11136478","Nursing Student","NS","OTHER Group"]
["11136479","PA Trainee","PAT","PA Group"]
["25199","LVN Licensed Vocational Nurse","LVN","LVN Group"]
["11136645","LVN Clinical Trainee","LVNCT","LVN Group"]
["25660","PT Psychiatric Technician","PT","PT Group"]
["11136650","PT Psychiatric Technician Clinical Trainee","PTPTCT","PT Group"]
["25203","OT Occupational Therapist","OT","OT Group"]
["11136643","Psychologist Clinical Trainee","PSYCT","PSY Group"]
["11136644","OT Occupational Therapist Clinical Trainee","OTCT","OT Group"]
["11136646","NP Nurse Practitioner Clinical Trainee","NPCT","NP Group"]
["11136648","PA Physician Assistant/Associate Clinical Trainee","PACT","PA Group"]
["11136649","Pharmacist Clinical Trainee","PHARMCT","PHARM Group"]
["11136710","Medical Assistant","MA","MA Group"]

{"sheet":"Outpatient Rates","index":2,"n_rows":91,"n_cols":30,"rows_kept":91,"cut":false,"hidden":false,"merged":[]}
["BillingCode","Description","Minutes for Rate","AOD Group Allowed","LPHA Group Allowed","LVN Group Allowed","MA Group Allowed","MD Group Allowed","NP Group Allowed","OT Group Allowed","PEER Group Allowed","PA Group Allowed","PSY Group Allowed","PT Group Allowed","RN Group Allowed","PHARM Group Allowed","Standard Rate","AOD Group","LPHA Group","LVN Group","MA Group","MD Group","NP Group","OT Group","PA Group","PEER Group","PHARM Group","PSY Group","PT Group","RN Group"]
["90785","Interactive Complexity","","Y","Y","Y","Y","Y","Y","Y","","Y","Y","Y","Y","Y",16.5,{"$f":"IF(TableOutpatientRates[[#This Row],[AOD Group Allowed]]=\"Y\",IF(NOT(ISBLANK(TableOutpatientRates[[#This Row],[Standard Rate]])),TableOutpatientRates[Standard Rate],INDEX(TableOutpatientHourlyRates[Hourly Rate],MATCH(\"AOD Group\",TableOutpatientHourlyRates[Group Name],0))/60*TableOutpatientRates[[#This Row],[Minutes for Rate]]),\"\")","v":16.5},{"$f":"IF(TableOutpatientRates[[#This Row],[LPHA Group Allowed]]=\"Y\",IF(NOT(ISBLANK(TableOutpatientRates[[#This Row],[Standard Rate]])),TableOutpatientRates[Standard Rate],INDEX(TableOutpatientHourlyRates[Hourly Rate],MATCH(\"LPHA Group\",TableOutpatientHourlyRates[Group Name],0))/60*TableOutpatientRates[[#This Row],[Minutes for Rate]]),\"\")","v":16.5},{"$f":"IF(TableOutpatientRates[[#This Row],[LVN Group Allowed]]=\"Y\",IF(NOT(ISBLANK(TableOutpatientRates[[#This Row],[Standard Rate]])),TableOutpatientRates[Standard Rate],INDEX(TableOutpatientHourlyRates[Hourly Rate],MATCH(\"LVN Group\",TableOutpatientHourlyRates[Group Name],0))/60*TableOutpatientRates[[#This Row],[Minutes for Rate]]),\"\")","v":16.5},{"$f":"IF(TableOutpatientRates[[#This Row],[MA Group Allowed]]=\"Y\",IF(NOT(ISBLANK(TableOutpatientRates[[#This Row],[Standard Rate]])),TableOutpatientRates[Standard Rate],INDEX(TableOutpatientHourlyRates[Hourly Rate],MATCH(\"MA Group\",TableOutpatientHourlyRates[Group Name],0))/60*TableOutpatientRates[[#This Row],[Minutes for Rate]]),\"\")","v":16.5},{"$f":"IF(TableOutpatientRates[[#This Row],[MD Group Allowed]]=\"Y\",IF(NOT(ISBLANK(TableOutpatientRates[[#This Row],[Standard Rate]])),TableOutpatientRates[Standard Rate],INDEX(TableOutpatientHourlyRates[Hourly Rate],MATCH(\"MD Group\",TableOutpatientHourlyRates[Group Name],0))/60*TableOutpatientRates[[#This Row],[Minutes for Rate]]),\"\")","v":16.5},{"$f":"IF(TableOutpatientRates[[#This Row],[NP Group Allowed]]=\"Y\",IF(NOT(ISBLANK(TableOutpatientRates[[#This Row],[Standard Rate]])),TableOutpatientRates[Standard Rate],INDEX(TableOutpatientHourlyRates[Hourly Rate],MATCH(\"NP Group\",TableOutpatientHourlyRates[Group Name],0))/60*TableOutpatientRates[[#This Row],[Minutes for Rate]]),\"\")","v":16.5},{"$f":"IF(TableOutpatientRates[[#This Row],[OT Group Allowed]]=\"Y\",IF(NOT(ISBLANK(TableOutpatientRates[[#This Row],[Standard Rate]])),TableOutpatientRates[Standard Rate],INDEX(TableOutpatientHourlyRates[Hourly Rate],MATCH(\"OT Group\",TableOutpatientHourlyRates[Group Name],0))/60*TableOutpatientRates[[#This Row],[Minutes for Rate]]),\"\")","v":16.5},{"$f":"IF(TableOutpatientRates[[#This Row],[PA Group Allowed]]=\"Y\",IF(NOT(ISBLANK(TableOutpatientRates[[#This Row],[Standard Rate]])),TableOutpatientRates[Standard Rate],INDEX(TableOutpatientHourlyRates[Hourly Rate],MATCH(\"PA Group\",TableOutpatientHourlyRates[Group Name],0))/60*TableOutpatientRates[[#This Row],[Minutes for Rate]]),\"\")","v":16.5},{"$f":"IF(TableOutpatientRates[[#This Row],[PEER Group Allowed]]=\"Y\",IF(NOT(ISBLANK(TableOutpatientRates[[#This Row],[Standard Rate]])),TableOutpatientRates[Standard Rate],INDEX(TableOutpatientHourlyRates[Hourly Rate],MATCH(\"PEER Group\",TableOutpatientHourlyRates[Group Name],0))/60*TableOutpatientRates[[#This Row],[Minutes for Rate]]),\"\")","v":""},{"$f":"IF(TableOutpatientRates[[#This Row],[PHARM Group Allowed]]=\"Y\",IF(NOT(ISBLANK(TableOutpatientRates[[#This Row],[Standard Rate]])),TableOutpatientRates[Standard Rate],INDEX(TableOutpatientHourlyRates[Hourly Rate],MATCH(\"PHARM Group\",TableOutpatientHourlyRates[Group Name],0))/60*TableOutpatientRates[[#This Row],[Minutes for Rate]]),\"\")","v":16.5},{"$f":"IF(TableOutpatientRates[[#This Row],[PSY Group Allowed]]=\"Y\",IF(NOT(ISBLANK(TableOutpatientRates[[#This Row],[Standard Rate]])),TableOutpatientRates[Standard Rate],INDEX(TableOutpatientHourlyRates[Hourly Rate],MATCH(\"PSY Group\",TableOutpatientHourlyRates[Group Name],0))/60*TableOutpatientRates[[#This Row],[Minutes for Rate]]),\"\")","v":16.5},{"$f":"IF(TableOutpatientRates[[#This Row],[PT Group Allowed]]=\"Y\",IF(NOT(ISBLANK(TableOutpatientRates[[#This Row],[Standard Rate]])),TableOutpatientRates[Standard Rate],INDEX(TableOutpatientHourlyRates[Hourly Rate],MATCH(\"PT Group\",TableOutpatientHourlyRates[Group Name],0))/60*TableOutpatientRates[[#This Row],[Minutes for Rate]]),\"\")","v":16.5},{"$f":"IF(TableOutpatientRates[[#This Row],[RN Group Allowed]]=\"Y\",IF(NOT(ISBLANK(TableOutpatientRates[[#This Row],[Standard Rate]])),TableOutpatientRates[Standard Rate],INDEX(TableOutpatientHourlyRates[Hourly Rate],MATCH(\"RN Group\",TableOutpatientHourlyRates[Group Name],0))/60*TableOutpatientRates[[#This Row],[Minutes for Rate]]),\"\")","v":16.5}]
["90791","Psychiatric Diagnostic Evaluation, 15 Minutes","15","","Y","","","Y","Y","","","Y","Y","","","",null,{"$f":"IF(TableOutpatientRates[[#This Row],[AOD Group Allowed]]=\"Y\",IF(NOT(ISBLANK(TableOutpatientRates[[#This Row],[Standard Rate]])),TableOutpatientRates[Standard Rate],INDEX(TableOutpatientHourlyRates[Hourly Rate],MATCH(\"AOD Group\",TableOutpatientHourlyRates[Group Name],0))/60*TableOutpatientRates[[#This Row],[Minutes for Rate]]),\"\")","v":""},{"$f":"IF(TableOutpatientRates[[#This Row],[LPHA Group Allowed]]=\"Y\",IF(NOT(ISBLANK(TableOutpatientRates[[#This Row],[Standard Rate]])),TableOutpatientRates[Standard Rate],INDEX(TableOutpatientHourlyRates[Hourly Rate],MATCH(\"LPHA Group\",TableOutpatientHourlyRates[Group Name],0))/60*TableOutpatientRates[[#This Row],[Minutes for Rate]]),\"\")","v":27.5},{"$f":"IF(TableOutpatientRates[[#This Row],[LVN Group Allowed]]=\"Y\",IF(NOT(ISBLANK(TableOutpatientRates[[#This Row],[Standard Rate]])),TableOutpatientRates[Standard Rate],INDEX(TableOutpatientHourlyRates[Hourly Rate],MATCH(\"LVN Group\",TableOutpatientHourlyRates[Group Name],0))/60*TableOutpatientRates[[#This Row],[Minutes for Rate]]),\"\")","v":""},{"$f":"IF(TableOutpatientRates[[#This Row],[MA Group Allowed]]=\"Y\",IF(NOT(ISBLANK(TableOutpatientRates[[#This Row],[Standard Rate]])),TableOutpatientRates[Standard Rate],INDEX(TableOutpatientHourlyRates[Hourly Rate],MATCH(\"MA Group\",TableOutpatientHourlyRates[Group Name],0))/60*TableOutpatientRates[[#This Row],[Minutes for Rate]]),\"\")","v":""},{"$f":"IF(TableOutpatientRates[[#This Row],[MD Group Allowed]]=\"Y\",IF(NOT(ISBLANK(TableOutpatientRates[[#This Row],[Standard Rate]])),TableOutpatientRates[Standard Rate],INDEX(TableOutpatientHourlyRates[Hourly Rate],MATCH(\"MD Group\",TableOutpatientHourlyRates[Group Name],0))/60*TableOutpatientRates[[#This Row],[Minutes for Rate]]),\"\")","v":35},{"$f":"IF(TableOutpatientRates[[#This Row],[NP Group Allowed]]=\"Y\",IF(NOT(ISBLANK(TableOutpatientRates[[#This Row],[Standard Rate]])),TableOutpatientRates[Standard Rate],INDEX(TableOutpatientHourlyRates[Hourly Rate],MATCH(\"NP Group\",TableOutpatientHourlyRates[Group Name],0))/60*TableOutpatientRates[[#This Row],[Minutes for Rate]]),\"\")","v":37.5},{"$f":"IF(TableOutpatientRates[[#This Row],[OT Group Allowed]]=\"Y\",IF(NOT(ISBLANK(TableOutpatientRates[[#This Row],[Standard Rate]])),TableOutpatientRates[Standard Rate],INDEX(TableOutpatientHourlyRates[Hourly Rate],MATCH(\"OT Group\",TableOutpatientHourlyRates[Group Name],0))/60*TableOutpatientRates[[#This Row],[Minutes for Rate]]),\"\")","v":""},{"$f":"IF(TableOutpatientRates[[#This Row],[PA Group Allowed]]=\"Y\",IF(NOT(ISBLANK(TableOutpatientRates[[#This Row],[Standard Rate]])),TableOutpatientRates[Standard Rate],INDEX(TableOutpatientHourlyRates[Hourly Rate],MATCH(\"PA Group\",TableOutpatientHourlyRates[Group Name],0))/60*TableOutpatientRates[[#This Row],[Minutes for Rate]]),\"\")","v":42.5},{"$f":"IF(TableOutpatientRates[[#This Row],[PEER Group Allowed]]=\"Y\",IF(NOT(ISBLANK(TableOutpatientRates[[#This Row],[Standard Rate]])),TableOutpatientRates[Standard Rate],INDEX(TableOutpatientHourlyRates[Hourly Rate],MATCH(\"PEER Group\",TableOutpatientHourlyRates[Group Name],0))/60*TableOutpatientRates[[#This Row],[Minutes for Rate]]),\"\")","v":""},{"$f":"IF(TableOutpatientRates[[#This Row],[PHARM Group Allowed]]=\"Y\",IF(NOT(ISBLANK(TableOutpatientRates[[#This Row],[Standard Rate]])),TableOutpatientRates[Standard Rate],INDEX(TableOutpatientHourlyRates[Hourly Rate],MATCH(\"PHARM Group\",TableOutpatientHourlyRates[Group Name],0))/60*TableOutpatientRates[[#This Row],[Minutes for Rate]]),\"\")","v":""},{"$f":"IF(TableOutpatientRates[[#This Row],[PSY Group Allowed]]=\"Y\",IF(NOT(ISBLANK(TableOutpatientRates[[#This Row],[Standard Rate]])),TableOutpatientRates[Standard Rate],INDEX(TableOutpatientHourlyRates[Hourly Rate],MATCH(\"PSY Group\",TableOutpatientHourlyRates[Group Name],0))/60*TableOutpatientRates[[#This Row],[Minutes for Rate]]),\"\")","v":50},{"$f":"IF(TableOutpatientRates[[#This Row],[PT Group Allowed]]=\"Y\",IF(NOT(ISBLANK(TableOutpatientRates[[#This Row],[Standard Rate]])),TableOutpatientRates[Standard Rate],INDEX(TableOutpatientHourlyRates[Hourly Rate],MATCH(\"PT Group\",TableOutpatientHourlyRates[Group Name],0))/60*TableOutpatientRates[[#This Row],[Minutes for Rate]]),\"\")","v":""},{"$f":"IF(TableOutpatientRates[[#This Row],[RN Group Allowed]]=\"Y\",IF(NOT(ISBLANK(TableOutpatientRates[[#This Row],[Standard Rate]])),TableOutpatientRates[Standard Rate],INDEX(TableOutpatientHourlyRates[Hourly Rate],MATCH(\"RN Group\",TableOutpatientHourlyRates[Group Name],0))/60*TableOutpatientRates[[#This Row],[Minutes for Rate]]),\"\")","v":""}]
["90792","Psychiatric Diagnostic Evaluation with Medical Services, 15 Minutes","15","","","","","Y","Y","","","Y","","","","",null,{"$f":"IF(TableOutpatientRates[[#This Row],[AOD Group Allowed]]=\"Y\",IF(NOT(ISBLANK(TableOutpatientRates[[#This Row],[Standard Rate]])),TableOutpatientRates[Standard Rate],INDEX(TableOutpatientHourlyRates[Hourly Rate],MATCH(\"AOD Group\",TableOutpatientHourlyRates[Group Name],0))/60*TableOutpatientRates[[#This Row],[Minutes for Rate]]),\"\")","v":""},{"$f":"IF(TableOutpatientRates[[#This Row],[LPHA Group Allowed]]=\"Y\",IF(NOT(ISBLANK(TableOutpatientRates[[#This Row],[Standard Rate]])),TableOutpatientRates[Standard Rate],INDEX(TableOutpatientHourlyRates[Hourly Rate],MATCH(\"LPHA Group\",TableOutpatientHourlyRates[Group Name],0))/60*TableOutpatientRates[[#This Row],[Minutes for Rate]]),\"\")","v":""},{"$f":"IF(TableOutpatientRates[[#This Row],[LVN Group Allowed]]=\"Y\",IF(NOT(ISBLANK(TableOutpatientRates[[#This Row],[Standard Rate]])),TableOutpatientRates[Standard Rate],INDEX(TableOutpatientHourlyRates[Hourly Rate],MATCH(\"LVN Group\",TableOutpatientHourlyRates[Group Name],0))/60*TableOutpatientRates[[#This Row],[Minutes for Rate]]),\"\")","v":""},{"$f":"IF(TableOutpatientRates[[#This Row],[MA Group Allowed]]=\"Y\",IF(NOT(ISBLANK(TableOutpatientRates[[#This Row],[Standard Rate]])),TableOutpatientRates[Standard Rate],INDEX(TableOutpatientHourlyRates[Hourly Rate],MATCH(\"MA Group\",TableOutpatientHourlyRates[Group Name],0))/60*TableOutpatientRates[[#This Row],[Minutes for Rate]]),\"\")","v":""},{"$f":"IF(TableOutpatientRates[[#This Row],[MD Group Allowed]]=\"Y\",IF(NOT(ISBLANK(TableOutpatientRates[[#This Row],[Standard Rate]])),TableOutpatientRates[Standard Rate],INDEX(TableOutpatientHourlyRates[Hourly Rate],MATCH(\"MD Group\",TableOutpatientHourlyRates[Group Name],0))/60*TableOutpatientRates[[#This Row],[Minutes for Rate]]),\"\")","v":35},{"$f":"IF(TableOutpatientRates[[#This Row],[NP Group Allowed]]=\"Y\",IF(NOT(ISBLANK(TableOutpatientRates[[#This Row],[Standard Rate]])),TableOutpatientRates[Standard Rate],INDEX(TableOutpatientHourlyRates[Hourly Rate],MATCH(\"NP Group\",TableOutpatientHourlyRates[Group Name],0))/60*TableOutpatientRates[[#This Row],[Minutes for Rate]]),\"\")","v":37.5},{"$f":"IF(TableOutpatientRates[[#This Row],[OT Group Allowed]]=\"Y\",IF(NOT(ISBLANK(TableOutpatientRates[[#This Row],[Standard Rate]])),TableOutpatientRates[Standard Rate],INDEX(TableOutpatientHourlyRates[Hourly Rate],MATCH(\"OT Group\",TableOutpatientHourlyRates[Group Name],0))/60*TableOutpatientRates[[#This Row],[Minutes for Rate]]),\"\")","v":""},{"$f":"IF(TableOutpatientRates[[#This Row],[PA Group Allowed]]=\"Y\",IF(NOT(ISBLANK(TableOutpatientRates[[#This Row],[Standard Rate]])),TableOutpatientRates[Standard Rate],INDEX(TableOutpatientHourlyRates[Hourly Rate],MATCH(\"PA Group\",TableOutpatientHourlyRates[Group Name],0))/60*TableOutpatientRates[[#This Row],[Minutes for Rate]]),\"\")","v":42.5},{"$f":"IF(TableOutpatientRates[[#This Row],[PEER Group Allowed]]=\"Y\",IF(NOT(ISBLANK(TableOutpatientRates[[#This Row],[Standard Rate]])),TableOutpatientRates[Standard Rate],INDEX(TableOutpatientHourlyRates[Hourly Rate],MATCH(\"PEER Group\",TableOutpatientHourlyRates[Group Name],0))/60*TableOutpatientRates[[#This Row],[Minutes for Rate]]),\"\")","v":""},{"$f":"IF(TableOutpatientRates[[#This Row],[PHARM Group Allowed]]=\"Y\",IF(NOT(ISBLANK(TableOutpatientRates[[#This Row],[Standard Rate]])),TableOutpatientRates[Standard Rate],INDEX(TableOutpatientHourlyRates[Hourly Rate],MATCH(\"PHARM Group\",TableOutpatientHourlyRates[Group Name],0))/60*TableOutpatientRates[[#This Row],[Minutes for Rate]]),\"\")","v":""},{"$f":"IF(TableOutpatientRates[[#This Row],[PSY Group Allowed]]=\"Y\",IF(NOT(ISBLANK(TableOutpatientRates[[#This Row],[Standard Rate]])),TableOutpatientRates[Standard Rate],INDEX(TableOutpatientHourlyRates[Hourly Rate],MATCH(\"PSY Group\",TableOutpatientHourlyRates[Group Name],0))/60*TableOutpatientRates[[#This Row],[Minutes for Rate]]),\"\")","v":""},{"$f":"IF(TableOutpatientRates[[#This Row],[PT Group Allowed]]=\"Y\",IF(NOT(ISBLANK(TableOutpatientRates[[#This Row],[Standard Rate]])),TableOutpatientRates[Standard Rate],INDEX(TableOutpatientHourlyRates[Hourly Rate],MATCH(\"PT Group\",TableOutpatientHourlyRates[Group Name],0))/60*TableOutpatientRates[[#This Row],[Minutes for Rate]]),\"\")","v":""},{"$f":"IF(TableOutpatientRates[[#This Row],[RN Group Allowed]]=\"Y\",IF(NOT(ISBLANK(TableOutpatientRates[[#This Row],[Standard Rate]])),TableOutpatientRates[Standard Rate],INDEX(TableOutpatientHourlyRates[Hourly Rate],MATCH(\"RN Group\",TableOutpatientHourlyRates[Group Name],0))/60*TableOutpatientRates[[#This Row],[Minutes for Rate]]),\"\")","v":""}]
["90846","Family Psychotherapy (Without the Patient Present), 50 minutes","50","","Y","","","Y","Y","","","Y","Y","","","",null,{"$f":"IF(TableOutpatientRates[[#This Row],[AOD Group Allowed]]=\"Y\",IF(NOT(ISBLANK(TableOutpatientRates[[#This Row],[Standard Rate]])),TableOutpatientRates[Standard Rate],INDEX(TableOutpatientHourlyRates[Hourly Rate],MATCH(\"AOD Group\",TableOutpatientHourlyRates[Group Name],0))/60*TableOutpatientRates[[#This Row],[Minutes for Rate]]),\"\")","v":""},{"$f":"IF(TableOutpatientRates[[#This Row],[LPHA Group Allowed]]=\"Y\",IF(NOT(ISBLANK(TableOutpatientRates[[#This Row],[Standard Rate]])),TableOutpatientRates[Standard Rate],INDEX(TableOutpatientHourlyRates[Hourly Rate],MATCH(\"LPHA Group\",TableOutpatientHourlyRates[Group Name],0))/60*TableOutpatientRates[[#This Row],[Minutes for Rate]]),\"\")","v":91.666666666666657},{"$f":"IF(TableOutpatientRates[[#This Row],[LVN Group Allowed]]=\"Y\",IF(NOT(ISBLANK(TableOutpatientRates[[#This Row],[Standard Rate]])),TableOutpatientRates[Standard Rate],INDEX(TableOutpatientHourlyRates[Hourly Rate],MATCH(\"LVN Group\",TableOutpatientHourlyRates[Group Name],0))/60*TableOutpatientRates[[#This Row],[Minutes for Rate]]),\"\")","v":""},{"$f":"IF(TableOutpatientRates[[#This Row],[MA Group Allowed]]=\"Y\",IF(NOT(ISBLANK(TableOutpatientRates[[#This Row],[Standard Rate]])),TableOutpatientRates[Standard Rate],INDEX(TableOutpatientHourlyRates[Hourly Rate],MATCH(\"MA Group\",TableOutpatientHourlyRates[Group Name],0))/60*TableOutpatientRates[[#This Row],[Minutes for Rate]]),\"\")","v":""},{"$f":"IF(TableOutpatientRates[[#This Row],[MD Group Allowed]]=\"Y\",IF(NOT(ISBLANK(TableOutpatientRates[[#This Row],[Standard Rate]])),TableOutpatientRates[Standard Rate],INDEX(TableOutpatientHourlyRates[Hourly Rate],MATCH(\"MD Group\",TableOutpatientHourlyRates[Group Name],0))/60*TableOutpatientRates[[#This Row],[Minutes for Rate]]),\"\")","v":116.66666666666667},{"$f":"IF(TableOutpatientRates[[#This Row],[NP Group Allowed]]=\"Y\",IF(NOT(ISBLANK(TableOutpatientRates[[#This Row],[Standard Rate]])),TableOutpatientRates[Standard Rate],INDEX(TableOutpatientHourlyRates[Hourly Rate],MATCH(\"NP Group\",TableOutpatientHourlyRates[Group Name],0))/60*TableOutpatientRates[[#This Row],[Minutes for Rate]]),\"\")","v":125},{"$f":"IF(TableOutpatientRates[[#This Row],[OT Group Allowed]]=\"Y\",IF(NOT(ISBLANK(TableOutpatientRates[[#This Row],[Standard Rate]])),TableOutpatientRates[Standard Rate],INDEX(TableOutpatientHourlyRates[Hourly Rate],MATCH(\"OT Group\",TableOutpatientHourlyRates[Group Name],0))/60*TableOutpatientRates[[#This Row],[Minutes for Rate]]),\"\")","v":""},{"$f":"IF(TableOutpatientRates[[#This Row],[PA Group Allowed]]=\"Y\",IF(NOT(ISBLANK(TableOutpatientRates[[#This Row],[Standard Rate]])),TableOutpatientRates[Standard Rate],INDEX(TableOutpatientHourlyRates[Hourly Rate],MATCH(\"PA Group\",TableOutpatientHourlyRates[Group Name],0))/60*TableOutpatientRates[[#This Row],[Minutes for Rate]]),\"\")","v":141.66666666666669},{"$f":"IF(TableOutpatientRates[[#This Row],[PEER Group Allowed]]=\"Y\",IF(NOT(ISBLANK(TableOutpatientRates[[#This Row],[Standard Rate]])),TableOutpatientRates[Standard Rate],INDEX(TableOutpatientHourlyRates[Hourly Rate],MATCH(\"PEER Group\",TableOutpatientHourlyRates[Group Name],0))/60*TableOutpatientRates[[#This Row],[Minutes for Rate]]),\"\")","v":""},{"$f":"IF(TableOutpatientRates[[#This Row],[PHARM Group Allowed]]=\"Y\",IF(NOT(ISBLANK(TableOutpatientRates[[#This Row],[Standard Rate]])),TableOutpatientRates[Standard Rate],INDEX(TableOutpatientHourlyRates[Hourly Rate],MATCH(\"PHARM Group\",TableOutpatientHourlyRates[Group Name],0))/60*TableOutpatientRates[[#This Row],[Minutes for Rate]]),\"\")","v":""},{"$f":"IF(TableOutpatientRates[[#This Row],[PSY Group Allowed]]=\"Y\",IF(NOT(ISBLANK(TableOutpatientRates[[#This Row],[Standard Rate]])),TableOutpatientRates[Standard Rate],INDEX(TableOutpatientHourlyRates[Hourly Rate],MATCH(\"PSY Group\",TableOutpatientHourlyRates[Group Name],0))/60*TableOutpatientRates[[#This Row],[Minutes for Rate]]),\"\")","v":166.66666666666669},{"$f":"IF(TableOutpatientRates[[#This Row],[PT Group Allowed]]=\"Y\",IF(NOT(ISBLANK(TableOutpatientRates[[#This Row],[Standard Rate]])),TableOutpatientRates[Standard Rate],INDEX(TableOutpatientHourlyRates[Hourly Rate],MATCH(\"PT Group\",TableOutpatientHourlyRates[Group Name],0))/60*TableOutpatientRates[[#This Row],[Minutes for Rate]]),\"\")","v":""},{"$f":"IF(TableOutpatientRates[[#This Row],[RN Group Allowed]]=\"Y\",IF(NOT(ISBLANK(TableOutpatientRates[[#This Row],[Standard Rate]])),TableOutpatientRates[Standard Rate],INDEX(TableOutpatientHourlyRates[Hourly Rate],MATCH(\"RN Group\",TableOutpatientHourlyRates[Group Name],0))/60*TableOutpatientRates[[#This Row],[Minutes for Rate]]),\"\")","v":""}]
["90847","Family Psychotherapy (Conjoint psychotherapy with Patient Present), 50 minutes","50","","Y","","","Y","Y","","","Y","Y","","","",null,{"$f":"IF(TableOutpatientRates[[#This Row],[AOD Group Allowed]]=\"Y\",IF(NOT(ISBLANK(TableOutpatientRates[[#This Row],[Standard Rate]])),TableOutpatientRates[Standard Rate],INDEX(TableOutpatientHourlyRates[Hourly Rate],MATCH(\"AOD Group\",TableOutpatientHourlyRates[Group Name],0))/60*TableOutpatientRates[[#This Row],[Minutes for Rate]]),\"\")","v":""},{"$f":"IF(TableOutpatientRates[[#This Row],[LPHA Group Allowed]]=\"Y\",IF(NOT(ISBLANK(TableOutpatientRates[[#This Row],[Standard Rate]])),TableOutpatientRates[Standard Rate],INDEX(TableOutpatientHourlyRates[Hourly Rate],MATCH(\"LPHA Group\",TableOutpatientHourlyRates[Group Name],0))/60*TableOutpatientRates[[#This Row],[Minutes for Rate]]),\"\")","v":91.666666666666657},{"$f":"IF(TableOutpatientRates[[#This Row],[LVN Group Allowed]]=\"Y\",IF(NOT(ISBLANK(TableOutpatientRates[[#This Row],[Standard Rate]])),TableOutpatientRates[Standard Rate],INDEX(TableOutpatientHourlyRates[Hourly Rate],MATCH(\"LVN Group\",TableOutpatientHourlyRates[Group Name],0))/60*TableOutpatientRates[[#This Row],[Minutes for Rate]]),\"\")","v":""},{"$f":"IF(TableOutpatientRates[[#This Row],[MA Group Allowed]]=\"Y\",IF(NOT(ISBLANK(TableOutpatientRates[[#This Row],[Standard Rate]])),TableOutpatientRates[Standard Rate],INDEX(TableOutpatientHourlyRates[Hourly Rate],MATCH(\"MA Group\",TableOutpatientHourlyRates[Group Name],0))/60*TableOutpatientRates[[#This Row],[Minutes for Rate]]),\"\")","v":""},{"$f":"IF(TableOutpatientRates[[#This Row],[MD Group Allowed]]=\"Y\",IF(NOT(ISBLANK(TableOutpatientRates[[#This Row],[Standard Rate]])),TableOutpatientRates[Standard Rate],INDEX(TableOutpatientHourlyRates[Hourly Rate],MATCH(\"MD Group\",TableOutpatientHourlyRates[Group Name],0))/60*TableOutpatientRates[[#This Row],[Minutes for Rate]]),\"\")","v":116.66666666666667},{"$f":"IF(TableOutpatientRates[[#This Row],[NP Group Allowed]]=\"Y\",IF(NOT(ISBLANK(TableOutpatientRates[[#This Row],[Standard Rate]])),TableOutpatientRates[Standard Rate],INDEX(TableOutpatientHourlyRates[Hourly Rate],MATCH(\"NP Group\",TableOutpatientHourlyRates[Group Name],0))/60*TableOutpatientRates[[#This Row],[Minutes for Rate]]),\"\")","v":125},{"$f":"IF(TableOutpatientRates[[#This Row],[OT Group Allowed]]=\"Y\",IF(NOT(ISBLANK(TableOutpatientRates[[#This Row],[Standard Rate]])),TableOutpatientRates[Standard Rate],INDEX(TableOutpatientHourlyRates[Hourly Rate],MATCH(\"OT Group\",TableOutpatientHourlyRates[Group Name],0))/60*TableOutpatientRates[[#This Row],[Minutes for Rate]]),\"\")","v":""},{"$f":"IF(TableOutpatientRates[[#This Row],[PA Group Allowed]]=\"Y\",IF(NOT(ISBLANK(TableOutpatientRates[[#This Row],[Standard Rate]])),TableOutpatientRates[Standard Rate],INDEX(TableOutpatientHourlyRates[Hourly Rate],MATCH(\"PA Group\",TableOutpatientHourlyRates[Group Name],0))/60*TableOutpatientRates[[#This Row],[Minutes for Rate]]),\"\")","v":141.66666666666669},{"$f":"IF(TableOutpatientRates[[#This Row],[PEER Group Allowed]]=\"Y\",IF(NOT(ISBLANK(TableOutpatientRates[[#This Row],[Standard Rate]])),TableOutpatientRates[Standard Rate],INDEX(TableOutpatientHourlyRates[Hourly Rate],MATCH(\"PEER Group\",TableOutpatientHourlyRates[Group Name],0))/60*TableOutpatientRates[[#This Row],[Minutes for Rate]]),\"\")","v":""},{"$f":"IF(TableOutpatientRates[[#This Row],[PHARM Group Allowed]]=\"Y\",IF(NOT(ISBLANK(TableOutpatientRates[[#This Row],[Standard Rate]])),TableOutpatientRates[Standard Rate],INDEX(TableOutpatientHourlyRates[Hourly Rate],MATCH(\"PHARM Group\",TableOutpatientHourlyRates[Group Name],0))/60*TableOutpatientRates[[#This Row],[Minutes for Rate]]),\"\")","v":""},{"$f":"IF(TableOutpatientRates[[#This Row],[PSY Group Allowed]]=\"Y\",IF(NOT(ISBLANK(TableOutpatientRates[[#This Row],[Standard Rate]])),TableOutpatientRates[Standard Rate],INDEX(TableOutpatientHourlyRates[Hourly Rate],MATCH(\"PSY Group\",TableOutpatientHourlyRates[Group Name],0))/60*TableOutpatientRates[[#This Row],[Minutes for Rate]]),\"\")","v":166.66666666666669},{"$f":"IF(TableOutpatientRates[[#This Row],[PT Group Allowed]]=\"Y\",IF(NOT(ISBLANK(TableOutpatientRates[[#This Row],[Standard Rate]])),TableOutpatientRates[Standard Rate],INDEX(TableOutpatientHourlyRates[Hourly Rate],MATCH(\"PT Group\",TableOutpatientHourlyRates[Group Name],0))/60*TableOutpatientRates[[#This Row],[Minutes for Rate]]),\"\")","v":""},{"$f":"IF(TableOutpatientRates[[#This Row],[RN Group Allowed]]=\"Y\",IF(NOT(ISBLANK(TableOutpatientRates[[#This Row],[Standard Rate]])),TableOutpatientRates[Standard Rate],INDEX(TableOutpatientHourlyRates[Hourly Rate],MATCH(\"RN Group\",TableOutpatientHourlyRates[Group Name],0))/60*TableOutpatientRates[[#This Row],[Minutes for Rate]]),\"\")","v":""}]
["90849","Multiple-Family Group Psychotherapy, 15 Minutes","15","","Y","","","Y","Y","","","Y","Y","","","",null,{"$f":"IF(TableOutpatientRates[[#This Row],[AOD Group Allowed]]=\"Y\",IF(NOT(ISBLANK(TableOutpatientRates[[#This Row],[Standard Rate]])),TableOutpatientRates[Standard Rate],INDEX(TableOutpatientHourlyRates[Hourly Rate],MATCH(\"AOD Group\",TableOutpatientHourlyRates[Group Name],0))/60*TableOutpatientRates[[#This Row],[Minutes for Rate]]),\"\")","v":""},{"$f":"IF(TableOutpatientRates[[#This Row],[LPHA Group Allowed]]=\"Y\",IF(NOT(ISBLANK(TableOutpatientRates[[#This Row],[Standard Rate]])),TableOutpatientRates[Standard Rate],INDEX(TableOutpatientHourlyRates[Hourly Rate],MATCH(\"LPHA Group\",TableOutpatientHourlyRates[Group Name],0))/60*TableOutpatientRates[[#This Row],[Minutes for Rate]]),\"\")","v":27.5},{"$f":"IF(TableOutpatientRates[[#This Row],[LVN Group Allowed]]=\"Y\",IF(NOT(ISBLANK(TableOutpatientRates[[#This Row],[Standard Rate]])),TableOutpatientRates[Standard Rate],INDEX(TableOutpatientHourlyRates[Hourly Rate],MATCH(\"LVN Group\",TableOutpatientHourlyRates[Group Name],0))/60*TableOutpatientRates[[#This Row],[Minutes for Rate]]),\"\")","v":""},{"$f":"IF(TableOutpatientRates[[#This Row],[MA Group Allowed]]=\"Y\",IF(NOT(ISBLANK(TableOutpatientRates[[#This Row],[Standard Rate]])),TableOutpatientRates[Standard Rate],INDEX(TableOutpatientHourlyRates[Hourly Rate],MATCH(\"MA Group\",TableOutpatientHourlyRates[Group Name],0))/60*TableOutpatientRates[[#This Row],[Minutes for Rate]]),\"\")","v":""},{"$f":"IF(TableOutpatientRates[[#This Row],[MD Group Allowed]]=\"Y\",IF(NOT(ISBLANK(TableOutpatientRates[[#This Row],[Standard Rate]])),TableOutpatientRates[Standard Rate],INDEX(TableOutpatientHourlyRates[Hourly Rate],MATCH(\"MD Group\",TableOutpatientHourlyRates[Group Name],0))/60*TableOutpatientRates[[#This Row],[Minutes for Rate]]),\"\")","v":35},{"$f":"IF(TableOutpatientRates[[#This Row],[NP Group Allowed]]=\"Y\",IF(NOT(ISBLANK(TableOutpatientRates[[#This Row],[Standard Rate]])),TableOutpatientRates[Standard Rate],INDEX(TableOutpatientHourlyRates[Hourly Rate],MATCH(\"NP Group\",TableOutpatientHourlyRates[Group Name],0))/60*TableOutpatientRates[[#This Row],[Minutes for Rate]]),\"\")","v":37.5},{"$f":"IF(TableOutpatientRates[[#This Row],[OT Group Allowed]]=\"Y\",IF(NOT(ISBLANK(TableOutpatientRates[[#This Row],[Standard Rate]])),TableOutpatientRates[Standard Rate],INDEX(TableOutpatientHourlyRates[Hourly Rate],MATCH(\"OT Group\",TableOutpatientHourlyRates[Group Name],0))/60*TableOutpatientRates[[#This Row],[Minutes for Rate]]),\"\")","v":""},{"$f":"IF(TableOutpatientRates[[#This Row],[PA Group Allowed]]=\"Y\",IF(NOT(ISBLANK(TableOutpatientRates[[#This Row],[Standard Rate]])),TableOutpatientRates[Standard Rate],INDEX(TableOutpatientHourlyRates[Hourly Rate],MATCH(\"PA Group\",TableOutpatientHourlyRates[Group Name],0))/60*TableOutpatientRates[[#This Row],[Minutes for Rate]]),\"\")","v":42.5},{"$f":"IF(TableOutpatientRates[[#This Row],[PEER Group Allowed]]=\"Y\",IF(NOT(ISBLANK(TableOutpatientRates[[#This Row],[Standard Rate]])),TableOutpatientRates[Standard Rate],INDEX(TableOutpatientHourlyRates[Hourly Rate],MATCH(\"PEER Group\",TableOutpatientHourlyRates[Group Name],0))/60*TableOutpatientRates[[#This Row],[Minutes for Rate]]),\"\")","v":""},{"$f":"IF(TableOutpatientRates[[#This Row],[PHARM Group Allowed]]=\"Y\",IF(NOT(ISBLANK(TableOutpatientRates[[#This Row],[Standard Rate]])),TableOutpatientRates[Standard Rate],INDEX(TableOutpatientHourlyRates[Hourly Rate],MATCH(\"PHARM Group\",TableOutpatientHourlyRates[Group Name],0))/60*TableOutpatientRates[[#This Row],[Minutes for Rate]]),\"\")","v":""},{"$f":"IF(TableOutpatientRates[[#This Row],[PSY Group Allowed]]=\"Y\",IF(NOT(ISBLANK(TableOutpatientRates[[#This Row],[Standard Rate]])),TableOutpatientRates[Standard Rate],INDEX(TableOutpatientHourlyRates[Hourly Rate],MATCH(\"PSY Group\",TableOutpatientHourlyRates[Group Name],0))/60*TableOutpatientRates[[#This Row],[Minutes for Rate]]),\"\")","v":50},{"$f":"IF(TableOutpatientRates[[#This Row],[PT Group Allowed]]=\"Y\",IF(NOT(ISBLANK(TableOutpatientRates[[#This Row],[Standard Rate]])),TableOutpatientRates[Standard Rate],INDEX(TableOutpatientHourlyRates[Hourly Rate],MATCH(\"PT Group\",TableOutpatientHourlyRates[Group Name],0))/60*TableOutpatientRates[[#This Row],[Minutes for Rate]]),\"\")","v":""},{"$f":"IF(TableOutpatientRates[[#This Row],[RN Group Allowed]]=\"Y\",IF(NOT(ISBLANK(TableOutpatientRates[[#This Row],[Standard Rate]])),TableOutpatientRates[Standard Rate],INDEX(TableOutpatientHourlyRates[Hourly Rate],MATCH(\"RN Group\",TableOutpatientHourlyRates[Group Name],0))/60*TableOutpatientRates[[#This Row],[Minutes for Rate]]),\"\")","v":""}]
["90865","Nacrosynthesis for Psychiatric Diagnostic and Therapeutic Purposes, 15 Minutes","15","","","","","Y","Y","","","Y","","","","",null,{"$f":"IF(TableOutpatientRates[[#This Row],[AOD Group Allowed]]=\"Y\",IF(NOT(ISBLANK(TableOutpatientRates[[#This Row],[Standard Rate]])),TableOutpatientRates[Standard Rate],INDEX(TableOutpatientHourlyRates[Hourly Rate],MATCH(\"AOD Group\",TableOutpatientHourlyRates[Group Name],0))/60*TableOutpatientRates[[#This Row],[Minutes for Rate]]),\"\")","v":""},{"$f":"IF(TableOutpatientRates[[#This Row],[LPHA Group Allowed]]=\"Y\",IF(NOT(ISBLANK(TableOutpatientRates[[#This Row],[Standard Rate]])),TableOutpatientRates[Standard Rate],INDEX(TableOutpatientHourlyRates[Hourly Rate],MATCH(\"LPHA Group\",TableOutpatientHourlyRates[Group Name],0))/60*TableOutpatientRates[[#This Row],[Minutes for Rate]]),\"\")","v":""},{"$f":"IF(TableOutpatientRates[[#This Row],[LVN Group Allowed]]=\"Y\",IF(NOT(ISBLANK(TableOutpatientRates[[#This Row],[Standard Rate]])),TableOutpatientRates[Standard Rate],INDEX(TableOutpatientHourlyRates[Hourly Rate],MATCH(\"LVN Group\",TableOutpatientHourlyRates[Group Name],0))/60*TableOutpatientRates[[#This Row],[Minutes for Rate]]),\"\")","v":""},{"$f":"IF(TableOutpatientRates[[#This Row],[MA Group Allowed]]=\"Y\",IF(NOT(ISBLANK(TableOutpatientRates[[#This Row],[Standard Rate]])),TableOutpatientRates[Standard Rate],INDEX(TableOutpatientHourlyRates[Hourly Rate],MATCH(\"MA Group\",TableOutpatientHourlyRates[Group Name],0))/60*TableOutpatientRates[[#This Row],[Minutes for Rate]]),\"\")","v":""},{"$f":"IF(TableOutpatientRates[[#This Row],[MD Group Allowed]]=\"Y\",IF(NOT(ISBLANK(TableOutpatientRates[[#This Row],[Standard Rate]])),TableOutpatientRates[Standard Rate],INDEX(TableOutpatientHourlyRates[Hourly Rate],MATCH(\"MD Group\",TableOutpatientHourlyRates[Group Name],0))/60*TableOutpatientRates[[#This Row],[Minutes for Rate]]),\"\")","v":35},{"$f":"IF(TableOutpatientRates[[#This Row],[NP Group Allowed]]=\"Y\",IF(NOT(ISBLANK(TableOutpatientRates[[#This Row],[Standard Rate]])),TableOutpatientRates[Standard Rate],INDEX(TableOutpatientHourlyRates[Hourly Rate],MATCH(\"NP Group\",TableOutpatientHourlyRates[Group Name],0))/60*TableOutpatientRates[[#This Row],[Minutes for Rate]]),\"\")","v":37.5},{"$f":"IF(TableOutpatientRates[[#This Row],[OT Group Allowed]]=\"Y\",IF(NOT(ISBLANK(TableOutpatientRates[[#This Row],[Standard Rate]])),TableOutpatientRates[Standard Rate],INDEX(TableOutpatientHourlyRates[Hourly Rate],MATCH(\"OT Group\",TableOutpatientHourlyRates[Group Name],0))/60*TableOutpatientRates[[#This Row],[Minutes for Rate]]),\"\")","v":""},{"$f":"IF(TableOutpatientRates[[#This Row],[PA Group Allowed]]=\"Y\",IF(NOT(ISBLANK(TableOutpatientRates[[#This Row],[Standard Rate]])),TableOutpatientRates[Standard Rate],INDEX(TableOutpatientHourlyRates[Hourly Rate],MATCH(\"PA Group\",TableOutpatientHourlyRates[Group Name],0))/60*TableOutpatientRates[[#This Row],[Minutes for Rate]]),\"\")","v":42.5},{"$f":"IF(TableOutpatientRates[[#This Row],[PEER Group Allowed]]=\"Y\",IF(NOT(ISBLANK(TableOutpatientRates[[#This Row],[Standard Rate]])),TableOutpatientRates[Standard Rate],INDEX(TableOutpatientHourlyRates[Hourly Rate],MATCH(\"PEER Group\",TableOutpatientHourlyRates[Group Name],0))/60*TableOutpatientRates[[#This Row],[Minutes for Rate]]),\"\")","v":""},{"$f":"IF(TableOutpatientRates[[#This Row],[PHARM Group Allowed]]=\"Y\",IF(NOT(ISBLANK(TableOutpatientRates[[#This Row],[Standard Rate]])),TableOutpatientRates[Standard Rate],INDEX(TableOutpatientHourlyRates[Hourly Rate],MATCH(\"PHARM Group\",TableOutpatientHourlyRates[Group Name],0))/60*TableOutpatientRates[[#This Row],[Minutes for Rate]]),\"\")","v":""},{"$f":"IF(TableOutpatientRates[[#This Row],[PSY Group Allowed]]=\"Y\",IF(NOT(ISBLANK(TableOutpatientRates[[#This Row],[Standard Rate]])),TableOutpatientRates[Standard Rate],INDEX(TableOutpatientHourlyRates[Hourly Rate],MATCH(\"PSY Group\",TableOutpatientHourlyRates[Group Name],0))/60*TableOutpatientRates[[#This Row],[Minutes for Rate]]),\"\")","v":""},{"$f":"IF(TableOutpatientRates[[#This Row],[PT Group Allowed]]=\"Y\",IF(NOT(ISBLANK(TableOutpatientRates[[#This Row],[Standard Rate]])),TableOutpatientRates[Standard Rate],INDEX(TableOutpatientHourlyRates[Hourly Rate],MATCH(\"PT Group\",TableOutpatientHourlyRates[Group Name],0))/60*TableOutpatientRates[[#This Row],[Minutes for Rate]]),\"\")","v":""},{"$f":"IF(TableOutpatientRates[[#This Row],[RN Group Allowed]]=\"Y\",IF(NOT(ISBLANK(TableOutpatientRates[[#This Row],[Standard Rate]])),TableOutpatientRates[Standard Rate],INDEX(TableOutpatientHourlyRates[Hourly Rate],MATCH(\"RN Group\",TableOutpatientHourlyRates[Group Name],0))/60*TableOutpatientRates[[#This Row],[Minutes for Rate]]),\"\")","v":""}]
["90882","Environmental intervention for medical management purposes on a psychiatric patient's behalf with agencies, employers, or institutions.","15","Y","Y","Y","Y","Y","Y","Y","","Y","Y","Y","Y","",null,{"$f":"IF(TableOutpatientRates[[#This Row],[AOD Group Allowed]]=\"Y\",IF(NOT(ISBLANK(TableOutpatientRates[[#This Row],[Standard Rate]])),TableOutpatientRates[Standard Rate],INDEX(TableOutpatientHourlyRates[Hourly Rate],MATCH(\"AOD Group\",TableOutpatientHourlyRates[Group Name],0))/60*TableOutpatientRates[[#This Row],[Minutes for Rate]]),\"\")","v":25},{"$f":"IF(TableOutpatientRates[[#This Row],[LPHA Group Allowed]]=\"Y\",IF(NOT(ISBLANK(TableOutpatientRates[[#This Row],[Standard Rate]])),TableOutpatientRates[Standard Rate],INDEX(TableOutpatientHourlyRates[Hourly Rate],MATCH(\"LPHA Group\",TableOutpatientHourlyRates[Group Name],0))/60*TableOutpatientRates[[#This Row],[Minutes for Rate]]),\"\")","v":27.5},{"$f":"IF(TableOutpatientRates[[#This Row],[LVN Group Allowed]]=\"Y\",IF(NOT(ISBLANK(TableOutpatientRates[[#This Row],[Standard Rate]])),TableOutpatientRates[Standard Rate],INDEX(TableOutpatientHourlyRates[Hourly Rate],MATCH(\"LVN Group\",TableOutpatientHourlyRates[Group Name],0))/60*TableOutpatientRates[[#This Row],[Minutes for Rate]]),\"\")","v":30},{"$f":"IF(TableOutpatientRates[[#This Row],[MA Group Allowed]]=\"Y\",IF(NOT(ISBLANK(TableOutpatientRates[[#This Row],[Standard Rate]])),TableOutpatientRates[Standard Rate],INDEX(TableOutpatientHourlyRates[Hourly Rate],MATCH(\"MA Group\",TableOutpatientHourlyRates[Group Name],0))/60*TableOutpatientRates[[#This Row],[Minutes for Rate]]),\"\")","v":32.5},{"$f":"IF(TableOutpatientRates[[#This Row],[MD Group Allowed]]=\"Y\",IF(NOT(ISBLANK(TableOutpatientRates[[#This Row],[Standard Rate]])),TableOutpatientRates[Standard Rate],INDEX(TableOutpatientHourlyRates[Hourly Rate],MATCH(\"MD Group\",TableOutpatientHourlyRates[Group Name],0))/60*TableOutpatientRates[[#This Row],[Minutes for Rate]]),\"\")","v":35},{"$f":"IF(TableOutpatientRates[[#This Row],[NP Group Allowed]]=\"Y\",IF(NOT(ISBLANK(TableOutpatientRates[[#This Row],[Standard Rate]])),TableOutpatientRates[Standard Rate],INDEX(TableOutpatientHourlyRates[Hourly Rate],MATCH(\"NP Group\",TableOutpatientHourlyRates[Group Name],0))/60*TableOutpatientRates[[#This Row],[Minutes for Rate]]),\"\")","v":37.5},{"$f":"IF(TableOutpatientRates[[#This Row],[OT Group Allowed]]=\"Y\",IF(NOT(ISBLANK(TableOutpatientRates[[#This Row],[Standard Rate]])),TableOutpatientRates[Standard Rate],INDEX(TableOutpatientHourlyRates[Hourly Rate],MATCH(\"OT Group\",TableOutpatientHourlyRates[Group Name],0))/60*TableOutpatientRates[[#This Row],[Minutes for Rate]]),\"\")","v":40},{"$f":"IF(TableOutpatientRates[[#This Row],[PA Group Allowed]]=\"Y\",IF(NOT(ISBLANK(TableOutpatientRates[[#This Row],[Standard Rate]])),TableOutpatientRates[Standard Rate],INDEX(TableOutpatientHourlyRates[Hourly Rate],MATCH(\"PA Group\",TableOutpatientHourlyRates[Group Name],0))/60*TableOutpatientRates[[#This Row],[Minutes for Rate]]),\"\")","v":42.5},{"$f":"IF(TableOutpatientRates[[#This Row],[PEER Group Allowed]]=\"Y\",IF(NOT(ISBLANK(TableOutpatientRates[[#This Row],[Standard Rate]])),TableOutpatientRates[Standard Rate],INDEX(TableOutpatientHourlyRates[Hourly Rate],MATCH(\"PEER Group\",TableOutpatientHourlyRates[Group Name],0))/60*TableOutpatientRates[[#This Row],[Minutes for Rate]]),\"\")","v":""},{"$f":"IF(TableOutpatientRates[[#This Row],[PHARM Group Allowed]]=\"Y\",IF(NOT(ISBLANK(TableOutpatientRates[[#This Row],[Standard Rate]])),TableOutpatientRates[Standard Rate],INDEX(TableOutpatientHourlyRates[Hourly Rate],MATCH(\"PHARM Group\",TableOutpatientHourlyRates[Group Name],0))/60*TableOutpatientRates[[#This Row],[Minutes for Rate]]),\"\")","v":""},{"$f":"IF(TableOutpatientRates[[#This Row],[PSY Group Allowed]]=\"Y\",IF(NOT(ISBLANK(TableOutpatientRates[[#This Row],[Standard Rate]])),TableOutpatientRates[Standard Rate],INDEX(TableOutpatientHourlyRates[Hourly Rate],MATCH(\"PSY Group\",TableOutpatientHourlyRates[Group Name],0))/60*TableOutpatientRates[[#This Row],[Minutes for Rate]]),\"\")","v":50},{"$f":"IF(TableOutpatientRates[[#This Row],[PT Group Allowed]]=\"Y\",IF(NOT(ISBLANK(TableOutpatientRates[[#This Row],[Standard Rate]])),TableOutpatientRates[Standard Rate],INDEX(TableOutpatientHourlyRates[Hourly Rate],MATCH(\"PT Group\",TableOutpatientHourlyRates[Group Name],0))/60*TableOutpatientRates[[#This Row],[Minutes for Rate]]),\"\")","v":52.5},{"$f":"IF(TableOutpatientRates[[#This Row],[RN Group Allowed]]=\"Y\",IF(NOT(ISBLANK(TableOutpatientRates[[#This Row],[Standard Rate]])),TableOutpatientRates[Standard Rate],INDEX(TableOutpatientHourlyRates[Hourly Rate],MATCH(\"RN Group\",TableOutpatientHourlyRates[Group Name],0))/60*TableOutpatientRates[[#This Row],[Minutes for Rate]]),\"\")","v":55}]
["90885","Psychiatric Evaluation of Hospital Records, Other Psychiatric Reports, Psychometric and/or Projective Tests, and Other Accumulated Data for Medical Diagnostic Purposes, 15 Minutes","15","","Y","","","Y","Y","","","Y","Y","","","",null,{"$f":"IF(TableOutpatientRates[[#This Row],[AOD Group Allowed]]=\"Y\",IF(NOT(ISBLANK(TableOutpatientRates[[#This Row],[Standard Rate]])),TableOutpatientRates[Standard Rate],INDEX(TableOutpatientHourlyRates[Hourly Rate],MATCH(\"AOD Group\",TableOutpatientHourlyRates[Group Name],0))/60*TableOutpatientRates[[#This Row],[Minutes for Rate]]),\"\")","v":""},{"$f":"IF(TableOutpatientRates[[#This Row],[LPHA Group Allowed]]=\"Y\",IF(NOT(ISBLANK(TableOutpatientRates[[#This Row],[Standard Rate]])),TableOutpatientRates[Standard Rate],INDEX(TableOutpatientHourlyRates[Hourly Rate],MATCH(\"LPHA Group\",TableOutpatientHourlyRates[Group Name],0))/60*TableOutpatientRates[[#This Row],[Minutes for Rate]]),\"\")","v":27.5},{"$f":"IF(TableOutpatientRates[[#This Row],[LVN Group Allowed]]=\"Y\",IF(NOT(ISBLANK(TableOutpatientRates[[#This Row],[Standard Rate]])),TableOutpatientRates[Standard Rate],INDEX(TableOutpatientHourlyRates[Hourly Rate],MATCH(\"LVN Group\",TableOutpatientHourlyRates[Group Name],0))/60*TableOutpatientRates[[#This Row],[Minutes for Rate]]),\"\")","v":""},{"$f":"IF(TableOutpatientRates[[#This Row],[MA Group Allowed]]=\"Y\",IF(NOT(ISBLANK(TableOutpatientRates[[#This Row],[Standard Rate]])),TableOutpatientRates[Standard Rate],INDEX(TableOutpatientHourlyRates[Hourly Rate],MATCH(\"MA Group\",TableOutpatientHourlyRates[Group Name],0))/60*TableOutpatientRates[[#This Row],[Minutes for Rate]]),\"\")","v":""},{"$f":"IF(TableOutpatientRates[[#This Row],[MD Group Allowed]]=\"Y\",IF(NOT(ISBLANK(TableOutpatientRates[[#This Row],[Standard Rate]])),TableOutpatientRates[Standard Rate],INDEX(TableOutpatientHourlyRates[Hourly Rate],MATCH(\"MD Group\",TableOutpatientHourlyRates[Group Name],0))/60*TableOutpatientRates[[#This Row],[Minutes for Rate]]),\"\")","v":35},{"$f":"IF(TableOutpatientRates[[#This Row],[NP Group Allowed]]=\"Y\",IF(NOT(ISBLANK(TableOutpatientRates[[#This Row],[Standard Rate]])),TableOutpatientRates[Standard Rate],INDEX(TableOutpatientHourlyRates[Hourly Rate],MATCH(\"NP Group\",TableOutpatientHourlyRates[Group Name],0))/60*TableOutpatientRates[[#This Row],[Minutes for Rate]]),\"\")","v":37.5},{"$f":"IF(TableOutpatientRates[[#This Row],[OT Group Allowed]]=\"Y\",IF(NOT(ISBLANK(TableOutpatientRates[[#This Row],[Standard Rate]])),TableOutpatientRates[Standard Rate],INDEX(TableOutpatientHourlyRates[Hourly Rate],MATCH(\"OT Group\",TableOutpatientHourlyRates[Group Name],0))/60*TableOutpatientRates[[#This Row],[Minutes for Rate]]),\"\")","v":""},{"$f":"IF(TableOutpatientRates[[#This Row],[PA Group Allowed]]=\"Y\",IF(NOT(ISBLANK(TableOutpatientRates[[#This Row],[Standard Rate]])),TableOutpatientRates[Standard Rate],INDEX(TableOutpatientHourlyRates[Hourly Rate],MATCH(\"PA Group\",TableOutpatientHourlyRates[Group Name],0))/60*TableOutpatientRates[[#This Row],[Minutes for Rate]]),\"\")","v":42.5},{"$f":"IF(TableOutpatientRates[[#This Row],[PEER Group Allowed]]=\"Y\",IF(NOT(ISBLANK(TableOutpatientRates[[#This Row],[Standard Rate]])),TableOutpatientRates[Standard Rate],INDEX(TableOutpatientHourlyRates[Hourly Rate],MATCH(\"PEER Group\",TableOutpatientHourlyRates[Group Name],0))/60*TableOutpatientRates[[#This Row],[Minutes for Rate]]),\"\")","v":""},{"$f":"IF(TableOutpatientRates[[#This Row],[PHARM Group Allowed]]=\"Y\",IF(NOT(ISBLANK(TableOutpatientRates[[#This Row],[Standard Rate]])),TableOutpatientRates[Standard Rate],INDEX(TableOutpatientHourlyRates[Hourly Rate],MATCH(\"PHARM Group\",TableOutpatientHourlyRates[Group Name],0))/60*TableOutpatientRates[[#This Row],[Minutes for Rate]]),\"\")","v":""},{"$f":"IF(TableOutpatientRates[[#This Row],[PSY Group Allowed]]=\"Y\",IF(NOT(ISBLANK(TableOutpatientRates[[#This Row],[Standard Rate]])),TableOutpatientRates[Standard Rate],INDEX(TableOutpatientHourlyRates[Hourly Rate],MATCH(\"PSY Group\",TableOutpatientHourlyRates[Group Name],0))/60*TableOutpatientRates[[#This Row],[Minutes for Rate]]),\"\")","v":50},{"$f":"IF(TableOutpatientRates[[#This Row],[PT Group Allowed]]=\"Y\",IF(NOT(ISBLANK(TableOutpatientRates[[#This Row],[Standard Rate]])),TableOutpatientRates[Standard Rate],INDEX(TableOutpatientHourlyRates[Hourly Rate],MATCH(\"PT Group\",TableOutpatientHourlyRates[Group Name],0))/60*TableOutpatientRates[[#This Row],[Minutes for Rate]]),\"\")","v":""},{"$f":"IF(TableOutpatientRates[[#This Row],[RN Group Allowed]]=\"Y\",IF(NOT(ISBLANK(TableOutpatientRates[[#This Row],[Standard Rate]])),TableOutpatientRates[Standard Rate],INDEX(TableOutpatientHourlyRates[Hourly Rate],MATCH(\"RN Group\",TableOutpatientHourlyRates[Group Name],0))/60*TableOutpatientRates[[#This Row],[Minutes for Rate]]),\"\")","v":""}]
["90887","Interpretation or Explanation of Results of Psychiatric or Other Medical Procedures to Family or Other Responsible Persons, 15 Minutes","15","","Y","","","Y","Y","Y","","Y","Y","","Y","Y",null,{"$f":"IF(TableOutpatientRates[[#This Row],[AOD Group Allowed]]=\"Y\",IF(NOT(ISBLANK(TableOutpatientRates[[#This Row],[Standard Rate]])),TableOutpatientRates[Standard Rate],INDEX(TableOutpatientHourlyRates[Hourly Rate],MATCH(\"AOD Group\",TableOutpatientHourlyRates[Group Name],0))/60*TableOutpatientRates[[#This Row],[Minutes for Rate]]),\"\")","v":""},{"$f":"IF(TableOutpatientRates[[#This Row],[LPHA Group Allowed]]=\"Y\",IF(NOT(ISBLANK(TableOutpatientRates[[#This Row],[Standard Rate]])),TableOutpatientRates[Standard Rate],INDEX(TableOutpatientHourlyRates[Hourly Rate],MATCH(\"LPHA Group\",TableOutpatientHourlyRates[Group Name],0))/60*TableOutpatientRates[[#This Row],[Minutes for Rate]]),\"\")","v":27.5},{"$f":"IF(TableOutpatientRates[[#This Row],[LVN Group Allowed]]=\"Y\",IF(NOT(ISBLANK(TableOutpatientRates[[#This Row],[Standard Rate]])),TableOutpatientRates[Standard Rate],INDEX(TableOutpatientHourlyRates[Hourly Rate],MATCH(\"LVN Group\",TableOutpatientHourlyRates[Group Name],0))/60*TableOutpatientRates[[#This Row],[Minutes for Rate]]),\"\")","v":""},{"$f":"IF(TableOutpatientRates[[#This Row],[MA Group Allowed]]=\"Y\",IF(NOT(ISBLANK(TableOutpatientRates[[#This Row],[Standard Rate]])),TableOutpatientRates[Standard Rate],INDEX(TableOutpatientHourlyRates[Hourly Rate],MATCH(\"MA Group\",TableOutpatientHourlyRates[Group Name],0))/60*TableOutpatientRates[[#This Row],[Minutes for Rate]]),\"\")","v":""},{"$f":"IF(TableOutpatientRates[[#This Row],[MD Group Allowed]]=\"Y\",IF(NOT(ISBLANK(TableOutpatientRates[[#This Row],[Standard Rate]])),TableOutpatientRates[Standard Rate],INDEX(TableOutpatientHourlyRates[Hourly Rate],MATCH(\"MD Group\",TableOutpatientHourlyRates[Group Name],0))/60*TableOutpatientRates[[#This Row],[Minutes for Rate]]),\"\")","v":35},{"$f":"IF(TableOutpatientRates[[#This Row],[NP Group Allowed]]=\"Y\",IF(NOT(ISBLANK(TableOutpatientRates[[#This Row],[Standard Rate]])),TableOutpatientRates[Standard Rate],INDEX(TableOutpatientHourlyRates[Hourly Rate],MATCH(\"NP Group\",TableOutpatientHourlyRates[Group Name],0))/60*TableOutpatientRates[[#This Row],[Minutes for Rate]]),\"\")","v":37.5},{"$f":"IF(TableOutpatientRates[[#This Row],[OT Group Allowed]]=\"Y\",IF(NOT(ISBLANK(TableOutpatientRates[[#This Row],[Standard Rate]])),TableOutpatientRates[Standard Rate],INDEX(TableOutpatientHourlyRates[Hourly Rate],MATCH(\"OT Group\",TableOutpatientHourlyRates[Group Name],0))/60*TableOutpatientRates[[#This Row],[Minutes for Rate]]),\"\")","v":40},{"$f":"IF(TableOutpatientRates[[#This Row],[PA Group Allowed]]=\"Y\",IF(NOT(ISBLANK(TableOutpatientRates[[#This Row],[Standard Rate]])),TableOutpatientRates[Standard Rate],INDEX(TableOutpatientHourlyRates[Hourly Rate],MATCH(\"PA Group\",TableOutpatientHourlyRates[Group Name],0))/60*TableOutpatientRates[[#This Row],[Minutes for Rate]]),\"\")","v":42.5},{"$f":"IF(TableOutpatientRates[[#This Row],[PEER Group Allowed]]=\"Y\",IF(NOT(ISBLANK(TableOutpatientRates[[#This Row],[Standard Rate]])),TableOutpatientRates[Standard Rate],INDEX(TableOutpatientHourlyRates[Hourly Rate],MATCH(\"PEER Group\",TableOutpatientHourlyRates[Group Name],0))/60*TableOutpatientRates[[#This Row],[Minutes for Rate]]),\"\")","v":""},{"$f":"IF(TableOutpatientRates[[#This Row],[PHARM Group Allowed]]=\"Y\",IF(NOT(ISBLANK(TableOutpatientRates[[#This Row],[Standard Rate]])),TableOutpatientRates[Standard Rate],INDEX(TableOutpatientHourlyRates[Hourly Rate],MATCH(\"PHARM Group\",TableOutpatientHourlyRates[Group Name],0))/60*TableOutpatientRates[[#This Row],[Minutes for Rate]]),\"\")","v":47.5},{"$f":"IF(TableOutpatientRates[[#This Row],[PSY Group Allowed]]=\"Y\",IF(NOT(ISBLANK(TableOutpatientRates[[#This Row],[Standard Rate]])),TableOutpatientRates[Standard Rate],INDEX(TableOutpatientHourlyRates[Hourly Rate],MATCH(\"PSY Group\",TableOutpatientHourlyRates[Group Name],0))/60*TableOutpatientRates[[#This Row],[Minutes for Rate]]),\"\")","v":50},{"$f":"IF(TableOutpatientRates[[#This Row],[PT Group Allowed]]=\"Y\",IF(NOT(ISBLANK(TableOutpatientRates[[#This Row],[Standard Rate]])),TableOutpatientRates[Standard Rate],INDEX(TableOutpatientHourlyRates[Hourly Rate],MATCH(\"PT Group\",TableOutpatientHourlyRates[Group Name],0))/60*TableOutpatientRates[[#This Row],[Minutes for Rate]]),\"\")","v":""},{"$f":"IF(TableOutpatientRates[[#This Row],[RN Group Allowed]]=\"Y\",IF(NOT(ISBLANK(TableOutpatientRates[[#This Row],[Standard Rate]])),TableOutpatientRates[Standard Rate],INDEX(TableOutpatientHourlyRates[Hourly Rate],MATCH(\"RN Group\",TableOutpatientHourlyRates[Group Name],0))/60*TableOutpatientRates[[#This Row],[Minutes for Rate]]),\"\")","v":55}]
["90889","Preparation of report of patient’s psychiatric status, history, treatment, or progress (other than for legal or consultative purpose) for other individuals, agencies, or insurance carries.","15","","Y","Y","","Y","Y","Y","","Y","Y","Y","Y","",null,{"$f":"IF(TableOutpatientRates[[#This Row],[AOD Group Allowed]]=\"Y\",IF(NOT(ISBLANK(TableOutpatientRates[[#This Row],[Standard Rate]])),TableOutpatientRates[Standard Rate],INDEX(TableOutpatientHourlyRates[Hourly Rate],MATCH(\"AOD Group\",TableOutpatientHourlyRates[Group Name],0))/60*TableOutpatientRates[[#This Row],[Minutes for Rate]]),\"\")","v":""},{"$f":"IF(TableOutpatientRates[[#This Row],[LPHA Group Allowed]]=\"Y\",IF(NOT(ISBLANK(TableOutpatientRates[[#This Row],[Standard Rate]])),TableOutpatientRates[Standard Rate],INDEX(TableOutpatientHourlyRates[Hourly Rate],MATCH(\"LPHA Group\",TableOutpatientHourlyRates[Group Name],0))/60*TableOutpatientRates[[#This Row],[Minutes for Rate]]),\"\")","v":27.5},{"$f":"IF(TableOutpatientRates[[#This Row],[LVN Group Allowed]]=\"Y\",IF(NOT(ISBLANK(TableOutpatientRates[[#This Row],[Standard Rate]])),TableOutpatientRates[Standard Rate],INDEX(TableOutpatientHourlyRates[Hourly Rate],MATCH(\"LVN Group\",TableOutpatientHourlyRates[Group Name],0))/60*TableOutpatientRates[[#This Row],[Minutes for Rate]]),\"\")","v":30},{"$f":"IF(TableOutpatientRates[[#This Row],[MA Group Allowed]]=\"Y\",IF(NOT(ISBLANK(TableOutpatientRates[[#This Row],[Standard Rate]])),TableOutpatientRates[Standard Rate],INDEX(TableOutpatientHourlyRates[Hourly Rate],MATCH(\"MA Group\",TableOutpatientHourlyRates[Group Name],0))/60*TableOutpatientRates[[#This Row],[Minutes for Rate]]),\"\")","v":""},{"$f":"IF(TableOutpatientRates[[#This Row],[MD Group Allowed]]=\"Y\",IF(NOT(ISBLANK(TableOutpatientRates[[#This Row],[Standard Rate]])),TableOutpatientRates[Standard Rate],INDEX(TableOutpatientHourlyRates[Hourly Rate],MATCH(\"MD Group\",TableOutpatientHourlyRates[Group Name],0))/60*TableOutpatientRates[[#This Row],[Minutes for Rate]]),\"\")","v":35},{"$f":"IF(TableOutpatientRates[[#This Row],[NP Group Allowed]]=\"Y\",IF(NOT(ISBLANK(TableOutpatientRates[[#This Row],[Standard Rate]])),TableOutpatientRates[Standard Rate],INDEX(TableOutpatientHourlyRates[Hourly Rate],MATCH(\"NP Group\",TableOutpatientHourlyRates[Group Name],0))/60*TableOutpatientRates[[#This Row],[Minutes for Rate]]),\"\")","v":37.5},{"$f":"IF(TableOutpatientRates[[#This Row],[OT Group Allowed]]=\"Y\",IF(NOT(ISBLANK(TableOutpatientRates[[#This Row],[Standard Rate]])),TableOutpatientRates[Standard Rate],INDEX(TableOutpatientHourlyRates[Hourly Rate],MATCH(\"OT Group\",TableOutpatientHourlyRates[Group Name],0))/60*TableOutpatientRates[[#This Row],[Minutes for Rate]]),\"\")","v":40},{"$f":"IF(TableOutpatientRates[[#This Row],[PA Group Allowed]]=\"Y\",IF(NOT(ISBLANK(TableOutpatientRates[[#This Row],[Standard Rate]])),TableOutpatientRates[Standard Rate],INDEX(TableOutpatientHourlyRates[Hourly Rate],MATCH(\"PA Group\",TableOutpatientHourlyRates[Group Name],0))/60*TableOutpatientRates[[#This Row],[Minutes for Rate]]),\"\")","v":42.5},{"$f":"IF(TableOutpatientRates[[#This Row],[PEER Group Allowed]]=\"Y\",IF(NOT(ISBLANK(TableOutpatientRates[[#This Row],[Standard Rate]])),TableOutpatientRates[Standard Rate],INDEX(TableOutpatientHourlyRates[Hourly Rate],MATCH(\"PEER Group\",TableOutpatientHourlyRates[Group Name],0))/60*TableOutpatientRates[[#This Row],[Minutes for Rate]]),\"\")","v":""},{"$f":"IF(TableOutpatientRates[[#This Row],[PHARM Group Allowed]]=\"Y\",IF(NOT(ISBLANK(TableOutpatientRates[[#This Row],[Standard Rate]])),TableOutpatientRates[Standard Rate],INDEX(TableOutpatientHourlyRates[Hourly Rate],MATCH(\"PHARM Group\",TableOutpatientHourlyRates[Group Name],0))/60*TableOutpatientRates[[#This Row],[Minutes for Rate]]),\"\")","v":""},{"$f":"IF(TableOutpatientRates[[#This Row],[PSY Group Allowed]]=\"Y\",IF(NOT(ISBLANK(TableOutpatientRates[[#This Row],[Standard Rate]])),TableOutpatientRates[Standard Rate],INDEX(TableOutpatientHourlyRates[Hourly Rate],MATCH(\"PSY Group\",TableOutpatientHourlyRates[Group Name],0))/60*TableOutpatientRates[[#This Row],[Minutes for Rate]]),\"\")","v":50},{"$f":"IF(TableOutpatientRates[[#This Row],[PT Group Allowed]]=\"Y\",IF(NOT(ISBLANK(TableOutpatientRates[[#This Row],[Standard Rate]])),TableOutpatientRates[Standard Rate],INDEX(TableOutpatientHourlyRates[Hourly Rate],MATCH(\"PT Group\",TableOutpatientHourlyRates[Group Name],0))/60*TableOutpatientRates[[#This Row],[Minutes for Rate]]),\"\")","v":52.5},{"$f":"IF(TableOutpatientRates[[#This Row],[RN Group Allowed]]=\"Y\",IF(NOT(ISBLANK(TableOutpatientRates[[#This Row],[Standard Rate]])),TableOutpatientRates[Standard Rate],INDEX(TableOutpatientHourlyRates[Hourly Rate],MATCH(\"RN Group\",TableOutpatientHourlyRates[Group Name],0))/60*TableOutpatientRates[[#This Row],[Minutes for Rate]]),\"\")","v":55}]
["96130","Psychological Testing Evaluation, First Hour","60","","","","","Y","Y","","","Y","Y","","","",null,{"$f":"IF(TableOutpatientRates[[#This Row],[AOD Group Allowed]]=\"Y\",IF(NOT(ISBLANK(TableOutpatientRates[[#This Row],[Standard Rate]])),TableOutpatientRates[Standard Rate],INDEX(TableOutpatientHourlyRates[Hourly Rate],MATCH(\"AOD Group\",TableOutpatientHourlyRates[Group Name],0))/60*TableOutpatientRates[[#This Row],[Minutes for Rate]]),\"\")","v":""},{"$f":"IF(TableOutpatientRates[[#This Row],[LPHA Group Allowed]]=\"Y\",IF(NOT(ISBLANK(TableOutpatientRates[[#This Row],[Standard Rate]])),TableOutpatientRates[Standard Rate],INDEX(TableOutpatientHourlyRates[Hourly Rate],MATCH(\"LPHA Group\",TableOutpatientHourlyRates[Group Name],0))/60*TableOutpatientRates[[#This Row],[Minutes for Rate]]),\"\")","v":""},{"$f":"IF(TableOutpatientRates[[#This Row],[LVN Group Allowed]]=\"Y\",IF(NOT(ISBLANK(TableOutpatientRates[[#This Row],[Standard Rate]])),TableOutpatientRates[Standard Rate],INDEX(TableOutpatientHourlyRates[Hourly Rate],MATCH(\"LVN Group\",TableOutpatientHourlyRates[Group Name],0))/60*TableOutpatientRates[[#This Row],[Minutes for Rate]]),\"\")","v":""},{"$f":"IF(TableOutpatientRates[[#This Row],[MA Group Allowed]]=\"Y\",IF(NOT(ISBLANK(TableOutpatientRates[[#This Row],[Standard Rate]])),TableOutpatientRates[Standard Rate],INDEX(TableOutpatientHourlyRates[Hourly Rate],MATCH(\"MA Group\",TableOutpatientHourlyRates[Group Name],0))/60*TableOutpatientRates[[#This Row],[Minutes for Rate]]),\"\")","v":""},{"$f":"IF(TableOutpatientRates[[#This Row],[MD Group Allowed]]=\"Y\",IF(NOT(ISBLANK(TableOutpatientRates[[#This Row],[Standard Rate]])),TableOutpatientRates[Standard Rate],INDEX(TableOutpatientHourlyRates[Hourly Rate],MATCH(\"MD Group\",TableOutpatientHourlyRates[Group Name],0))/60*TableOutpatientRates[[#This Row],[Minutes for Rate]]),\"\")","v":140},{"$f":"IF(TableOutpatientRates[[#This Row],[NP Group Allowed]]=\"Y\",IF(NOT(ISBLANK(TableOutpatientRates[[#This Row],[Standard Rate]])),TableOutpatientRates[Standard Rate],INDEX(TableOutpatientHourlyRates[Hourly Rate],MATCH(\"NP Group\",TableOutpatientHourlyRates[Group Name],0))/60*TableOutpatientRates[[#This Row],[Minutes for Rate]]),\"\")","v":150},{"$f":"IF(TableOutpatientRates[[#This Row],[OT Group Allowed]]=\"Y\",IF(NOT(ISBLANK(TableOutpatientRates[[#This Row],[Standard Rate]])),TableOutpatientRates[Standard Rate],INDEX(TableOutpatientHourlyRates[Hourly Rate],MATCH(\"OT Group\",TableOutpatientHourlyRates[Group Name],0))/60*TableOutpatientRates[[#This Row],[Minutes for Rate]]),\"\")","v":""},{"$f":"IF(TableOutpatientRates[[#This Row],[PA Group Allowed]]=\"Y\",IF(NOT(ISBLANK(TableOutpatientRates[[#This Row],[Standard Rate]])),TableOutpatientRates[Standard Rate],INDEX(TableOutpatientHourlyRates[Hourly Rate],MATCH(\"PA Group\",TableOutpatientHourlyRates[Group Name],0))/60*TableOutpatientRates[[#This Row],[Minutes for Rate]]),\"\")","v":170},{"$f":"IF(TableOutpatientRates[[#This Row],[PEER Group Allowed]]=\"Y\",IF(NOT(ISBLANK(TableOutpatientRates[[#This Row],[Standard Rate]])),TableOutpatientRates[Standard Rate],INDEX(TableOutpatientHourlyRates[Hourly Rate],MATCH(\"PEER Group\",TableOutpatientHourlyRates[Group Name],0))/60*TableOutpatientRates[[#This Row],[Minutes for Rate]]),\"\")","v":""},{"$f":"IF(TableOutpatientRates[[#This Row],[PHARM Group Allowed]]=\"Y\",IF(NOT(ISBLANK(TableOutpatientRates[[#This Row],[Standard Rate]])),TableOutpatientRates[Standard Rate],INDEX(TableOutpatientHourlyRates[Hourly Rate],MATCH(\"PHARM Group\",TableOutpatientHourlyRates[Group Name],0))/60*TableOutpatientRates[[#This Row],[Minutes for Rate]]),\"\")","v":""},{"$f":"IF(TableOutpatientRates[[#This Row],[PSY Group Allowed]]=\"Y\",IF(NOT(ISBLANK(TableOutpatientRates[[#This Row],[Standard Rate]])),TableOutpatientRates[Standard Rate],INDEX(TableOutpatientHourlyRates[Hourly Rate],MATCH(\"PSY Group\",TableOutpatientHourlyRates[Group Name],0))/60*TableOutpatientRates[[#This Row],[Minutes for Rate]]),\"\")","v":200},{"$f":"IF(TableOutpatientRates[[#This Row],[PT Group Allowed]]=\"Y\",IF(NOT(ISBLANK(TableOutpatientRates[[#This Row],[Standard Rate]])),TableOutpatientRates[Standard Rate],INDEX(TableOutpatientHourlyRates[Hourly Rate],MATCH(\"PT Group\",TableOutpatientHourlyRates[Group Name],0))/60*TableOutpatientRates[[#This Row],[Minutes for Rate]]),\"\")","v":""},{"$f":"IF(TableOutpatientRates[[#This Row],[RN Group Allowed]]=\"Y\",IF(NOT(ISBLANK(TableOutpatientRates[[#This Row],[Standard Rate]])),TableOutpatientRates[Standard Rate],INDEX(TableOutpatientHourlyRates[Hourly Rate],MATCH(\"RN Group\",TableOutpatientHourlyRates[Group Name],0))/60*TableOutpatientRates[[#This Row],[Minutes for Rate]]),\"\")","v":""}]
["96131","Psychological Testing Evaluation, Each Additional Hour","60","","","","","Y","Y","","","Y","Y","","","",null,{"$f":"IF(TableOutpatientRates[[#This Row],[AOD Group Allowed]]=\"Y\",IF(NOT(ISBLANK(TableOutpatientRates[[#This Row],[Standard Rate]])),TableOutpatientRates[Standard Rate],INDEX(TableOutpatientHourlyRates[Hourly Rate],MATCH(\"AOD Group\",TableOutpatientHourlyRates[Group Name],0))/60*TableOutpatientRates[[#This Row],[Minutes for Rate]]),\"\")","v":""},{"$f":"IF(TableOutpatientRates[[#This Row],[LPHA Group Allowed]]=\"Y\",IF(NOT(ISBLANK(TableOutpatientRates[[#This Row],[Standard Rate]])),TableOutpatientRates[Standard Rate],INDEX(TableOutpatientHourlyRates[Hourly Rate],MATCH(\"LPHA Group\",TableOutpatientHourlyRates[Group Name],0))/60*TableOutpatientRates[[#This Row],[Minutes for Rate]]),\"\")","v":""},{"$f":"IF(TableOutpatientRates[[#This Row],[LVN Group Allowed]]=\"Y\",IF(NOT(ISBLANK(TableOutpatientRates[[#This Row],[Standard Rate]])),TableOutpatientRates[Standard Rate],INDEX(TableOutpatientHourlyRates[Hourly Rate],MATCH(\"LVN Group\",TableOutpatientHourlyRates[Group Name],0))/60*TableOutpatientRates[[#This Row],[Minutes for Rate]]),\"\")","v":""},{"$f":"IF(TableOutpatientRates[[#This Row],[MA Group Allowed]]=\"Y\",IF(NOT(ISBLANK(TableOutpatientRates[[#This Row],[Standard Rate]])),TableOutpatientRates[Standard Rate],INDEX(TableOutpatientHourlyRates[Hourly Rate],MATCH(\"MA Group\",TableOutpatientHourlyRates[Group Name],0))/60*TableOutpatientRates[[#This Row],[Minutes for Rate]]),\"\")","v":""},{"$f":"IF(TableOutpatientRates[[#This Row],[MD Group Allowed]]=\"Y\",IF(NOT(ISBLANK(TableOutpatientRates[[#This Row],[Standard Rate]])),TableOutpatientRates[Standard Rate],INDEX(TableOutpatientHourlyRates[Hourly Rate],MATCH(\"MD Group\",TableOutpatientHourlyRates[Group Name],0))/60*TableOutpatientRates[[#This Row],[Minutes for Rate]]),\"\")","v":140},{"$f":"IF(TableOutpatientRates[[#This Row],[NP Group Allowed]]=\"Y\",IF(NOT(ISBLANK(TableOutpatientRates[[#This Row],[Standard Rate]])),TableOutpatientRates[Standard Rate],INDEX(TableOutpatientHourlyRates[Hourly Rate],MATCH(\"NP Group\",TableOutpatientHourlyRates[Group Name],0))/60*TableOutpatientRates[[#This Row],[Minutes for Rate]]),\"\")","v":150},{"$f":"IF(TableOutpatientRates[[#This Row],[OT Group Allowed]]=\"Y\",IF(NOT(ISBLANK(TableOutpatientRates[[#This Row],[Standard Rate]])),TableOutpatientRates[Standard Rate],INDEX(TableOutpatientHourlyRates[Hourly Rate],MATCH(\"OT Group\",TableOutpatientHourlyRates[Group Name],0))/60*TableOutpatientRates[[#This Row],[Minutes for Rate]]),\"\")","v":""},{"$f":"IF(TableOutpatientRates[[#This Row],[PA Group Allowed]]=\"Y\",IF(NOT(ISBLANK(TableOutpatientRates[[#This Row],[Standard Rate]])),TableOutpatientRates[Standard Rate],INDEX(TableOutpatientHourlyRates[Hourly Rate],MATCH(\"PA Group\",TableOutpatientHourlyRates[Group Name],0))/60*TableOutpatientRates[[#This Row],[Minutes for Rate]]),\"\")","v":170},{"$f":"IF(TableOutpatientRates[[#This Row],[PEER Group Allowed]]=\"Y\",IF(NOT(ISBLANK(TableOutpatientRates[[#This Row],[Standard Rate]])),TableOutpatientRates[Standard Rate],INDEX(TableOutpatientHourlyRates[Hourly Rate],MATCH(\"PEER Group\",TableOutpatientHourlyRates[Group Name],0))/60*TableOutpatientRates[[#This Row],[Minutes for Rate]]),\"\")","v":""},{"$f":"IF(TableOutpatientRates[[#This Row],[PHARM Group Allowed]]=\"Y\",IF(NOT(ISBLANK(TableOutpatientRates[[#This Row],[Standard Rate]])),TableOutpatientRates[Standard Rate],INDEX(TableOutpatientHourlyRates[Hourly Rate],MATCH(\"PHARM Group\",TableOutpatientHourlyRates[Group Name],0))/60*TableOutpatientRates[[#This Row],[Minutes for Rate]]),\"\")","v":""},{"$f":"IF(TableOutpatientRates[[#This Row],[PSY Group Allowed]]=\"Y\",IF(NOT(ISBLANK(TableOutpatientRates[[#This Row],[Standard Rate]])),TableOutpatientRates[Standard Rate],INDEX(TableOutpatientHourlyRates[Hourly Rate],MATCH(\"PSY Group\",TableOutpatientHourlyRates[Group Name],0))/60*TableOutpatientRates[[#This Row],[Minutes for Rate]]),\"\")","v":200},{"$f":"IF(TableOutpatientRates[[#This Row],[PT Group Allowed]]=\"Y\",IF(NOT(ISBLANK(TableOutpatientRates[[#This Row],[Standard Rate]])),TableOutpatientRates[Standard Rate],INDEX(TableOutpatientHourlyRates[Hourly Rate],MATCH(\"PT Group\",TableOutpatientHourlyRates[Group Name],0))/60*TableOutpatientRates[[#This Row],[Minutes for Rate]]),\"\")","v":""},{"$f":"IF(TableOutpatientRates[[#This Row],[RN Group Allowed]]=\"Y\",IF(NOT(ISBLANK(TableOutpatientRates[[#This Row],[Standard Rate]])),TableOutpatientRates[Standard Rate],INDEX(TableOutpatientHourlyRates[Hourly Rate],MATCH(\"RN Group\",TableOutpatientHourlyRates[Group Name],0))/60*TableOutpatientRates[[#This Row],[Minutes for Rate]]),\"\")","v":""}]
["96160","Administration of patient-focused health risk assessment instrument.","15","","Y","Y","Y","Y","Y","Y","","Y","Y","Y","Y","",null,{"$f":"IF(TableOutpatientRates[[#This Row],[AOD Group Allowed]]=\"Y\",IF(NOT(ISBLANK(TableOutpatientRates[[#This Row],[Standard Rate]])),TableOutpatientRates[Standard Rate],INDEX(TableOutpatientHourlyRates[Hourly Rate],MATCH(\"AOD Group\",TableOutpatientHourlyRates[Group Name],0))/60*TableOutpatientRates[[#This Row],[Minutes for Rate]]),\"\")","v":""},{"$f":"IF(TableOutpatientRates[[#This Row],[LPHA Group Allowed]]=\"Y\",IF(NOT(ISBLANK(TableOutpatientRates[[#This Row],[Standard Rate]])),TableOutpatientRates[Standard Rate],INDEX(TableOutpatientHourlyRates[Hourly Rate],MATCH(\"LPHA Group\",TableOutpatientHourlyRates[Group Name],0))/60*TableOutpatientRates[[#This Row],[Minutes for Rate]]),\"\")","v":27.5},{"$f":"IF(TableOutpatientRates[[#This Row],[LVN Group Allowed]]=\"Y\",IF(NOT(ISBLANK(TableOutpatientRates[[#This Row],[Standard Rate]])),TableOutpatientRates[Standard Rate],INDEX(TableOutpatientHourlyRates[Hourly Rate],MATCH(\"LVN Group\",TableOutpatientHourlyRates[Group Name],0))/60*TableOutpatientRates[[#This Row],[Minutes for Rate]]),\"\")","v":30},{"$f":"IF(TableOutpatientRates[[#This Row],[MA Group Allowed]]=\"Y\",IF(NOT(ISBLANK(TableOutpatientRates[[#This Row],[Standard Rate]])),TableOutpatientRates[Standard Rate],INDEX(TableOutpatientHourlyRates[Hourly Rate],MATCH(\"MA Group\",TableOutpatientHourlyRates[Group Name],0))/60*TableOutpatientRates[[#This Row],[Minutes for Rate]]),\"\")","v":32.5},{"$f":"IF(TableOutpatientRates[[#This Row],[MD Group Allowed]]=\"Y\",IF(NOT(ISBLANK(TableOutpatientRates[[#This Row],[Standard Rate]])),TableOutpatientRates[Standard Rate],INDEX(TableOutpatientHourlyRates[Hourly Rate],MATCH(\"MD Group\",TableOutpatientHourlyRates[Group Name],0))/60*TableOutpatientRates[[#This Row],[Minutes for Rate]]),\"\")","v":35},{"$f":"IF(TableOutpatientRates[[#This Row],[NP Group Allowed]]=\"Y\",IF(NOT(ISBLANK(TableOutpatientRates[[#This Row],[Standard Rate]])),TableOutpatientRates[Standard Rate],INDEX(TableOutpatientHourlyRates[Hourly Rate],MATCH(\"NP Group\",TableOutpatientHourlyRates[Group Name],0))/60*TableOutpatientRates[[#This Row],[Minutes for Rate]]),\"\")","v":37.5},{"$f":"IF(TableOutpatientRates[[#This Row],[OT Group Allowed]]=\"Y\",IF(NOT(ISBLANK(TableOutpatientRates[[#This Row],[Standard Rate]])),TableOutpatientRates[Standard Rate],INDEX(TableOutpatientHourlyRates[Hourly Rate],MATCH(\"OT Group\",TableOutpatientHourlyRates[Group Name],0))/60*TableOutpatientRates[[#This Row],[Minutes for Rate]]),\"\")","v":40},{"$f":"IF(TableOutpatientRates[[#This Row],[PA Group Allowed]]=\"Y\",IF(NOT(ISBLANK(TableOutpatientRates[[#This Row],[Standard Rate]])),TableOutpatientRates[Standard Rate],INDEX(TableOutpatientHourlyRates[Hourly Rate],MATCH(\"PA Group\",TableOutpatientHourlyRates[Group Name],0))/60*TableOutpatientRates[[#This Row],[Minutes for Rate]]),\"\")","v":42.5},{"$f":"IF(TableOutpatientRates[[#This Row],[PEER Group Allowed]]=\"Y\",IF(NOT(ISBLANK(TableOutpatientRates[[#This Row],[Standard Rate]])),TableOutpatientRates[Standard Rate],INDEX(TableOutpatientHourlyRates[Hourly Rate],MATCH(\"PEER Group\",TableOutpatientHourlyRates[Group Name],0))/60*TableOutpatientRates[[#This Row],[Minutes for Rate]]),\"\")","v":""},{"$f":"IF(TableOutpatientRates[[#This Row],[PHARM Group Allowed]]=\"Y\",IF(NOT(ISBLANK(TableOutpatientRates[[#This Row],[Standard Rate]])),TableOutpatientRates[Standard Rate],INDEX(TableOutpatientHourlyRates[Hourly Rate],MATCH(\"PHARM Group\",TableOutpatientHourlyRates[Group Name],0))/60*TableOutpatientRates[[#This Row],[Minutes for Rate]]),\"\")","v":""},{"$f":"IF(TableOutpatientRates[[#This Row],[PSY Group Allowed]]=\"Y\",IF(NOT(ISBLANK(TableOutpatientRates[[#This Row],[Standard Rate]])),TableOutpatientRates[Standard Rate],INDEX(TableOutpatientHourlyRates[Hourly Rate],MATCH(\"PSY Group\",TableOutpatientHourlyRates[Group Name],0))/60*TableOutpatientRates[[#This Row],[Minutes for Rate]]),\"\")","v":50},{"$f":"IF(TableOutpatientRates[[#This Row],[PT Group Allowed]]=\"Y\",IF(NOT(ISBLANK(TableOutpatientRates[[#This Row],[Standard Rate]])),TableOutpatientRates[Standard Rate],INDEX(TableOutpatientHourlyRates[Hourly Rate],MATCH(\"PT Group\",TableOutpatientHourlyRates[Group Name],0))/60*TableOutpatientRates[[#This Row],[Minutes for Rate]]),\"\")","v":52.5},{"$f":"IF(TableOutpatientRates[[#This Row],[RN Group Allowed]]=\"Y\",IF(NOT(ISBLANK(TableOutpatientRates[[#This Row],[Standard Rate]])),TableOutpatientRates[Standard Rate],INDEX(TableOutpatientHourlyRates[Hourly Rate],MATCH(\"RN Group\",TableOutpatientHourlyRates[Group Name],0))/60*TableOutpatientRates[[#This Row],[Minutes for Rate]]),\"\")","v":55}]
["96170","Health behavior intervention, family (without the patient present), face-to-face. 16-30 minutes","30","","Y","Y","Y","Y","Y","Y","","Y","Y","Y","Y","",null,{"$f":"IF(TableOutpatientRates[[#This Row],[AOD Group Allowed]]=\"Y\",IF(NOT(ISBLANK(TableOutpatientRates[[#This Row],[Standard Rate]])),TableOutpatientRates[Standard Rate],INDEX(TableOutpatientHourlyRates[Hourly Rate],MATCH(\"AOD Group\",TableOutpatientHourlyRates[Group Name],0))/60*TableOutpatientRates[[#This Row],[Minutes for Rate]]),\"\")","v":""},{"$f":"IF(TableOutpatientRates[[#This Row],[LPHA Group Allowed]]=\"Y\",IF(NOT(ISBLANK(TableOutpatientRates[[#This Row],[Standard Rate]])),TableOutpatientRates[Standard Rate],INDEX(TableOutpatientHourlyRates[Hourly Rate],MATCH(\"LPHA Group\",TableOutpatientHourlyRates[Group Name],0))/60*TableOutpatientRates[[#This Row],[Minutes for Rate]]),\"\")","v":55},{"$f":"IF(TableOutpatientRates[[#This Row],[LVN Group Allowed]]=\"Y\",IF(NOT(ISBLANK(TableOutpatientRates[[#This Row],[Standard Rate]])),TableOutpatientRates[Standard Rate],INDEX(TableOutpatientHourlyRates[Hourly Rate],MATCH(\"LVN Group\",TableOutpatientHourlyRates[Group Name],0))/60*TableOutpatientRates[[#This Row],[Minutes for Rate]]),\"\")","v":60},{"$f":"IF(TableOutpatientRates[[#This Row],[MA Group Allowed]]=\"Y\",IF(NOT(ISBLANK(TableOutpatientRates[[#This Row],[Standard Rate]])),TableOutpatientRates[Standard Rate],INDEX(TableOutpatientHourlyRates[Hourly Rate],MATCH(\"MA Group\",TableOutpatientHourlyRates[Group Name],0))/60*TableOutpatientRates[[#This Row],[Minutes for Rate]]),\"\")","v":65},{"$f":"IF(TableOutpatientRates[[#This Row],[MD Group Allowed]]=\"Y\",IF(NOT(ISBLANK(TableOutpatientRates[[#This Row],[Standard Rate]])),TableOutpatientRates[Standard Rate],INDEX(TableOutpatientHourlyRates[Hourly Rate],MATCH(\"MD Group\",TableOutpatientHourlyRates[Group Name],0))/60*TableOutpatientRates[[#This Row],[Minutes for Rate]]),\"\")","v":70},{"$f":"IF(TableOutpatientRates[[#This Row],[NP Group Allowed]]=\"Y\",IF(NOT(ISBLANK(TableOutpatientRates[[#This Row],[Standard Rate]])),TableOutpatientRates[Standard Rate],INDEX(TableOutpatientHourlyRates[Hourly Rate],MATCH(\"NP Group\",TableOutpatientHourlyRates[Group Name],0))/60*TableOutpatientRates[[#This Row],[Minutes for Rate]]),\"\")","v":75},{"$f":"IF(TableOutpatientRates[[#This Row],[OT Group Allowed]]=\"Y\",IF(NOT(ISBLANK(TableOutpatientRates[[#This Row],[Standard Rate]])),TableOutpatientRates[Standard Rate],INDEX(TableOutpatientHourlyRates[Hourly Rate],MATCH(\"OT Group\",TableOutpatientHourlyRates[Group Name],0))/60*TableOutpatientRates[[#This Row],[Minutes for Rate]]),\"\")","v":80},{"$f":"IF(TableOutpatientRates[[#This Row],[PA Group Allowed]]=\"Y\",IF(NOT(ISBLANK(TableOutpatientRates[[#This Row],[Standard Rate]])),TableOutpatientRates[Standard Rate],INDEX(TableOutpatientHourlyRates[Hourly Rate],MATCH(\"PA Group\",TableOutpatientHourlyRates[Group Name],0))/60*TableOutpatientRates[[#This Row],[Minutes for Rate]]),\"\")","v":85},{"$f":"IF(TableOutpatientRates[[#This Row],[PEER Group Allowed]]=\"Y\",IF(NOT(ISBLANK(TableOutpatientRates[[#This Row],[Standard Rate]])),TableOutpatientRates[Standard Rate],INDEX(TableOutpatientHourlyRates[Hourly Rate],MATCH(\"PEER Group\",TableOutpatientHourlyRates[Group Name],0))/60*TableOutpatientRates[[#This Row],[Minutes for Rate]]),\"\")","v":""},{"$f":"IF(TableOutpatientRates[[#This Row],[PHARM Group Allowed]]=\"Y\",IF(NOT(ISBLANK(TableOutpatientRates[[#This Row],[Standard Rate]])),TableOutpatientRates[Standard Rate],INDEX(TableOutpatientHourlyRates[Hourly Rate],MATCH(\"PHARM Group\",TableOutpatientHourlyRates[Group Name],0))/60*TableOutpatientRates[[#This Row],[Minutes for Rate]]),\"\")","v":""},{"$f":"IF(TableOutpatientRates[[#This Row],[PSY Group Allowed]]=\"Y\",IF(NOT(ISBLANK(TableOutpatientRates[[#This Row],[Standard Rate]])),TableOutpatientRates[Standard Rate],INDEX(TableOutpatientHourlyRates[Hourly Rate],MATCH(\"PSY Group\",TableOutpatientHourlyRates[Group Name],0))/60*TableOutpatientRates[[#This Row],[Minutes for Rate]]),\"\")","v":100},{"$f":"IF(TableOutpatientRates[[#This Row],[PT Group Allowed]]=\"Y\",IF(NOT(ISBLANK(TableOutpatientRates[[#This Row],[Standard Rate]])),TableOutpatientRates[Standard Rate],INDEX(TableOutpatientHourlyRates[Hourly Rate],MATCH(\"PT Group\",TableOutpatientHourlyRates[Group Name],0))/60*TableOutpatientRates[[#This Row],[Minutes for Rate]]),\"\")","v":105},{"$f":"IF(TableOutpatientRates[[#This Row],[RN Group Allowed]]=\"Y\",IF(NOT(ISBLANK(TableOutpatientRates[[#This Row],[Standard Rate]])),TableOutpatientRates[Standard Rate],INDEX(TableOutpatientHourlyRates[Hourly Rate],MATCH(\"RN Group\",TableOutpatientHourlyRates[Group Name],0))/60*TableOutpatientRates[[#This Row],[Minutes for Rate]]),\"\")","v":110}]
["96171","Health behavior intervention, family (without the patient present), face-to-face. Each additional 15 minutes present), face-to-face. Each additional 15 minutes","15","","Y","Y","Y","Y","Y","Y","","Y","Y","Y","Y","",null,{"$f":"IF(TableOutpatientRates[[#This Row],[AOD Group Allowed]]=\"Y\",IF(NOT(ISBLANK(TableOutpatientRates[[#This Row],[Standard Rate]])),TableOutpatientRates[Standard Rate],INDEX(TableOutpatientHourlyRates[Hourly Rate],MATCH(\"AOD Group\",TableOutpatientHourlyRates[Group Name],0))/60*TableOutpatientRates[[#This Row],[Minutes for Rate]]),\"\")","v":""},{"$f":"IF(TableOutpatientRates[[#This Row],[LPHA Group Allowed]]=\"Y\",IF(NOT(ISBLANK(TableOutpatientRates[[#This Row],[Standard Rate]])),TableOutpatientRates[Standard Rate],INDEX(TableOutpatientHourlyRates[Hourly Rate],MATCH(\"LPHA Group\",TableOutpatientHourlyRates[Group Name],0))/60*TableOutpatientRates[[#This Row],[Minutes for Rate]]),\"\")","v":27.5},{"$f":"IF(TableOutpatientRates[[#This Row],[LVN Group Allowed]]=\"Y\",IF(NOT(ISBLANK(TableOutpatientRates[[#This Row],[Standard Rate]])),TableOutpatientRates[Standard Rate],INDEX(TableOutpatientHourlyRates[Hourly Rate],MATCH(\"LVN Group\",TableOutpatientHourlyRates[Group Name],0))/60*TableOutpatientRates[[#This Row],[Minutes for Rate]]),\"\")","v":30},{"$f":"IF(TableOutpatientRates[[#This Row],[MA Group Allowed]]=\"Y\",IF(NOT(ISBLANK(TableOutpatientRates[[#This Row],[Standard Rate]])),TableOutpatientRates[Standard Rate],INDEX(TableOutpatientHourlyRates[Hourly Rate],MATCH(\"MA Group\",TableOutpatientHourlyRates[Group Name],0))/60*TableOutpatientRates[[#This Row],[Minutes for Rate]]),\"\")","v":32.5},{"$f":"IF(TableOutpatientRates[[#This Row],[MD Group Allowed]]=\"Y\",IF(NOT(ISBLANK(TableOutpatientRates[[#This Row],[Standard Rate]])),TableOutpatientRates[Standard Rate],INDEX(TableOutpatientHourlyRates[Hourly Rate],MATCH(\"MD Group\",TableOutpatientHourlyRates[Group Name],0))/60*TableOutpatientRates[[#This Row],[Minutes for Rate]]),\"\")","v":35},{"$f":"IF(TableOutpatientRates[[#This Row],[NP Group Allowed]]=\"Y\",IF(NOT(ISBLANK(TableOutpatientRates[[#This Row],[Standard Rate]])),TableOutpatientRates[Standard Rate],INDEX(TableOutpatientHourlyRates[Hourly Rate],MATCH(\"NP Group\",TableOutpatientHourlyRates[Group Name],0))/60*TableOutpatientRates[[#This Row],[Minutes for Rate]]),\"\")","v":37.5},{"$f":"IF(TableOutpatientRates[[#This Row],[OT Group Allowed]]=\"Y\",IF(NOT(ISBLANK(TableOutpatientRates[[#This Row],[Standard Rate]])),TableOutpatientRates[Standard Rate],INDEX(TableOutpatientHourlyRates[Hourly Rate],MATCH(\"OT Group\",TableOutpatientHourlyRates[Group Name],0))/60*TableOutpatientRates[[#This Row],[Minutes for Rate]]),\"\")","v":40},{"$f":"IF(TableOutpatientRates[[#This Row],[PA Group Allowed]]=\"Y\",IF(NOT(ISBLANK(TableOutpatientRates[[#This Row],[Standard Rate]])),TableOutpatientRates[Standard Rate],INDEX(TableOutpatientHourlyRates[Hourly Rate],MATCH(\"PA Group\",TableOutpatientHourlyRates[Group Name],0))/60*TableOutpatientRates[[#This Row],[Minutes for Rate]]),\"\")","v":42.5},{"$f":"IF(TableOutpatientRates[[#This Row],[PEER Group Allowed]]=\"Y\",IF(NOT(ISBLANK(TableOutpatientRates[[#This Row],[Standard Rate]])),TableOutpatientRates[Standard Rate],INDEX(TableOutpatientHourlyRates[Hourly Rate],MATCH(\"PEER Group\",TableOutpatientHourlyRates[Group Name],0))/60*TableOutpatientRates[[#This Row],[Minutes for Rate]]),\"\")","v":""},{"$f":"IF(TableOutpatientRates[[#This Row],[PHARM Group Allowed]]=\"Y\",IF(NOT(ISBLANK(TableOutpatientRates[[#This Row],[Standard Rate]])),TableOutpatientRates[Standard Rate],INDEX(TableOutpatientHourlyRates[Hourly Rate],MATCH(\"PHARM Group\",TableOutpatientHourlyRates[Group Name],0))/60*TableOutpatientRates[[#This Row],[Minutes for Rate]]),\"\")","v":""},{"$f":"IF(TableOutpatientRates[[#This Row],[PSY Group Allowed]]=\"Y\",IF(NOT(ISBLANK(TableOutpatientRates[[#This Row],[Standard Rate]])),TableOutpatientRates[Standard Rate],INDEX(TableOutpatientHourlyRates[Hourly Rate],MATCH(\"PSY Group\",TableOutpatientHourlyRates[Group Name],0))/60*TableOutpatientRates[[#This Row],[Minutes for Rate]]),\"\")","v":50},{"$f":"IF(TableOutpatientRates[[#This Row],[PT Group Allowed]]=\"Y\",IF(NOT(ISBLANK(TableOutpatientRates[[#This Row],[Standard Rate]])),TableOutpatientRates[Standard Rate],INDEX(TableOutpatientHourlyRates[Hourly Rate],MATCH(\"PT Group\",TableOutpatientHourlyRates[Group Name],0))/60*TableOutpatientRates[[#This Row],[Minutes for Rate]]),\"\")","v":52.5},{"$f":"IF(TableOutpatientRates[[#This Row],[RN Group Allowed]]=\"Y\",IF(NOT(ISBLANK(TableOutpatientRates[[#This Row],[Standard Rate]])),TableOutpatientRates[Standard Rate],INDEX(TableOutpatientHourlyRates[Hourly Rate],MATCH(\"RN Group\",TableOutpatientHourlyRates[Group Name],0))/60*TableOutpatientRates[[#This Row],[Minutes for Rate]]),\"\")","v":55}]
["98966","Telephone Assessment and Management Service, 5-10 Minutes","8","","Y","","","","Y","","","Y","Y","","","",null,{"$f":"IF(TableOutpatientRates[[#This Row],[AOD Group Allowed]]=\"Y\",IF(NOT(ISBLANK(TableOutpatientRates[[#This Row],[Standard Rate]])),TableOutpatientRates[Standard Rate],INDEX(TableOutpatientHourlyRates[Hourly Rate],MATCH(\"AOD Group\",TableOutpatientHourlyRates[Group Name],0))/60*TableOutpatientRates[[#This Row],[Minutes for Rate]]),\"\")","v":""},{"$f":"IF(TableOutpatientRates[[#This Row],[LPHA Group Allowed]]=\"Y\",IF(NOT(ISBLANK(TableOutpatientRates[[#This Row],[Standard Rate]])),TableOutpatientRates[Standard Rate],INDEX(TableOutpatientHourlyRates[Hourly Rate],MATCH(\"LPHA Group\",TableOutpatientHourlyRates[Group Name],0))/60*TableOutpatientRates[[#This Row],[Minutes for Rate]]),\"\")","v":14.666666666666666},{"$f":"IF(TableOutpatientRates[[#This Row],[LVN Group Allowed]]=\"Y\",IF(NOT(ISBLANK(TableOutpatientRates[[#This Row],[Standard Rate]])),TableOutpatientRates[Standard Rate],INDEX(TableOutpatientHourlyRates[Hourly Rate],MATCH(\"LVN Group\",TableOutpatientHourlyRates[Group Name],0))/60*TableOutpatientRates[[#This Row],[Minutes for Rate]]),\"\")","v":""},{"$f":"IF(TableOutpatientRates[[#This Row],[MA Group Allowed]]=\"Y\",IF(NOT(ISBLANK(TableOutpatientRates[[#This Row],[Standard Rate]])),TableOutpatientRates[Standard Rate],INDEX(TableOutpatientHourlyRates[Hourly Rate],MATCH(\"MA Group\",TableOutpatientHourlyRates[Group Name],0))/60*TableOutpatientRates[[#This Row],[Minutes for Rate]]),\"\")","v":""},{"$f":"IF(TableOutpatientRates[[#This Row],[MD Group Allowed]]=\"Y\",IF(NOT(ISBLANK(TableOutpatientRates[[#This Row],[Standard Rate]])),TableOutpatientRates[Standard Rate],INDEX(TableOutpatientHourlyRates[Hourly Rate],MATCH(\"MD Group\",TableOutpatientHourlyRates[Group Name],0))/60*TableOutpatientRates[[#This Row],[Minutes for Rate]]),\"\")","v":""},{"$f":"IF(TableOutpatientRates[[#This Row],[NP Group Allowed]]=\"Y\",IF(NOT(ISBLANK(TableOutpatientRates[[#This Row],[Standard Rate]])),TableOutpatientRates[Standard Rate],INDEX(TableOutpatientHourlyRates[Hourly Rate],MATCH(\"NP Group\",TableOutpatientHourlyRates[Group Name],0))/60*TableOutpatientRates[[#This Row],[Minutes for Rate]]),\"\")","v":20},{"$f":"IF(TableOutpatientRates[[#This Row],[OT Group Allowed]]=\"Y\",IF(NOT(ISBLANK(TableOutpatientRates[[#This Row],[Standard Rate]])),TableOutpatientRates[Standard Rate],INDEX(TableOutpatientHourlyRates[Hourly Rate],MATCH(\"OT Group\",TableOutpatientHourlyRates[Group Name],0))/60*TableOutpatientRates[[#This Row],[Minutes for Rate]]),\"\")","v":""},{"$f":"IF(TableOutpatientRates[[#This Row],[PA Group Allowed]]=\"Y\",IF(NOT(ISBLANK(TableOutpatientRates[[#This Row],[Standard Rate]])),TableOutpatientRates[Standard Rate],INDEX(TableOutpatientHourlyRates[Hourly Rate],MATCH(\"PA Group\",TableOutpatientHourlyRates[Group Name],0))/60*TableOutpatientRates[[#This Row],[Minutes for Rate]]),\"\")","v":22.666666666666668},{"$f":"IF(TableOutpatientRates[[#This Row],[PEER Group Allowed]]=\"Y\",IF(NOT(ISBLANK(TableOutpatientRates[[#This Row],[Standard Rate]])),TableOutpatientRates[Standard Rate],INDEX(TableOutpatientHourlyRates[Hourly Rate],MATCH(\"PEER Group\",TableOutpatientHourlyRates[Group Name],0))/60*TableOutpatientRates[[#This Row],[Minutes for Rate]]),\"\")","v":""},{"$f":"IF(TableOutpatientRates[[#This Row],[PHARM Group Allowed]]=\"Y\",IF(NOT(ISBLANK(TableOutpatientRates[[#This Row],[Standard Rate]])),TableOutpatientRates[Standard Rate],INDEX(TableOutpatientHourlyRates[Hourly Rate],MATCH(\"PHARM Group\",TableOutpatientHourlyRates[Group Name],0))/60*TableOutpatientRates[[#This Row],[Minutes for Rate]]),\"\")","v":""},{"$f":"IF(TableOutpatientRates[[#This Row],[PSY Group Allowed]]=\"Y\",IF(NOT(ISBLANK(TableOutpatientRates[[#This Row],[Standard Rate]])),TableOutpatientRates[Standard Rate],INDEX(TableOutpatientHourlyRates[Hourly Rate],MATCH(\"PSY Group\",TableOutpatientHourlyRates[Group Name],0))/60*TableOutpatientRates[[#This Row],[Minutes for Rate]]),\"\")","v":26.666666666666668},{"$f":"IF(TableOutpatientRates[[#This Row],[PT Group Allowed]]=\"Y\",IF(NOT(ISBLANK(TableOutpatientRates[[#This Row],[Standard Rate]])),TableOutpatientRates[Standard Rate],INDEX(TableOutpatientHourlyRates[Hourly Rate],MATCH(\"PT Group\",TableOutpatientHourlyRates[Group Name],0))/60*TableOutpatientRates[[#This Row],[Minutes for Rate]]),\"\")","v":""},{"$f":"IF(TableOutpatientRates[[#This Row],[RN Group Allowed]]=\"Y\",IF(NOT(ISBLANK(TableOutpatientRates[[#This Row],[Standard Rate]])),TableOutpatientRates[Standard Rate],INDEX(TableOutpatientHourlyRates[Hourly Rate],MATCH(\"RN Group\",TableOutpatientHourlyRates[Group Name],0))/60*TableOutpatientRates[[#This Row],[Minutes for Rate]]),\"\")","v":""}]
["98967","Telephone Assessment and Management Service, 11-20 Minutes","16","","Y","","","","Y","","","Y","Y","","","",null,{"$f":"IF(TableOutpatientRates[[#This Row],[AOD Group Allowed]]=\"Y\",IF(NOT(ISBLANK(TableOutpatientRates[[#This Row],[Standard Rate]])),TableOutpatientRates[Standard Rate],INDEX(TableOutpatientHourlyRates[Hourly Rate],MATCH(\"AOD Group\",TableOutpatientHourlyRates[Group Name],0))/60*TableOutpatientRates[[#This Row],[Minutes for Rate]]),\"\")","v":""},{"$f":"IF(TableOutpatientRates[[#This Row],[LPHA Group Allowed]]=\"Y\",IF(NOT(ISBLANK(TableOutpatientRates[[#This Row],[Standard Rate]])),TableOutpatientRates[Standard Rate],INDEX(TableOutpatientHourlyRates[Hourly Rate],MATCH(\"LPHA Group\",TableOutpatientHourlyRates[Group Name],0))/60*TableOutpatientRates[[#This Row],[Minutes for Rate]]),\"\")","v":29.333333333333332},{"$f":"IF(TableOutpatientRates[[#This Row],[LVN Group Allowed]]=\"Y\",IF(NOT(ISBLANK(TableOutpatientRates[[#This Row],[Standard Rate]])),TableOutpatientRates[Standard Rate],INDEX(TableOutpatientHourlyRates[Hourly Rate],MATCH(\"LVN Group\",TableOutpatientHourlyRates[Group Name],0))/60*TableOutpatientRates[[#This Row],[Minutes for Rate]]),\"\")","v":""},{"$f":"IF(TableOutpatientRates[[#This Row],[MA Group Allowed]]=\"Y\",IF(NOT(ISBLANK(TableOutpatientRates[[#This Row],[Standard Rate]])),TableOutpatientRates[Standard Rate],INDEX(TableOutpatientHourlyRates[Hourly Rate],MATCH(\"MA Group\",TableOutpatientHourlyRates[Group Name],0))/60*TableOutpatientRates[[#This Row],[Minutes for Rate]]),\"\")","v":""},{"$f":"IF(TableOutpatientRates[[#This Row],[MD Group Allowed]]=\"Y\",IF(NOT(ISBLANK(TableOutpatientRates[[#This Row],[Standard Rate]])),TableOutpatientRates[Standard Rate],INDEX(TableOutpatientHourlyRates[Hourly Rate],MATCH(\"MD Group\",TableOutpatientHourlyRates[Group Name],0))/60*TableOutpatientRates[[#This Row],[Minutes for Rate]]),\"\")","v":""},{"$f":"IF(TableOutpatientRates[[#This Row],[NP Group Allowed]]=\"Y\",IF(NOT(ISBLANK(TableOutpatientRates[[#This Row],[Standard Rate]])),TableOutpatientRates[Standard Rate],INDEX(TableOutpatientHourlyRates[Hourly Rate],MATCH(\"NP Group\",TableOutpatientHourlyRates[Group Name],0))/60*TableOutpatientRates[[#This Row],[Minutes for Rate]]),\"\")","v":40},{"$f":"IF(TableOutpatientRates[[#This Row],[OT Group Allowed]]=\"Y\",IF(NOT(ISBLANK(TableOutpatientRates[[#This Row],[Standard Rate]])),TableOutpatientRates[Standard Rate],INDEX(TableOutpatientHourlyRates[Hourly Rate],MATCH(\"OT Group\",TableOutpatientHourlyRates[Group Name],0))/60*TableOutpatientRates[[#This Row],[Minutes for Rate]]),\"\")","v":""},{"$f":"IF(TableOutpatientRates[[#This Row],[PA Group Allowed]]=\"Y\",IF(NOT(ISBLANK(TableOutpatientRates[[#This Row],[Standard Rate]])),TableOutpatientRates[Standard Rate],INDEX(TableOutpatientHourlyRates[Hourly Rate],MATCH(\"PA Group\",TableOutpatientHourlyRates[Group Name],0))/60*TableOutpatientRates[[#This Row],[Minutes for Rate]]),\"\")","v":45.333333333333336},{"$f":"IF(TableOutpatientRates[[#This Row],[PEER Group Allowed]]=\"Y\",IF(NOT(ISBLANK(TableOutpatientRates[[#This Row],[Standard Rate]])),TableOutpatientRates[Standard Rate],INDEX(TableOutpatientHourlyRates[Hourly Rate],MATCH(\"PEER Group\",TableOutpatientHourlyRates[Group Name],0))/60*TableOutpatientRates[[#This Row],[Minutes for Rate]]),\"\")","v":""},{"$f":"IF(TableOutpatientRates[[#This Row],[PHARM Group Allowed]]=\"Y\",IF(NOT(ISBLANK(TableOutpatientRates[[#This Row],[Standard Rate]])),TableOutpatientRates[Standard Rate],INDEX(TableOutpatientHourlyRates[Hourly Rate],MATCH(\"PHARM Group\",TableOutpatientHourlyRates[Group Name],0))/60*TableOutpatientRates[[#This Row],[Minutes for Rate]]),\"\")","v":""},{"$f":"IF(TableOutpatientRates[[#This Row],[PSY Group Allowed]]=\"Y\",IF(NOT(ISBLANK(TableOutpatientRates[[#This Row],[Standard Rate]])),TableOutpatientRates[Standard Rate],INDEX(TableOutpatientHourlyRates[Hourly Rate],MATCH(\"PSY Group\",TableOutpatientHourlyRates[Group Name],0))/60*TableOutpatientRates[[#This Row],[Minutes for Rate]]),\"\")","v":53.333333333333336},{"$f":"IF(TableOutpatientRates[[#This Row],[PT Group Allowed]]=\"Y\",IF(NOT(ISBLANK(TableOutpatientRates[[#This Row],[Standard Rate]])),TableOutpatientRates[Standard Rate],INDEX(TableOutpatientHourlyRates[Hourly Rate],MATCH(\"PT Group\",TableOutpatientHourlyRates[Group Name],0))/60*TableOutpatientRates[[#This Row],[Minutes for Rate]]),\"\")","v":""},{"$f":"IF(TableOutpatientRates[[#This Row],[RN Group Allowed]]=\"Y\",IF(NOT(ISBLANK(TableOutpatientRates[[#This Row],[Standard Rate]])),TableOutpatientRates[Standard Rate],INDEX(TableOutpatientHourlyRates[Hourly Rate],MATCH(\"RN Group\",TableOutpatientHourlyRates[Group Name],0))/60*TableOutpatientRates[[#This Row],[Minutes for Rate]]),\"\")","v":""}]
["98968","Telephone Assessment and Management Service, 21-30 Minutes","26","","Y","","","","Y","","","Y","Y","","","",null,{"$f":"IF(TableOutpatientRates[[#This Row],[AOD Group Allowed]]=\"Y\",IF(NOT(ISBLANK(TableOutpatientRates[[#This Row],[Standard Rate]])),TableOutpatientRates[Standard Rate],INDEX(TableOutpatientHourlyRates[Hourly Rate],MATCH(\"AOD Group\",TableOutpatientHourlyRates[Group Name],0))/60*TableOutpatientRates[[#This Row],[Minutes for Rate]]),\"\")","v":""},{"$f":"IF(TableOutpatientRates[[#This Row],[LPHA Group Allowed]]=\"Y\",IF(NOT(ISBLANK(TableOutpatientRates[[#This Row],[Standard Rate]])),TableOutpatientRates[Standard Rate],INDEX(TableOutpatientHourlyRates[Hourly Rate],MATCH(\"LPHA Group\",TableOutpatientHourlyRates[Group Name],0))/60*TableOutpatientRates[[#This Row],[Minutes for Rate]]),\"\")","v":47.666666666666664},{"$f":"IF(TableOutpatientRates[[#This Row],[LVN Group Allowed]]=\"Y\",IF(NOT(ISBLANK(TableOutpatientRates[[#This Row],[Standard Rate]])),TableOutpatientRates[Standard Rate],INDEX(TableOutpatientHourlyRates[Hourly Rate],MATCH(\"LVN Group\",TableOutpatientHourlyRates[Group Name],0))/60*TableOutpatientRates[[#This Row],[Minutes for Rate]]),\"\")","v":""},{"$f":"IF(TableOutpatientRates[[#This Row],[MA Group Allowed]]=\"Y\",IF(NOT(ISBLANK(TableOutpatientRates[[#This Row],[Standard Rate]])),TableOutpatientRates[Standard Rate],INDEX(TableOutpatientHourlyRates[Hourly Rate],MATCH(\"MA Group\",TableOutpatientHourlyRates[Group Name],0))/60*TableOutpatientRates[[#This Row],[Minutes for Rate]]),\"\")","v":""},{"$f":"IF(TableOutpatientRates[[#This Row],[MD Group Allowed]]=\"Y\",IF(NOT(ISBLANK(TableOutpatientRates[[#This Row],[Standard Rate]])),TableOutpatientRates[Standard Rate],INDEX(TableOutpatientHourlyRates[Hourly Rate],MATCH(\"MD Group\",TableOutpatientHourlyRates[Group Name],0))/60*TableOutpatientRates[[#This Row],[Minutes for Rate]]),\"\")","v":""},{"$f":"IF(TableOutpatientRates[[#This Row],[NP Group Allowed]]=\"Y\",IF(NOT(ISBLANK(TableOutpatientRates[[#This Row],[Standard Rate]])),TableOutpatientRates[Standard Rate],INDEX(TableOutpatientHourlyRates[Hourly Rate],MATCH(\"NP Group\",TableOutpatientHourlyRates[Group Name],0))/60*TableOutpatientRates[[#This Row],[Minutes for Rate]]),\"\")","v":65},{"$f":"IF(TableOutpatientRates[[#This Row],[OT Group Allowed]]=\"Y\",IF(NOT(ISBLANK(TableOutpatientRates[[#This Row],[Standard Rate]])),TableOutpatientRates[Standard Rate],INDEX(TableOutpatientHourlyRates[Hourly Rate],MATCH(\"OT Group\",TableOutpatientHourlyRates[Group Name],0))/60*TableOutpatientRates[[#This Row],[Minutes for Rate]]),\"\")","v":""},{"$f":"IF(TableOutpatientRates[[#This Row],[PA Group Allowed]]=\"Y\",IF(NOT(ISBLANK(TableOutpatientRates[[#This Row],[Standard Rate]])),TableOutpatientRates[Standard Rate],INDEX(TableOutpatientHourlyRates[Hourly Rate],MATCH(\"PA Group\",TableOutpatientHourlyRates[Group Name],0))/60*TableOutpatientRates[[#This Row],[Minutes for Rate]]),\"\")","v":73.666666666666671},{"$f":"IF(TableOutpatientRates[[#This Row],[PEER Group Allowed]]=\"Y\",IF(NOT(ISBLANK(TableOutpatientRates[[#This Row],[Standard Rate]])),TableOutpatientRates[Standard Rate],INDEX(TableOutpatientHourlyRates[Hourly Rate],MATCH(\"PEER Group\",TableOutpatientHourlyRates[Group Name],0))/60*TableOutpatientRates[[#This Row],[Minutes for Rate]]),\"\")","v":""},{"$f":"IF(TableOutpatientRates[[#This Row],[PHARM Group Allowed]]=\"Y\",IF(NOT(ISBLANK(TableOutpatientRates[[#This Row],[Standard Rate]])),TableOutpatientRates[Standard Rate],INDEX(TableOutpatientHourlyRates[Hourly Rate],MATCH(\"PHARM Group\",TableOutpatientHourlyRates[Group Name],0))/60*TableOutpatientRates[[#This Row],[Minutes for Rate]]),\"\")","v":""},{"$f":"IF(TableOutpatientRates[[#This Row],[PSY Group Allowed]]=\"Y\",IF(NOT(ISBLANK(TableOutpatientRates[[#This Row],[Standard Rate]])),TableOutpatientRates[Standard Rate],INDEX(TableOutpatientHourlyRates[Hourly Rate],MATCH(\"PSY Group\",TableOutpatientHourlyRates[Group Name],0))/60*TableOutpatientRates[[#This Row],[Minutes for Rate]]),\"\")","v":86.666666666666671},{"$f":"IF(TableOutpatientRates[[#This Row],[PT Group Allowed]]=\"Y\",IF(NOT(ISBLANK(TableOutpatientRates[[#This Row],[Standard Rate]])),TableOutpatientRates[Standard Rate],INDEX(TableOutpatientHourlyRates[Hourly Rate],MATCH(\"PT Group\",TableOutpatientHourlyRates[Group Name],0))/60*TableOutpatientRates[[#This Row],[Minutes for Rate]]),\"\")","v":""},{"$f":"IF(TableOutpatientRates[[#This Row],[RN Group Allowed]]=\"Y\",IF(NOT(ISBLANK(TableOutpatientRates[[#This Row],[Standard Rate]])),TableOutpatientRates[Standard Rate],INDEX(TableOutpatientHourlyRates[Hourly Rate],MATCH(\"RN Group\",TableOutpatientHourlyRates[Group Name],0))/60*TableOutpatientRates[[#This Row],[Minutes for Rate]]),\"\")","v":""}]
["99202","Office or Other Outpatient Visit of New Patient, 15-29 Minutes","22","","","","","Y","Y","","","Y","","","","",null,{"$f":"IF(TableOutpatientRates[[#This Row],[AOD Group Allowed]]=\"Y\",IF(NOT(ISBLANK(TableOutpatientRates[[#This Row],[Standard Rate]])),TableOutpatientRates[Standard Rate],INDEX(TableOutpatientHourlyRates[Hourly Rate],MATCH(\"AOD Group\",TableOutpatientHourlyRates[Group Name],0))/60*TableOutpatientRates[[#This Row],[Minutes for Rate]]),\"\")","v":""},{"$f":"IF(TableOutpatientRates[[#This Row],[LPHA Group Allowed]]=\"Y\",IF(NOT(ISBLANK(TableOutpatientRates[[#This Row],[Standard Rate]])),TableOutpatientRates[Standard Rate],INDEX(TableOutpatientHourlyRates[Hourly Rate],MATCH(\"LPHA Group\",TableOutpatientHourlyRates[Group Name],0))/60*TableOutpatientRates[[#This Row],[Minutes for Rate]]),\"\")","v":""},{"$f":"IF(TableOutpatientRates[[#This Row],[LVN Group Allowed]]=\"Y\",IF(NOT(ISBLANK(TableOutpatientRates[[#This Row],[Standard Rate]])),TableOutpatientRates[Standard Rate],INDEX(TableOutpatientHourlyRates[Hourly Rate],MATCH(\"LVN Group\",TableOutpatientHourlyRates[Group Name],0))/60*TableOutpatientRates[[#This Row],[Minutes for Rate]]),\"\")","v":""},{"$f":"IF(TableOutpatientRates[[#This Row],[MA Group Allowed]]=\"Y\",IF(NOT(ISBLANK(TableOutpatientRates[[#This Row],[Standard Rate]])),TableOutpatientRates[Standard Rate],INDEX(TableOutpatientHourlyRates[Hourly Rate],MATCH(\"MA Group\",TableOutpatientHourlyRates[Group Name],0))/60*TableOutpatientRates[[#This Row],[Minutes for Rate]]),\"\")","v":""},{"$f":"IF(TableOutpatientRates[[#This Row],[MD Group Allowed]]=\"Y\",IF(NOT(ISBLANK(TableOutpatientRates[[#This Row],[Standard Rate]])),TableOutpatientRates[Standard Rate],INDEX(TableOutpatientHourlyRates[Hourly Rate],MATCH(\"MD Group\",TableOutpatientHourlyRates[Group Name],0))/60*TableOutpatientRates[[#This Row],[Minutes for Rate]]),\"\")","v":51.333333333333336},{"$f":"IF(TableOutpatientRates[[#This Row],[NP Group Allowed]]=\"Y\",IF(NOT(ISBLANK(TableOutpatientRates[[#This Row],[Standard Rate]])),TableOutpatientRates[Standard Rate],INDEX(TableOutpatientHourlyRates[Hourly Rate],MATCH(\"NP Group\",TableOutpatientHourlyRates[Group Name],0))/60*TableOutpatientRates[[#This Row],[Minutes for Rate]]),\"\")","v":55},{"$f":"IF(TableOutpatientRates[[#This Row],[OT Group Allowed]]=\"Y\",IF(NOT(ISBLANK(TableOutpatientRates[[#This Row],[Standard Rate]])),TableOutpatientRates[Standard Rate],INDEX(TableOutpatientHourlyRates[Hourly Rate],MATCH(\"OT Group\",TableOutpatientHourlyRates[Group Name],0))/60*TableOutpatientRates[[#This Row],[Minutes for Rate]]),\"\")","v":""},{"$f":"IF(TableOutpatientRates[[#This Row],[PA Group Allowed]]=\"Y\",IF(NOT(ISBLANK(TableOutpatientRates[[#This Row],[Standard Rate]])),TableOutpatientRates[Standard Rate],INDEX(TableOutpatientHourlyRates[Hourly Rate],MATCH(\"PA Group\",TableOutpatientHourlyRates[Group Name],0))/60*TableOutpatientRates[[#This Row],[Minutes for Rate]]),\"\")","v":62.333333333333336},{"$f":"IF(TableOutpatientRates[[#This Row],[PEER Group Allowed]]=\"Y\",IF(NOT(ISBLANK(TableOutpatientRates[[#This Row],[Standard Rate]])),TableOutpatientRates[Standard Rate],INDEX(TableOutpatientHourlyRates[Hourly Rate],MATCH(\"PEER Group\",TableOutpatientHourlyRates[Group Name],0))/60*TableOutpatientRates[[#This Row],[Minutes for Rate]]),\"\")","v":""},{"$f":"IF(TableOutpatientRates[[#This Row],[PHARM Group Allowed]]=\"Y\",IF(NOT(ISBLANK(TableOutpatientRates[[#This Row],[Standard Rate]])),TableOutpatientRates[Standard Rate],INDEX(TableOutpatientHourlyRates[Hourly Rate],MATCH(\"PHARM Group\",TableOutpatientHourlyRates[Group Name],0))/60*TableOutpatientRates[[#This Row],[Minutes for Rate]]),\"\")","v":""},{"$f":"IF(TableOutpatientRates[[#This Row],[PSY Group Allowed]]=\"Y\",IF(NOT(ISBLANK(TableOutpatientRates[[#This Row],[Standard Rate]])),TableOutpatientRates[Standard Rate],INDEX(TableOutpatientHourlyRates[Hourly Rate],MATCH(\"PSY Group\",TableOutpatientHourlyRates[Group Name],0))/60*TableOutpatientRates[[#This Row],[Minutes for Rate]]),\"\")","v":""},{"$f":"IF(TableOutpatientRates[[#This Row],[PT Group Allowed]]=\"Y\",IF(NOT(ISBLANK(TableOutpatientRates[[#This Row],[Standard Rate]])),TableOutpatientRates[Standard Rate],INDEX(TableOutpatientHourlyRates[Hourly Rate],MATCH(\"PT Group\",TableOutpatientHourlyRates[Group Name],0))/60*TableOutpatientRates[[#This Row],[Minutes for Rate]]),\"\")","v":""},{"$f":"IF(TableOutpatientRates[[#This Row],[RN Group Allowed]]=\"Y\",IF(NOT(ISBLANK(TableOutpatientRates[[#This Row],[Standard Rate]])),TableOutpatientRates[Standard Rate],INDEX(TableOutpatientHourlyRates[Hourly Rate],MATCH(\"RN Group\",TableOutpatientHourlyRates[Group Name],0))/60*TableOutpatientRates[[#This Row],[Minutes for Rate]]),\"\")","v":""}]
["99203","Office or Other Outpatient Visit of a New patient, 30- 44 Minutes","37","","","","","Y","Y","","","Y","","","","",null,{"$f":"IF(TableOutpatientRates[[#This Row],[AOD Group Allowed]]=\"Y\",IF(NOT(ISBLANK(TableOutpatientRates[[#This Row],[Standard Rate]])),TableOutpatientRates[Standard Rate],INDEX(TableOutpatientHourlyRates[Hourly Rate],MATCH(\"AOD Group\",TableOutpatientHourlyRates[Group Name],0))/60*TableOutpatientRates[[#This Row],[Minutes for Rate]]),\"\")","v":""},{"$f":"IF(TableOutpatientRates[[#This Row],[LPHA Group Allowed]]=\"Y\",IF(NOT(ISBLANK(TableOutpatientRates[[#This Row],[Standard Rate]])),TableOutpatientRates[Standard Rate],INDEX(TableOutpatientHourlyRates[Hourly Rate],MATCH(\"LPHA Group\",TableOutpatientHourlyRates[Group Name],0))/60*TableOutpatientRates[[#This Row],[Minutes for Rate]]),\"\")","v":""},{"$f":"IF(TableOutpatientRates[[#This Row],[LVN Group Allowed]]=\"Y\",IF(NOT(ISBLANK(TableOutpatientRates[[#This Row],[Standard Rate]])),TableOutpatientRates[Standard Rate],INDEX(TableOutpatientHourlyRates[Hourly Rate],MATCH(\"LVN Group\",TableOutpatientHourlyRates[Group Name],0))/60*TableOutpatientRates[[#This Row],[Minutes for Rate]]),\"\")","v":""},{"$f":"IF(TableOutpatientRates[[#This Row],[MA Group Allowed]]=\"Y\",IF(NOT(ISBLANK(TableOutpatientRates[[#This Row],[Standard Rate]])),TableOutpatientRates[Standard Rate],INDEX(TableOutpatientHourlyRates[Hourly Rate],MATCH(\"MA Group\",TableOutpatientHourlyRates[Group Name],0))/60*TableOutpatientRates[[#This Row],[Minutes for Rate]]),\"\")","v":""},{"$f":"IF(TableOutpatientRates[[#This Row],[MD Group Allowed]]=\"Y\",IF(NOT(ISBLANK(TableOutpatientRates[[#This Row],[Standard Rate]])),TableOutpatientRates[Standard Rate],INDEX(TableOutpatientHourlyRates[Hourly Rate],MATCH(\"MD Group\",TableOutpatientHourlyRates[Group Name],0))/60*TableOutpatientRates[[#This Row],[Minutes for Rate]]),\"\")","v":86.333333333333343},{"$f":"IF(TableOutpatientRates[[#This Row],[NP Group Allowed]]=\"Y\",IF(NOT(ISBLANK(TableOutpatientRates[[#This Row],[Standard Rate]])),TableOutpatientRates[Standard Rate],INDEX(TableOutpatientHourlyRates[Hourly Rate],MATCH(\"NP Group\",TableOutpatientHourlyRates[Group Name],0))/60*TableOutpatientRates[[#This Row],[Minutes for Rate]]),\"\")","v":92.5},{"$f":"IF(TableOutpatientRates[[#This Row],[OT Group Allowed]]=\"Y\",IF(NOT(ISBLANK(TableOutpatientRates[[#This Row],[Standard Rate]])),TableOutpatientRates[Standard Rate],INDEX(TableOutpatientHourlyRates[Hourly Rate],MATCH(\"OT Group\",TableOutpatientHourlyRates[Group Name],0))/60*TableOutpatientRates[[#This Row],[Minutes for Rate]]),\"\")","v":""},{"$f":"IF(TableOutpatientRates[[#This Row],[PA Group Allowed]]=\"Y\",IF(NOT(ISBLANK(TableOutpatientRates[[#This Row],[Standard Rate]])),TableOutpatientRates[Standard Rate],INDEX(TableOutpatientHourlyRates[Hourly Rate],MATCH(\"PA Group\",TableOutpatientHourlyRates[Group Name],0))/60*TableOutpatientRates[[#This Row],[Minutes for Rate]]),\"\")","v":104.83333333333334},{"$f":"IF(TableOutpatientRates[[#This Row],[PEER Group Allowed]]=\"Y\",IF(NOT(ISBLANK(TableOutpatientRates[[#This Row],[Standard Rate]])),TableOutpatientRates[Standard Rate],INDEX(TableOutpatientHourlyRates[Hourly Rate],MATCH(\"PEER Group\",TableOutpatientHourlyRates[Group Name],0))/60*TableOutpatientRates[[#This Row],[Minutes for Rate]]),\"\")","v":""},{"$f":"IF(TableOutpatientRates[[#This Row],[PHARM Group Allowed]]=\"Y\",IF(NOT(ISBLANK(TableOutpatientRates[[#This Row],[Standard Rate]])),TableOutpatientRates[Standard Rate],INDEX(TableOutpatientHourlyRates[Hourly Rate],MATCH(\"PHARM Group\",TableOutpatientHourlyRates[Group Name],0))/60*TableOutpatientRates[[#This Row],[Minutes for Rate]]),\"\")","v":""},{"$f":"IF(TableOutpatientRates[[#This Row],[PSY Group Allowed]]=\"Y\",IF(NOT(ISBLANK(TableOutpatientRates[[#This Row],[Standard Rate]])),TableOutpatientRates[Standard Rate],INDEX(TableOutpatientHourlyRates[Hourly Rate],MATCH(\"PSY Group\",TableOutpatientHourlyRates[Group Name],0))/60*TableOutpatientRates[[#This Row],[Minutes for Rate]]),\"\")","v":""},{"$f":"IF(TableOutpatientRates[[#This Row],[PT Group Allowed]]=\"Y\",IF(NOT(ISBLANK(TableOutpatientRates[[#This Row],[Standard Rate]])),TableOutpatientRates[Standard Rate],INDEX(TableOutpatientHourlyRates[Hourly Rate],MATCH(\"PT Group\",TableOutpatientHourlyRates[Group Name],0))/60*TableOutpatientRates[[#This Row],[Minutes for Rate]]),\"\")","v":""},{"$f":"IF(TableOutpatientRates[[#This Row],[RN Group Allowed]]=\"Y\",IF(NOT(ISBLANK(TableOutpatientRates[[#This Row],[Standard Rate]])),TableOutpatientRates[Standard Rate],INDEX(TableOutpatientHourlyRates[Hourly Rate],MATCH(\"RN Group\",TableOutpatientHourlyRates[Group Name],0))/60*TableOutpatientRates[[#This Row],[Minutes for Rate]]),\"\")","v":""}]
["99204","Office or Other Outpatient Visit of a New Patient, 45- 59 Minutes","52","","","","","Y","Y","","","Y","","","","",null,{"$f":"IF(TableOutpatientRates[[#This Row],[AOD Group Allowed]]=\"Y\",IF(NOT(ISBLANK(TableOutpatientRates[[#This Row],[Standard Rate]])),TableOutpatientRates[Standard Rate],INDEX(TableOutpatientHourlyRates[Hourly Rate],MATCH(\"AOD Group\",TableOutpatientHourlyRates[Group Name],0))/60*TableOutpatientRates[[#This Row],[Minutes for Rate]]),\"\")","v":""},{"$f":"IF(TableOutpatientRates[[#This Row],[LPHA Group Allowed]]=\"Y\",IF(NOT(ISBLANK(TableOutpatientRates[[#This Row],[Standard Rate]])),TableOutpatientRates[Standard Rate],INDEX(TableOutpatientHourlyRates[Hourly Rate],MATCH(\"LPHA Group\",TableOutpatientHourlyRates[Group Name],0))/60*TableOutpatientRates[[#This Row],[Minutes for Rate]]),\"\")","v":""},{"$f":"IF(TableOutpatientRates[[#This Row],[LVN Group Allowed]]=\"Y\",IF(NOT(ISBLANK(TableOutpatientRates[[#This Row],[Standard Rate]])),TableOutpatientRates[Standard Rate],INDEX(TableOutpatientHourlyRates[Hourly Rate],MATCH(\"LVN Group\",TableOutpatientHourlyRates[Group Name],0))/60*TableOutpatientRates[[#This Row],[Minutes for Rate]]),\"\")","v":""},{"$f":"IF(TableOutpatientRates[[#This Row],[MA Group Allowed]]=\"Y\",IF(NOT(ISBLANK(TableOutpatientRates[[#This Row],[Standard Rate]])),TableOutpatientRates[Standard Rate],INDEX(TableOutpatientHourlyRates[Hourly Rate],MATCH(\"MA Group\",TableOutpatientHourlyRates[Group Name],0))/60*TableOutpatientRates[[#This Row],[Minutes for Rate]]),\"\")","v":""},{"$f":"IF(TableOutpatientRates[[#This Row],[MD Group Allowed]]=\"Y\",IF(NOT(ISBLANK(TableOutpatientRates[[#This Row],[Standard Rate]])),TableOutpatientRates[Standard Rate],INDEX(TableOutpatientHourlyRates[Hourly Rate],MATCH(\"MD Group\",TableOutpatientHourlyRates[Group Name],0))/60*TableOutpatientRates[[#This Row],[Minutes for Rate]]),\"\")","v":121.33333333333334},{"$f":"IF(TableOutpatientRates[[#This Row],[NP Group Allowed]]=\"Y\",IF(NOT(ISBLANK(TableOutpatientRates[[#This Row],[Standard Rate]])),TableOutpatientRates[Standard Rate],INDEX(TableOutpatientHourlyRates[Hourly Rate],MATCH(\"NP Group\",TableOutpatientHourlyRates[Group Name],0))/60*TableOutpatientRates[[#This Row],[Minutes for Rate]]),\"\")","v":130},{"$f":"IF(TableOutpatientRates[[#This Row],[OT Group Allowed]]=\"Y\",IF(NOT(ISBLANK(TableOutpatientRates[[#This Row],[Standard Rate]])),TableOutpatientRates[Standard Rate],INDEX(TableOutpatientHourlyRates[Hourly Rate],MATCH(\"OT Group\",TableOutpatientHourlyRates[Group Name],0))/60*TableOutpatientRates[[#This Row],[Minutes for Rate]]),\"\")","v":""},{"$f":"IF(TableOutpatientRates[[#This Row],[PA Group Allowed]]=\"Y\",IF(NOT(ISBLANK(TableOutpatientRates[[#This Row],[Standard Rate]])),TableOutpatientRates[Standard Rate],INDEX(TableOutpatientHourlyRates[Hourly Rate],MATCH(\"PA Group\",TableOutpatientHourlyRates[Group Name],0))/60*TableOutpatientRates[[#This Row],[Minutes for Rate]]),\"\")","v":147.33333333333334},{"$f":"IF(TableOutpatientRates[[#This Row],[PEER Group Allowed]]=\"Y\",IF(NOT(ISBLANK(TableOutpatientRates[[#This Row],[Standard Rate]])),TableOutpatientRates[Standard Rate],INDEX(TableOutpatientHourlyRates[Hourly Rate],MATCH(\"PEER Group\",TableOutpatientHourlyRates[Group Name],0))/60*TableOutpatientRates[[#This Row],[Minutes for Rate]]),\"\")","v":""},{"$f":"IF(TableOutpatientRates[[#This Row],[PHARM Group Allowed]]=\"Y\",IF(NOT(ISBLANK(TableOutpatientRates[[#This Row],[Standard Rate]])),TableOutpatientRates[Standard Rate],INDEX(TableOutpatientHourlyRates[Hourly Rate],MATCH(\"PHARM Group\",TableOutpatientHourlyRates[Group Name],0))/60*TableOutpatientRates[[#This Row],[Minutes for Rate]]),\"\")","v":""},{"$f":"IF(TableOutpatientRates[[#This Row],[PSY Group Allowed]]=\"Y\",IF(NOT(ISBLANK(TableOutpatientRates[[#This Row],[Standard Rate]])),TableOutpatientRates[Standard Rate],INDEX(TableOutpatientHourlyRates[Hourly Rate],MATCH(\"PSY Group\",TableOutpatientHourlyRates[Group Name],0))/60*TableOutpatientRates[[#This Row],[Minutes for Rate]]),\"\")","v":""},{"$f":"IF(TableOutpatientRates[[#This Row],[PT Group Allowed]]=\"Y\",IF(NOT(ISBLANK(TableOutpatientRates[[#This Row],[Standard Rate]])),TableOutpatientRates[Standard Rate],INDEX(TableOutpatientHourlyRates[Hourly Rate],MATCH(\"PT Group\",TableOutpatientHourlyRates[Group Name],0))/60*TableOutpatientRates[[#This Row],[Minutes for Rate]]),\"\")","v":""},{"$f":"IF(TableOutpatientRates[[#This Row],[RN Group Allowed]]=\"Y\",IF(NOT(ISBLANK(TableOutpatientRates[[#This Row],[Standard Rate]])),TableOutpatientRates[Standard Rate],INDEX(TableOutpatientHourlyRates[Hourly Rate],MATCH(\"RN Group\",TableOutpatientHourlyRates[Group Name],0))/60*TableOutpatientRates[[#This Row],[Minutes for Rate]]),\"\")","v":""}]
["99205","Office or Other Outpatient Visit of a New Patient, 60- 74 Minutes","67","","","","","Y","Y","","","Y","","","","",null,{"$f":"IF(TableOutpatientRates[[#This Row],[AOD Group Allowed]]=\"Y\",IF(NOT(ISBLANK(TableOutpatientRates[[#This Row],[Standard Rate]])),TableOutpatientRates[Standard Rate],INDEX(TableOutpatientHourlyRates[Hourly Rate],MATCH(\"AOD Group\",TableOutpatientHourlyRates[Group Name],0))/60*TableOutpatientRates[[#This Row],[Minutes for Rate]]),\"\")","v":""},{"$f":"IF(TableOutpatientRates[[#This Row],[LPHA Group Allowed]]=\"Y\",IF(NOT(ISBLANK(TableOutpatientRates[[#This Row],[Standard Rate]])),TableOutpatientRates[Standard Rate],INDEX(TableOutpatientHourlyRates[Hourly Rate],MATCH(\"LPHA Group\",TableOutpatientHourlyRates[Group Name],0))/60*TableOutpatientRates[[#This Row],[Minutes for Rate]]),\"\")","v":""},{"$f":"IF(TableOutpatientRates[[#This Row],[LVN Group Allowed]]=\"Y\",IF(NOT(ISBLANK(TableOutpatientRates[[#This Row],[Standard Rate]])),TableOutpatientRates[Standard Rate],INDEX(TableOutpatientHourlyRates[Hourly Rate],MATCH(\"LVN Group\",TableOutpatientHourlyRates[Group Name],0))/60*TableOutpatientRates[[#This Row],[Minutes for Rate]]),\"\")","v":""},{"$f":"IF(TableOutpatientRates[[#This Row],[MA Group Allowed]]=\"Y\",IF(NOT(ISBLANK(TableOutpatientRates[[#This Row],[Standard Rate]])),TableOutpatientRates[Standard Rate],INDEX(TableOutpatientHourlyRates[Hourly Rate],MATCH(\"MA Group\",TableOutpatientHourlyRates[Group Name],0))/60*TableOutpatientRates[[#This Row],[Minutes for Rate]]),\"\")","v":""},{"$f":"IF(TableOutpatientRates[[#This Row],[MD Group Allowed]]=\"Y\",IF(NOT(ISBLANK(TableOutpatientRates[[#This Row],[Standard Rate]])),TableOutpatientRates[Standard Rate],INDEX(TableOutpatientHourlyRates[Hourly Rate],MATCH(\"MD Group\",TableOutpatientHourlyRates[Group Name],0))/60*TableOutpatientRates[[#This Row],[Minutes for Rate]]),\"\")","v":156.33333333333334},{"$f":"IF(TableOutpatientRates[[#This Row],[NP Group Allowed]]=\"Y\",IF(NOT(ISBLANK(TableOutpatientRates[[#This Row],[Standard Rate]])),TableOutpatientRates[Standard Rate],INDEX(TableOutpatientHourlyRates[Hourly Rate],MATCH(\"NP Group\",TableOutpatientHourlyRates[Group Name],0))/60*TableOutpatientRates[[#This Row],[Minutes for Rate]]),\"\")","v":167.5},{"$f":"IF(TableOutpatientRates[[#This Row],[OT Group Allowed]]=\"Y\",IF(NOT(ISBLANK(TableOutpatientRates[[#This Row],[Standard Rate]])),TableOutpatientRates[Standard Rate],INDEX(TableOutpatientHourlyRates[Hourly Rate],MATCH(\"OT Group\",TableOutpatientHourlyRates[Group Name],0))/60*TableOutpatientRates[[#This Row],[Minutes for Rate]]),\"\")","v":""},{"$f":"IF(TableOutpatientRates[[#This Row],[PA Group Allowed]]=\"Y\",IF(NOT(ISBLANK(TableOutpatientRates[[#This Row],[Standard Rate]])),TableOutpatientRates[Standard Rate],INDEX(TableOutpatientHourlyRates[Hourly Rate],MATCH(\"PA Group\",TableOutpatientHourlyRates[Group Name],0))/60*TableOutpatientRates[[#This Row],[Minutes for Rate]]),\"\")","v":189.83333333333334},{"$f":"IF(TableOutpatientRates[[#This Row],[PEER Group Allowed]]=\"Y\",IF(NOT(ISBLANK(TableOutpatientRates[[#This Row],[Standard Rate]])),TableOutpatientRates[Standard Rate],INDEX(TableOutpatientHourlyRates[Hourly Rate],MATCH(\"PEER Group\",TableOutpatientHourlyRates[Group Name],0))/60*TableOutpatientRates[[#This Row],[Minutes for Rate]]),\"\")","v":""},{"$f":"IF(TableOutpatientRates[[#This Row],[PHARM Group Allowed]]=\"Y\",IF(NOT(ISBLANK(TableOutpatientRates[[#This Row],[Standard Rate]])),TableOutpatientRates[Standard Rate],INDEX(TableOutpatientHourlyRates[Hourly Rate],MATCH(\"PHARM Group\",TableOutpatientHourlyRates[Group Name],0))/60*TableOutpatientRates[[#This Row],[Minutes for Rate]]),\"\")","v":""},{"$f":"IF(TableOutpatientRates[[#This Row],[PSY Group Allowed]]=\"Y\",IF(NOT(ISBLANK(TableOutpatientRates[[#This Row],[Standard Rate]])),TableOutpatientRates[Standard Rate],INDEX(TableOutpatientHourlyRates[Hourly Rate],MATCH(\"PSY Group\",TableOutpatientHourlyRates[Group Name],0))/60*TableOutpatientRates[[#This Row],[Minutes for Rate]]),\"\")","v":""},{"$f":"IF(TableOutpatientRates[[#This Row],[PT Group Allowed]]=\"Y\",IF(NOT(ISBLANK(TableOutpatientRates[[#This Row],[Standard Rate]])),TableOutpatientRates[Standard Rate],INDEX(TableOutpatientHourlyRates[Hourly Rate],MATCH(\"PT Group\",TableOutpatientHourlyRates[Group Name],0))/60*TableOutpatientRates[[#This Row],[Minutes for Rate]]),\"\")","v":""},{"$f":"IF(TableOutpatientRates[[#This Row],[RN Group Allowed]]=\"Y\",IF(NOT(ISBLANK(TableOutpatientRates[[#This Row],[Standard Rate]])),TableOutpatientRates[Standard Rate],INDEX(TableOutpatientHourlyRates[Hourly Rate],MATCH(\"RN Group\",TableOutpatientHourlyRates[Group Name],0))/60*TableOutpatientRates[[#This Row],[Minutes for Rate]]),\"\")","v":""}]
["99212","Office or Other Outpatient Visit of an Established Patient, 10-19 Minutes","15","","","","","Y","Y","","","Y","","","","",null,{"$f":"IF(TableOutpatientRates[[#This Row],[AOD Group Allowed]]=\"Y\",IF(NOT(ISBLANK(TableOutpatientRates[[#This Row],[Standard Rate]])),TableOutpatientRates[Standard Rate],INDEX(TableOutpatientHourlyRates[Hourly Rate],MATCH(\"AOD Group\",TableOutpatientHourlyRates[Group Name],0))/60*TableOutpatientRates[[#This Row],[Minutes for Rate]]),\"\")","v":""},{"$f":"IF(TableOutpatientRates[[#This Row],[LPHA Group Allowed]]=\"Y\",IF(NOT(ISBLANK(TableOutpatientRates[[#This Row],[Standard Rate]])),TableOutpatientRates[Standard Rate],INDEX(TableOutpatientHourlyRates[Hourly Rate],MATCH(\"LPHA Group\",TableOutpatientHourlyRates[Group Name],0))/60*TableOutpatientRates[[#This Row],[Minutes for Rate]]),\"\")","v":""},{"$f":"IF(TableOutpatientRates[[#This Row],[LVN Group Allowed]]=\"Y\",IF(NOT(ISBLANK(TableOutpatientRates[[#This Row],[Standard Rate]])),TableOutpatientRates[Standard Rate],INDEX(TableOutpatientHourlyRates[Hourly Rate],MATCH(\"LVN Group\",TableOutpatientHourlyRates[Group Name],0))/60*TableOutpatientRates[[#This Row],[Minutes for Rate]]),\"\")","v":""},{"$f":"IF(TableOutpatientRates[[#This Row],[MA Group Allowed]]=\"Y\",IF(NOT(ISBLANK(TableOutpatientRates[[#This Row],[Standard Rate]])),TableOutpatientRates[Standard Rate],INDEX(TableOutpatientHourlyRates[Hourly Rate],MATCH(\"MA Group\",TableOutpatientHourlyRates[Group Name],0))/60*TableOutpatientRates[[#This Row],[Minutes for Rate]]),\"\")","v":""},{"$f":"IF(TableOutpatientRates[[#This Row],[MD Group Allowed]]=\"Y\",IF(NOT(ISBLANK(TableOutpatientRates[[#This Row],[Standard Rate]])),TableOutpatientRates[Standard Rate],INDEX(TableOutpatientHourlyRates[Hourly Rate],MATCH(\"MD Group\",TableOutpatientHourlyRates[Group Name],0))/60*TableOutpatientRates[[#This Row],[Minutes for Rate]]),\"\")","v":35},{"$f":"IF(TableOutpatientRates[[#This Row],[NP Group Allowed]]=\"Y\",IF(NOT(ISBLANK(TableOutpatientRates[[#This Row],[Standard Rate]])),TableOutpatientRates[Standard Rate],INDEX(TableOutpatientHourlyRates[Hourly Rate],MATCH(\"NP Group\",TableOutpatientHourlyRates[Group Name],0))/60*TableOutpatientRates[[#This Row],[Minutes for Rate]]),\"\")","v":37.5},{"$f":"IF(TableOutpatientRates[[#This Row],[OT Group Allowed]]=\"Y\",IF(NOT(ISBLANK(TableOutpatientRates[[#This Row],[Standard Rate]])),TableOutpatientRates[Standard Rate],INDEX(TableOutpatientHourlyRates[Hourly Rate],MATCH(\"OT Group\",TableOutpatientHourlyRates[Group Name],0))/60*TableOutpatientRates[[#This Row],[Minutes for Rate]]),\"\")","v":""},{"$f":"IF(TableOutpatientRates[[#This Row],[PA Group Allowed]]=\"Y\",IF(NOT(ISBLANK(TableOutpatientRates[[#This Row],[Standard Rate]])),TableOutpatientRates[Standard Rate],INDEX(TableOutpatientHourlyRates[Hourly Rate],MATCH(\"PA Group\",TableOutpatientHourlyRates[Group Name],0))/60*TableOutpatientRates[[#This Row],[Minutes for Rate]]),\"\")","v":42.5},{"$f":"IF(TableOutpatientRates[[#This Row],[PEER Group Allowed]]=\"Y\",IF(NOT(ISBLANK(TableOutpatientRates[[#This Row],[Standard Rate]])),TableOutpatientRates[Standard Rate],INDEX(TableOutpatientHourlyRates[Hourly Rate],MATCH(\"PEER Group\",TableOutpatientHourlyRates[Group Name],0))/60*TableOutpatientRates[[#This Row],[Minutes for Rate]]),\"\")","v":""},{"$f":"IF(TableOutpatientRates[[#This Row],[PHARM Group Allowed]]=\"Y\",IF(NOT(ISBLANK(TableOutpatientRates[[#This Row],[Standard Rate]])),TableOutpatientRates[Standard Rate],INDEX(TableOutpatientHourlyRates[Hourly Rate],MATCH(\"PHARM Group\",TableOutpatientHourlyRates[Group Name],0))/60*TableOutpatientRates[[#This Row],[Minutes for Rate]]),\"\")","v":""},{"$f":"IF(TableOutpatientRates[[#This Row],[PSY Group Allowed]]=\"Y\",IF(NOT(ISBLANK(TableOutpatientRates[[#This Row],[Standard Rate]])),TableOutpatientRates[Standard Rate],INDEX(TableOutpatientHourlyRates[Hourly Rate],MATCH(\"PSY Group\",TableOutpatientHourlyRates[Group Name],0))/60*TableOutpatientRates[[#This Row],[Minutes for Rate]]),\"\")","v":""},{"$f":"IF(TableOutpatientRates[[#This Row],[PT Group Allowed]]=\"Y\",IF(NOT(ISBLANK(TableOutpatientRates[[#This Row],[Standard Rate]])),TableOutpatientRates[Standard Rate],INDEX(TableOutpatientHourlyRates[Hourly Rate],MATCH(\"PT Group\",TableOutpatientHourlyRates[Group Name],0))/60*TableOutpatientRates[[#This Row],[Minutes for Rate]]),\"\")","v":""},{"$f":"IF(TableOutpatientRates[[#This Row],[RN Group Allowed]]=\"Y\",IF(NOT(ISBLANK(TableOutpatientRates[[#This Row],[Standard Rate]])),TableOutpatientRates[Standard Rate],INDEX(TableOutpatientHourlyRates[Hourly Rate],MATCH(\"RN Group\",TableOutpatientHourlyRates[Group Name],0))/60*TableOutpatientRates[[#This Row],[Minutes for Rate]]),\"\")","v":""}]
["99213","Office or Other Outpatient Visit of an Established Patient, 20-29 Minutes","25","","","","","Y","Y","","","Y","","","","",null,{"$f":"IF(TableOutpatientRates[[#This Row],[AOD Group Allowed]]=\"Y\",IF(NOT(ISBLANK(TableOutpatientRates[[#This Row],[Standard Rate]])),TableOutpatientRates[Standard Rate],INDEX(TableOutpatientHourlyRates[Hourly Rate],MATCH(\"AOD Group\",TableOutpatientHourlyRates[Group Name],0))/60*TableOutpatientRates[[#This Row],[Minutes for Rate]]),\"\")","v":""},{"$f":"IF(TableOutpatientRates[[#This Row],[LPHA Group Allowed]]=\"Y\",IF(NOT(ISBLANK(TableOutpatientRates[[#This Row],[Standard Rate]])),TableOutpatientRates[Standard Rate],INDEX(TableOutpatientHourlyRates[Hourly Rate],MATCH(\"LPHA Group\",TableOutpatientHourlyRates[Group Name],0))/60*TableOutpatientRates[[#This Row],[Minutes for Rate]]),\"\")","v":""},{"$f":"IF(TableOutpatientRates[[#This Row],[LVN Group Allowed]]=\"Y\",IF(NOT(ISBLANK(TableOutpatientRates[[#This Row],[Standard Rate]])),TableOutpatientRates[Standard Rate],INDEX(TableOutpatientHourlyRates[Hourly Rate],MATCH(\"LVN Group\",TableOutpatientHourlyRates[Group Name],0))/60*TableOutpatientRates[[#This Row],[Minutes for Rate]]),\"\")","v":""},{"$f":"IF(TableOutpatientRates[[#This Row],[MA Group Allowed]]=\"Y\",IF(NOT(ISBLANK(TableOutpatientRates[[#This Row],[Standard Rate]])),TableOutpatientRates[Standard Rate],INDEX(TableOutpatientHourlyRates[Hourly Rate],MATCH(\"MA Group\",TableOutpatientHourlyRates[Group Name],0))/60*TableOutpatientRates[[#This Row],[Minutes for Rate]]),\"\")","v":""},{"$f":"IF(TableOutpatientRates[[#This Row],[MD Group Allowed]]=\"Y\",IF(NOT(ISBLANK(TableOutpatientRates[[#This Row],[Standard Rate]])),TableOutpatientRates[Standard Rate],INDEX(TableOutpatientHourlyRates[Hourly Rate],MATCH(\"MD Group\",TableOutpatientHourlyRates[Group Name],0))/60*TableOutpatientRates[[#This Row],[Minutes for Rate]]),\"\")","v":58.333333333333336},{"$f":"IF(TableOutpatientRates[[#This Row],[NP Group Allowed]]=\"Y\",IF(NOT(ISBLANK(TableOutpatientRates[[#This Row],[Standard Rate]])),TableOutpatientRates[Standard Rate],INDEX(TableOutpatientHourlyRates[Hourly Rate],MATCH(\"NP Group\",TableOutpatientHourlyRates[Group Name],0))/60*TableOutpatientRates[[#This Row],[Minutes for Rate]]),\"\")","v":62.5},{"$f":"IF(TableOutpatientRates[[#This Row],[OT Group Allowed]]=\"Y\",IF(NOT(ISBLANK(TableOutpatientRates[[#This Row],[Standard Rate]])),TableOutpatientRates[Standard Rate],INDEX(TableOutpatientHourlyRates[Hourly Rate],MATCH(\"OT Group\",TableOutpatientHourlyRates[Group Name],0))/60*TableOutpatientRates[[#This Row],[Minutes for Rate]]),\"\")","v":""},{"$f":"IF(TableOutpatientRates[[#This Row],[PA Group Allowed]]=\"Y\",IF(NOT(ISBLANK(TableOutpatientRates[[#This Row],[Standard Rate]])),TableOutpatientRates[Standard Rate],INDEX(TableOutpatientHourlyRates[Hourly Rate],MATCH(\"PA Group\",TableOutpatientHourlyRates[Group Name],0))/60*TableOutpatientRates[[#This Row],[Minutes for Rate]]),\"\")","v":70.833333333333343},{"$f":"IF(TableOutpatientRates[[#This Row],[PEER Group Allowed]]=\"Y\",IF(NOT(ISBLANK(TableOutpatientRates[[#This Row],[Standard Rate]])),TableOutpatientRates[Standard Rate],INDEX(TableOutpatientHourlyRates[Hourly Rate],MATCH(\"PEER Group\",TableOutpatientHourlyRates[Group Name],0))/60*TableOutpatientRates[[#This Row],[Minutes for Rate]]),\"\")","v":""},{"$f":"IF(TableOutpatientRates[[#This Row],[PHARM Group Allowed]]=\"Y\",IF(NOT(ISBLANK(TableOutpatientRates[[#This Row],[Standard Rate]])),TableOutpatientRates[Standard Rate],INDEX(TableOutpatientHourlyRates[Hourly Rate],MATCH(\"PHARM Group\",TableOutpatientHourlyRates[Group Name],0))/60*TableOutpatientRates[[#This Row],[Minutes for Rate]]),\"\")","v":""},{"$f":"IF(TableOutpatientRates[[#This Row],[PSY Group Allowed]]=\"Y\",IF(NOT(ISBLANK(TableOutpatientRates[[#This Row],[Standard Rate]])),TableOutpatientRates[Standard Rate],INDEX(TableOutpatientHourlyRates[Hourly Rate],MATCH(\"PSY Group\",TableOutpatientHourlyRates[Group Name],0))/60*TableOutpatientRates[[#This Row],[Minutes for Rate]]),\"\")","v":""},{"$f":"IF(TableOutpatientRates[[#This Row],[PT Group Allowed]]=\"Y\",IF(NOT(ISBLANK(TableOutpatientRates[[#This Row],[Standard Rate]])),TableOutpatientRates[Standard Rate],INDEX(TableOutpatientHourlyRates[Hourly Rate],MATCH(\"PT Group\",TableOutpatientHourlyRates[Group Name],0))/60*TableOutpatientRates[[#This Row],[Minutes for Rate]]),\"\")","v":""},{"$f":"IF(TableOutpatientRates[[#This Row],[RN Group Allowed]]=\"Y\",IF(NOT(ISBLANK(TableOutpatientRates[[#This Row],[Standard Rate]])),TableOutpatientRates[Standard Rate],INDEX(TableOutpatientHourlyRates[Hourly Rate],MATCH(\"RN Group\",TableOutpatientHourlyRates[Group Name],0))/60*TableOutpatientRates[[#This Row],[Minutes for Rate]]),\"\")","v":""}]
["99214","Office or Other Outpatient Visit of an Established Patient, 30-39 Minutes","35","","","","","Y","Y","","","Y","","","","",null,{"$f":"IF(TableOutpatientRates[[#This Row],[AOD Group Allowed]]=\"Y\",IF(NOT(ISBLANK(TableOutpatientRates[[#This Row],[Standard Rate]])),TableOutpatientRates[Standard Rate],INDEX(TableOutpatientHourlyRates[Hourly Rate],MATCH(\"AOD Group\",TableOutpatientHourlyRates[Group Name],0))/60*TableOutpatientRates[[#This Row],[Minutes for Rate]]),\"\")","v":""},{"$f":"IF(TableOutpatientRates[[#This Row],[LPHA Group Allowed]]=\"Y\",IF(NOT(ISBLANK(TableOutpatientRates[[#This Row],[Standard Rate]])),TableOutpatientRates[Standard Rate],INDEX(TableOutpatientHourlyRates[Hourly Rate],MATCH(\"LPHA Group\",TableOutpatientHourlyRates[Group Name],0))/60*TableOutpatientRates[[#This Row],[Minutes for Rate]]),\"\")","v":""},{"$f":"IF(TableOutpatientRates[[#This Row],[LVN Group Allowed]]=\"Y\",IF(NOT(ISBLANK(TableOutpatientRates[[#This Row],[Standard Rate]])),TableOutpatientRates[Standard Rate],INDEX(TableOutpatientHourlyRates[Hourly Rate],MATCH(\"LVN Group\",TableOutpatientHourlyRates[Group Name],0))/60*TableOutpatientRates[[#This Row],[Minutes for Rate]]),\"\")","v":""},{"$f":"IF(TableOutpatientRates[[#This Row],[MA Group Allowed]]=\"Y\",IF(NOT(ISBLANK(TableOutpatientRates[[#This Row],[Standard Rate]])),TableOutpatientRates[Standard Rate],INDEX(TableOutpatientHourlyRates[Hourly Rate],MATCH(\"MA Group\",TableOutpatientHourlyRates[Group Name],0))/60*TableOutpatientRates[[#This Row],[Minutes for Rate]]),\"\")","v":""},{"$f":"IF(TableOutpatientRates[[#This Row],[MD Group Allowed]]=\"Y\",IF(NOT(ISBLANK(TableOutpatientRates[[#This Row],[Standard Rate]])),TableOutpatientRates[Standard Rate],INDEX(TableOutpatientHourlyRates[Hourly Rate],MATCH(\"MD Group\",TableOutpatientHourlyRates[Group Name],0))/60*TableOutpatientRates[[#This Row],[Minutes for Rate]]),\"\")","v":81.666666666666671},{"$f":"IF(TableOutpatientRates[[#This Row],[NP Group Allowed]]=\"Y\",IF(NOT(ISBLANK(TableOutpatientRates[[#This Row],[Standard Rate]])),TableOutpatientRates[Standard Rate],INDEX(TableOutpatientHourlyRates[Hourly Rate],MATCH(\"NP Group\",TableOutpatientHourlyRates[Group Name],0))/60*TableOutpatientRates[[#This Row],[Minutes for Rate]]),\"\")","v":87.5},{"$f":"IF(TableOutpatientRates[[#This Row],[OT Group Allowed]]=\"Y\",IF(NOT(ISBLANK(TableOutpatientRates[[#This Row],[Standard Rate]])),TableOutpatientRates[Standard Rate],INDEX(TableOutpatientHourlyRates[Hourly Rate],MATCH(\"OT Group\",TableOutpatientHourlyRates[Group Name],0))/60*TableOutpatientRates[[#This Row],[Minutes for Rate]]),\"\")","v":""},{"$f":"IF(TableOutpatientRates[[#This Row],[PA Group Allowed]]=\"Y\",IF(NOT(ISBLANK(TableOutpatientRates[[#This Row],[Standard Rate]])),TableOutpatientRates[Standard Rate],INDEX(TableOutpatientHourlyRates[Hourly Rate],MATCH(\"PA Group\",TableOutpatientHourlyRates[Group Name],0))/60*TableOutpatientRates[[#This Row],[Minutes for Rate]]),\"\")","v":99.166666666666671},{"$f":"IF(TableOutpatientRates[[#This Row],[PEER Group Allowed]]=\"Y\",IF(NOT(ISBLANK(TableOutpatientRates[[#This Row],[Standard Rate]])),TableOutpatientRates[Standard Rate],INDEX(TableOutpatientHourlyRates[Hourly Rate],MATCH(\"PEER Group\",TableOutpatientHourlyRates[Group Name],0))/60*TableOutpatientRates[[#This Row],[Minutes for Rate]]),\"\")","v":""},{"$f":"IF(TableOutpatientRates[[#This Row],[PHARM Group Allowed]]=\"Y\",IF(NOT(ISBLANK(TableOutpatientRates[[#This Row],[Standard Rate]])),TableOutpatientRates[Standard Rate],INDEX(TableOutpatientHourlyRates[Hourly Rate],MATCH(\"PHARM Group\",TableOutpatientHourlyRates[Group Name],0))/60*TableOutpatientRates[[#This Row],[Minutes for Rate]]),\"\")","v":""},{"$f":"IF(TableOutpatientRates[[#This Row],[PSY Group Allowed]]=\"Y\",IF(NOT(ISBLANK(TableOutpatientRates[[#This Row],[Standard Rate]])),TableOutpatientRates[Standard Rate],INDEX(TableOutpatientHourlyRates[Hourly Rate],MATCH(\"PSY Group\",TableOutpatientHourlyRates[Group Name],0))/60*TableOutpatientRates[[#This Row],[Minutes for Rate]]),\"\")","v":""},{"$f":"IF(TableOutpatientRates[[#This Row],[PT Group Allowed]]=\"Y\",IF(NOT(ISBLANK(TableOutpatientRates[[#This Row],[Standard Rate]])),TableOutpatientRates[Standard Rate],INDEX(TableOutpatientHourlyRates[Hourly Rate],MATCH(\"PT Group\",TableOutpatientHourlyRates[Group Name],0))/60*TableOutpatientRates[[#This Row],[Minutes for Rate]]),\"\")","v":""},{"$f":"IF(TableOutpatientRates[[#This Row],[RN Group Allowed]]=\"Y\",IF(NOT(ISBLANK(TableOutpatientRates[[#This Row],[Standard Rate]])),TableOutpatientRates[Standard Rate],INDEX(TableOutpatientHourlyRates[Hourly Rate],MATCH(\"RN Group\",TableOutpatientHourlyRates[Group Name],0))/60*TableOutpatientRates[[#This Row],[Minutes for Rate]]),\"\")","v":""}]
["99215","Office or Other Outpatient Visit of an Established Patient, 40-54 Minutes","47","","","","","Y","Y","","","Y","","","","",null,{"$f":"IF(TableOutpatientRates[[#This Row],[AOD Group Allowed]]=\"Y\",IF(NOT(ISBLANK(TableOutpatientRates[[#This Row],[Standard Rate]])),TableOutpatientRates[Standard Rate],INDEX(TableOutpatientHourlyRates[Hourly Rate],MATCH(\"AOD Group\",TableOutpatientHourlyRates[Group Name],0))/60*TableOutpatientRates[[#This Row],[Minutes for Rate]]),\"\")","v":""},{"$f":"IF(TableOutpatientRates[[#This Row],[LPHA Group Allowed]]=\"Y\",IF(NOT(ISBLANK(TableOutpatientRates[[#This Row],[Standard Rate]])),TableOutpatientRates[Standard Rate],INDEX(TableOutpatientHourlyRates[Hourly Rate],MATCH(\"LPHA Group\",TableOutpatientHourlyRates[Group Name],0))/60*TableOutpatientRates[[#This Row],[Minutes for Rate]]),\"\")","v":""},{"$f":"IF(TableOutpatientRates[[#This Row],[LVN Group Allowed]]=\"Y\",IF(NOT(ISBLANK(TableOutpatientRates[[#This Row],[Standard Rate]])),TableOutpatientRates[Standard Rate],INDEX(TableOutpatientHourlyRates[Hourly Rate],MATCH(\"LVN Group\",TableOutpatientHourlyRates[Group Name],0))/60*TableOutpatientRates[[#This Row],[Minutes for Rate]]),\"\")","v":""},{"$f":"IF(TableOutpatientRates[[#This Row],[MA Group Allowed]]=\"Y\",IF(NOT(ISBLANK(TableOutpatientRates[[#This Row],[Standard Rate]])),TableOutpatientRates[Standard Rate],INDEX(TableOutpatientHourlyRates[Hourly Rate],MATCH(\"MA Group\",TableOutpatientHourlyRates[Group Name],0))/60*TableOutpatientRates[[#This Row],[Minutes for Rate]]),\"\")","v":""},{"$f":"IF(TableOutpatientRates[[#This Row],[MD Group Allowed]]=\"Y\",IF(NOT(ISBLANK(TableOutpatientRates[[#This Row],[Standard Rate]])),TableOutpatientRates[Standard Rate],INDEX(TableOutpatientHourlyRates[Hourly Rate],MATCH(\"MD Group\",TableOutpatientHourlyRates[Group Name],0))/60*TableOutpatientRates[[#This Row],[Minutes for Rate]]),\"\")","v":109.66666666666667},{"$f":"IF(TableOutpatientRates[[#This Row],[NP Group Allowed]]=\"Y\",IF(NOT(ISBLANK(TableOutpatientRates[[#This Row],[Standard Rate]])),TableOutpatientRates[Standard Rate],INDEX(TableOutpatientHourlyRates[Hourly Rate],MATCH(\"NP Group\",TableOutpatientHourlyRates[Group Name],0))/60*TableOutpatientRates[[#This Row],[Minutes for Rate]]),\"\")","v":117.5},{"$f":"IF(TableOutpatientRates[[#This Row],[OT Group Allowed]]=\"Y\",IF(NOT(ISBLANK(TableOutpatientRates[[#This Row],[Standard Rate]])),TableOutpatientRates[Standard Rate],INDEX(TableOutpatientHourlyRates[Hourly Rate],MATCH(\"OT Group\",TableOutpatientHourlyRates[Group Name],0))/60*TableOutpatientRates[[#This Row],[Minutes for Rate]]),\"\")","v":""},{"$f":"IF(TableOutpatientRates[[#This Row],[PA Group Allowed]]=\"Y\",IF(NOT(ISBLANK(TableOutpatientRates[[#This Row],[Standard Rate]])),TableOutpatientRates[Standard Rate],INDEX(TableOutpatientHourlyRates[Hourly Rate],MATCH(\"PA Group\",TableOutpatientHourlyRates[Group Name],0))/60*TableOutpatientRates[[#This Row],[Minutes for Rate]]),\"\")","v":133.16666666666669},{"$f":"IF(TableOutpatientRates[[#This Row],[PEER Group Allowed]]=\"Y\",IF(NOT(ISBLANK(TableOutpatientRates[[#This Row],[Standard Rate]])),TableOutpatientRates[Standard Rate],INDEX(TableOutpatientHourlyRates[Hourly Rate],MATCH(\"PEER Group\",TableOutpatientHourlyRates[Group Name],0))/60*TableOutpatientRates[[#This Row],[Minutes for Rate]]),\"\")","v":""},{"$f":"IF(TableOutpatientRates[[#This Row],[PHARM Group Allowed]]=\"Y\",IF(NOT(ISBLANK(TableOutpatientRates[[#This Row],[Standard Rate]])),TableOutpatientRates[Standard Rate],INDEX(TableOutpatientHourlyRates[Hourly Rate],MATCH(\"PHARM Group\",TableOutpatientHourlyRates[Group Name],0))/60*TableOutpatientRates[[#This Row],[Minutes for Rate]]),\"\")","v":""},{"$f":"IF(TableOutpatientRates[[#This Row],[PSY Group Allowed]]=\"Y\",IF(NOT(ISBLANK(TableOutpatientRates[[#This Row],[Standard Rate]])),TableOutpatientRates[Standard Rate],INDEX(TableOutpatientHourlyRates[Hourly Rate],MATCH(\"PSY Group\",TableOutpatientHourlyRates[Group Name],0))/60*TableOutpatientRates[[#This Row],[Minutes for Rate]]),\"\")","v":""},{"$f":"IF(TableOutpatientRates[[#This Row],[PT Group Allowed]]=\"Y\",IF(NOT(ISBLANK(TableOutpatientRates[[#This Row],[Standard Rate]])),TableOutpatientRates[Standard Rate],INDEX(TableOutpatientHourlyRates[Hourly Rate],MATCH(\"PT Group\",TableOutpatientHourlyRates[Group Name],0))/60*TableOutpatientRates[[#This Row],[Minutes for Rate]]),\"\")","v":""},{"$f":"IF(TableOutpatientRates[[#This Row],[RN Group Allowed]]=\"Y\",IF(NOT(ISBLANK(TableOutpatientRates[[#This Row],[Standard Rate]])),TableOutpatientRates[Standard Rate],INDEX(TableOutpatientHourlyRates[Hourly Rate],MATCH(\"RN Group\",TableOutpatientHourlyRates[Group Name],0))/60*TableOutpatientRates[[#This Row],[Minutes for Rate]]),\"\")","v":""}]
["99234","Observation or Inpatient Hospital Care, Including Admission and Discharge on the Same Date, 35-44 Minutes","57","","","","","Y","Y","","","Y","","","","",null,{"$f":"IF(TableOutpatientRates[[#This Row],[AOD Group Allowed]]=\"Y\",IF(NOT(ISBLANK(TableOutpatientRates[[#This Row],[Standard Rate]])),TableOutpatientRates[Standard Rate],INDEX(TableOutpatientHourlyRates[Hourly Rate],MATCH(\"AOD Group\",TableOutpatientHourlyRates[Group Name],0))/60*TableOutpatientRates[[#This Row],[Minutes for Rate]]),\"\")","v":""},{"$f":"IF(TableOutpatientRates[[#This Row],[LPHA Group Allowed]]=\"Y\",IF(NOT(ISBLANK(TableOutpatientRates[[#This Row],[Standard Rate]])),TableOutpatientRates[Standard Rate],INDEX(TableOutpatientHourlyRates[Hourly Rate],MATCH(\"LPHA Group\",TableOutpatientHourlyRates[Group Name],0))/60*TableOutpatientRates[[#This Row],[Minutes for Rate]]),\"\")","v":""},{"$f":"IF(TableOutpatientRates[[#This Row],[LVN Group Allowed]]=\"Y\",IF(NOT(ISBLANK(TableOutpatientRates[[#This Row],[Standard Rate]])),TableOutpatientRates[Standard Rate],INDEX(TableOutpatientHourlyRates[Hourly Rate],MATCH(\"LVN Group\",TableOutpatientHourlyRates[Group Name],0))/60*TableOutpatientRates[[#This Row],[Minutes for Rate]]),\"\")","v":""},{"$f":"IF(TableOutpatientRates[[#This Row],[MA Group Allowed]]=\"Y\",IF(NOT(ISBLANK(TableOutpatientRates[[#This Row],[Standard Rate]])),TableOutpatientRates[Standard Rate],INDEX(TableOutpatientHourlyRates[Hourly Rate],MATCH(\"MA Group\",TableOutpatientHourlyRates[Group Name],0))/60*TableOutpatientRates[[#This Row],[Minutes for Rate]]),\"\")","v":""},{"$f":"IF(TableOutpatientRates[[#This Row],[MD Group Allowed]]=\"Y\",IF(NOT(ISBLANK(TableOutpatientRates[[#This Row],[Standard Rate]])),TableOutpatientRates[Standard Rate],INDEX(TableOutpatientHourlyRates[Hourly Rate],MATCH(\"MD Group\",TableOutpatientHourlyRates[Group Name],0))/60*TableOutpatientRates[[#This Row],[Minutes for Rate]]),\"\")","v":133},{"$f":"IF(TableOutpatientRates[[#This Row],[NP Group Allowed]]=\"Y\",IF(NOT(ISBLANK(TableOutpatientRates[[#This Row],[Standard Rate]])),TableOutpatientRates[Standard Rate],INDEX(TableOutpatientHourlyRates[Hourly Rate],MATCH(\"NP Group\",TableOutpatientHourlyRates[Group Name],0))/60*TableOutpatientRates[[#This Row],[Minutes for Rate]]),\"\")","v":142.5},{"$f":"IF(TableOutpatientRates[[#This Row],[OT Group Allowed]]=\"Y\",IF(NOT(ISBLANK(TableOutpatientRates[[#This Row],[Standard Rate]])),TableOutpatientRates[Standard Rate],INDEX(TableOutpatientHourlyRates[Hourly Rate],MATCH(\"OT Group\",TableOutpatientHourlyRates[Group Name],0))/60*TableOutpatientRates[[#This Row],[Minutes for Rate]]),\"\")","v":""},{"$f":"IF(TableOutpatientRates[[#This Row],[PA Group Allowed]]=\"Y\",IF(NOT(ISBLANK(TableOutpatientRates[[#This Row],[Standard Rate]])),TableOutpatientRates[Standard Rate],INDEX(TableOutpatientHourlyRates[Hourly Rate],MATCH(\"PA Group\",TableOutpatientHourlyRates[Group Name],0))/60*TableOutpatientRates[[#This Row],[Minutes for Rate]]),\"\")","v":161.5},{"$f":"IF(TableOutpatientRates[[#This Row],[PEER Group Allowed]]=\"Y\",IF(NOT(ISBLANK(TableOutpatientRates[[#This Row],[Standard Rate]])),TableOutpatientRates[Standard Rate],INDEX(TableOutpatientHourlyRates[Hourly Rate],MATCH(\"PEER Group\",TableOutpatientHourlyRates[Group Name],0))/60*TableOutpatientRates[[#This Row],[Minutes for Rate]]),\"\")","v":""},{"$f":"IF(TableOutpatientRates[[#This Row],[PHARM Group Allowed]]=\"Y\",IF(NOT(ISBLANK(TableOutpatientRates[[#This Row],[Standard Rate]])),TableOutpatientRates[Standard Rate],INDEX(TableOutpatientHourlyRates[Hourly Rate],MATCH(\"PHARM Group\",TableOutpatientHourlyRates[Group Name],0))/60*TableOutpatientRates[[#This Row],[Minutes for Rate]]),\"\")","v":""},{"$f":"IF(TableOutpatientRates[[#This Row],[PSY Group Allowed]]=\"Y\",IF(NOT(ISBLANK(TableOutpatientRates[[#This Row],[Standard Rate]])),TableOutpatientRates[Standard Rate],INDEX(TableOutpatientHourlyRates[Hourly Rate],MATCH(\"PSY Group\",TableOutpatientHourlyRates[Group Name],0))/60*TableOutpatientRates[[#This Row],[Minutes for Rate]]),\"\")","v":""},{"$f":"IF(TableOutpatientRates[[#This Row],[PT Group Allowed]]=\"Y\",IF(NOT(ISBLANK(TableOutpatientRates[[#This Row],[Standard Rate]])),TableOutpatientRates[Standard Rate],INDEX(TableOutpatientHourlyRates[Hourly Rate],MATCH(\"PT Group\",TableOutpatientHourlyRates[Group Name],0))/60*TableOutpatientRates[[#This Row],[Minutes for Rate]]),\"\")","v":""},{"$f":"IF(TableOutpatientRates[[#This Row],[RN Group Allowed]]=\"Y\",IF(NOT(ISBLANK(TableOutpatientRates[[#This Row],[Standard Rate]])),TableOutpatientRates[Standard Rate],INDEX(TableOutpatientHourlyRates[Hourly Rate],MATCH(\"RN Group\",TableOutpatientHourlyRates[Group Name],0))/60*TableOutpatientRates[[#This Row],[Minutes for Rate]]),\"\")","v":""}]
["99235","Observation or Inpatient Hospital Care, Including Admission and Discharge on the Same Date, 45-53 minutes","77","","","","","Y","Y","","","Y","","","","",null,{"$f":"IF(TableOutpatientRates[[#This Row],[AOD Group Allowed]]=\"Y\",IF(NOT(ISBLANK(TableOutpatientRates[[#This Row],[Standard Rate]])),TableOutpatientRates[Standard Rate],INDEX(TableOutpatientHourlyRates[Hourly Rate],MATCH(\"AOD Group\",TableOutpatientHourlyRates[Group Name],0))/60*TableOutpatientRates[[#This Row],[Minutes for Rate]]),\"\")","v":""},{"$f":"IF(TableOutpatientRates[[#This Row],[LPHA Group Allowed]]=\"Y\",IF(NOT(ISBLANK(TableOutpatientRates[[#This Row],[Standard Rate]])),TableOutpatientRates[Standard Rate],INDEX(TableOutpatientHourlyRates[Hourly Rate],MATCH(\"LPHA Group\",TableOutpatientHourlyRates[Group Name],0))/60*TableOutpatientRates[[#This Row],[Minutes for Rate]]),\"\")","v":""},{"$f":"IF(TableOutpatientRates[[#This Row],[LVN Group Allowed]]=\"Y\",IF(NOT(ISBLANK(TableOutpatientRates[[#This Row],[Standard Rate]])),TableOutpatientRates[Standard Rate],INDEX(TableOutpatientHourlyRates[Hourly Rate],MATCH(\"LVN Group\",TableOutpatientHourlyRates[Group Name],0))/60*TableOutpatientRates[[#This Row],[Minutes for Rate]]),\"\")","v":""},{"$f":"IF(TableOutpatientRates[[#This Row],[MA Group Allowed]]=\"Y\",IF(NOT(ISBLANK(TableOutpatientRates[[#This Row],[Standard Rate]])),TableOutpatientRates[Standard Rate],INDEX(TableOutpatientHourlyRates[Hourly Rate],MATCH(\"MA Group\",TableOutpatientHourlyRates[Group Name],0))/60*TableOutpatientRates[[#This Row],[Minutes for Rate]]),\"\")","v":""},{"$f":"IF(TableOutpatientRates[[#This Row],[MD Group Allowed]]=\"Y\",IF(NOT(ISBLANK(TableOutpatientRates[[#This Row],[Standard Rate]])),TableOutpatientRates[Standard Rate],INDEX(TableOutpatientHourlyRates[Hourly Rate],MATCH(\"MD Group\",TableOutpatientHourlyRates[Group Name],0))/60*TableOutpatientRates[[#This Row],[Minutes for Rate]]),\"\")","v":179.66666666666669},{"$f":"IF(TableOutpatientRates[[#This Row],[NP Group Allowed]]=\"Y\",IF(NOT(ISBLANK(TableOutpatientRates[[#This Row],[Standard Rate]])),TableOutpatientRates[Standard Rate],INDEX(TableOutpatientHourlyRates[Hourly Rate],MATCH(\"NP Group\",TableOutpatientHourlyRates[Group Name],0))/60*TableOutpatientRates[[#This Row],[Minutes for Rate]]),\"\")","v":192.5},{"$f":"IF(TableOutpatientRates[[#This Row],[OT Group Allowed]]=\"Y\",IF(NOT(ISBLANK(TableOutpatientRates[[#This Row],[Standard Rate]])),TableOutpatientRates[Standard Rate],INDEX(TableOutpatientHourlyRates[Hourly Rate],MATCH(\"OT Group\",TableOutpatientHourlyRates[Group Name],0))/60*TableOutpatientRates[[#This Row],[Minutes for Rate]]),\"\")","v":""},{"$f":"IF(TableOutpatientRates[[#This Row],[PA Group Allowed]]=\"Y\",IF(NOT(ISBLANK(TableOutpatientRates[[#This Row],[Standard Rate]])),TableOutpatientRates[Standard Rate],INDEX(TableOutpatientHourlyRates[Hourly Rate],MATCH(\"PA Group\",TableOutpatientHourlyRates[Group Name],0))/60*TableOutpatientRates[[#This Row],[Minutes for Rate]]),\"\")","v":218.16666666666669},{"$f":"IF(TableOutpatientRates[[#This Row],[PEER Group Allowed]]=\"Y\",IF(NOT(ISBLANK(TableOutpatientRates[[#This Row],[Standard Rate]])),TableOutpatientRates[Standard Rate],INDEX(TableOutpatientHourlyRates[Hourly Rate],MATCH(\"PEER Group\",TableOutpatientHourlyRates[Group Name],0))/60*TableOutpatientRates[[#This Row],[Minutes for Rate]]),\"\")","v":""},{"$f":"IF(TableOutpatientRates[[#This Row],[PHARM Group Allowed]]=\"Y\",IF(NOT(ISBLANK(TableOutpatientRates[[#This Row],[Standard Rate]])),TableOutpatientRates[Standard Rate],INDEX(TableOutpatientHourlyRates[Hourly Rate],MATCH(\"PHARM Group\",TableOutpatientHourlyRates[Group Name],0))/60*TableOutpatientRates[[#This Row],[Minutes for Rate]]),\"\")","v":""},{"$f":"IF(TableOutpatientRates[[#This Row],[PSY Group Allowed]]=\"Y\",IF(NOT(ISBLANK(TableOutpatientRates[[#This Row],[Standard Rate]])),TableOutpatientRates[Standard Rate],INDEX(TableOutpatientHourlyRates[Hourly Rate],MATCH(\"PSY Group\",TableOutpatientHourlyRates[Group Name],0))/60*TableOutpatientRates[[#This Row],[Minutes for Rate]]),\"\")","v":""},{"$f":"IF(TableOutpatientRates[[#This Row],[PT Group Allowed]]=\"Y\",IF(NOT(ISBLANK(TableOutpatientRates[[#This Row],[Standard Rate]])),TableOutpatientRates[Standard Rate],INDEX(TableOutpatientHourlyRates[Hourly Rate],MATCH(\"PT Group\",TableOutpatientHourlyRates[Group Name],0))/60*TableOutpatientRates[[#This Row],[Minutes for Rate]]),\"\")","v":""},{"$f":"IF(TableOutpatientRates[[#This Row],[RN Group Allowed]]=\"Y\",IF(NOT(ISBLANK(TableOutpatientRates[[#This Row],[Standard Rate]])),TableOutpatientRates[Standard Rate],INDEX(TableOutpatientHourlyRates[Hourly Rate],MATCH(\"RN Group\",TableOutpatientHourlyRates[Group Name],0))/60*TableOutpatientRates[[#This Row],[Minutes for Rate]]),\"\")","v":""}]
["99236","Observation or Inpatient Hospital Care, Including Admission and Discharge on the Same Date, 54-60 Minutes","92","","","","","Y","Y","","","Y","","","","",null,{"$f":"IF(TableOutpatientRates[[#This Row],[AOD Group Allowed]]=\"Y\",IF(NOT(ISBLANK(TableOutpatientRates[[#This Row],[Standard Rate]])),TableOutpatientRates[Standard Rate],INDEX(TableOutpatientHourlyRates[Hourly Rate],MATCH(\"AOD Group\",TableOutpatientHourlyRates[Group Name],0))/60*TableOutpatientRates[[#This Row],[Minutes for Rate]]),\"\")","v":""},{"$f":"IF(TableOutpatientRates[[#This Row],[LPHA Group Allowed]]=\"Y\",IF(NOT(ISBLANK(TableOutpatientRates[[#This Row],[Standard Rate]])),TableOutpatientRates[Standard Rate],INDEX(TableOutpatientHourlyRates[Hourly Rate],MATCH(\"LPHA Group\",TableOutpatientHourlyRates[Group Name],0))/60*TableOutpatientRates[[#This Row],[Minutes for Rate]]),\"\")","v":""},{"$f":"IF(TableOutpatientRates[[#This Row],[LVN Group Allowed]]=\"Y\",IF(NOT(ISBLANK(TableOutpatientRates[[#This Row],[Standard Rate]])),TableOutpatientRates[Standard Rate],INDEX(TableOutpatientHourlyRates[Hourly Rate],MATCH(\"LVN Group\",TableOutpatientHourlyRates[Group Name],0))/60*TableOutpatientRates[[#This Row],[Minutes for Rate]]),\"\")","v":""},{"$f":"IF(TableOutpatientRates[[#This Row],[MA Group Allowed]]=\"Y\",IF(NOT(ISBLANK(TableOutpatientRates[[#This Row],[Standard Rate]])),TableOutpatientRates[Standard Rate],INDEX(TableOutpatientHourlyRates[Hourly Rate],MATCH(\"MA Group\",TableOutpatientHourlyRates[Group Name],0))/60*TableOutpatientRates[[#This Row],[Minutes for Rate]]),\"\")","v":""},{"$f":"IF(TableOutpatientRates[[#This Row],[MD Group Allowed]]=\"Y\",IF(NOT(ISBLANK(TableOutpatientRates[[#This Row],[Standard Rate]])),TableOutpatientRates[Standard Rate],INDEX(TableOutpatientHourlyRates[Hourly Rate],MATCH(\"MD Group\",TableOutpatientHourlyRates[Group Name],0))/60*TableOutpatientRates[[#This Row],[Minutes for Rate]]),\"\")","v":214.66666666666669},{"$f":"IF(TableOutpatientRates[[#This Row],[NP Group Allowed]]=\"Y\",IF(NOT(ISBLANK(TableOutpatientRates[[#This Row],[Standard Rate]])),TableOutpatientRates[Standard Rate],INDEX(TableOutpatientHourlyRates[Hourly Rate],MATCH(\"NP Group\",TableOutpatientHourlyRates[Group Name],0))/60*TableOutpatientRates[[#This Row],[Minutes for Rate]]),\"\")","v":230},{"$f":"IF(TableOutpatientRates[[#This Row],[OT Group Allowed]]=\"Y\",IF(NOT(ISBLANK(TableOutpatientRates[[#This Row],[Standard Rate]])),TableOutpatientRates[Standard Rate],INDEX(TableOutpatientHourlyRates[Hourly Rate],MATCH(\"OT Group\",TableOutpatientHourlyRates[Group Name],0))/60*TableOutpatientRates[[#This Row],[Minutes for Rate]]),\"\")","v":""},{"$f":"IF(TableOutpatientRates[[#This Row],[PA Group Allowed]]=\"Y\",IF(NOT(ISBLANK(TableOutpatientRates[[#This Row],[Standard Rate]])),TableOutpatientRates[Standard Rate],INDEX(TableOutpatientHourlyRates[Hourly Rate],MATCH(\"PA Group\",TableOutpatientHourlyRates[Group Name],0))/60*TableOutpatientRates[[#This Row],[Minutes for Rate]]),\"\")","v":260.66666666666669},{"$f":"IF(TableOutpatientRates[[#This Row],[PEER Group Allowed]]=\"Y\",IF(NOT(ISBLANK(TableOutpatientRates[[#This Row],[Standard Rate]])),TableOutpatientRates[Standard Rate],INDEX(TableOutpatientHourlyRates[Hourly Rate],MATCH(\"PEER Group\",TableOutpatientHourlyRates[Group Name],0))/60*TableOutpatientRates[[#This Row],[Minutes for Rate]]),\"\")","v":""},{"$f":"IF(TableOutpatientRates[[#This Row],[PHARM Group Allowed]]=\"Y\",IF(NOT(ISBLANK(TableOutpatientRates[[#This Row],[Standard Rate]])),TableOutpatientRates[Standard Rate],INDEX(TableOutpatientHourlyRates[Hourly Rate],MATCH(\"PHARM Group\",TableOutpatientHourlyRates[Group Name],0))/60*TableOutpatientRates[[#This Row],[Minutes for Rate]]),\"\")","v":""},{"$f":"IF(TableOutpatientRates[[#This Row],[PSY Group Allowed]]=\"Y\",IF(NOT(ISBLANK(TableOutpatientRates[[#This Row],[Standard Rate]])),TableOutpatientRates[Standard Rate],INDEX(TableOutpatientHourlyRates[Hourly Rate],MATCH(\"PSY Group\",TableOutpatientHourlyRates[Group Name],0))/60*TableOutpatientRates[[#This Row],[Minutes for Rate]]),\"\")","v":""},{"$f":"IF(TableOutpatientRates[[#This Row],[PT Group Allowed]]=\"Y\",IF(NOT(ISBLANK(TableOutpatientRates[[#This Row],[Standard Rate]])),TableOutpatientRates[Standard Rate],INDEX(TableOutpatientHourlyRates[Hourly Rate],MATCH(\"PT Group\",TableOutpatientHourlyRates[Group Name],0))/60*TableOutpatientRates[[#This Row],[Minutes for Rate]]),\"\")","v":""},{"$f":"IF(TableOutpatientRates[[#This Row],[RN Group Allowed]]=\"Y\",IF(NOT(ISBLANK(TableOutpatientRates[[#This Row],[Standard Rate]])),TableOutpatientRates[Standard Rate],INDEX(TableOutpatientHourlyRates[Hourly Rate],MATCH(\"RN Group\",TableOutpatientHourlyRates[Group Name],0))/60*TableOutpatientRates[[#This Row],[Minutes for Rate]]),\"\")","v":""}]
["99238","Hospital discharge day management; 30 minutes or less","16","","","","","Y","Y","","","Y","","","","",null,{"$f":"IF(TableOutpatientRates[[#This Row],[AOD Group Allowed]]=\"Y\",IF(NOT(ISBLANK(TableOutpatientRates[[#This Row],[Standard Rate]])),TableOutpatientRates[Standard Rate],INDEX(TableOutpatientHourlyRates[Hourly Rate],MATCH(\"AOD Group\",TableOutpatientHourlyRates[Group Name],0))/60*TableOutpatientRates[[#This Row],[Minutes for Rate]]),\"\")","v":""},{"$f":"IF(TableOutpatientRates[[#This Row],[LPHA Group Allowed]]=\"Y\",IF(NOT(ISBLANK(TableOutpatientRates[[#This Row],[Standard Rate]])),TableOutpatientRates[Standard Rate],INDEX(TableOutpatientHourlyRates[Hourly Rate],MATCH(\"LPHA Group\",TableOutpatientHourlyRates[Group Name],0))/60*TableOutpatientRates[[#This Row],[Minutes for Rate]]),\"\")","v":""},{"$f":"IF(TableOutpatientRates[[#This Row],[LVN Group Allowed]]=\"Y\",IF(NOT(ISBLANK(TableOutpatientRates[[#This Row],[Standard Rate]])),TableOutpatientRates[Standard Rate],INDEX(TableOutpatientHourlyRates[Hourly Rate],MATCH(\"LVN Group\",TableOutpatientHourlyRates[Group Name],0))/60*TableOutpatientRates[[#This Row],[Minutes for Rate]]),\"\")","v":""},{"$f":"IF(TableOutpatientRates[[#This Row],[MA Group Allowed]]=\"Y\",IF(NOT(ISBLANK(TableOutpatientRates[[#This Row],[Standard Rate]])),TableOutpatientRates[Standard Rate],INDEX(TableOutpatientHourlyRates[Hourly Rate],MATCH(\"MA Group\",TableOutpatientHourlyRates[Group Name],0))/60*TableOutpatientRates[[#This Row],[Minutes for Rate]]),\"\")","v":""},{"$f":"IF(TableOutpatientRates[[#This Row],[MD Group Allowed]]=\"Y\",IF(NOT(ISBLANK(TableOutpatientRates[[#This Row],[Standard Rate]])),TableOutpatientRates[Standard Rate],INDEX(TableOutpatientHourlyRates[Hourly Rate],MATCH(\"MD Group\",TableOutpatientHourlyRates[Group Name],0))/60*TableOutpatientRates[[#This Row],[Minutes for Rate]]),\"\")","v":37.333333333333336},{"$f":"IF(TableOutpatientRates[[#This Row],[NP Group Allowed]]=\"Y\",IF(NOT(ISBLANK(TableOutpatientRates[[#This Row],[Standard Rate]])),TableOutpatientRates[Standard Rate],INDEX(TableOutpatientHourlyRates[Hourly Rate],MATCH(\"NP Group\",TableOutpatientHourlyRates[Group Name],0))/60*TableOutpatientRates[[#This Row],[Minutes for Rate]]),\"\")","v":40},{"$f":"IF(TableOutpatientRates[[#This Row],[OT Group Allowed]]=\"Y\",IF(NOT(ISBLANK(TableOutpatientRates[[#This Row],[Standard Rate]])),TableOutpatientRates[Standard Rate],INDEX(TableOutpatientHourlyRates[Hourly Rate],MATCH(\"OT Group\",TableOutpatientHourlyRates[Group Name],0))/60*TableOutpatientRates[[#This Row],[Minutes for Rate]]),\"\")","v":""},{"$f":"IF(TableOutpatientRates[[#This Row],[PA Group Allowed]]=\"Y\",IF(NOT(ISBLANK(TableOutpatientRates[[#This Row],[Standard Rate]])),TableOutpatientRates[Standard Rate],INDEX(TableOutpatientHourlyRates[Hourly Rate],MATCH(\"PA Group\",TableOutpatientHourlyRates[Group Name],0))/60*TableOutpatientRates[[#This Row],[Minutes for Rate]]),\"\")","v":45.333333333333336},{"$f":"IF(TableOutpatientRates[[#This Row],[PEER Group Allowed]]=\"Y\",IF(NOT(ISBLANK(TableOutpatientRates[[#This Row],[Standard Rate]])),TableOutpatientRates[Standard Rate],INDEX(TableOutpatientHourlyRates[Hourly Rate],MATCH(\"PEER Group\",TableOutpatientHourlyRates[Group Name],0))/60*TableOutpatientRates[[#This Row],[Minutes for Rate]]),\"\")","v":""},{"$f":"IF(TableOutpatientRates[[#This Row],[PHARM Group Allowed]]=\"Y\",IF(NOT(ISBLANK(TableOutpatientRates[[#This Row],[Standard Rate]])),TableOutpatientRates[Standard Rate],INDEX(TableOutpatientHourlyRates[Hourly Rate],MATCH(\"PHARM Group\",TableOutpatientHourlyRates[Group Name],0))/60*TableOutpatientRates[[#This Row],[Minutes for Rate]]),\"\")","v":""},{"$f":"IF(TableOutpatientRates[[#This Row],[PSY Group Allowed]]=\"Y\",IF(NOT(ISBLANK(TableOutpatientRates[[#This Row],[Standard Rate]])),TableOutpatientRates[Standard Rate],INDEX(TableOutpatientHourlyRates[Hourly Rate],MATCH(\"PSY Group\",TableOutpatientHourlyRates[Group Name],0))/60*TableOutpatientRates[[#This Row],[Minutes for Rate]]),\"\")","v":""},{"$f":"IF(TableOutpatientRates[[#This Row],[PT Group Allowed]]=\"Y\",IF(NOT(ISBLANK(TableOutpatientRates[[#This Row],[Standard Rate]])),TableOutpatientRates[Standard Rate],INDEX(TableOutpatientHourlyRates[Hourly Rate],MATCH(\"PT Group\",TableOutpatientHourlyRates[Group Name],0))/60*TableOutpatientRates[[#This Row],[Minutes for Rate]]),\"\")","v":""},{"$f":"IF(TableOutpatientRates[[#This Row],[RN Group Allowed]]=\"Y\",IF(NOT(ISBLANK(TableOutpatientRates[[#This Row],[Standard Rate]])),TableOutpatientRates[Standard Rate],INDEX(TableOutpatientHourlyRates[Hourly Rate],MATCH(\"RN Group\",TableOutpatientHourlyRates[Group Name],0))/60*TableOutpatientRates[[#This Row],[Minutes for Rate]]),\"\")","v":""}]
["99239","Hospital discharge day management; more than 30 minutes","60","","","","","Y","Y","","","Y","","","","",null,{"$f":"IF(TableOutpatientRates[[#This Row],[AOD Group Allowed]]=\"Y\",IF(NOT(ISBLANK(TableOutpatientRates[[#This Row],[Standard Rate]])),TableOutpatientRates[Standard Rate],INDEX(TableOutpatientHourlyRates[Hourly Rate],MATCH(\"AOD Group\",TableOutpatientHourlyRates[Group Name],0))/60*TableOutpatientRates[[#This Row],[Minutes for Rate]]),\"\")","v":""},{"$f":"IF(TableOutpatientRates[[#This Row],[LPHA Group Allowed]]=\"Y\",IF(NOT(ISBLANK(TableOutpatientRates[[#This Row],[Standard Rate]])),TableOutpatientRates[Standard Rate],INDEX(TableOutpatientHourlyRates[Hourly Rate],MATCH(\"LPHA Group\",TableOutpatientHourlyRates[Group Name],0))/60*TableOutpatientRates[[#This Row],[Minutes for Rate]]),\"\")","v":""},{"$f":"IF(TableOutpatientRates[[#This Row],[LVN Group Allowed]]=\"Y\",IF(NOT(ISBLANK(TableOutpatientRates[[#This Row],[Standard Rate]])),TableOutpatientRates[Standard Rate],INDEX(TableOutpatientHourlyRates[Hourly Rate],MATCH(\"LVN Group\",TableOutpatientHourlyRates[Group Name],0))/60*TableOutpatientRates[[#This Row],[Minutes for Rate]]),\"\")","v":""},{"$f":"IF(TableOutpatientRates[[#This Row],[MA Group Allowed]]=\"Y\",IF(NOT(ISBLANK(TableOutpatientRates[[#This Row],[Standard Rate]])),TableOutpatientRates[Standard Rate],INDEX(TableOutpatientHourlyRates[Hourly Rate],MATCH(\"MA Group\",TableOutpatientHourlyRates[Group Name],0))/60*TableOutpatientRates[[#This Row],[Minutes for Rate]]),\"\")","v":""},{"$f":"IF(TableOutpatientRates[[#This Row],[MD Group Allowed]]=\"Y\",IF(NOT(ISBLANK(TableOutpatientRates[[#This Row],[Standard Rate]])),TableOutpatientRates[Standard Rate],INDEX(TableOutpatientHourlyRates[Hourly Rate],MATCH(\"MD Group\",TableOutpatientHourlyRates[Group Name],0))/60*TableOutpatientRates[[#This Row],[Minutes for Rate]]),\"\")","v":140},{"$f":"IF(TableOutpatientRates[[#This Row],[NP Group Allowed]]=\"Y\",IF(NOT(ISBLANK(TableOutpatientRates[[#This Row],[Standard Rate]])),TableOutpatientRates[Standard Rate],INDEX(TableOutpatientHourlyRates[Hourly Rate],MATCH(\"NP Group\",TableOutpatientHourlyRates[Group Name],0))/60*TableOutpatientRates[[#This Row],[Minutes for Rate]]),\"\")","v":150},{"$f":"IF(TableOutpatientRates[[#This Row],[OT Group Allowed]]=\"Y\",IF(NOT(ISBLANK(TableOutpatientRates[[#This Row],[Standard Rate]])),TableOutpatientRates[Standard Rate],INDEX(TableOutpatientHourlyRates[Hourly Rate],MATCH(\"OT Group\",TableOutpatientHourlyRates[Group Name],0))/60*TableOutpatientRates[[#This Row],[Minutes for Rate]]),\"\")","v":""},{"$f":"IF(TableOutpatientRates[[#This Row],[PA Group Allowed]]=\"Y\",IF(NOT(ISBLANK(TableOutpatientRates[[#This Row],[Standard Rate]])),TableOutpatientRates[Standard Rate],INDEX(TableOutpatientHourlyRates[Hourly Rate],MATCH(\"PA Group\",TableOutpatientHourlyRates[Group Name],0))/60*TableOutpatientRates[[#This Row],[Minutes for Rate]]),\"\")","v":170},{"$f":"IF(TableOutpatientRates[[#This Row],[PEER Group Allowed]]=\"Y\",IF(NOT(ISBLANK(TableOutpatientRates[[#This Row],[Standard Rate]])),TableOutpatientRates[Standard Rate],INDEX(TableOutpatientHourlyRates[Hourly Rate],MATCH(\"PEER Group\",TableOutpatientHourlyRates[Group Name],0))/60*TableOutpatientRates[[#This Row],[Minutes for Rate]]),\"\")","v":""},{"$f":"IF(TableOutpatientRates[[#This Row],[PHARM Group Allowed]]=\"Y\",IF(NOT(ISBLANK(TableOutpatientRates[[#This Row],[Standard Rate]])),TableOutpatientRates[Standard Rate],INDEX(TableOutpatientHourlyRates[Hourly Rate],MATCH(\"PHARM Group\",TableOutpatientHourlyRates[Group Name],0))/60*TableOutpatientRates[[#This Row],[Minutes for Rate]]),\"\")","v":""},{"$f":"IF(TableOutpatientRates[[#This Row],[PSY Group Allowed]]=\"Y\",IF(NOT(ISBLANK(TableOutpatientRates[[#This Row],[Standard Rate]])),TableOutpatientRates[Standard Rate],INDEX(TableOutpatientHourlyRates[Hourly Rate],MATCH(\"PSY Group\",TableOutpatientHourlyRates[Group Name],0))/60*TableOutpatientRates[[#This Row],[Minutes for Rate]]),\"\")","v":""},{"$f":"IF(TableOutpatientRates[[#This Row],[PT Group Allowed]]=\"Y\",IF(NOT(ISBLANK(TableOutpatientRates[[#This Row],[Standard Rate]])),TableOutpatientRates[Standard Rate],INDEX(TableOutpatientHourlyRates[Hourly Rate],MATCH(\"PT Group\",TableOutpatientHourlyRates[Group Name],0))/60*TableOutpatientRates[[#This Row],[Minutes for Rate]]),\"\")","v":""},{"$f":"IF(TableOutpatientRates[[#This Row],[RN Group Allowed]]=\"Y\",IF(NOT(ISBLANK(TableOutpatientRates[[#This Row],[Standard Rate]])),TableOutpatientRates[Standard Rate],INDEX(TableOutpatientHourlyRates[Hourly Rate],MATCH(\"RN Group\",TableOutpatientHourlyRates[Group Name],0))/60*TableOutpatientRates[[#This Row],[Minutes for Rate]]),\"\")","v":""}]
["99304","Initial Nursing Facility Care per Day, for the Evaluation and Management of a Patient. Usually, the Problem(s) requiring Admission are of Low Severity, 16- 29 Minutes","30","","","","","Y","Y","","","Y","","","","",null,{"$f":"IF(TableOutpatientRates[[#This Row],[AOD Group Allowed]]=\"Y\",IF(NOT(ISBLANK(TableOutpatientRates[[#This Row],[Standard Rate]])),TableOutpatientRates[Standard Rate],INDEX(TableOutpatientHourlyRates[Hourly Rate],MATCH(\"AOD Group\",TableOutpatientHourlyRates[Group Name],0))/60*TableOutpatientRates[[#This Row],[Minutes for Rate]]),\"\")","v":""},{"$f":"IF(TableOutpatientRates[[#This Row],[LPHA Group Allowed]]=\"Y\",IF(NOT(ISBLANK(TableOutpatientRates[[#This Row],[Standard Rate]])),TableOutpatientRates[Standard Rate],INDEX(TableOutpatientHourlyRates[Hourly Rate],MATCH(\"LPHA Group\",TableOutpatientHourlyRates[Group Name],0))/60*TableOutpatientRates[[#This Row],[Minutes for Rate]]),\"\")","v":""},{"$f":"IF(TableOutpatientRates[[#This Row],[LVN Group Allowed]]=\"Y\",IF(NOT(ISBLANK(TableOutpatientRates[[#This Row],[Standard Rate]])),TableOutpatientRates[Standard Rate],INDEX(TableOutpatientHourlyRates[Hourly Rate],MATCH(\"LVN Group\",TableOutpatientHourlyRates[Group Name],0))/60*TableOutpatientRates[[#This Row],[Minutes for Rate]]),\"\")","v":""},{"$f":"IF(TableOutpatientRates[[#This Row],[MA Group Allowed]]=\"Y\",IF(NOT(ISBLANK(TableOutpatientRates[[#This Row],[Standard Rate]])),TableOutpatientRates[Standard Rate],INDEX(TableOutpatientHourlyRates[Hourly Rate],MATCH(\"MA Group\",TableOutpatientHourlyRates[Group Name],0))/60*TableOutpatientRates[[#This Row],[Minutes for Rate]]),\"\")","v":""},{"$f":"IF(TableOutpatientRates[[#This Row],[MD Group Allowed]]=\"Y\",IF(NOT(ISBLANK(TableOutpatientRates[[#This Row],[Standard Rate]])),TableOutpatientRates[Standard Rate],INDEX(TableOutpatientHourlyRates[Hourly Rate],MATCH(\"MD Group\",TableOutpatientHourlyRates[Group Name],0))/60*TableOutpatientRates[[#This Row],[Minutes for Rate]]),\"\")","v":70},{"$f":"IF(TableOutpatientRates[[#This Row],[NP Group Allowed]]=\"Y\",IF(NOT(ISBLANK(TableOutpatientRates[[#This Row],[Standard Rate]])),TableOutpatientRates[Standard Rate],INDEX(TableOutpatientHourlyRates[Hourly Rate],MATCH(\"NP Group\",TableOutpatientHourlyRates[Group Name],0))/60*TableOutpatientRates[[#This Row],[Minutes for Rate]]),\"\")","v":75},{"$f":"IF(TableOutpatientRates[[#This Row],[OT Group Allowed]]=\"Y\",IF(NOT(ISBLANK(TableOutpatientRates[[#This Row],[Standard Rate]])),TableOutpatientRates[Standard Rate],INDEX(TableOutpatientHourlyRates[Hourly Rate],MATCH(\"OT Group\",TableOutpatientHourlyRates[Group Name],0))/60*TableOutpatientRates[[#This Row],[Minutes for Rate]]),\"\")","v":""},{"$f":"IF(TableOutpatientRates[[#This Row],[PA Group Allowed]]=\"Y\",IF(NOT(ISBLANK(TableOutpatientRates[[#This Row],[Standard Rate]])),TableOutpatientRates[Standard Rate],INDEX(TableOutpatientHourlyRates[Hourly Rate],MATCH(\"PA Group\",TableOutpatientHourlyRates[Group Name],0))/60*TableOutpatientRates[[#This Row],[Minutes for Rate]]),\"\")","v":85},{"$f":"IF(TableOutpatientRates[[#This Row],[PEER Group Allowed]]=\"Y\",IF(NOT(ISBLANK(TableOutpatientRates[[#This Row],[Standard Rate]])),TableOutpatientRates[Standard Rate],INDEX(TableOutpatientHourlyRates[Hourly Rate],MATCH(\"PEER Group\",TableOutpatientHourlyRates[Group Name],0))/60*TableOutpatientRates[[#This Row],[Minutes for Rate]]),\"\")","v":""},{"$f":"IF(TableOutpatientRates[[#This Row],[PHARM Group Allowed]]=\"Y\",IF(NOT(ISBLANK(TableOutpatientRates[[#This Row],[Standard Rate]])),TableOutpatientRates[Standard Rate],INDEX(TableOutpatientHourlyRates[Hourly Rate],MATCH(\"PHARM Group\",TableOutpatientHourlyRates[Group Name],0))/60*TableOutpatientRates[[#This Row],[Minutes for Rate]]),\"\")","v":""},{"$f":"IF(TableOutpatientRates[[#This Row],[PSY Group Allowed]]=\"Y\",IF(NOT(ISBLANK(TableOutpatientRates[[#This Row],[Standard Rate]])),TableOutpatientRates[Standard Rate],INDEX(TableOutpatientHourlyRates[Hourly Rate],MATCH(\"PSY Group\",TableOutpatientHourlyRates[Group Name],0))/60*TableOutpatientRates[[#This Row],[Minutes for Rate]]),\"\")","v":""},{"$f":"IF(TableOutpatientRates[[#This Row],[PT Group Allowed]]=\"Y\",IF(NOT(ISBLANK(TableOutpatientRates[[#This Row],[Standard Rate]])),TableOutpatientRates[Standard Rate],INDEX(TableOutpatientHourlyRates[Hourly Rate],MATCH(\"PT Group\",TableOutpatientHourlyRates[Group Name],0))/60*TableOutpatientRates[[#This Row],[Minutes for Rate]]),\"\")","v":""},{"$f":"IF(TableOutpatientRates[[#This Row],[RN Group Allowed]]=\"Y\",IF(NOT(ISBLANK(TableOutpatientRates[[#This Row],[Standard Rate]])),TableOutpatientRates[Standard Rate],INDEX(TableOutpatientHourlyRates[Hourly Rate],MATCH(\"RN Group\",TableOutpatientHourlyRates[Group Name],0))/60*TableOutpatientRates[[#This Row],[Minutes for Rate]]),\"\")","v":""}]
["99305","Initial Nursing Facility Care per Day, for the Evaluation and Management of a Patient. Usually, the Problem(s) Requiring Admission are of Moderate Severity, 30-39 Minutes","40","","","","","Y","Y","","","Y","","","","",null,{"$f":"IF(TableOutpatientRates[[#This Row],[AOD Group Allowed]]=\"Y\",IF(NOT(ISBLANK(TableOutpatientRates[[#This Row],[Standard Rate]])),TableOutpatientRates[Standard Rate],INDEX(TableOutpatientHourlyRates[Hourly Rate],MATCH(\"AOD Group\",TableOutpatientHourlyRates[Group Name],0))/60*TableOutpatientRates[[#This Row],[Minutes for Rate]]),\"\")","v":""},{"$f":"IF(TableOutpatientRates[[#This Row],[LPHA Group Allowed]]=\"Y\",IF(NOT(ISBLANK(TableOutpatientRates[[#This Row],[Standard Rate]])),TableOutpatientRates[Standard Rate],INDEX(TableOutpatientHourlyRates[Hourly Rate],MATCH(\"LPHA Group\",TableOutpatientHourlyRates[Group Name],0))/60*TableOutpatientRates[[#This Row],[Minutes for Rate]]),\"\")","v":""},{"$f":"IF(TableOutpatientRates[[#This Row],[LVN Group Allowed]]=\"Y\",IF(NOT(ISBLANK(TableOutpatientRates[[#This Row],[Standard Rate]])),TableOutpatientRates[Standard Rate],INDEX(TableOutpatientHourlyRates[Hourly Rate],MATCH(\"LVN Group\",TableOutpatientHourlyRates[Group Name],0))/60*TableOutpatientRates[[#This Row],[Minutes for Rate]]),\"\")","v":""},{"$f":"IF(TableOutpatientRates[[#This Row],[MA Group Allowed]]=\"Y\",IF(NOT(ISBLANK(TableOutpatientRates[[#This Row],[Standard Rate]])),TableOutpatientRates[Standard Rate],INDEX(TableOutpatientHourlyRates[Hourly Rate],MATCH(\"MA Group\",TableOutpatientHourlyRates[Group Name],0))/60*TableOutpatientRates[[#This Row],[Minutes for Rate]]),\"\")","v":""},{"$f":"IF(TableOutpatientRates[[#This Row],[MD Group Allowed]]=\"Y\",IF(NOT(ISBLANK(TableOutpatientRates[[#This Row],[Standard Rate]])),TableOutpatientRates[Standard Rate],INDEX(TableOutpatientHourlyRates[Hourly Rate],MATCH(\"MD Group\",TableOutpatientHourlyRates[Group Name],0))/60*TableOutpatientRates[[#This Row],[Minutes for Rate]]),\"\")","v":93.333333333333343},{"$f":"IF(TableOutpatientRates[[#This Row],[NP Group Allowed]]=\"Y\",IF(NOT(ISBLANK(TableOutpatientRates[[#This Row],[Standard Rate]])),TableOutpatientRates[Standard Rate],INDEX(TableOutpatientHourlyRates[Hourly Rate],MATCH(\"NP Group\",TableOutpatientHourlyRates[Group Name],0))/60*TableOutpatientRates[[#This Row],[Minutes for Rate]]),\"\")","v":100},{"$f":"IF(TableOutpatientRates[[#This Row],[OT Group Allowed]]=\"Y\",IF(NOT(ISBLANK(TableOutpatientRates[[#This Row],[Standard Rate]])),TableOutpatientRates[Standard Rate],INDEX(TableOutpatientHourlyRates[Hourly Rate],MATCH(\"OT Group\",TableOutpatientHourlyRates[Group Name],0))/60*TableOutpatientRates[[#This Row],[Minutes for Rate]]),\"\")","v":""},{"$f":"IF(TableOutpatientRates[[#This Row],[PA Group Allowed]]=\"Y\",IF(NOT(ISBLANK(TableOutpatientRates[[#This Row],[Standard Rate]])),TableOutpatientRates[Standard Rate],INDEX(TableOutpatientHourlyRates[Hourly Rate],MATCH(\"PA Group\",TableOutpatientHourlyRates[Group Name],0))/60*TableOutpatientRates[[#This Row],[Minutes for Rate]]),\"\")","v":113.33333333333334},{"$f":"IF(TableOutpatientRates[[#This Row],[PEER Group Allowed]]=\"Y\",IF(NOT(ISBLANK(TableOutpatientRates[[#This Row],[Standard Rate]])),TableOutpatientRates[Standard Rate],INDEX(TableOutpatientHourlyRates[Hourly Rate],MATCH(\"PEER Group\",TableOutpatientHourlyRates[Group Name],0))/60*TableOutpatientRates[[#This Row],[Minutes for Rate]]),\"\")","v":""},{"$f":"IF(TableOutpatientRates[[#This Row],[PHARM Group Allowed]]=\"Y\",IF(NOT(ISBLANK(TableOutpatientRates[[#This Row],[Standard Rate]])),TableOutpatientRates[Standard Rate],INDEX(TableOutpatientHourlyRates[Hourly Rate],MATCH(\"PHARM Group\",TableOutpatientHourlyRates[Group Name],0))/60*TableOutpatientRates[[#This Row],[Minutes for Rate]]),\"\")","v":""},{"$f":"IF(TableOutpatientRates[[#This Row],[PSY Group Allowed]]=\"Y\",IF(NOT(ISBLANK(TableOutpatientRates[[#This Row],[Standard Rate]])),TableOutpatientRates[Standard Rate],INDEX(TableOutpatientHourlyRates[Hourly Rate],MATCH(\"PSY Group\",TableOutpatientHourlyRates[Group Name],0))/60*TableOutpatientRates[[#This Row],[Minutes for Rate]]),\"\")","v":""},{"$f":"IF(TableOutpatientRates[[#This Row],[PT Group Allowed]]=\"Y\",IF(NOT(ISBLANK(TableOutpatientRates[[#This Row],[Standard Rate]])),TableOutpatientRates[Standard Rate],INDEX(TableOutpatientHourlyRates[Hourly Rate],MATCH(\"PT Group\",TableOutpatientHourlyRates[Group Name],0))/60*TableOutpatientRates[[#This Row],[Minutes for Rate]]),\"\")","v":""},{"$f":"IF(TableOutpatientRates[[#This Row],[RN Group Allowed]]=\"Y\",IF(NOT(ISBLANK(TableOutpatientRates[[#This Row],[Standard Rate]])),TableOutpatientRates[Standard Rate],INDEX(TableOutpatientHourlyRates[Hourly Rate],MATCH(\"RN Group\",TableOutpatientHourlyRates[Group Name],0))/60*TableOutpatientRates[[#This Row],[Minutes for Rate]]),\"\")","v":""}]
["99306","Initial Nursing Facility Care per Day, for the Evaluation and Management of a Patient. Usually, the Problem(s) Requiring Admission are of High Severity, 40- 60 Minutes","52","","","","","Y","Y","","","Y","","","","",null,{"$f":"IF(TableOutpatientRates[[#This Row],[AOD Group Allowed]]=\"Y\",IF(NOT(ISBLANK(TableOutpatientRates[[#This Row],[Standard Rate]])),TableOutpatientRates[Standard Rate],INDEX(TableOutpatientHourlyRates[Hourly Rate],MATCH(\"AOD Group\",TableOutpatientHourlyRates[Group Name],0))/60*TableOutpatientRates[[#This Row],[Minutes for Rate]]),\"\")","v":""},{"$f":"IF(TableOutpatientRates[[#This Row],[LPHA Group Allowed]]=\"Y\",IF(NOT(ISBLANK(TableOutpatientRates[[#This Row],[Standard Rate]])),TableOutpatientRates[Standard Rate],INDEX(TableOutpatientHourlyRates[Hourly Rate],MATCH(\"LPHA Group\",TableOutpatientHourlyRates[Group Name],0))/60*TableOutpatientRates[[#This Row],[Minutes for Rate]]),\"\")","v":""},{"$f":"IF(TableOutpatientRates[[#This Row],[LVN Group Allowed]]=\"Y\",IF(NOT(ISBLANK(TableOutpatientRates[[#This Row],[Standard Rate]])),TableOutpatientRates[Standard Rate],INDEX(TableOutpatientHourlyRates[Hourly Rate],MATCH(\"LVN Group\",TableOutpatientHourlyRates[Group Name],0))/60*TableOutpatientRates[[#This Row],[Minutes for Rate]]),\"\")","v":""},{"$f":"IF(TableOutpatientRates[[#This Row],[MA Group Allowed]]=\"Y\",IF(NOT(ISBLANK(TableOutpatientRates[[#This Row],[Standard Rate]])),TableOutpatientRates[Standard Rate],INDEX(TableOutpatientHourlyRates[Hourly Rate],MATCH(\"MA Group\",TableOutpatientHourlyRates[Group Name],0))/60*TableOutpatientRates[[#This Row],[Minutes for Rate]]),\"\")","v":""},{"$f":"IF(TableOutpatientRates[[#This Row],[MD Group Allowed]]=\"Y\",IF(NOT(ISBLANK(TableOutpatientRates[[#This Row],[Standard Rate]])),TableOutpatientRates[Standard Rate],INDEX(TableOutpatientHourlyRates[Hourly Rate],MATCH(\"MD Group\",TableOutpatientHourlyRates[Group Name],0))/60*TableOutpatientRates[[#This Row],[Minutes for Rate]]),\"\")","v":121.33333333333334},{"$f":"IF(TableOutpatientRates[[#This Row],[NP Group Allowed]]=\"Y\",IF(NOT(ISBLANK(TableOutpatientRates[[#This Row],[Standard Rate]])),TableOutpatientRates[Standard Rate],INDEX(TableOutpatientHourlyRates[Hourly Rate],MATCH(\"NP Group\",TableOutpatientHourlyRates[Group Name],0))/60*TableOutpatientRates[[#This Row],[Minutes for Rate]]),\"\")","v":130},{"$f":"IF(TableOutpatientRates[[#This Row],[OT Group Allowed]]=\"Y\",IF(NOT(ISBLANK(TableOutpatientRates[[#This Row],[Standard Rate]])),TableOutpatientRates[Standard Rate],INDEX(TableOutpatientHourlyRates[Hourly Rate],MATCH(\"OT Group\",TableOutpatientHourlyRates[Group Name],0))/60*TableOutpatientRates[[#This Row],[Minutes for Rate]]),\"\")","v":""},{"$f":"IF(TableOutpatientRates[[#This Row],[PA Group Allowed]]=\"Y\",IF(NOT(ISBLANK(TableOutpatientRates[[#This Row],[Standard Rate]])),TableOutpatientRates[Standard Rate],INDEX(TableOutpatientHourlyRates[Hourly Rate],MATCH(\"PA Group\",TableOutpatientHourlyRates[Group Name],0))/60*TableOutpatientRates[[#This Row],[Minutes for Rate]]),\"\")","v":147.33333333333334},{"$f":"IF(TableOutpatientRates[[#This Row],[PEER Group Allowed]]=\"Y\",IF(NOT(ISBLANK(TableOutpatientRates[[#This Row],[Standard Rate]])),TableOutpatientRates[Standard Rate],INDEX(TableOutpatientHourlyRates[Hourly Rate],MATCH(\"PEER Group\",TableOutpatientHourlyRates[Group Name],0))/60*TableOutpatientRates[[#This Row],[Minutes for Rate]]),\"\")","v":""},{"$f":"IF(TableOutpatientRates[[#This Row],[PHARM Group Allowed]]=\"Y\",IF(NOT(ISBLANK(TableOutpatientRates[[#This Row],[Standard Rate]])),TableOutpatientRates[Standard Rate],INDEX(TableOutpatientHourlyRates[Hourly Rate],MATCH(\"PHARM Group\",TableOutpatientHourlyRates[Group Name],0))/60*TableOutpatientRates[[#This Row],[Minutes for Rate]]),\"\")","v":""},{"$f":"IF(TableOutpatientRates[[#This Row],[PSY Group Allowed]]=\"Y\",IF(NOT(ISBLANK(TableOutpatientRates[[#This Row],[Standard Rate]])),TableOutpatientRates[Standard Rate],INDEX(TableOutpatientHourlyRates[Hourly Rate],MATCH(\"PSY Group\",TableOutpatientHourlyRates[Group Name],0))/60*TableOutpatientRates[[#This Row],[Minutes for Rate]]),\"\")","v":""},{"$f":"IF(TableOutpatientRates[[#This Row],[PT Group Allowed]]=\"Y\",IF(NOT(ISBLANK(TableOutpatientRates[[#This Row],[Standard Rate]])),TableOutpatientRates[Standard Rate],INDEX(TableOutpatientHourlyRates[Hourly Rate],MATCH(\"PT Group\",TableOutpatientHourlyRates[Group Name],0))/60*TableOutpatientRates[[#This Row],[Minutes for Rate]]),\"\")","v":""},{"$f":"IF(TableOutpatientRates[[#This Row],[RN Group Allowed]]=\"Y\",IF(NOT(ISBLANK(TableOutpatientRates[[#This Row],[Standard Rate]])),TableOutpatientRates[Standard Rate],INDEX(TableOutpatientHourlyRates[Hourly Rate],MATCH(\"RN Group\",TableOutpatientHourlyRates[Group Name],0))/60*TableOutpatientRates[[#This Row],[Minutes for Rate]]),\"\")","v":""}]
["99307","Subsequent Nursing Facility Care per Day for the Evaluation and Management of a Patient. Usually, the Patient is Stable, Recovering or Improving, 1-12 Minutes","12","","","","","Y","Y","","","Y","","","","",null,{"$f":"IF(TableOutpatientRates[[#This Row],[AOD Group Allowed]]=\"Y\",IF(NOT(ISBLANK(TableOutpatientRates[[#This Row],[Standard Rate]])),TableOutpatientRates[Standard Rate],INDEX(TableOutpatientHourlyRates[Hourly Rate],MATCH(\"AOD Group\",TableOutpatientHourlyRates[Group Name],0))/60*TableOutpatientRates[[#This Row],[Minutes for Rate]]),\"\")","v":""},{"$f":"IF(TableOutpatientRates[[#This Row],[LPHA Group Allowed]]=\"Y\",IF(NOT(ISBLANK(TableOutpatientRates[[#This Row],[Standard Rate]])),TableOutpatientRates[Standard Rate],INDEX(TableOutpatientHourlyRates[Hourly Rate],MATCH(\"LPHA Group\",TableOutpatientHourlyRates[Group Name],0))/60*TableOutpatientRates[[#This Row],[Minutes for Rate]]),\"\")","v":""},{"$f":"IF(TableOutpatientRates[[#This Row],[LVN Group Allowed]]=\"Y\",IF(NOT(ISBLANK(TableOutpatientRates[[#This Row],[Standard Rate]])),TableOutpatientRates[Standard Rate],INDEX(TableOutpatientHourlyRates[Hourly Rate],MATCH(\"LVN Group\",TableOutpatientHourlyRates[Group Name],0))/60*TableOutpatientRates[[#This Row],[Minutes for Rate]]),\"\")","v":""},{"$f":"IF(TableOutpatientRates[[#This Row],[MA Group Allowed]]=\"Y\",IF(NOT(ISBLANK(TableOutpatientRates[[#This Row],[Standard Rate]])),TableOutpatientRates[Standard Rate],INDEX(TableOutpatientHourlyRates[Hourly Rate],MATCH(\"MA Group\",TableOutpatientHourlyRates[Group Name],0))/60*TableOutpatientRates[[#This Row],[Minutes for Rate]]),\"\")","v":""},{"$f":"IF(TableOutpatientRates[[#This Row],[MD Group Allowed]]=\"Y\",IF(NOT(ISBLANK(TableOutpatientRates[[#This Row],[Standard Rate]])),TableOutpatientRates[Standard Rate],INDEX(TableOutpatientHourlyRates[Hourly Rate],MATCH(\"MD Group\",TableOutpatientHourlyRates[Group Name],0))/60*TableOutpatientRates[[#This Row],[Minutes for Rate]]),\"\")","v":28},{"$f":"IF(TableOutpatientRates[[#This Row],[NP Group Allowed]]=\"Y\",IF(NOT(ISBLANK(TableOutpatientRates[[#This Row],[Standard Rate]])),TableOutpatientRates[Standard Rate],INDEX(TableOutpatientHourlyRates[Hourly Rate],MATCH(\"NP Group\",TableOutpatientHourlyRates[Group Name],0))/60*TableOutpatientRates[[#This Row],[Minutes for Rate]]),\"\")","v":30},{"$f":"IF(TableOutpatientRates[[#This Row],[OT Group Allowed]]=\"Y\",IF(NOT(ISBLANK(TableOutpatientRates[[#This Row],[Standard Rate]])),TableOutpatientRates[Standard Rate],INDEX(TableOutpatientHourlyRates[Hourly Rate],MATCH(\"OT Group\",TableOutpatientHourlyRates[Group Name],0))/60*TableOutpatientRates[[#This Row],[Minutes for Rate]]),\"\")","v":""},{"$f":"IF(TableOutpatientRates[[#This Row],[PA Group Allowed]]=\"Y\",IF(NOT(ISBLANK(TableOutpatientRates[[#This Row],[Standard Rate]])),TableOutpatientRates[Standard Rate],INDEX(TableOutpatientHourlyRates[Hourly Rate],MATCH(\"PA Group\",TableOutpatientHourlyRates[Group Name],0))/60*TableOutpatientRates[[#This Row],[Minutes for Rate]]),\"\")","v":34},{"$f":"IF(TableOutpatientRates[[#This Row],[PEER Group Allowed]]=\"Y\",IF(NOT(ISBLANK(TableOutpatientRates[[#This Row],[Standard Rate]])),TableOutpatientRates[Standard Rate],INDEX(TableOutpatientHourlyRates[Hourly Rate],MATCH(\"PEER Group\",TableOutpatientHourlyRates[Group Name],0))/60*TableOutpatientRates[[#This Row],[Minutes for Rate]]),\"\")","v":""},{"$f":"IF(TableOutpatientRates[[#This Row],[PHARM Group Allowed]]=\"Y\",IF(NOT(ISBLANK(TableOutpatientRates[[#This Row],[Standard Rate]])),TableOutpatientRates[Standard Rate],INDEX(TableOutpatientHourlyRates[Hourly Rate],MATCH(\"PHARM Group\",TableOutpatientHourlyRates[Group Name],0))/60*TableOutpatientRates[[#This Row],[Minutes for Rate]]),\"\")","v":""},{"$f":"IF(TableOutpatientRates[[#This Row],[PSY Group Allowed]]=\"Y\",IF(NOT(ISBLANK(TableOutpatientRates[[#This Row],[Standard Rate]])),TableOutpatientRates[Standard Rate],INDEX(TableOutpatientHourlyRates[Hourly Rate],MATCH(\"PSY Group\",TableOutpatientHourlyRates[Group Name],0))/60*TableOutpatientRates[[#This Row],[Minutes for Rate]]),\"\")","v":""},{"$f":"IF(TableOutpatientRates[[#This Row],[PT Group Allowed]]=\"Y\",IF(NOT(ISBLANK(TableOutpatientRates[[#This Row],[Standard Rate]])),TableOutpatientRates[Standard Rate],INDEX(TableOutpatientHourlyRates[Hourly Rate],MATCH(\"PT Group\",TableOutpatientHourlyRates[Group Name],0))/60*TableOutpatientRates[[#This Row],[Minutes for Rate]]),\"\")","v":""},{"$f":"IF(TableOutpatientRates[[#This Row],[RN Group Allowed]]=\"Y\",IF(NOT(ISBLANK(TableOutpatientRates[[#This Row],[Standard Rate]])),TableOutpatientRates[Standard Rate],INDEX(TableOutpatientHourlyRates[Hourly Rate],MATCH(\"RN Group\",TableOutpatientHourlyRates[Group Name],0))/60*TableOutpatientRates[[#This Row],[Minutes for Rate]]),\"\")","v":""}]
["99308","Initial Nursing Facility Care per Day, for the Evaluation and Management of a Patient. Usually, the Patient is Responding Inadequately to Therapy or Has Developed a Minor Complication, 13- 19 Minutes","22","","","","","Y","Y","","","Y","","","","",null,{"$f":"IF(TableOutpatientRates[[#This Row],[AOD Group Allowed]]=\"Y\",IF(NOT(ISBLANK(TableOutpatientRates[[#This Row],[Standard Rate]])),TableOutpatientRates[Standard Rate],INDEX(TableOutpatientHourlyRates[Hourly Rate],MATCH(\"AOD Group\",TableOutpatientHourlyRates[Group Name],0))/60*TableOutpatientRates[[#This Row],[Minutes for Rate]]),\"\")","v":""},{"$f":"IF(TableOutpatientRates[[#This Row],[LPHA Group Allowed]]=\"Y\",IF(NOT(ISBLANK(TableOutpatientRates[[#This Row],[Standard Rate]])),TableOutpatientRates[Standard Rate],INDEX(TableOutpatientHourlyRates[Hourly Rate],MATCH(\"LPHA Group\",TableOutpatientHourlyRates[Group Name],0))/60*TableOutpatientRates[[#This Row],[Minutes for Rate]]),\"\")","v":""},{"$f":"IF(TableOutpatientRates[[#This Row],[LVN Group Allowed]]=\"Y\",IF(NOT(ISBLANK(TableOutpatientRates[[#This Row],[Standard Rate]])),TableOutpatientRates[Standard Rate],INDEX(TableOutpatientHourlyRates[Hourly Rate],MATCH(\"LVN Group\",TableOutpatientHourlyRates[Group Name],0))/60*TableOutpatientRates[[#This Row],[Minutes for Rate]]),\"\")","v":""},{"$f":"IF(TableOutpatientRates[[#This Row],[MA Group Allowed]]=\"Y\",IF(NOT(ISBLANK(TableOutpatientRates[[#This Row],[Standard Rate]])),TableOutpatientRates[Standard Rate],INDEX(TableOutpatientHourlyRates[Hourly Rate],MATCH(\"MA Group\",TableOutpatientHourlyRates[Group Name],0))/60*TableOutpatientRates[[#This Row],[Minutes for Rate]]),\"\")","v":""},{"$f":"IF(TableOutpatientRates[[#This Row],[MD Group Allowed]]=\"Y\",IF(NOT(ISBLANK(TableOutpatientRates[[#This Row],[Standard Rate]])),TableOutpatientRates[Standard Rate],INDEX(TableOutpatientHourlyRates[Hourly Rate],MATCH(\"MD Group\",TableOutpatientHourlyRates[Group Name],0))/60*TableOutpatientRates[[#This Row],[Minutes for Rate]]),\"\")","v":51.333333333333336},{"$f":"IF(TableOutpatientRates[[#This Row],[NP Group Allowed]]=\"Y\",IF(NOT(ISBLANK(TableOutpatientRates[[#This Row],[Standard Rate]])),TableOutpatientRates[Standard Rate],INDEX(TableOutpatientHourlyRates[Hourly Rate],MATCH(\"NP Group\",TableOutpatientHourlyRates[Group Name],0))/60*TableOutpatientRates[[#This Row],[Minutes for Rate]]),\"\")","v":55},{"$f":"IF(TableOutpatientRates[[#This Row],[OT Group Allowed]]=\"Y\",IF(NOT(ISBLANK(TableOutpatientRates[[#This Row],[Standard Rate]])),TableOutpatientRates[Standard Rate],INDEX(TableOutpatientHourlyRates[Hourly Rate],MATCH(\"OT Group\",TableOutpatientHourlyRates[Group Name],0))/60*TableOutpatientRates[[#This Row],[Minutes for Rate]]),\"\")","v":""},{"$f":"IF(TableOutpatientRates[[#This Row],[PA Group Allowed]]=\"Y\",IF(NOT(ISBLANK(TableOutpatientRates[[#This Row],[Standard Rate]])),TableOutpatientRates[Standard Rate],INDEX(TableOutpatientHourlyRates[Hourly Rate],MATCH(\"PA Group\",TableOutpatientHourlyRates[Group Name],0))/60*TableOutpatientRates[[#This Row],[Minutes for Rate]]),\"\")","v":62.333333333333336},{"$f":"IF(TableOutpatientRates[[#This Row],[PEER Group Allowed]]=\"Y\",IF(NOT(ISBLANK(TableOutpatientRates[[#This Row],[Standard Rate]])),TableOutpatientRates[Standard Rate],INDEX(TableOutpatientHourlyRates[Hourly Rate],MATCH(\"PEER Group\",TableOutpatientHourlyRates[Group Name],0))/60*TableOutpatientRates[[#This Row],[Minutes for Rate]]),\"\")","v":""},{"$f":"IF(TableOutpatientRates[[#This Row],[PHARM Group Allowed]]=\"Y\",IF(NOT(ISBLANK(TableOutpatientRates[[#This Row],[Standard Rate]])),TableOutpatientRates[Standard Rate],INDEX(TableOutpatientHourlyRates[Hourly Rate],MATCH(\"PHARM Group\",TableOutpatientHourlyRates[Group Name],0))/60*TableOutpatientRates[[#This Row],[Minutes for Rate]]),\"\")","v":""},{"$f":"IF(TableOutpatientRates[[#This Row],[PSY Group Allowed]]=\"Y\",IF(NOT(ISBLANK(TableOutpatientRates[[#This Row],[Standard Rate]])),TableOutpatientRates[Standard Rate],INDEX(TableOutpatientHourlyRates[Hourly Rate],MATCH(\"PSY Group\",TableOutpatientHourlyRates[Group Name],0))/60*TableOutpatientRates[[#This Row],[Minutes for Rate]]),\"\")","v":""},{"$f":"IF(TableOutpatientRates[[#This Row],[PT Group Allowed]]=\"Y\",IF(NOT(ISBLANK(TableOutpatientRates[[#This Row],[Standard Rate]])),TableOutpatientRates[Standard Rate],INDEX(TableOutpatientHourlyRates[Hourly Rate],MATCH(\"PT Group\",TableOutpatientHourlyRates[Group Name],0))/60*TableOutpatientRates[[#This Row],[Minutes for Rate]]),\"\")","v":""},{"$f":"IF(TableOutpatientRates[[#This Row],[RN Group Allowed]]=\"Y\",IF(NOT(ISBLANK(TableOutpatientRates[[#This Row],[Standard Rate]])),TableOutpatientRates[Standard Rate],INDEX(TableOutpatientHourlyRates[Hourly Rate],MATCH(\"RN Group\",TableOutpatientHourlyRates[Group Name],0))/60*TableOutpatientRates[[#This Row],[Minutes for Rate]]),\"\")","v":""}]
["99309","Initial Nursing Facility Care per Day, for the Evaluation and Management of a Patient. Usually, the Patient has Developed a Significant Complication or a Significant New Problem, 20-29 Minutes","37","","","","","Y","Y","","","Y","","","","",null,{"$f":"IF(TableOutpatientRates[[#This Row],[AOD Group Allowed]]=\"Y\",IF(NOT(ISBLANK(TableOutpatientRates[[#This Row],[Standard Rate]])),TableOutpatientRates[Standard Rate],INDEX(TableOutpatientHourlyRates[Hourly Rate],MATCH(\"AOD Group\",TableOutpatientHourlyRates[Group Name],0))/60*TableOutpatientRates[[#This Row],[Minutes for Rate]]),\"\")","v":""},{"$f":"IF(TableOutpatientRates[[#This Row],[LPHA Group Allowed]]=\"Y\",IF(NOT(ISBLANK(TableOutpatientRates[[#This Row],[Standard Rate]])),TableOutpatientRates[Standard Rate],INDEX(TableOutpatientHourlyRates[Hourly Rate],MATCH(\"LPHA Group\",TableOutpatientHourlyRates[Group Name],0))/60*TableOutpatientRates[[#This Row],[Minutes for Rate]]),\"\")","v":""},{"$f":"IF(TableOutpatientRates[[#This Row],[LVN Group Allowed]]=\"Y\",IF(NOT(ISBLANK(TableOutpatientRates[[#This Row],[Standard Rate]])),TableOutpatientRates[Standard Rate],INDEX(TableOutpatientHourlyRates[Hourly Rate],MATCH(\"LVN Group\",TableOutpatientHourlyRates[Group Name],0))/60*TableOutpatientRates[[#This Row],[Minutes for Rate]]),\"\")","v":""},{"$f":"IF(TableOutpatientRates[[#This Row],[MA Group Allowed]]=\"Y\",IF(NOT(ISBLANK(TableOutpatientRates[[#This Row],[Standard Rate]])),TableOutpatientRates[Standard Rate],INDEX(TableOutpatientHourlyRates[Hourly Rate],MATCH(\"MA Group\",TableOutpatientHourlyRates[Group Name],0))/60*TableOutpatientRates[[#This Row],[Minutes for Rate]]),\"\")","v":""},{"$f":"IF(TableOutpatientRates[[#This Row],[MD Group Allowed]]=\"Y\",IF(NOT(ISBLANK(TableOutpatientRates[[#This Row],[Standard Rate]])),TableOutpatientRates[Standard Rate],INDEX(TableOutpatientHourlyRates[Hourly Rate],MATCH(\"MD Group\",TableOutpatientHourlyRates[Group Name],0))/60*TableOutpatientRates[[#This Row],[Minutes for Rate]]),\"\")","v":86.333333333333343},{"$f":"IF(TableOutpatientRates[[#This Row],[NP Group Allowed]]=\"Y\",IF(NOT(ISBLANK(TableOutpatientRates[[#This Row],[Standard Rate]])),TableOutpatientRates[Standard Rate],INDEX(TableOutpatientHourlyRates[Hourly Rate],MATCH(\"NP Group\",TableOutpatientHourlyRates[Group Name],0))/60*TableOutpatientRates[[#This Row],[Minutes for Rate]]),\"\")","v":92.5},{"$f":"IF(TableOutpatientRates[[#This Row],[OT Group Allowed]]=\"Y\",IF(NOT(ISBLANK(TableOutpatientRates[[#This Row],[Standard Rate]])),TableOutpatientRates[Standard Rate],INDEX(TableOutpatientHourlyRates[Hourly Rate],MATCH(\"OT Group\",TableOutpatientHourlyRates[Group Name],0))/60*TableOutpatientRates[[#This Row],[Minutes for Rate]]),\"\")","v":""},{"$f":"IF(TableOutpatientRates[[#This Row],[PA Group Allowed]]=\"Y\",IF(NOT(ISBLANK(TableOutpatientRates[[#This Row],[Standard Rate]])),TableOutpatientRates[Standard Rate],INDEX(TableOutpatientHourlyRates[Hourly Rate],MATCH(\"PA Group\",TableOutpatientHourlyRates[Group Name],0))/60*TableOutpatientRates[[#This Row],[Minutes for Rate]]),\"\")","v":104.83333333333334},{"$f":"IF(TableOutpatientRates[[#This Row],[PEER Group Allowed]]=\"Y\",IF(NOT(ISBLANK(TableOutpatientRates[[#This Row],[Standard Rate]])),TableOutpatientRates[Standard Rate],INDEX(TableOutpatientHourlyRates[Hourly Rate],MATCH(\"PEER Group\",TableOutpatientHourlyRates[Group Name],0))/60*TableOutpatientRates[[#This Row],[Minutes for Rate]]),\"\")","v":""},{"$f":"IF(TableOutpatientRates[[#This Row],[PHARM Group Allowed]]=\"Y\",IF(NOT(ISBLANK(TableOutpatientRates[[#This Row],[Standard Rate]])),TableOutpatientRates[Standard Rate],INDEX(TableOutpatientHourlyRates[Hourly Rate],MATCH(\"PHARM Group\",TableOutpatientHourlyRates[Group Name],0))/60*TableOutpatientRates[[#This Row],[Minutes for Rate]]),\"\")","v":""},{"$f":"IF(TableOutpatientRates[[#This Row],[PSY Group Allowed]]=\"Y\",IF(NOT(ISBLANK(TableOutpatientRates[[#This Row],[Standard Rate]])),TableOutpatientRates[Standard Rate],INDEX(TableOutpatientHourlyRates[Hourly Rate],MATCH(\"PSY Group\",TableOutpatientHourlyRates[Group Name],0))/60*TableOutpatientRates[[#This Row],[Minutes for Rate]]),\"\")","v":""},{"$f":"IF(TableOutpatientRates[[#This Row],[PT Group Allowed]]=\"Y\",IF(NOT(ISBLANK(TableOutpatientRates[[#This Row],[Standard Rate]])),TableOutpatientRates[Standard Rate],INDEX(TableOutpatientHourlyRates[Hourly Rate],MATCH(\"PT Group\",TableOutpatientHourlyRates[Group Name],0))/60*TableOutpatientRates[[#This Row],[Minutes for Rate]]),\"\")","v":""},{"$f":"IF(TableOutpatientRates[[#This Row],[RN Group Allowed]]=\"Y\",IF(NOT(ISBLANK(TableOutpatientRates[[#This Row],[Standard Rate]])),TableOutpatientRates[Standard Rate],INDEX(TableOutpatientHourlyRates[Hourly Rate],MATCH(\"RN Group\",TableOutpatientHourlyRates[Group Name],0))/60*TableOutpatientRates[[#This Row],[Minutes for Rate]]),\"\")","v":""}]
["99310","Initial Nursing Facility Care per Day, for the Evaluation and Management of a Patient. The Patient May Be Unstable or May Have Developed a Significant New Problem Requiring Immediate Physician Attention, 30-40 Minutes","52","","","","","Y","Y","","","Y","","","","",null,{"$f":"IF(TableOutpatientRates[[#This Row],[AOD Group Allowed]]=\"Y\",IF(NOT(ISBLANK(TableOutpatientRates[[#This Row],[Standard Rate]])),TableOutpatientRates[Standard Rate],INDEX(TableOutpatientHourlyRates[Hourly Rate],MATCH(\"AOD Group\",TableOutpatientHourlyRates[Group Name],0))/60*TableOutpatientRates[[#This Row],[Minutes for Rate]]),\"\")","v":""},{"$f":"IF(TableOutpatientRates[[#This Row],[LPHA Group Allowed]]=\"Y\",IF(NOT(ISBLANK(TableOutpatientRates[[#This Row],[Standard Rate]])),TableOutpatientRates[Standard Rate],INDEX(TableOutpatientHourlyRates[Hourly Rate],MATCH(\"LPHA Group\",TableOutpatientHourlyRates[Group Name],0))/60*TableOutpatientRates[[#This Row],[Minutes for Rate]]),\"\")","v":""},{"$f":"IF(TableOutpatientRates[[#This Row],[LVN Group Allowed]]=\"Y\",IF(NOT(ISBLANK(TableOutpatientRates[[#This Row],[Standard Rate]])),TableOutpatientRates[Standard Rate],INDEX(TableOutpatientHourlyRates[Hourly Rate],MATCH(\"LVN Group\",TableOutpatientHourlyRates[Group Name],0))/60*TableOutpatientRates[[#This Row],[Minutes for Rate]]),\"\")","v":""},{"$f":"IF(TableOutpatientRates[[#This Row],[MA Group Allowed]]=\"Y\",IF(NOT(ISBLANK(TableOutpatientRates[[#This Row],[Standard Rate]])),TableOutpatientRates[Standard Rate],INDEX(TableOutpatientHourlyRates[Hourly Rate],MATCH(\"MA Group\",TableOutpatientHourlyRates[Group Name],0))/60*TableOutpatientRates[[#This Row],[Minutes for Rate]]),\"\")","v":""},{"$f":"IF(TableOutpatientRates[[#This Row],[MD Group Allowed]]=\"Y\",IF(NOT(ISBLANK(TableOutpatientRates[[#This Row],[Standard Rate]])),TableOutpatientRates[Standard Rate],INDEX(TableOutpatientHourlyRates[Hourly Rate],MATCH(\"MD Group\",TableOutpatientHourlyRates[Group Name],0))/60*TableOutpatientRates[[#This Row],[Minutes for Rate]]),\"\")","v":121.33333333333334},{"$f":"IF(TableOutpatientRates[[#This Row],[NP Group Allowed]]=\"Y\",IF(NOT(ISBLANK(TableOutpatientRates[[#This Row],[Standard Rate]])),TableOutpatientRates[Standard Rate],INDEX(TableOutpatientHourlyRates[Hourly Rate],MATCH(\"NP Group\",TableOutpatientHourlyRates[Group Name],0))/60*TableOutpatientRates[[#This Row],[Minutes for Rate]]),\"\")","v":130},{"$f":"IF(TableOutpatientRates[[#This Row],[OT Group Allowed]]=\"Y\",IF(NOT(ISBLANK(TableOutpatientRates[[#This Row],[Standard Rate]])),TableOutpatientRates[Standard Rate],INDEX(TableOutpatientHourlyRates[Hourly Rate],MATCH(\"OT Group\",TableOutpatientHourlyRates[Group Name],0))/60*TableOutpatientRates[[#This Row],[Minutes for Rate]]),\"\")","v":""},{"$f":"IF(TableOutpatientRates[[#This Row],[PA Group Allowed]]=\"Y\",IF(NOT(ISBLANK(TableOutpatientRates[[#This Row],[Standard Rate]])),TableOutpatientRates[Standard Rate],INDEX(TableOutpatientHourlyRates[Hourly Rate],MATCH(\"PA Group\",TableOutpatientHourlyRates[Group Name],0))/60*TableOutpatientRates[[#This Row],[Minutes for Rate]]),\"\")","v":147.33333333333334},{"$f":"IF(TableOutpatientRates[[#This Row],[PEER Group Allowed]]=\"Y\",IF(NOT(ISBLANK(TableOutpatientRates[[#This Row],[Standard Rate]])),TableOutpatientRates[Standard Rate],INDEX(TableOutpatientHourlyRates[Hourly Rate],MATCH(\"PEER Group\",TableOutpatientHourlyRates[Group Name],0))/60*TableOutpatientRates[[#This Row],[Minutes for Rate]]),\"\")","v":""},{"$f":"IF(TableOutpatientRates[[#This Row],[PHARM Group Allowed]]=\"Y\",IF(NOT(ISBLANK(TableOutpatientRates[[#This Row],[Standard Rate]])),TableOutpatientRates[Standard Rate],INDEX(TableOutpatientHourlyRates[Hourly Rate],MATCH(\"PHARM Group\",TableOutpatientHourlyRates[Group Name],0))/60*TableOutpatientRates[[#This Row],[Minutes for Rate]]),\"\")","v":""},{"$f":"IF(TableOutpatientRates[[#This Row],[PSY Group Allowed]]=\"Y\",IF(NOT(ISBLANK(TableOutpatientRates[[#This Row],[Standard Rate]])),TableOutpatientRates[Standard Rate],INDEX(TableOutpatientHourlyRates[Hourly Rate],MATCH(\"PSY Group\",TableOutpatientHourlyRates[Group Name],0))/60*TableOutpatientRates[[#This Row],[Minutes for Rate]]),\"\")","v":""},{"$f":"IF(TableOutpatientRates[[#This Row],[PT Group Allowed]]=\"Y\",IF(NOT(ISBLANK(TableOutpatientRates[[#This Row],[Standard Rate]])),TableOutpatientRates[Standard Rate],INDEX(TableOutpatientHourlyRates[Hourly Rate],MATCH(\"PT Group\",TableOutpatientHourlyRates[Group Name],0))/60*TableOutpatientRates[[#This Row],[Minutes for Rate]]),\"\")","v":""},{"$f":"IF(TableOutpatientRates[[#This Row],[RN Group Allowed]]=\"Y\",IF(NOT(ISBLANK(TableOutpatientRates[[#This Row],[Standard Rate]])),TableOutpatientRates[Standard Rate],INDEX(TableOutpatientHourlyRates[Hourly Rate],MATCH(\"RN Group\",TableOutpatientHourlyRates[Group Name],0))/60*TableOutpatientRates[[#This Row],[Minutes for Rate]]),\"\")","v":""}]
["99341","Home Visit of a New Patient, 15-25 Minutes","22","","","","","Y","Y","","","Y","","","","",null,{"$f":"IF(TableOutpatientRates[[#This Row],[AOD Group Allowed]]=\"Y\",IF(NOT(ISBLANK(TableOutpatientRates[[#This Row],[Standard Rate]])),TableOutpatientRates[Standard Rate],INDEX(TableOutpatientHourlyRates[Hourly Rate],MATCH(\"AOD Group\",TableOutpatientHourlyRates[Group Name],0))/60*TableOutpatientRates[[#This Row],[Minutes for Rate]]),\"\")","v":""},{"$f":"IF(TableOutpatientRates[[#This Row],[LPHA Group Allowed]]=\"Y\",IF(NOT(ISBLANK(TableOutpatientRates[[#This Row],[Standard Rate]])),TableOutpatientRates[Standard Rate],INDEX(TableOutpatientHourlyRates[Hourly Rate],MATCH(\"LPHA Group\",TableOutpatientHourlyRates[Group Name],0))/60*TableOutpatientRates[[#This Row],[Minutes for Rate]]),\"\")","v":""},{"$f":"IF(TableOutpatientRates[[#This Row],[LVN Group Allowed]]=\"Y\",IF(NOT(ISBLANK(TableOutpatientRates[[#This Row],[Standard Rate]])),TableOutpatientRates[Standard Rate],INDEX(TableOutpatientHourlyRates[Hourly Rate],MATCH(\"LVN Group\",TableOutpatientHourlyRates[Group Name],0))/60*TableOutpatientRates[[#This Row],[Minutes for Rate]]),\"\")","v":""},{"$f":"IF(TableOutpatientRates[[#This Row],[MA Group Allowed]]=\"Y\",IF(NOT(ISBLANK(TableOutpatientRates[[#This Row],[Standard Rate]])),TableOutpatientRates[Standard Rate],INDEX(TableOutpatientHourlyRates[Hourly Rate],MATCH(\"MA Group\",TableOutpatientHourlyRates[Group Name],0))/60*TableOutpatientRates[[#This Row],[Minutes for Rate]]),\"\")","v":""},{"$f":"IF(TableOutpatientRates[[#This Row],[MD Group Allowed]]=\"Y\",IF(NOT(ISBLANK(TableOutpatientRates[[#This Row],[Standard Rate]])),TableOutpatientRates[Standard Rate],INDEX(TableOutpatientHourlyRates[Hourly Rate],MATCH(\"MD Group\",TableOutpatientHourlyRates[Group Name],0))/60*TableOutpatientRates[[#This Row],[Minutes for Rate]]),\"\")","v":51.333333333333336},{"$f":"IF(TableOutpatientRates[[#This Row],[NP Group Allowed]]=\"Y\",IF(NOT(ISBLANK(TableOutpatientRates[[#This Row],[Standard Rate]])),TableOutpatientRates[Standard Rate],INDEX(TableOutpatientHourlyRates[Hourly Rate],MATCH(\"NP Group\",TableOutpatientHourlyRates[Group Name],0))/60*TableOutpatientRates[[#This Row],[Minutes for Rate]]),\"\")","v":55},{"$f":"IF(TableOutpatientRates[[#This Row],[OT Group Allowed]]=\"Y\",IF(NOT(ISBLANK(TableOutpatientRates[[#This Row],[Standard Rate]])),TableOutpatientRates[Standard Rate],INDEX(TableOutpatientHourlyRates[Hourly Rate],MATCH(\"OT Group\",TableOutpatientHourlyRates[Group Name],0))/60*TableOutpatientRates[[#This Row],[Minutes for Rate]]),\"\")","v":""},{"$f":"IF(TableOutpatientRates[[#This Row],[PA Group Allowed]]=\"Y\",IF(NOT(ISBLANK(TableOutpatientRates[[#This Row],[Standard Rate]])),TableOutpatientRates[Standard Rate],INDEX(TableOutpatientHourlyRates[Hourly Rate],MATCH(\"PA Group\",TableOutpatientHourlyRates[Group Name],0))/60*TableOutpatientRates[[#This Row],[Minutes for Rate]]),\"\")","v":62.333333333333336},{"$f":"IF(TableOutpatientRates[[#This Row],[PEER Group Allowed]]=\"Y\",IF(NOT(ISBLANK(TableOutpatientRates[[#This Row],[Standard Rate]])),TableOutpatientRates[Standard Rate],INDEX(TableOutpatientHourlyRates[Hourly Rate],MATCH(\"PEER Group\",TableOutpatientHourlyRates[Group Name],0))/60*TableOutpatientRates[[#This Row],[Minutes for Rate]]),\"\")","v":""},{"$f":"IF(TableOutpatientRates[[#This Row],[PHARM Group Allowed]]=\"Y\",IF(NOT(ISBLANK(TableOutpatientRates[[#This Row],[Standard Rate]])),TableOutpatientRates[Standard Rate],INDEX(TableOutpatientHourlyRates[Hourly Rate],MATCH(\"PHARM Group\",TableOutpatientHourlyRates[Group Name],0))/60*TableOutpatientRates[[#This Row],[Minutes for Rate]]),\"\")","v":""},{"$f":"IF(TableOutpatientRates[[#This Row],[PSY Group Allowed]]=\"Y\",IF(NOT(ISBLANK(TableOutpatientRates[[#This Row],[Standard Rate]])),TableOutpatientRates[Standard Rate],INDEX(TableOutpatientHourlyRates[Hourly Rate],MATCH(\"PSY Group\",TableOutpatientHourlyRates[Group Name],0))/60*TableOutpatientRates[[#This Row],[Minutes for Rate]]),\"\")","v":""},{"$f":"IF(TableOutpatientRates[[#This Row],[PT Group Allowed]]=\"Y\",IF(NOT(ISBLANK(TableOutpatientRates[[#This Row],[Standard Rate]])),TableOutpatientRates[Standard Rate],INDEX(TableOutpatientHourlyRates[Hourly Rate],MATCH(\"PT Group\",TableOutpatientHourlyRates[Group Name],0))/60*TableOutpatientRates[[#This Row],[Minutes for Rate]]),\"\")","v":""},{"$f":"IF(TableOutpatientRates[[#This Row],[RN Group Allowed]]=\"Y\",IF(NOT(ISBLANK(TableOutpatientRates[[#This Row],[Standard Rate]])),TableOutpatientRates[Standard Rate],INDEX(TableOutpatientHourlyRates[Hourly Rate],MATCH(\"RN Group\",TableOutpatientHourlyRates[Group Name],0))/60*TableOutpatientRates[[#This Row],[Minutes for Rate]]),\"\")","v":""}]
["99342","Home Visit of a New Patient, 26-35 Minutes","45","","","","","Y","Y","","","Y","","","","",null,{"$f":"IF(TableOutpatientRates[[#This Row],[AOD Group Allowed]]=\"Y\",IF(NOT(ISBLANK(TableOutpatientRates[[#This Row],[Standard Rate]])),TableOutpatientRates[Standard Rate],INDEX(TableOutpatientHourlyRates[Hourly Rate],MATCH(\"AOD Group\",TableOutpatientHourlyRates[Group Name],0))/60*TableOutpatientRates[[#This Row],[Minutes for Rate]]),\"\")","v":""},{"$f":"IF(TableOutpatientRates[[#This Row],[LPHA Group Allowed]]=\"Y\",IF(NOT(ISBLANK(TableOutpatientRates[[#This Row],[Standard Rate]])),TableOutpatientRates[Standard Rate],INDEX(TableOutpatientHourlyRates[Hourly Rate],MATCH(\"LPHA Group\",TableOutpatientHourlyRates[Group Name],0))/60*TableOutpatientRates[[#This Row],[Minutes for Rate]]),\"\")","v":""},{"$f":"IF(TableOutpatientRates[[#This Row],[LVN Group Allowed]]=\"Y\",IF(NOT(ISBLANK(TableOutpatientRates[[#This Row],[Standard Rate]])),TableOutpatientRates[Standard Rate],INDEX(TableOutpatientHourlyRates[Hourly Rate],MATCH(\"LVN Group\",TableOutpatientHourlyRates[Group Name],0))/60*TableOutpatientRates[[#This Row],[Minutes for Rate]]),\"\")","v":""},{"$f":"IF(TableOutpatientRates[[#This Row],[MA Group Allowed]]=\"Y\",IF(NOT(ISBLANK(TableOutpatientRates[[#This Row],[Standard Rate]])),TableOutpatientRates[Standard Rate],INDEX(TableOutpatientHourlyRates[Hourly Rate],MATCH(\"MA Group\",TableOutpatientHourlyRates[Group Name],0))/60*TableOutpatientRates[[#This Row],[Minutes for Rate]]),\"\")","v":""},{"$f":"IF(TableOutpatientRates[[#This Row],[MD Group Allowed]]=\"Y\",IF(NOT(ISBLANK(TableOutpatientRates[[#This Row],[Standard Rate]])),TableOutpatientRates[Standard Rate],INDEX(TableOutpatientHourlyRates[Hourly Rate],MATCH(\"MD Group\",TableOutpatientHourlyRates[Group Name],0))/60*TableOutpatientRates[[#This Row],[Minutes for Rate]]),\"\")","v":105},{"$f":"IF(TableOutpatientRates[[#This Row],[NP Group Allowed]]=\"Y\",IF(NOT(ISBLANK(TableOutpatientRates[[#This Row],[Standard Rate]])),TableOutpatientRates[Standard Rate],INDEX(TableOutpatientHourlyRates[Hourly Rate],MATCH(\"NP Group\",TableOutpatientHourlyRates[Group Name],0))/60*TableOutpatientRates[[#This Row],[Minutes for Rate]]),\"\")","v":112.5},{"$f":"IF(TableOutpatientRates[[#This Row],[OT Group Allowed]]=\"Y\",IF(NOT(ISBLANK(TableOutpatientRates[[#This Row],[Standard Rate]])),TableOutpatientRates[Standard Rate],INDEX(TableOutpatientHourlyRates[Hourly Rate],MATCH(\"OT Group\",TableOutpatientHourlyRates[Group Name],0))/60*TableOutpatientRates[[#This Row],[Minutes for Rate]]),\"\")","v":""},{"$f":"IF(TableOutpatientRates[[#This Row],[PA Group Allowed]]=\"Y\",IF(NOT(ISBLANK(TableOutpatientRates[[#This Row],[Standard Rate]])),TableOutpatientRates[Standard Rate],INDEX(TableOutpatientHourlyRates[Hourly Rate],MATCH(\"PA Group\",TableOutpatientHourlyRates[Group Name],0))/60*TableOutpatientRates[[#This Row],[Minutes for Rate]]),\"\")","v":127.5},{"$f":"IF(TableOutpatientRates[[#This Row],[PEER Group Allowed]]=\"Y\",IF(NOT(ISBLANK(TableOutpatientRates[[#This Row],[Standard Rate]])),TableOutpatientRates[Standard Rate],INDEX(TableOutpatientHourlyRates[Hourly Rate],MATCH(\"PEER Group\",TableOutpatientHourlyRates[Group Name],0))/60*TableOutpatientRates[[#This Row],[Minutes for Rate]]),\"\")","v":""},{"$f":"IF(TableOutpatientRates[[#This Row],[PHARM Group Allowed]]=\"Y\",IF(NOT(ISBLANK(TableOutpatientRates[[#This Row],[Standard Rate]])),TableOutpatientRates[Standard Rate],INDEX(TableOutpatientHourlyRates[Hourly Rate],MATCH(\"PHARM Group\",TableOutpatientHourlyRates[Group Name],0))/60*TableOutpatientRates[[#This Row],[Minutes for Rate]]),\"\")","v":""},{"$f":"IF(TableOutpatientRates[[#This Row],[PSY Group Allowed]]=\"Y\",IF(NOT(ISBLANK(TableOutpatientRates[[#This Row],[Standard Rate]])),TableOutpatientRates[Standard Rate],INDEX(TableOutpatientHourlyRates[Hourly Rate],MATCH(\"PSY Group\",TableOutpatientHourlyRates[Group Name],0))/60*TableOutpatientRates[[#This Row],[Minutes for Rate]]),\"\")","v":""},{"$f":"IF(TableOutpatientRates[[#This Row],[PT Group Allowed]]=\"Y\",IF(NOT(ISBLANK(TableOutpatientRates[[#This Row],[Standard Rate]])),TableOutpatientRates[Standard Rate],INDEX(TableOutpatientHourlyRates[Hourly Rate],MATCH(\"PT Group\",TableOutpatientHourlyRates[Group Name],0))/60*TableOutpatientRates[[#This Row],[Minutes for Rate]]),\"\")","v":""},{"$f":"IF(TableOutpatientRates[[#This Row],[RN Group Allowed]]=\"Y\",IF(NOT(ISBLANK(TableOutpatientRates[[#This Row],[Standard Rate]])),TableOutpatientRates[Standard Rate],INDEX(TableOutpatientHourlyRates[Hourly Rate],MATCH(\"RN Group\",TableOutpatientHourlyRates[Group Name],0))/60*TableOutpatientRates[[#This Row],[Minutes for Rate]]),\"\")","v":""}]
["99344","Home Visit of a New Patient, 51-65 Minutes","67","","","","","Y","Y","","","Y","","","","",null,{"$f":"IF(TableOutpatientRates[[#This Row],[AOD Group Allowed]]=\"Y\",IF(NOT(ISBLANK(TableOutpatientRates[[#This Row],[Standard Rate]])),TableOutpatientRates[Standard Rate],INDEX(TableOutpatientHourlyRates[Hourly Rate],MATCH(\"AOD Group\",TableOutpatientHourlyRates[Group Name],0))/60*TableOutpatientRates[[#This Row],[Minutes for Rate]]),\"\")","v":""},{"$f":"IF(TableOutpatientRates[[#This Row],[LPHA Group Allowed]]=\"Y\",IF(NOT(ISBLANK(TableOutpatientRates[[#This Row],[Standard Rate]])),TableOutpatientRates[Standard Rate],INDEX(TableOutpatientHourlyRates[Hourly Rate],MATCH(\"LPHA Group\",TableOutpatientHourlyRates[Group Name],0))/60*TableOutpatientRates[[#This Row],[Minutes for Rate]]),\"\")","v":""},{"$f":"IF(TableOutpatientRates[[#This Row],[LVN Group Allowed]]=\"Y\",IF(NOT(ISBLANK(TableOutpatientRates[[#This Row],[Standard Rate]])),TableOutpatientRates[Standard Rate],INDEX(TableOutpatientHourlyRates[Hourly Rate],MATCH(\"LVN Group\",TableOutpatientHourlyRates[Group Name],0))/60*TableOutpatientRates[[#This Row],[Minutes for Rate]]),\"\")","v":""},{"$f":"IF(TableOutpatientRates[[#This Row],[MA Group Allowed]]=\"Y\",IF(NOT(ISBLANK(TableOutpatientRates[[#This Row],[Standard Rate]])),TableOutpatientRates[Standard Rate],INDEX(TableOutpatientHourlyRates[Hourly Rate],MATCH(\"MA Group\",TableOutpatientHourlyRates[Group Name],0))/60*TableOutpatientRates[[#This Row],[Minutes for Rate]]),\"\")","v":""},{"$f":"IF(TableOutpatientRates[[#This Row],[MD Group Allowed]]=\"Y\",IF(NOT(ISBLANK(TableOutpatientRates[[#This Row],[Standard Rate]])),TableOutpatientRates[Standard Rate],INDEX(TableOutpatientHourlyRates[Hourly Rate],MATCH(\"MD Group\",TableOutpatientHourlyRates[Group Name],0))/60*TableOutpatientRates[[#This Row],[Minutes for Rate]]),\"\")","v":156.33333333333334},{"$f":"IF(TableOutpatientRates[[#This Row],[NP Group Allowed]]=\"Y\",IF(NOT(ISBLANK(TableOutpatientRates[[#This Row],[Standard Rate]])),TableOutpatientRates[Standard Rate],INDEX(TableOutpatientHourlyRates[Hourly Rate],MATCH(\"NP Group\",TableOutpatientHourlyRates[Group Name],0))/60*TableOutpatientRates[[#This Row],[Minutes for Rate]]),\"\")","v":167.5},{"$f":"IF(TableOutpatientRates[[#This Row],[OT Group Allowed]]=\"Y\",IF(NOT(ISBLANK(TableOutpatientRates[[#This Row],[Standard Rate]])),TableOutpatientRates[Standard Rate],INDEX(TableOutpatientHourlyRates[Hourly Rate],MATCH(\"OT Group\",TableOutpatientHourlyRates[Group Name],0))/60*TableOutpatientRates[[#This Row],[Minutes for Rate]]),\"\")","v":""},{"$f":"IF(TableOutpatientRates[[#This Row],[PA Group Allowed]]=\"Y\",IF(NOT(ISBLANK(TableOutpatientRates[[#This Row],[Standard Rate]])),TableOutpatientRates[Standard Rate],INDEX(TableOutpatientHourlyRates[Hourly Rate],MATCH(\"PA Group\",TableOutpatientHourlyRates[Group Name],0))/60*TableOutpatientRates[[#This Row],[Minutes for Rate]]),\"\")","v":189.83333333333334},{"$f":"IF(TableOutpatientRates[[#This Row],[PEER Group Allowed]]=\"Y\",IF(NOT(ISBLANK(TableOutpatientRates[[#This Row],[Standard Rate]])),TableOutpatientRates[Standard Rate],INDEX(TableOutpatientHourlyRates[Hourly Rate],MATCH(\"PEER Group\",TableOutpatientHourlyRates[Group Name],0))/60*TableOutpatientRates[[#This Row],[Minutes for Rate]]),\"\")","v":""},{"$f":"IF(TableOutpatientRates[[#This Row],[PHARM Group Allowed]]=\"Y\",IF(NOT(ISBLANK(TableOutpatientRates[[#This Row],[Standard Rate]])),TableOutpatientRates[Standard Rate],INDEX(TableOutpatientHourlyRates[Hourly Rate],MATCH(\"PHARM Group\",TableOutpatientHourlyRates[Group Name],0))/60*TableOutpatientRates[[#This Row],[Minutes for Rate]]),\"\")","v":""},{"$f":"IF(TableOutpatientRates[[#This Row],[PSY Group Allowed]]=\"Y\",IF(NOT(ISBLANK(TableOutpatientRates[[#This Row],[Standard Rate]])),TableOutpatientRates[Standard Rate],INDEX(TableOutpatientHourlyRates[Hourly Rate],MATCH(\"PSY Group\",TableOutpatientHourlyRates[Group Name],0))/60*TableOutpatientRates[[#This Row],[Minutes for Rate]]),\"\")","v":""},{"$f":"IF(TableOutpatientRates[[#This Row],[PT Group Allowed]]=\"Y\",IF(NOT(ISBLANK(TableOutpatientRates[[#This Row],[Standard Rate]])),TableOutpatientRates[Standard Rate],INDEX(TableOutpatientHourlyRates[Hourly Rate],MATCH(\"PT Group\",TableOutpatientHourlyRates[Group Name],0))/60*TableOutpatientRates[[#This Row],[Minutes for Rate]]),\"\")","v":""},{"$f":"IF(TableOutpatientRates[[#This Row],[RN Group Allowed]]=\"Y\",IF(NOT(ISBLANK(TableOutpatientRates[[#This Row],[Standard Rate]])),TableOutpatientRates[Standard Rate],INDEX(TableOutpatientHourlyRates[Hourly Rate],MATCH(\"RN Group\",TableOutpatientHourlyRates[Group Name],0))/60*TableOutpatientRates[[#This Row],[Minutes for Rate]]),\"\")","v":""}]
["99345","Home Visit of a New Patient, 66-80 Minutes","82","","","","","Y","Y","","","Y","","","","",null,{"$f":"IF(TableOutpatientRates[[#This Row],[AOD Group Allowed]]=\"Y\",IF(NOT(ISBLANK(TableOutpatientRates[[#This Row],[Standard Rate]])),TableOutpatientRates[Standard Rate],INDEX(TableOutpatientHourlyRates[Hourly Rate],MATCH(\"AOD Group\",TableOutpatientHourlyRates[Group Name],0))/60*TableOutpatientRates[[#This Row],[Minutes for Rate]]),\"\")","v":""},{"$f":"IF(TableOutpatientRates[[#This Row],[LPHA Group Allowed]]=\"Y\",IF(NOT(ISBLANK(TableOutpatientRates[[#This Row],[Standard Rate]])),TableOutpatientRates[Standard Rate],INDEX(TableOutpatientHourlyRates[Hourly Rate],MATCH(\"LPHA Group\",TableOutpatientHourlyRates[Group Name],0))/60*TableOutpatientRates[[#This Row],[Minutes for Rate]]),\"\")","v":""},{"$f":"IF(TableOutpatientRates[[#This Row],[LVN Group Allowed]]=\"Y\",IF(NOT(ISBLANK(TableOutpatientRates[[#This Row],[Standard Rate]])),TableOutpatientRates[Standard Rate],INDEX(TableOutpatientHourlyRates[Hourly Rate],MATCH(\"LVN Group\",TableOutpatientHourlyRates[Group Name],0))/60*TableOutpatientRates[[#This Row],[Minutes for Rate]]),\"\")","v":""},{"$f":"IF(TableOutpatientRates[[#This Row],[MA Group Allowed]]=\"Y\",IF(NOT(ISBLANK(TableOutpatientRates[[#This Row],[Standard Rate]])),TableOutpatientRates[Standard Rate],INDEX(TableOutpatientHourlyRates[Hourly Rate],MATCH(\"MA Group\",TableOutpatientHourlyRates[Group Name],0))/60*TableOutpatientRates[[#This Row],[Minutes for Rate]]),\"\")","v":""},{"$f":"IF(TableOutpatientRates[[#This Row],[MD Group Allowed]]=\"Y\",IF(NOT(ISBLANK(TableOutpatientRates[[#This Row],[Standard Rate]])),TableOutpatientRates[Standard Rate],INDEX(TableOutpatientHourlyRates[Hourly Rate],MATCH(\"MD Group\",TableOutpatientHourlyRates[Group Name],0))/60*TableOutpatientRates[[#This Row],[Minutes for Rate]]),\"\")","v":191.33333333333334},{"$f":"IF(TableOutpatientRates[[#This Row],[NP Group Allowed]]=\"Y\",IF(NOT(ISBLANK(TableOutpatientRates[[#This Row],[Standard Rate]])),TableOutpatientRates[Standard Rate],INDEX(TableOutpatientHourlyRates[Hourly Rate],MATCH(\"NP Group\",TableOutpatientHourlyRates[Group Name],0))/60*TableOutpatientRates[[#This Row],[Minutes for Rate]]),\"\")","v":205},{"$f":"IF(TableOutpatientRates[[#This Row],[OT Group Allowed]]=\"Y\",IF(NOT(ISBLANK(TableOutpatientRates[[#This Row],[Standard Rate]])),TableOutpatientRates[Standard Rate],INDEX(TableOutpatientHourlyRates[Hourly Rate],MATCH(\"OT Group\",TableOutpatientHourlyRates[Group Name],0))/60*TableOutpatientRates[[#This Row],[Minutes for Rate]]),\"\")","v":""},{"$f":"IF(TableOutpatientRates[[#This Row],[PA Group Allowed]]=\"Y\",IF(NOT(ISBLANK(TableOutpatientRates[[#This Row],[Standard Rate]])),TableOutpatientRates[Standard Rate],INDEX(TableOutpatientHourlyRates[Hourly Rate],MATCH(\"PA Group\",TableOutpatientHourlyRates[Group Name],0))/60*TableOutpatientRates[[#This Row],[Minutes for Rate]]),\"\")","v":232.33333333333334},{"$f":"IF(TableOutpatientRates[[#This Row],[PEER Group Allowed]]=\"Y\",IF(NOT(ISBLANK(TableOutpatientRates[[#This Row],[Standard Rate]])),TableOutpatientRates[Standard Rate],INDEX(TableOutpatientHourlyRates[Hourly Rate],MATCH(\"PEER Group\",TableOutpatientHourlyRates[Group Name],0))/60*TableOutpatientRates[[#This Row],[Minutes for Rate]]),\"\")","v":""},{"$f":"IF(TableOutpatientRates[[#This Row],[PHARM Group Allowed]]=\"Y\",IF(NOT(ISBLANK(TableOutpatientRates[[#This Row],[Standard Rate]])),TableOutpatientRates[Standard Rate],INDEX(TableOutpatientHourlyRates[Hourly Rate],MATCH(\"PHARM Group\",TableOutpatientHourlyRates[Group Name],0))/60*TableOutpatientRates[[#This Row],[Minutes for Rate]]),\"\")","v":""},{"$f":"IF(TableOutpatientRates[[#This Row],[PSY Group Allowed]]=\"Y\",IF(NOT(ISBLANK(TableOutpatientRates[[#This Row],[Standard Rate]])),TableOutpatientRates[Standard Rate],INDEX(TableOutpatientHourlyRates[Hourly Rate],MATCH(\"PSY Group\",TableOutpatientHourlyRates[Group Name],0))/60*TableOutpatientRates[[#This Row],[Minutes for Rate]]),\"\")","v":""},{"$f":"IF(TableOutpatientRates[[#This Row],[PT Group Allowed]]=\"Y\",IF(NOT(ISBLANK(TableOutpatientRates[[#This Row],[Standard Rate]])),TableOutpatientRates[Standard Rate],INDEX(TableOutpatientHourlyRates[Hourly Rate],MATCH(\"PT Group\",TableOutpatientHourlyRates[Group Name],0))/60*TableOutpatientRates[[#This Row],[Minutes for Rate]]),\"\")","v":""},{"$f":"IF(TableOutpatientRates[[#This Row],[RN Group Allowed]]=\"Y\",IF(NOT(ISBLANK(TableOutpatientRates[[#This Row],[Standard Rate]])),TableOutpatientRates[Standard Rate],INDEX(TableOutpatientHourlyRates[Hourly Rate],MATCH(\"RN Group\",TableOutpatientHourlyRates[Group Name],0))/60*TableOutpatientRates[[#This Row],[Minutes for Rate]]),\"\")","v":""}]
["99347","Home Visit of an Established Patient, 10-20 Minutes","25","","","","","Y","Y","","","Y","","","","",null,{"$f":"IF(TableOutpatientRates[[#This Row],[AOD Group Allowed]]=\"Y\",IF(NOT(ISBLANK(TableOutpatientRates[[#This Row],[Standard Rate]])),TableOutpatientRates[Standard Rate],INDEX(TableOutpatientHourlyRates[Hourly Rate],MATCH(\"AOD Group\",TableOutpatientHourlyRates[Group Name],0))/60*TableOutpatientRates[[#This Row],[Minutes for Rate]]),\"\")","v":""},{"$f":"IF(TableOutpatientRates[[#This Row],[LPHA Group Allowed]]=\"Y\",IF(NOT(ISBLANK(TableOutpatientRates[[#This Row],[Standard Rate]])),TableOutpatientRates[Standard Rate],INDEX(TableOutpatientHourlyRates[Hourly Rate],MATCH(\"LPHA Group\",TableOutpatientHourlyRates[Group Name],0))/60*TableOutpatientRates[[#This Row],[Minutes for Rate]]),\"\")","v":""},{"$f":"IF(TableOutpatientRates[[#This Row],[LVN Group Allowed]]=\"Y\",IF(NOT(ISBLANK(TableOutpatientRates[[#This Row],[Standard Rate]])),TableOutpatientRates[Standard Rate],INDEX(TableOutpatientHourlyRates[Hourly Rate],MATCH(\"LVN Group\",TableOutpatientHourlyRates[Group Name],0))/60*TableOutpatientRates[[#This Row],[Minutes for Rate]]),\"\")","v":""},{"$f":"IF(TableOutpatientRates[[#This Row],[MA Group Allowed]]=\"Y\",IF(NOT(ISBLANK(TableOutpatientRates[[#This Row],[Standard Rate]])),TableOutpatientRates[Standard Rate],INDEX(TableOutpatientHourlyRates[Hourly Rate],MATCH(\"MA Group\",TableOutpatientHourlyRates[Group Name],0))/60*TableOutpatientRates[[#This Row],[Minutes for Rate]]),\"\")","v":""},{"$f":"IF(TableOutpatientRates[[#This Row],[MD Group Allowed]]=\"Y\",IF(NOT(ISBLANK(TableOutpatientRates[[#This Row],[Standard Rate]])),TableOutpatientRates[Standard Rate],INDEX(TableOutpatientHourlyRates[Hourly Rate],MATCH(\"MD Group\",TableOutpatientHourlyRates[Group Name],0))/60*TableOutpatientRates[[#This Row],[Minutes for Rate]]),\"\")","v":58.333333333333336},{"$f":"IF(TableOutpatientRates[[#This Row],[NP Group Allowed]]=\"Y\",IF(NOT(ISBLANK(TableOutpatientRates[[#This Row],[Standard Rate]])),TableOutpatientRates[Standard Rate],INDEX(TableOutpatientHourlyRates[Hourly Rate],MATCH(\"NP Group\",TableOutpatientHourlyRates[Group Name],0))/60*TableOutpatientRates[[#This Row],[Minutes for Rate]]),\"\")","v":62.5},{"$f":"IF(TableOutpatientRates[[#This Row],[OT Group Allowed]]=\"Y\",IF(NOT(ISBLANK(TableOutpatientRates[[#This Row],[Standard Rate]])),TableOutpatientRates[Standard Rate],INDEX(TableOutpatientHourlyRates[Hourly Rate],MATCH(\"OT Group\",TableOutpatientHourlyRates[Group Name],0))/60*TableOutpatientRates[[#This Row],[Minutes for Rate]]),\"\")","v":""},{"$f":"IF(TableOutpatientRates[[#This Row],[PA Group Allowed]]=\"Y\",IF(NOT(ISBLANK(TableOutpatientRates[[#This Row],[Standard Rate]])),TableOutpatientRates[Standard Rate],INDEX(TableOutpatientHourlyRates[Hourly Rate],MATCH(\"PA Group\",TableOutpatientHourlyRates[Group Name],0))/60*TableOutpatientRates[[#This Row],[Minutes for Rate]]),\"\")","v":70.833333333333343},{"$f":"IF(TableOutpatientRates[[#This Row],[PEER Group Allowed]]=\"Y\",IF(NOT(ISBLANK(TableOutpatientRates[[#This Row],[Standard Rate]])),TableOutpatientRates[Standard Rate],INDEX(TableOutpatientHourlyRates[Hourly Rate],MATCH(\"PEER Group\",TableOutpatientHourlyRates[Group Name],0))/60*TableOutpatientRates[[#This Row],[Minutes for Rate]]),\"\")","v":""},{"$f":"IF(TableOutpatientRates[[#This Row],[PHARM Group Allowed]]=\"Y\",IF(NOT(ISBLANK(TableOutpatientRates[[#This Row],[Standard Rate]])),TableOutpatientRates[Standard Rate],INDEX(TableOutpatientHourlyRates[Hourly Rate],MATCH(\"PHARM Group\",TableOutpatientHourlyRates[Group Name],0))/60*TableOutpatientRates[[#This Row],[Minutes for Rate]]),\"\")","v":""},{"$f":"IF(TableOutpatientRates[[#This Row],[PSY Group Allowed]]=\"Y\",IF(NOT(ISBLANK(TableOutpatientRates[[#This Row],[Standard Rate]])),TableOutpatientRates[Standard Rate],INDEX(TableOutpatientHourlyRates[Hourly Rate],MATCH(\"PSY Group\",TableOutpatientHourlyRates[Group Name],0))/60*TableOutpatientRates[[#This Row],[Minutes for Rate]]),\"\")","v":""},{"$f":"IF(TableOutpatientRates[[#This Row],[PT Group Allowed]]=\"Y\",IF(NOT(ISBLANK(TableOutpatientRates[[#This Row],[Standard Rate]])),TableOutpatientRates[Standard Rate],INDEX(TableOutpatientHourlyRates[Hourly Rate],MATCH(\"PT Group\",TableOutpatientHourlyRates[Group Name],0))/60*TableOutpatientRates[[#This Row],[Minutes for Rate]]),\"\")","v":""},{"$f":"IF(TableOutpatientRates[[#This Row],[RN Group Allowed]]=\"Y\",IF(NOT(ISBLANK(TableOutpatientRates[[#This Row],[Standard Rate]])),TableOutpatientRates[Standard Rate],INDEX(TableOutpatientHourlyRates[Hourly Rate],MATCH(\"RN Group\",TableOutpatientHourlyRates[Group Name],0))/60*TableOutpatientRates[[#This Row],[Minutes for Rate]]),\"\")","v":""}]
["99348","Home Visit of an Established Patient, 21-35 Minutes","35","","","","","Y","Y","","","Y","","","","",null,{"$f":"IF(TableOutpatientRates[[#This Row],[AOD Group Allowed]]=\"Y\",IF(NOT(ISBLANK(TableOutpatientRates[[#This Row],[Standard Rate]])),TableOutpatientRates[Standard Rate],INDEX(TableOutpatientHourlyRates[Hourly Rate],MATCH(\"AOD Group\",TableOutpatientHourlyRates[Group Name],0))/60*TableOutpatientRates[[#This Row],[Minutes for Rate]]),\"\")","v":""},{"$f":"IF(TableOutpatientRates[[#This Row],[LPHA Group Allowed]]=\"Y\",IF(NOT(ISBLANK(TableOutpatientRates[[#This Row],[Standard Rate]])),TableOutpatientRates[Standard Rate],INDEX(TableOutpatientHourlyRates[Hourly Rate],MATCH(\"LPHA Group\",TableOutpatientHourlyRates[Group Name],0))/60*TableOutpatientRates[[#This Row],[Minutes for Rate]]),\"\")","v":""},{"$f":"IF(TableOutpatientRates[[#This Row],[LVN Group Allowed]]=\"Y\",IF(NOT(ISBLANK(TableOutpatientRates[[#This Row],[Standard Rate]])),TableOutpatientRates[Standard Rate],INDEX(TableOutpatientHourlyRates[Hourly Rate],MATCH(\"LVN Group\",TableOutpatientHourlyRates[Group Name],0))/60*TableOutpatientRates[[#This Row],[Minutes for Rate]]),\"\")","v":""},{"$f":"IF(TableOutpatientRates[[#This Row],[MA Group Allowed]]=\"Y\",IF(NOT(ISBLANK(TableOutpatientRates[[#This Row],[Standard Rate]])),TableOutpatientRates[Standard Rate],INDEX(TableOutpatientHourlyRates[Hourly Rate],MATCH(\"MA Group\",TableOutpatientHourlyRates[Group Name],0))/60*TableOutpatientRates[[#This Row],[Minutes for Rate]]),\"\")","v":""},{"$f":"IF(TableOutpatientRates[[#This Row],[MD Group Allowed]]=\"Y\",IF(NOT(ISBLANK(TableOutpatientRates[[#This Row],[Standard Rate]])),TableOutpatientRates[Standard Rate],INDEX(TableOutpatientHourlyRates[Hourly Rate],MATCH(\"MD Group\",TableOutpatientHourlyRates[Group Name],0))/60*TableOutpatientRates[[#This Row],[Minutes for Rate]]),\"\")","v":81.666666666666671},{"$f":"IF(TableOutpatientRates[[#This Row],[NP Group Allowed]]=\"Y\",IF(NOT(ISBLANK(TableOutpatientRates[[#This Row],[Standard Rate]])),TableOutpatientRates[Standard Rate],INDEX(TableOutpatientHourlyRates[Hourly Rate],MATCH(\"NP Group\",TableOutpatientHourlyRates[Group Name],0))/60*TableOutpatientRates[[#This Row],[Minutes for Rate]]),\"\")","v":87.5},{"$f":"IF(TableOutpatientRates[[#This Row],[OT Group Allowed]]=\"Y\",IF(NOT(ISBLANK(TableOutpatientRates[[#This Row],[Standard Rate]])),TableOutpatientRates[Standard Rate],INDEX(TableOutpatientHourlyRates[Hourly Rate],MATCH(\"OT Group\",TableOutpatientHourlyRates[Group Name],0))/60*TableOutpatientRates[[#This Row],[Minutes for Rate]]),\"\")","v":""},{"$f":"IF(TableOutpatientRates[[#This Row],[PA Group Allowed]]=\"Y\",IF(NOT(ISBLANK(TableOutpatientRates[[#This Row],[Standard Rate]])),TableOutpatientRates[Standard Rate],INDEX(TableOutpatientHourlyRates[Hourly Rate],MATCH(\"PA Group\",TableOutpatientHourlyRates[Group Name],0))/60*TableOutpatientRates[[#This Row],[Minutes for Rate]]),\"\")","v":99.166666666666671},{"$f":"IF(TableOutpatientRates[[#This Row],[PEER Group Allowed]]=\"Y\",IF(NOT(ISBLANK(TableOutpatientRates[[#This Row],[Standard Rate]])),TableOutpatientRates[Standard Rate],INDEX(TableOutpatientHourlyRates[Hourly Rate],MATCH(\"PEER Group\",TableOutpatientHourlyRates[Group Name],0))/60*TableOutpatientRates[[#This Row],[Minutes for Rate]]),\"\")","v":""},{"$f":"IF(TableOutpatientRates[[#This Row],[PHARM Group Allowed]]=\"Y\",IF(NOT(ISBLANK(TableOutpatientRates[[#This Row],[Standard Rate]])),TableOutpatientRates[Standard Rate],INDEX(TableOutpatientHourlyRates[Hourly Rate],MATCH(\"PHARM Group\",TableOutpatientHourlyRates[Group Name],0))/60*TableOutpatientRates[[#This Row],[Minutes for Rate]]),\"\")","v":""},{"$f":"IF(TableOutpatientRates[[#This Row],[PSY Group Allowed]]=\"Y\",IF(NOT(ISBLANK(TableOutpatientRates[[#This Row],[Standard Rate]])),TableOutpatientRates[Standard Rate],INDEX(TableOutpatientHourlyRates[Hourly Rate],MATCH(\"PSY Group\",TableOutpatientHourlyRates[Group Name],0))/60*TableOutpatientRates[[#This Row],[Minutes for Rate]]),\"\")","v":""},{"$f":"IF(TableOutpatientRates[[#This Row],[PT Group Allowed]]=\"Y\",IF(NOT(ISBLANK(TableOutpatientRates[[#This Row],[Standard Rate]])),TableOutpatientRates[Standard Rate],INDEX(TableOutpatientHourlyRates[Hourly Rate],MATCH(\"PT Group\",TableOutpatientHourlyRates[Group Name],0))/60*TableOutpatientRates[[#This Row],[Minutes for Rate]]),\"\")","v":""},{"$f":"IF(TableOutpatientRates[[#This Row],[RN Group Allowed]]=\"Y\",IF(NOT(ISBLANK(TableOutpatientRates[[#This Row],[Standard Rate]])),TableOutpatientRates[Standard Rate],INDEX(TableOutpatientHourlyRates[Hourly Rate],MATCH(\"RN Group\",TableOutpatientHourlyRates[Group Name],0))/60*TableOutpatientRates[[#This Row],[Minutes for Rate]]),\"\")","v":""}]
["99349","Home Visit of an Established Patient, 36-50 Minutes","50","","","","","Y","Y","","","Y","","","","",null,{"$f":"IF(TableOutpatientRates[[#This Row],[AOD Group Allowed]]=\"Y\",IF(NOT(ISBLANK(TableOutpatientRates[[#This Row],[Standard Rate]])),TableOutpatientRates[Standard Rate],INDEX(TableOutpatientHourlyRates[Hourly Rate],MATCH(\"AOD Group\",TableOutpatientHourlyRates[Group Name],0))/60*TableOutpatientRates[[#This Row],[Minutes for Rate]]),\"\")","v":""},{"$f":"IF(TableOutpatientRates[[#This Row],[LPHA Group Allowed]]=\"Y\",IF(NOT(ISBLANK(TableOutpatientRates[[#This Row],[Standard Rate]])),TableOutpatientRates[Standard Rate],INDEX(TableOutpatientHourlyRates[Hourly Rate],MATCH(\"LPHA Group\",TableOutpatientHourlyRates[Group Name],0))/60*TableOutpatientRates[[#This Row],[Minutes for Rate]]),\"\")","v":""},{"$f":"IF(TableOutpatientRates[[#This Row],[LVN Group Allowed]]=\"Y\",IF(NOT(ISBLANK(TableOutpatientRates[[#This Row],[Standard Rate]])),TableOutpatientRates[Standard Rate],INDEX(TableOutpatientHourlyRates[Hourly Rate],MATCH(\"LVN Group\",TableOutpatientHourlyRates[Group Name],0))/60*TableOutpatientRates[[#This Row],[Minutes for Rate]]),\"\")","v":""},{"$f":"IF(TableOutpatientRates[[#This Row],[MA Group Allowed]]=\"Y\",IF(NOT(ISBLANK(TableOutpatientRates[[#This Row],[Standard Rate]])),TableOutpatientRates[Standard Rate],INDEX(TableOutpatientHourlyRates[Hourly Rate],MATCH(\"MA Group\",TableOutpatientHourlyRates[Group Name],0))/60*TableOutpatientRates[[#This Row],[Minutes for Rate]]),\"\")","v":""},{"$f":"IF(TableOutpatientRates[[#This Row],[MD Group Allowed]]=\"Y\",IF(NOT(ISBLANK(TableOutpatientRates[[#This Row],[Standard Rate]])),TableOutpatientRates[Standard Rate],INDEX(TableOutpatientHourlyRates[Hourly Rate],MATCH(\"MD Group\",TableOutpatientHourlyRates[Group Name],0))/60*TableOutpatientRates[[#This Row],[Minutes for Rate]]),\"\")","v":116.66666666666667},{"$f":"IF(TableOutpatientRates[[#This Row],[NP Group Allowed]]=\"Y\",IF(NOT(ISBLANK(TableOutpatientRates[[#This Row],[Standard Rate]])),TableOutpatientRates[Standard Rate],INDEX(TableOutpatientHourlyRates[Hourly Rate],MATCH(\"NP Group\",TableOutpatientHourlyRates[Group Name],0))/60*TableOutpatientRates[[#This Row],[Minutes for Rate]]),\"\")","v":125},{"$f":"IF(TableOutpatientRates[[#This Row],[OT Group Allowed]]=\"Y\",IF(NOT(ISBLANK(TableOutpatientRates[[#This Row],[Standard Rate]])),TableOutpatientRates[Standard Rate],INDEX(TableOutpatientHourlyRates[Hourly Rate],MATCH(\"OT Group\",TableOutpatientHourlyRates[Group Name],0))/60*TableOutpatientRates[[#This Row],[Minutes for Rate]]),\"\")","v":""},{"$f":"IF(TableOutpatientRates[[#This Row],[PA Group Allowed]]=\"Y\",IF(NOT(ISBLANK(TableOutpatientRates[[#This Row],[Standard Rate]])),TableOutpatientRates[Standard Rate],INDEX(TableOutpatientHourlyRates[Hourly Rate],MATCH(\"PA Group\",TableOutpatientHourlyRates[Group Name],0))/60*TableOutpatientRates[[#This Row],[Minutes for Rate]]),\"\")","v":141.66666666666669},{"$f":"IF(TableOutpatientRates[[#This Row],[PEER Group Allowed]]=\"Y\",IF(NOT(ISBLANK(TableOutpatientRates[[#This Row],[Standard Rate]])),TableOutpatientRates[Standard Rate],INDEX(TableOutpatientHourlyRates[Hourly Rate],MATCH(\"PEER Group\",TableOutpatientHourlyRates[Group Name],0))/60*TableOutpatientRates[[#This Row],[Minutes for Rate]]),\"\")","v":""},{"$f":"IF(TableOutpatientRates[[#This Row],[PHARM Group Allowed]]=\"Y\",IF(NOT(ISBLANK(TableOutpatientRates[[#This Row],[Standard Rate]])),TableOutpatientRates[Standard Rate],INDEX(TableOutpatientHourlyRates[Hourly Rate],MATCH(\"PHARM Group\",TableOutpatientHourlyRates[Group Name],0))/60*TableOutpatientRates[[#This Row],[Minutes for Rate]]),\"\")","v":""},{"$f":"IF(TableOutpatientRates[[#This Row],[PSY Group Allowed]]=\"Y\",IF(NOT(ISBLANK(TableOutpatientRates[[#This Row],[Standard Rate]])),TableOutpatientRates[Standard Rate],INDEX(TableOutpatientHourlyRates[Hourly Rate],MATCH(\"PSY Group\",TableOutpatientHourlyRates[Group Name],0))/60*TableOutpatientRates[[#This Row],[Minutes for Rate]]),\"\")","v":""},{"$f":"IF(TableOutpatientRates[[#This Row],[PT Group Allowed]]=\"Y\",IF(NOT(ISBLANK(TableOutpatientRates[[#This Row],[Standard Rate]])),TableOutpatientRates[Standard Rate],INDEX(TableOutpatientHourlyRates[Hourly Rate],MATCH(\"PT Group\",TableOutpatientHourlyRates[Group Name],0))/60*TableOutpatientRates[[#This Row],[Minutes for Rate]]),\"\")","v":""},{"$f":"IF(TableOutpatientRates[[#This Row],[RN Group Allowed]]=\"Y\",IF(NOT(ISBLANK(TableOutpatientRates[[#This Row],[Standard Rate]])),TableOutpatientRates[Standard Rate],INDEX(TableOutpatientHourlyRates[Hourly Rate],MATCH(\"RN Group\",TableOutpatientHourlyRates[Group Name],0))/60*TableOutpatientRates[[#This Row],[Minutes for Rate]]),\"\")","v":""}]
["99350","Home Visit of an Established Patient, 51-70 Minutes","67","","","","","Y","Y","","","Y","","","","",null,{"$f":"IF(TableOutpatientRates[[#This Row],[AOD Group Allowed]]=\"Y\",IF(NOT(ISBLANK(TableOutpatientRates[[#This Row],[Standard Rate]])),TableOutpatientRates[Standard Rate],INDEX(TableOutpatientHourlyRates[Hourly Rate],MATCH(\"AOD Group\",TableOutpatientHourlyRates[Group Name],0))/60*TableOutpatientRates[[#This Row],[Minutes for Rate]]),\"\")","v":""},{"$f":"IF(TableOutpatientRates[[#This Row],[LPHA Group Allowed]]=\"Y\",IF(NOT(ISBLANK(TableOutpatientRates[[#This Row],[Standard Rate]])),TableOutpatientRates[Standard Rate],INDEX(TableOutpatientHourlyRates[Hourly Rate],MATCH(\"LPHA Group\",TableOutpatientHourlyRates[Group Name],0))/60*TableOutpatientRates[[#This Row],[Minutes for Rate]]),\"\")","v":""},{"$f":"IF(TableOutpatientRates[[#This Row],[LVN Group Allowed]]=\"Y\",IF(NOT(ISBLANK(TableOutpatientRates[[#This Row],[Standard Rate]])),TableOutpatientRates[Standard Rate],INDEX(TableOutpatientHourlyRates[Hourly Rate],MATCH(\"LVN Group\",TableOutpatientHourlyRates[Group Name],0))/60*TableOutpatientRates[[#This Row],[Minutes for Rate]]),\"\")","v":""},{"$f":"IF(TableOutpatientRates[[#This Row],[MA Group Allowed]]=\"Y\",IF(NOT(ISBLANK(TableOutpatientRates[[#This Row],[Standard Rate]])),TableOutpatientRates[Standard Rate],INDEX(TableOutpatientHourlyRates[Hourly Rate],MATCH(\"MA Group\",TableOutpatientHourlyRates[Group Name],0))/60*TableOutpatientRates[[#This Row],[Minutes for Rate]]),\"\")","v":""},{"$f":"IF(TableOutpatientRates[[#This Row],[MD Group Allowed]]=\"Y\",IF(NOT(ISBLANK(TableOutpatientRates[[#This Row],[Standard Rate]])),TableOutpatientRates[Standard Rate],INDEX(TableOutpatientHourlyRates[Hourly Rate],MATCH(\"MD Group\",TableOutpatientHourlyRates[Group Name],0))/60*TableOutpatientRates[[#This Row],[Minutes for Rate]]),\"\")","v":156.33333333333334},{"$f":"IF(TableOutpatientRates[[#This Row],[NP Group Allowed]]=\"Y\",IF(NOT(ISBLANK(TableOutpatientRates[[#This Row],[Standard Rate]])),TableOutpatientRates[Standard Rate],INDEX(TableOutpatientHourlyRates[Hourly Rate],MATCH(\"NP Group\",TableOutpatientHourlyRates[Group Name],0))/60*TableOutpatientRates[[#This Row],[Minutes for Rate]]),\"\")","v":167.5},{"$f":"IF(TableOutpatientRates[[#This Row],[OT Group Allowed]]=\"Y\",IF(NOT(ISBLANK(TableOutpatientRates[[#This Row],[Standard Rate]])),TableOutpatientRates[Standard Rate],INDEX(TableOutpatientHourlyRates[Hourly Rate],MATCH(\"OT Group\",TableOutpatientHourlyRates[Group Name],0))/60*TableOutpatientRates[[#This Row],[Minutes for Rate]]),\"\")","v":""},{"$f":"IF(TableOutpatientRates[[#This Row],[PA Group Allowed]]=\"Y\",IF(NOT(ISBLANK(TableOutpatientRates[[#This Row],[Standard Rate]])),TableOutpatientRates[Standard Rate],INDEX(TableOutpatientHourlyRates[Hourly Rate],MATCH(\"PA Group\",TableOutpatientHourlyRates[Group Name],0))/60*TableOutpatientRates[[#This Row],[Minutes for Rate]]),\"\")","v":189.83333333333334},{"$f":"IF(TableOutpatientRates[[#This Row],[PEER Group Allowed]]=\"Y\",IF(NOT(ISBLANK(TableOutpatientRates[[#This Row],[Standard Rate]])),TableOutpatientRates[Standard Rate],INDEX(TableOutpatientHourlyRates[Hourly Rate],MATCH(\"PEER Group\",TableOutpatientHourlyRates[Group Name],0))/60*TableOutpatientRates[[#This Row],[Minutes for Rate]]),\"\")","v":""},{"$f":"IF(TableOutpatientRates[[#This Row],[PHARM Group Allowed]]=\"Y\",IF(NOT(ISBLANK(TableOutpatientRates[[#This Row],[Standard Rate]])),TableOutpatientRates[Standard Rate],INDEX(TableOutpatientHourlyRates[Hourly Rate],MATCH(\"PHARM Group\",TableOutpatientHourlyRates[Group Name],0))/60*TableOutpatientRates[[#This Row],[Minutes for Rate]]),\"\")","v":""},{"$f":"IF(TableOutpatientRates[[#This Row],[PSY Group Allowed]]=\"Y\",IF(NOT(ISBLANK(TableOutpatientRates[[#This Row],[Standard Rate]])),TableOutpatientRates[Standard Rate],INDEX(TableOutpatientHourlyRates[Hourly Rate],MATCH(\"PSY Group\",TableOutpatientHourlyRates[Group Name],0))/60*TableOutpatientRates[[#This Row],[Minutes for Rate]]),\"\")","v":""},{"$f":"IF(TableOutpatientRates[[#This Row],[PT Group Allowed]]=\"Y\",IF(NOT(ISBLANK(TableOutpatientRates[[#This Row],[Standard Rate]])),TableOutpatientRates[Standard Rate],INDEX(TableOutpatientHourlyRates[Hourly Rate],MATCH(\"PT Group\",TableOutpatientHourlyRates[Group Name],0))/60*TableOutpatientRates[[#This Row],[Minutes for Rate]]),\"\")","v":""},{"$f":"IF(TableOutpatientRates[[#This Row],[RN Group Allowed]]=\"Y\",IF(NOT(ISBLANK(TableOutpatientRates[[#This Row],[Standard Rate]])),TableOutpatientRates[Standard Rate],INDEX(TableOutpatientHourlyRates[Hourly Rate],MATCH(\"RN Group\",TableOutpatientHourlyRates[Group Name],0))/60*TableOutpatientRates[[#This Row],[Minutes for Rate]]),\"\")","v":""}]
["99367","Medical Team Conference with Interdisciplinary Team of Health Care Professionals, Participation by Physician. Patient and/or Family not Present. 30 Minutes or More","60","","","","","Y","","","","","","","","",null,{"$f":"IF(TableOutpatientRates[[#This Row],[AOD Group Allowed]]=\"Y\",IF(NOT(ISBLANK(TableOutpatientRates[[#This Row],[Standard Rate]])),TableOutpatientRates[Standard Rate],INDEX(TableOutpatientHourlyRates[Hourly Rate],MATCH(\"AOD Group\",TableOutpatientHourlyRates[Group Name],0))/60*TableOutpatientRates[[#This Row],[Minutes for Rate]]),\"\")","v":""},{"$f":"IF(TableOutpatientRates[[#This Row],[LPHA Group Allowed]]=\"Y\",IF(NOT(ISBLANK(TableOutpatientRates[[#This Row],[Standard Rate]])),TableOutpatientRates[Standard Rate],INDEX(TableOutpatientHourlyRates[Hourly Rate],MATCH(\"LPHA Group\",TableOutpatientHourlyRates[Group Name],0))/60*TableOutpatientRates[[#This Row],[Minutes for Rate]]),\"\")","v":""},{"$f":"IF(TableOutpatientRates[[#This Row],[LVN Group Allowed]]=\"Y\",IF(NOT(ISBLANK(TableOutpatientRates[[#This Row],[Standard Rate]])),TableOutpatientRates[Standard Rate],INDEX(TableOutpatientHourlyRates[Hourly Rate],MATCH(\"LVN Group\",TableOutpatientHourlyRates[Group Name],0))/60*TableOutpatientRates[[#This Row],[Minutes for Rate]]),\"\")","v":""},{"$f":"IF(TableOutpatientRates[[#This Row],[MA Group Allowed]]=\"Y\",IF(NOT(ISBLANK(TableOutpatientRates[[#This Row],[Standard Rate]])),TableOutpatientRates[Standard Rate],INDEX(TableOutpatientHourlyRates[Hourly Rate],MATCH(\"MA Group\",TableOutpatientHourlyRates[Group Name],0))/60*TableOutpatientRates[[#This Row],[Minutes for Rate]]),\"\")","v":""},{"$f":"IF(TableOutpatientRates[[#This Row],[MD Group Allowed]]=\"Y\",IF(NOT(ISBLANK(TableOutpatientRates[[#This Row],[Standard Rate]])),TableOutpatientRates[Standard Rate],INDEX(TableOutpatientHourlyRates[Hourly Rate],MATCH(\"MD Group\",TableOutpatientHourlyRates[Group Name],0))/60*TableOutpatientRates[[#This Row],[Minutes for Rate]]),\"\")","v":140},{"$f":"IF(TableOutpatientRates[[#This Row],[NP Group Allowed]]=\"Y\",IF(NOT(ISBLANK(TableOutpatientRates[[#This Row],[Standard Rate]])),TableOutpatientRates[Standard Rate],INDEX(TableOutpatientHourlyRates[Hourly Rate],MATCH(\"NP Group\",TableOutpatientHourlyRates[Group Name],0))/60*TableOutpatientRates[[#This Row],[Minutes for Rate]]),\"\")","v":""},{"$f":"IF(TableOutpatientRates[[#This Row],[OT Group Allowed]]=\"Y\",IF(NOT(ISBLANK(TableOutpatientRates[[#This Row],[Standard Rate]])),TableOutpatientRates[Standard Rate],INDEX(TableOutpatientHourlyRates[Hourly Rate],MATCH(\"OT Group\",TableOutpatientHourlyRates[Group Name],0))/60*TableOutpatientRates[[#This Row],[Minutes for Rate]]),\"\")","v":""},{"$f":"IF(TableOutpatientRates[[#This Row],[PA Group Allowed]]=\"Y\",IF(NOT(ISBLANK(TableOutpatientRates[[#This Row],[Standard Rate]])),TableOutpatientRates[Standard Rate],INDEX(TableOutpatientHourlyRates[Hourly Rate],MATCH(\"PA Group\",TableOutpatientHourlyRates[Group Name],0))/60*TableOutpatientRates[[#This Row],[Minutes for Rate]]),\"\")","v":""},{"$f":"IF(TableOutpatientRates[[#This Row],[PEER Group Allowed]]=\"Y\",IF(NOT(ISBLANK(TableOutpatientRates[[#This Row],[Standard Rate]])),TableOutpatientRates[Standard Rate],INDEX(TableOutpatientHourlyRates[Hourly Rate],MATCH(\"PEER Group\",TableOutpatientHourlyRates[Group Name],0))/60*TableOutpatientRates[[#This Row],[Minutes for Rate]]),\"\")","v":""},{"$f":"IF(TableOutpatientRates[[#This Row],[PHARM Group Allowed]]=\"Y\",IF(NOT(ISBLANK(TableOutpatientRates[[#This Row],[Standard Rate]])),TableOutpatientRates[Standard Rate],INDEX(TableOutpatientHourlyRates[Hourly Rate],MATCH(\"PHARM Group\",TableOutpatientHourlyRates[Group Name],0))/60*TableOutpatientRates[[#This Row],[Minutes for Rate]]),\"\")","v":""},{"$f":"IF(TableOutpatientRates[[#This Row],[PSY Group Allowed]]=\"Y\",IF(NOT(ISBLANK(TableOutpatientRates[[#This Row],[Standard Rate]])),TableOutpatientRates[Standard Rate],INDEX(TableOutpatientHourlyRates[Hourly Rate],MATCH(\"PSY Group\",TableOutpatientHourlyRates[Group Name],0))/60*TableOutpatientRates[[#This Row],[Minutes for Rate]]),\"\")","v":""},{"$f":"IF(TableOutpatientRates[[#This Row],[PT Group Allowed]]=\"Y\",IF(NOT(ISBLANK(TableOutpatientRates[[#This Row],[Standard Rate]])),TableOutpatientRates[Standard Rate],INDEX(TableOutpatientHourlyRates[Hourly Rate],MATCH(\"PT Group\",TableOutpatientHourlyRates[Group Name],0))/60*TableOutpatientRates[[#This Row],[Minutes for Rate]]),\"\")","v":""},{"$f":"IF(TableOutpatientRates[[#This Row],[RN Group Allowed]]=\"Y\",IF(NOT(ISBLANK(TableOutpatientRates[[#This Row],[Standard Rate]])),TableOutpatientRates[Standard Rate],INDEX(TableOutpatientHourlyRates[Hourly Rate],MATCH(\"RN Group\",TableOutpatientHourlyRates[Group Name],0))/60*TableOutpatientRates[[#This Row],[Minutes for Rate]]),\"\")","v":""}]
["99368","Medical Team Conference with Interdisciplinary Team of Health Care Professionals, Participation by Non\u0002Physician. Patient and/or Family Not Present. 30 Minutes or More","60","","Y","","Y","","Y","","","Y","Y","","Y","Y",null,{"$f":"IF(TableOutpatientRates[[#This Row],[AOD Group Allowed]]=\"Y\",IF(NOT(ISBLANK(TableOutpatientRates[[#This Row],[Standard Rate]])),TableOutpatientRates[Standard Rate],INDEX(TableOutpatientHourlyRates[Hourly Rate],MATCH(\"AOD Group\",TableOutpatientHourlyRates[Group Name],0))/60*TableOutpatientRates[[#This Row],[Minutes for Rate]]),\"\")","v":""},{"$f":"IF(TableOutpatientRates[[#This Row],[LPHA Group Allowed]]=\"Y\",IF(NOT(ISBLANK(TableOutpatientRates[[#This Row],[Standard Rate]])),TableOutpatientRates[Standard Rate],INDEX(TableOutpatientHourlyRates[Hourly Rate],MATCH(\"LPHA Group\",TableOutpatientHourlyRates[Group Name],0))/60*TableOutpatientRates[[#This Row],[Minutes for Rate]]),\"\")","v":110},{"$f":"IF(TableOutpatientRates[[#This Row],[LVN Group Allowed]]=\"Y\",IF(NOT(ISBLANK(TableOutpatientRates[[#This Row],[Standard Rate]])),TableOutpatientRates[Standard Rate],INDEX(TableOutpatientHourlyRates[Hourly Rate],MATCH(\"LVN Group\",TableOutpatientHourlyRates[Group Name],0))/60*TableOutpatientRates[[#This Row],[Minutes for Rate]]),\"\")","v":""},{"$f":"IF(TableOutpatientRates[[#This Row],[MA Group Allowed]]=\"Y\",IF(NOT(ISBLANK(TableOutpatientRates[[#This Row],[Standard Rate]])),TableOutpatientRates[Standard Rate],INDEX(TableOutpatientHourlyRates[Hourly Rate],MATCH(\"MA Group\",TableOutpatientHourlyRates[Group Name],0))/60*TableOutpatientRates[[#This Row],[Minutes for Rate]]),\"\")","v":130},{"$f":"IF(TableOutpatientRates[[#This Row],[MD Group Allowed]]=\"Y\",IF(NOT(ISBLANK(TableOutpatientRates[[#This Row],[Standard Rate]])),TableOutpatientRates[Standard Rate],INDEX(TableOutpatientHourlyRates[Hourly Rate],MATCH(\"MD Group\",TableOutpatientHourlyRates[Group Name],0))/60*TableOutpatientRates[[#This Row],[Minutes for Rate]]),\"\")","v":""},{"$f":"IF(TableOutpatientRates[[#This Row],[NP Group Allowed]]=\"Y\",IF(NOT(ISBLANK(TableOutpatientRates[[#This Row],[Standard Rate]])),TableOutpatientRates[Standard Rate],INDEX(TableOutpatientHourlyRates[Hourly Rate],MATCH(\"NP Group\",TableOutpatientHourlyRates[Group Name],0))/60*TableOutpatientRates[[#This Row],[Minutes for Rate]]),\"\")","v":150},{"$f":"IF(TableOutpatientRates[[#This Row],[OT Group Allowed]]=\"Y\",IF(NOT(ISBLANK(TableOutpatientRates[[#This Row],[Standard Rate]])),TableOutpatientRates[Standard Rate],INDEX(TableOutpatientHourlyRates[Hourly Rate],MATCH(\"OT Group\",TableOutpatientHourlyRates[Group Name],0))/60*TableOutpatientRates[[#This Row],[Minutes for Rate]]),\"\")","v":""},{"$f":"IF(TableOutpatientRates[[#This Row],[PA Group Allowed]]=\"Y\",IF(NOT(ISBLANK(TableOutpatientRates[[#This Row],[Standard Rate]])),TableOutpatientRates[Standard Rate],INDEX(TableOutpatientHourlyRates[Hourly Rate],MATCH(\"PA Group\",TableOutpatientHourlyRates[Group Name],0))/60*TableOutpatientRates[[#This Row],[Minutes for Rate]]),\"\")","v":170},{"$f":"IF(TableOutpatientRates[[#This Row],[PEER Group Allowed]]=\"Y\",IF(NOT(ISBLANK(TableOutpatientRates[[#This Row],[Standard Rate]])),TableOutpatientRates[Standard Rate],INDEX(TableOutpatientHourlyRates[Hourly Rate],MATCH(\"PEER Group\",TableOutpatientHourlyRates[Group Name],0))/60*TableOutpatientRates[[#This Row],[Minutes for Rate]]),\"\")","v":""},{"$f":"IF(TableOutpatientRates[[#This Row],[PHARM Group Allowed]]=\"Y\",IF(NOT(ISBLANK(TableOutpatientRates[[#This Row],[Standard Rate]])),TableOutpatientRates[Standard Rate],INDEX(TableOutpatientHourlyRates[Hourly Rate],MATCH(\"PHARM Group\",TableOutpatientHourlyRates[Group Name],0))/60*TableOutpatientRates[[#This Row],[Minutes for Rate]]),\"\")","v":190},{"$f":"IF(TableOutpatientRates[[#This Row],[PSY Group Allowed]]=\"Y\",IF(NOT(ISBLANK(TableOutpatientRates[[#This Row],[Standard Rate]])),TableOutpatientRates[Standard Rate],INDEX(TableOutpatientHourlyRates[Hourly Rate],MATCH(\"PSY Group\",TableOutpatientHourlyRates[Group Name],0))/60*TableOutpatientRates[[#This Row],[Minutes for Rate]]),\"\")","v":200},{"$f":"IF(TableOutpatientRates[[#This Row],[PT Group Allowed]]=\"Y\",IF(NOT(ISBLANK(TableOutpatientRates[[#This Row],[Standard Rate]])),TableOutpatientRates[Standard Rate],INDEX(TableOutpatientHourlyRates[Hourly Rate],MATCH(\"PT Group\",TableOutpatientHourlyRates[Group Name],0))/60*TableOutpatientRates[[#This Row],[Minutes for Rate]]),\"\")","v":""},{"$f":"IF(TableOutpatientRates[[#This Row],[RN Group Allowed]]=\"Y\",IF(NOT(ISBLANK(TableOutpatientRates[[#This Row],[Standard Rate]])),TableOutpatientRates[Standard Rate],INDEX(TableOutpatientHourlyRates[Hourly Rate],MATCH(\"RN Group\",TableOutpatientHourlyRates[Group Name],0))/60*TableOutpatientRates[[#This Row],[Minutes for Rate]]),\"\")","v":220}]
["99408","Alcohol and/or substance (other than tobacco) abuse structural screening (e.g., AUDIT, DAST), and brief intervention (SBI) services. 15-30 minutes.","23","","","","","Y","Y","","","Y","","","","",null,{"$f":"IF(TableOutpatientRates[[#This Row],[AOD Group Allowed]]=\"Y\",IF(NOT(ISBLANK(TableOutpatientRates[[#This Row],[Standard Rate]])),TableOutpatientRates[Standard Rate],INDEX(TableOutpatientHourlyRates[Hourly Rate],MATCH(\"AOD Group\",TableOutpatientHourlyRates[Group Name],0))/60*TableOutpatientRates[[#This Row],[Minutes for Rate]]),\"\")","v":""},{"$f":"IF(TableOutpatientRates[[#This Row],[LPHA Group Allowed]]=\"Y\",IF(NOT(ISBLANK(TableOutpatientRates[[#This Row],[Standard Rate]])),TableOutpatientRates[Standard Rate],INDEX(TableOutpatientHourlyRates[Hourly Rate],MATCH(\"LPHA Group\",TableOutpatientHourlyRates[Group Name],0))/60*TableOutpatientRates[[#This Row],[Minutes for Rate]]),\"\")","v":""},{"$f":"IF(TableOutpatientRates[[#This Row],[LVN Group Allowed]]=\"Y\",IF(NOT(ISBLANK(TableOutpatientRates[[#This Row],[Standard Rate]])),TableOutpatientRates[Standard Rate],INDEX(TableOutpatientHourlyRates[Hourly Rate],MATCH(\"LVN Group\",TableOutpatientHourlyRates[Group Name],0))/60*TableOutpatientRates[[#This Row],[Minutes for Rate]]),\"\")","v":""},{"$f":"IF(TableOutpatientRates[[#This Row],[MA Group Allowed]]=\"Y\",IF(NOT(ISBLANK(TableOutpatientRates[[#This Row],[Standard Rate]])),TableOutpatientRates[Standard Rate],INDEX(TableOutpatientHourlyRates[Hourly Rate],MATCH(\"MA Group\",TableOutpatientHourlyRates[Group Name],0))/60*TableOutpatientRates[[#This Row],[Minutes for Rate]]),\"\")","v":""},{"$f":"IF(TableOutpatientRates[[#This Row],[MD Group Allowed]]=\"Y\",IF(NOT(ISBLANK(TableOutpatientRates[[#This Row],[Standard Rate]])),TableOutpatientRates[Standard Rate],INDEX(TableOutpatientHourlyRates[Hourly Rate],MATCH(\"MD Group\",TableOutpatientHourlyRates[Group Name],0))/60*TableOutpatientRates[[#This Row],[Minutes for Rate]]),\"\")","v":53.666666666666671},{"$f":"IF(TableOutpatientRates[[#This Row],[NP Group Allowed]]=\"Y\",IF(NOT(ISBLANK(TableOutpatientRates[[#This Row],[Standard Rate]])),TableOutpatientRates[Standard Rate],INDEX(TableOutpatientHourlyRates[Hourly Rate],MATCH(\"NP Group\",TableOutpatientHourlyRates[Group Name],0))/60*TableOutpatientRates[[#This Row],[Minutes for Rate]]),\"\")","v":57.5},{"$f":"IF(TableOutpatientRates[[#This Row],[OT Group Allowed]]=\"Y\",IF(NOT(ISBLANK(TableOutpatientRates[[#This Row],[Standard Rate]])),TableOutpatientRates[Standard Rate],INDEX(TableOutpatientHourlyRates[Hourly Rate],MATCH(\"OT Group\",TableOutpatientHourlyRates[Group Name],0))/60*TableOutpatientRates[[#This Row],[Minutes for Rate]]),\"\")","v":""},{"$f":"IF(TableOutpatientRates[[#This Row],[PA Group Allowed]]=\"Y\",IF(NOT(ISBLANK(TableOutpatientRates[[#This Row],[Standard Rate]])),TableOutpatientRates[Standard Rate],INDEX(TableOutpatientHourlyRates[Hourly Rate],MATCH(\"PA Group\",TableOutpatientHourlyRates[Group Name],0))/60*TableOutpatientRates[[#This Row],[Minutes for Rate]]),\"\")","v":65.166666666666671},{"$f":"IF(TableOutpatientRates[[#This Row],[PEER Group Allowed]]=\"Y\",IF(NOT(ISBLANK(TableOutpatientRates[[#This Row],[Standard Rate]])),TableOutpatientRates[Standard Rate],INDEX(TableOutpatientHourlyRates[Hourly Rate],MATCH(\"PEER Group\",TableOutpatientHourlyRates[Group Name],0))/60*TableOutpatientRates[[#This Row],[Minutes for Rate]]),\"\")","v":""},{"$f":"IF(TableOutpatientRates[[#This Row],[PHARM Group Allowed]]=\"Y\",IF(NOT(ISBLANK(TableOutpatientRates[[#This Row],[Standard Rate]])),TableOutpatientRates[Standard Rate],INDEX(TableOutpatientHourlyRates[Hourly Rate],MATCH(\"PHARM Group\",TableOutpatientHourlyRates[Group Name],0))/60*TableOutpatientRates[[#This Row],[Minutes for Rate]]),\"\")","v":""},{"$f":"IF(TableOutpatientRates[[#This Row],[PSY Group Allowed]]=\"Y\",IF(NOT(ISBLANK(TableOutpatientRates[[#This Row],[Standard Rate]])),TableOutpatientRates[Standard Rate],INDEX(TableOutpatientHourlyRates[Hourly Rate],MATCH(\"PSY Group\",TableOutpatientHourlyRates[Group Name],0))/60*TableOutpatientRates[[#This Row],[Minutes for Rate]]),\"\")","v":""},{"$f":"IF(TableOutpatientRates[[#This Row],[PT Group Allowed]]=\"Y\",IF(NOT(ISBLANK(TableOutpatientRates[[#This Row],[Standard Rate]])),TableOutpatientRates[Standard Rate],INDEX(TableOutpatientHourlyRates[Hourly Rate],MATCH(\"PT Group\",TableOutpatientHourlyRates[Group Name],0))/60*TableOutpatientRates[[#This Row],[Minutes for Rate]]),\"\")","v":""},{"$f":"IF(TableOutpatientRates[[#This Row],[RN Group Allowed]]=\"Y\",IF(NOT(ISBLANK(TableOutpatientRates[[#This Row],[Standard Rate]])),TableOutpatientRates[Standard Rate],INDEX(TableOutpatientHourlyRates[Hourly Rate],MATCH(\"RN Group\",TableOutpatientHourlyRates[Group Name],0))/60*TableOutpatientRates[[#This Row],[Minutes for Rate]]),\"\")","v":""}]
["99409","Alcohol and/or substance (other than tobacco) abuse structural screening (e.g., AUDIT, DAST), and brief intervention (SBI) services. Greater than 30 minutes.","60","","","","","Y","Y","","","Y","","","","",null,{"$f":"IF(TableOutpatientRates[[#This Row],[AOD Group Allowed]]=\"Y\",IF(NOT(ISBLANK(TableOutpatientRates[[#This Row],[Standard Rate]])),TableOutpatientRates[Standard Rate],INDEX(TableOutpatientHourlyRates[Hourly Rate],MATCH(\"AOD Group\",TableOutpatientHourlyRates[Group Name],0))/60*TableOutpatientRates[[#This Row],[Minutes for Rate]]),\"\")","v":""},{"$f":"IF(TableOutpatientRates[[#This Row],[LPHA Group Allowed]]=\"Y\",IF(NOT(ISBLANK(TableOutpatientRates[[#This Row],[Standard Rate]])),TableOutpatientRates[Standard Rate],INDEX(TableOutpatientHourlyRates[Hourly Rate],MATCH(\"LPHA Group\",TableOutpatientHourlyRates[Group Name],0))/60*TableOutpatientRates[[#This Row],[Minutes for Rate]]),\"\")","v":""},{"$f":"IF(TableOutpatientRates[[#This Row],[LVN Group Allowed]]=\"Y\",IF(NOT(ISBLANK(TableOutpatientRates[[#This Row],[Standard Rate]])),TableOutpatientRates[Standard Rate],INDEX(TableOutpatientHourlyRates[Hourly Rate],MATCH(\"LVN Group\",TableOutpatientHourlyRates[Group Name],0))/60*TableOutpatientRates[[#This Row],[Minutes for Rate]]),\"\")","v":""},{"$f":"IF(TableOutpatientRates[[#This Row],[MA Group Allowed]]=\"Y\",IF(NOT(ISBLANK(TableOutpatientRates[[#This Row],[Standard Rate]])),TableOutpatientRates[Standard Rate],INDEX(TableOutpatientHourlyRates[Hourly Rate],MATCH(\"MA Group\",TableOutpatientHourlyRates[Group Name],0))/60*TableOutpatientRates[[#This Row],[Minutes for Rate]]),\"\")","v":""},{"$f":"IF(TableOutpatientRates[[#This Row],[MD Group Allowed]]=\"Y\",IF(NOT(ISBLANK(TableOutpatientRates[[#This Row],[Standard Rate]])),TableOutpatientRates[Standard Rate],INDEX(TableOutpatientHourlyRates[Hourly Rate],MATCH(\"MD Group\",TableOutpatientHourlyRates[Group Name],0))/60*TableOutpatientRates[[#This Row],[Minutes for Rate]]),\"\")","v":140},{"$f":"IF(TableOutpatientRates[[#This Row],[NP Group Allowed]]=\"Y\",IF(NOT(ISBLANK(TableOutpatientRates[[#This Row],[Standard Rate]])),TableOutpatientRates[Standard Rate],INDEX(TableOutpatientHourlyRates[Hourly Rate],MATCH(\"NP Group\",TableOutpatientHourlyRates[Group Name],0))/60*TableOutpatientRates[[#This Row],[Minutes for Rate]]),\"\")","v":150},{"$f":"IF(TableOutpatientRates[[#This Row],[OT Group Allowed]]=\"Y\",IF(NOT(ISBLANK(TableOutpatientRates[[#This Row],[Standard Rate]])),TableOutpatientRates[Standard Rate],INDEX(TableOutpatientHourlyRates[Hourly Rate],MATCH(\"OT Group\",TableOutpatientHourlyRates[Group Name],0))/60*TableOutpatientRates[[#This Row],[Minutes for Rate]]),\"\")","v":""},{"$f":"IF(TableOutpatientRates[[#This Row],[PA Group Allowed]]=\"Y\",IF(NOT(ISBLANK(TableOutpatientRates[[#This Row],[Standard Rate]])),TableOutpatientRates[Standard Rate],INDEX(TableOutpatientHourlyRates[Hourly Rate],MATCH(\"PA Group\",TableOutpatientHourlyRates[Group Name],0))/60*TableOutpatientRates[[#This Row],[Minutes for Rate]]),\"\")","v":170},{"$f":"IF(TableOutpatientRates[[#This Row],[PEER Group Allowed]]=\"Y\",IF(NOT(ISBLANK(TableOutpatientRates[[#This Row],[Standard Rate]])),TableOutpatientRates[Standard Rate],INDEX(TableOutpatientHourlyRates[Hourly Rate],MATCH(\"PEER Group\",TableOutpatientHourlyRates[Group Name],0))/60*TableOutpatientRates[[#This Row],[Minutes for Rate]]),\"\")","v":""},{"$f":"IF(TableOutpatientRates[[#This Row],[PHARM Group Allowed]]=\"Y\",IF(NOT(ISBLANK(TableOutpatientRates[[#This Row],[Standard Rate]])),TableOutpatientRates[Standard Rate],INDEX(TableOutpatientHourlyRates[Hourly Rate],MATCH(\"PHARM Group\",TableOutpatientHourlyRates[Group Name],0))/60*TableOutpatientRates[[#This Row],[Minutes for Rate]]),\"\")","v":""},{"$f":"IF(TableOutpatientRates[[#This Row],[PSY Group Allowed]]=\"Y\",IF(NOT(ISBLANK(TableOutpatientRates[[#This Row],[Standard Rate]])),TableOutpatientRates[Standard Rate],INDEX(TableOutpatientHourlyRates[Hourly Rate],MATCH(\"PSY Group\",TableOutpatientHourlyRates[Group Name],0))/60*TableOutpatientRates[[#This Row],[Minutes for Rate]]),\"\")","v":""},{"$f":"IF(TableOutpatientRates[[#This Row],[PT Group Allowed]]=\"Y\",IF(NOT(ISBLANK(TableOutpatientRates[[#This Row],[Standard Rate]])),TableOutpatientRates[Standard Rate],INDEX(TableOutpatientHourlyRates[Hourly Rate],MATCH(\"PT Group\",TableOutpatientHourlyRates[Group Name],0))/60*TableOutpatientRates[[#This Row],[Minutes for Rate]]),\"\")","v":""},{"$f":"IF(TableOutpatientRates[[#This Row],[RN Group Allowed]]=\"Y\",IF(NOT(ISBLANK(TableOutpatientRates[[#This Row],[Standard Rate]])),TableOutpatientRates[Standard Rate],INDEX(TableOutpatientHourlyRates[Hourly Rate],MATCH(\"RN Group\",TableOutpatientHourlyRates[Group Name],0))/60*TableOutpatientRates[[#This Row],[Minutes for Rate]]),\"\")","v":""}]
["99424","Principal care management services, for a single high-risk disease, first 30 minutes provided personally by a physician or other qualified health care professional, per calendar month. At least 30 minutes of service must be provided before 1 unit of","23","","","","","Y","Y","","","Y","","","","",null,{"$f":"IF(TableOutpatientRates[[#This Row],[AOD Group Allowed]]=\"Y\",IF(NOT(ISBLANK(TableOutpatientRates[[#This Row],[Standard Rate]])),TableOutpatientRates[Standard Rate],INDEX(TableOutpatientHourlyRates[Hourly Rate],MATCH(\"AOD Group\",TableOutpatientHourlyRates[Group Name],0))/60*TableOutpatientRates[[#This Row],[Minutes for Rate]]),\"\")","v":""},{"$f":"IF(TableOutpatientRates[[#This Row],[LPHA Group Allowed]]=\"Y\",IF(NOT(ISBLANK(TableOutpatientRates[[#This Row],[Standard Rate]])),TableOutpatientRates[Standard Rate],INDEX(TableOutpatientHourlyRates[Hourly Rate],MATCH(\"LPHA Group\",TableOutpatientHourlyRates[Group Name],0))/60*TableOutpatientRates[[#This Row],[Minutes for Rate]]),\"\")","v":""},{"$f":"IF(TableOutpatientRates[[#This Row],[LVN Group Allowed]]=\"Y\",IF(NOT(ISBLANK(TableOutpatientRates[[#This Row],[Standard Rate]])),TableOutpatientRates[Standard Rate],INDEX(TableOutpatientHourlyRates[Hourly Rate],MATCH(\"LVN Group\",TableOutpatientHourlyRates[Group Name],0))/60*TableOutpatientRates[[#This Row],[Minutes for Rate]]),\"\")","v":""},{"$f":"IF(TableOutpatientRates[[#This Row],[MA Group Allowed]]=\"Y\",IF(NOT(ISBLANK(TableOutpatientRates[[#This Row],[Standard Rate]])),TableOutpatientRates[Standard Rate],INDEX(TableOutpatientHourlyRates[Hourly Rate],MATCH(\"MA Group\",TableOutpatientHourlyRates[Group Name],0))/60*TableOutpatientRates[[#This Row],[Minutes for Rate]]),\"\")","v":""},{"$f":"IF(TableOutpatientRates[[#This Row],[MD Group Allowed]]=\"Y\",IF(NOT(ISBLANK(TableOutpatientRates[[#This Row],[Standard Rate]])),TableOutpatientRates[Standard Rate],INDEX(TableOutpatientHourlyRates[Hourly Rate],MATCH(\"MD Group\",TableOutpatientHourlyRates[Group Name],0))/60*TableOutpatientRates[[#This Row],[Minutes for Rate]]),\"\")","v":53.666666666666671},{"$f":"IF(TableOutpatientRates[[#This Row],[NP Group Allowed]]=\"Y\",IF(NOT(ISBLANK(TableOutpatientRates[[#This Row],[Standard Rate]])),TableOutpatientRates[Standard Rate],INDEX(TableOutpatientHourlyRates[Hourly Rate],MATCH(\"NP Group\",TableOutpatientHourlyRates[Group Name],0))/60*TableOutpatientRates[[#This Row],[Minutes for Rate]]),\"\")","v":57.5},{"$f":"IF(TableOutpatientRates[[#This Row],[OT Group Allowed]]=\"Y\",IF(NOT(ISBLANK(TableOutpatientRates[[#This Row],[Standard Rate]])),TableOutpatientRates[Standard Rate],INDEX(TableOutpatientHourlyRates[Hourly Rate],MATCH(\"OT Group\",TableOutpatientHourlyRates[Group Name],0))/60*TableOutpatientRates[[#This Row],[Minutes for Rate]]),\"\")","v":""},{"$f":"IF(TableOutpatientRates[[#This Row],[PA Group Allowed]]=\"Y\",IF(NOT(ISBLANK(TableOutpatientRates[[#This Row],[Standard Rate]])),TableOutpatientRates[Standard Rate],INDEX(TableOutpatientHourlyRates[Hourly Rate],MATCH(\"PA Group\",TableOutpatientHourlyRates[Group Name],0))/60*TableOutpatientRates[[#This Row],[Minutes for Rate]]),\"\")","v":65.166666666666671},{"$f":"IF(TableOutpatientRates[[#This Row],[PEER Group Allowed]]=\"Y\",IF(NOT(ISBLANK(TableOutpatientRates[[#This Row],[Standard Rate]])),TableOutpatientRates[Standard Rate],INDEX(TableOutpatientHourlyRates[Hourly Rate],MATCH(\"PEER Group\",TableOutpatientHourlyRates[Group Name],0))/60*TableOutpatientRates[[#This Row],[Minutes for Rate]]),\"\")","v":""},{"$f":"IF(TableOutpatientRates[[#This Row],[PHARM Group Allowed]]=\"Y\",IF(NOT(ISBLANK(TableOutpatientRates[[#This Row],[Standard Rate]])),TableOutpatientRates[Standard Rate],INDEX(TableOutpatientHourlyRates[Hourly Rate],MATCH(\"PHARM Group\",TableOutpatientHourlyRates[Group Name],0))/60*TableOutpatientRates[[#This Row],[Minutes for Rate]]),\"\")","v":""},{"$f":"IF(TableOutpatientRates[[#This Row],[PSY Group Allowed]]=\"Y\",IF(NOT(ISBLANK(TableOutpatientRates[[#This Row],[Standard Rate]])),TableOutpatientRates[Standard Rate],INDEX(TableOutpatientHourlyRates[Hourly Rate],MATCH(\"PSY Group\",TableOutpatientHourlyRates[Group Name],0))/60*TableOutpatientRates[[#This Row],[Minutes for Rate]]),\"\")","v":""},{"$f":"IF(TableOutpatientRates[[#This Row],[PT Group Allowed]]=\"Y\",IF(NOT(ISBLANK(TableOutpatientRates[[#This Row],[Standard Rate]])),TableOutpatientRates[Standard Rate],INDEX(TableOutpatientHourlyRates[Hourly Rate],MATCH(\"PT Group\",TableOutpatientHourlyRates[Group Name],0))/60*TableOutpatientRates[[#This Row],[Minutes for Rate]]),\"\")","v":""},{"$f":"IF(TableOutpatientRates[[#This Row],[RN Group Allowed]]=\"Y\",IF(NOT(ISBLANK(TableOutpatientRates[[#This Row],[Standard Rate]])),TableOutpatientRates[Standard Rate],INDEX(TableOutpatientHourlyRates[Hourly Rate],MATCH(\"RN Group\",TableOutpatientHourlyRates[Group Name],0))/60*TableOutpatientRates[[#This Row],[Minutes for Rate]]),\"\")","v":""}]
["99425","Principal care management services, for a single high-risk disease, each additional 30 minutes provided personally by a physician or other qualified health care professional, per calendar month. Code 99425 is reported in conjunction with 99424, when","30","","","","","Y","Y","","","Y","","","","",null,{"$f":"IF(TableOutpatientRates[[#This Row],[AOD Group Allowed]]=\"Y\",IF(NOT(ISBLANK(TableOutpatientRates[[#This Row],[Standard Rate]])),TableOutpatientRates[Standard Rate],INDEX(TableOutpatientHourlyRates[Hourly Rate],MATCH(\"AOD Group\",TableOutpatientHourlyRates[Group Name],0))/60*TableOutpatientRates[[#This Row],[Minutes for Rate]]),\"\")","v":""},{"$f":"IF(TableOutpatientRates[[#This Row],[LPHA Group Allowed]]=\"Y\",IF(NOT(ISBLANK(TableOutpatientRates[[#This Row],[Standard Rate]])),TableOutpatientRates[Standard Rate],INDEX(TableOutpatientHourlyRates[Hourly Rate],MATCH(\"LPHA Group\",TableOutpatientHourlyRates[Group Name],0))/60*TableOutpatientRates[[#This Row],[Minutes for Rate]]),\"\")","v":""},{"$f":"IF(TableOutpatientRates[[#This Row],[LVN Group Allowed]]=\"Y\",IF(NOT(ISBLANK(TableOutpatientRates[[#This Row],[Standard Rate]])),TableOutpatientRates[Standard Rate],INDEX(TableOutpatientHourlyRates[Hourly Rate],MATCH(\"LVN Group\",TableOutpatientHourlyRates[Group Name],0))/60*TableOutpatientRates[[#This Row],[Minutes for Rate]]),\"\")","v":""},{"$f":"IF(TableOutpatientRates[[#This Row],[MA Group Allowed]]=\"Y\",IF(NOT(ISBLANK(TableOutpatientRates[[#This Row],[Standard Rate]])),TableOutpatientRates[Standard Rate],INDEX(TableOutpatientHourlyRates[Hourly Rate],MATCH(\"MA Group\",TableOutpatientHourlyRates[Group Name],0))/60*TableOutpatientRates[[#This Row],[Minutes for Rate]]),\"\")","v":""},{"$f":"IF(TableOutpatientRates[[#This Row],[MD Group Allowed]]=\"Y\",IF(NOT(ISBLANK(TableOutpatientRates[[#This Row],[Standard Rate]])),TableOutpatientRates[Standard Rate],INDEX(TableOutpatientHourlyRates[Hourly Rate],MATCH(\"MD Group\",TableOutpatientHourlyRates[Group Name],0))/60*TableOutpatientRates[[#This Row],[Minutes for Rate]]),\"\")","v":70},{"$f":"IF(TableOutpatientRates[[#This Row],[NP Group Allowed]]=\"Y\",IF(NOT(ISBLANK(TableOutpatientRates[[#This Row],[Standard Rate]])),TableOutpatientRates[Standard Rate],INDEX(TableOutpatientHourlyRates[Hourly Rate],MATCH(\"NP Group\",TableOutpatientHourlyRates[Group Name],0))/60*TableOutpatientRates[[#This Row],[Minutes for Rate]]),\"\")","v":75},{"$f":"IF(TableOutpatientRates[[#This Row],[OT Group Allowed]]=\"Y\",IF(NOT(ISBLANK(TableOutpatientRates[[#This Row],[Standard Rate]])),TableOutpatientRates[Standard Rate],INDEX(TableOutpatientHourlyRates[Hourly Rate],MATCH(\"OT Group\",TableOutpatientHourlyRates[Group Name],0))/60*TableOutpatientRates[[#This Row],[Minutes for Rate]]),\"\")","v":""},{"$f":"IF(TableOutpatientRates[[#This Row],[PA Group Allowed]]=\"Y\",IF(NOT(ISBLANK(TableOutpatientRates[[#This Row],[Standard Rate]])),TableOutpatientRates[Standard Rate],INDEX(TableOutpatientHourlyRates[Hourly Rate],MATCH(\"PA Group\",TableOutpatientHourlyRates[Group Name],0))/60*TableOutpatientRates[[#This Row],[Minutes for Rate]]),\"\")","v":85},{"$f":"IF(TableOutpatientRates[[#This Row],[PEER Group Allowed]]=\"Y\",IF(NOT(ISBLANK(TableOutpatientRates[[#This Row],[Standard Rate]])),TableOutpatientRates[Standard Rate],INDEX(TableOutpatientHourlyRates[Hourly Rate],MATCH(\"PEER Group\",TableOutpatientHourlyRates[Group Name],0))/60*TableOutpatientRates[[#This Row],[Minutes for Rate]]),\"\")","v":""},{"$f":"IF(TableOutpatientRates[[#This Row],[PHARM Group Allowed]]=\"Y\",IF(NOT(ISBLANK(TableOutpatientRates[[#This Row],[Standard Rate]])),TableOutpatientRates[Standard Rate],INDEX(TableOutpatientHourlyRates[Hourly Rate],MATCH(\"PHARM Group\",TableOutpatientHourlyRates[Group Name],0))/60*TableOutpatientRates[[#This Row],[Minutes for Rate]]),\"\")","v":""},{"$f":"IF(TableOutpatientRates[[#This Row],[PSY Group Allowed]]=\"Y\",IF(NOT(ISBLANK(TableOutpatientRates[[#This Row],[Standard Rate]])),TableOutpatientRates[Standard Rate],INDEX(TableOutpatientHourlyRates[Hourly Rate],MATCH(\"PSY Group\",TableOutpatientHourlyRates[Group Name],0))/60*TableOutpatientRates[[#This Row],[Minutes for Rate]]),\"\")","v":""},{"$f":"IF(TableOutpatientRates[[#This Row],[PT Group Allowed]]=\"Y\",IF(NOT(ISBLANK(TableOutpatientRates[[#This Row],[Standard Rate]])),TableOutpatientRates[Standard Rate],INDEX(TableOutpatientHourlyRates[Hourly Rate],MATCH(\"PT Group\",TableOutpatientHourlyRates[Group Name],0))/60*TableOutpatientRates[[#This Row],[Minutes for Rate]]),\"\")","v":""},{"$f":"IF(TableOutpatientRates[[#This Row],[RN Group Allowed]]=\"Y\",IF(NOT(ISBLANK(TableOutpatientRates[[#This Row],[Standard Rate]])),TableOutpatientRates[Standard Rate],INDEX(TableOutpatientHourlyRates[Hourly Rate],MATCH(\"RN Group\",TableOutpatientHourlyRates[Group Name],0))/60*TableOutpatientRates[[#This Row],[Minutes for Rate]]),\"\")","v":""}]
["99437","Chronic care management services, each additional 30 minutes by a physician or other qualified health care professional, per calendar month. Code 99437 is reported in conjunction with 99491, when at least an additional 30 minutes of service time is p","30","","","","","Y","Y","","","Y","","","","",null,{"$f":"IF(TableOutpatientRates[[#This Row],[AOD Group Allowed]]=\"Y\",IF(NOT(ISBLANK(TableOutpatientRates[[#This Row],[Standard Rate]])),TableOutpatientRates[Standard Rate],INDEX(TableOutpatientHourlyRates[Hourly Rate],MATCH(\"AOD Group\",TableOutpatientHourlyRates[Group Name],0))/60*TableOutpatientRates[[#This Row],[Minutes for Rate]]),\"\")","v":""},{"$f":"IF(TableOutpatientRates[[#This Row],[LPHA Group Allowed]]=\"Y\",IF(NOT(ISBLANK(TableOutpatientRates[[#This Row],[Standard Rate]])),TableOutpatientRates[Standard Rate],INDEX(TableOutpatientHourlyRates[Hourly Rate],MATCH(\"LPHA Group\",TableOutpatientHourlyRates[Group Name],0))/60*TableOutpatientRates[[#This Row],[Minutes for Rate]]),\"\")","v":""},{"$f":"IF(TableOutpatientRates[[#This Row],[LVN Group Allowed]]=\"Y\",IF(NOT(ISBLANK(TableOutpatientRates[[#This Row],[Standard Rate]])),TableOutpatientRates[Standard Rate],INDEX(TableOutpatientHourlyRates[Hourly Rate],MATCH(\"LVN Group\",TableOutpatientHourlyRates[Group Name],0))/60*TableOutpatientRates[[#This Row],[Minutes for Rate]]),\"\")","v":""},{"$f":"IF(TableOutpatientRates[[#This Row],[MA Group Allowed]]=\"Y\",IF(NOT(ISBLANK(TableOutpatientRates[[#This Row],[Standard Rate]])),TableOutpatientRates[Standard Rate],INDEX(TableOutpatientHourlyRates[Hourly Rate],MATCH(\"MA Group\",TableOutpatientHourlyRates[Group Name],0))/60*TableOutpatientRates[[#This Row],[Minutes for Rate]]),\"\")","v":""},{"$f":"IF(TableOutpatientRates[[#This Row],[MD Group Allowed]]=\"Y\",IF(NOT(ISBLANK(TableOutpatientRates[[#This Row],[Standard Rate]])),TableOutpatientRates[Standard Rate],INDEX(TableOutpatientHourlyRates[Hourly Rate],MATCH(\"MD Group\",TableOutpatientHourlyRates[Group Name],0))/60*TableOutpatientRates[[#This Row],[Minutes for Rate]]),\"\")","v":70},{"$f":"IF(TableOutpatientRates[[#This Row],[NP Group Allowed]]=\"Y\",IF(NOT(ISBLANK(TableOutpatientRates[[#This Row],[Standard Rate]])),TableOutpatientRates[Standard Rate],INDEX(TableOutpatientHourlyRates[Hourly Rate],MATCH(\"NP Group\",TableOutpatientHourlyRates[Group Name],0))/60*TableOutpatientRates[[#This Row],[Minutes for Rate]]),\"\")","v":75},{"$f":"IF(TableOutpatientRates[[#This Row],[OT Group Allowed]]=\"Y\",IF(NOT(ISBLANK(TableOutpatientRates[[#This Row],[Standard Rate]])),TableOutpatientRates[Standard Rate],INDEX(TableOutpatientHourlyRates[Hourly Rate],MATCH(\"OT Group\",TableOutpatientHourlyRates[Group Name],0))/60*TableOutpatientRates[[#This Row],[Minutes for Rate]]),\"\")","v":""},{"$f":"IF(TableOutpatientRates[[#This Row],[PA Group Allowed]]=\"Y\",IF(NOT(ISBLANK(TableOutpatientRates[[#This Row],[Standard Rate]])),TableOutpatientRates[Standard Rate],INDEX(TableOutpatientHourlyRates[Hourly Rate],MATCH(\"PA Group\",TableOutpatientHourlyRates[Group Name],0))/60*TableOutpatientRates[[#This Row],[Minutes for Rate]]),\"\")","v":85},{"$f":"IF(TableOutpatientRates[[#This Row],[PEER Group Allowed]]=\"Y\",IF(NOT(ISBLANK(TableOutpatientRates[[#This Row],[Standard Rate]])),TableOutpatientRates[Standard Rate],INDEX(TableOutpatientHourlyRates[Hourly Rate],MATCH(\"PEER Group\",TableOutpatientHourlyRates[Group Name],0))/60*TableOutpatientRates[[#This Row],[Minutes for Rate]]),\"\")","v":""},{"$f":"IF(TableOutpatientRates[[#This Row],[PHARM Group Allowed]]=\"Y\",IF(NOT(ISBLANK(TableOutpatientRates[[#This Row],[Standard Rate]])),TableOutpatientRates[Standard Rate],INDEX(TableOutpatientHourlyRates[Hourly Rate],MATCH(\"PHARM Group\",TableOutpatientHourlyRates[Group Name],0))/60*TableOutpatientRates[[#This Row],[Minutes for Rate]]),\"\")","v":""},{"$f":"IF(TableOutpatientRates[[#This Row],[PSY Group Allowed]]=\"Y\",IF(NOT(ISBLANK(TableOutpatientRates[[#This Row],[Standard Rate]])),TableOutpatientRates[Standard Rate],INDEX(TableOutpatientHourlyRates[Hourly Rate],MATCH(\"PSY Group\",TableOutpatientHourlyRates[Group Name],0))/60*TableOutpatientRates[[#This Row],[Minutes for Rate]]),\"\")","v":""},{"$f":"IF(TableOutpatientRates[[#This Row],[PT Group Allowed]]=\"Y\",IF(NOT(ISBLANK(TableOutpatientRates[[#This Row],[Standard Rate]])),TableOutpatientRates[Standard Rate],INDEX(TableOutpatientHourlyRates[Hourly Rate],MATCH(\"PT Group\",TableOutpatientHourlyRates[Group Name],0))/60*TableOutpatientRates[[#This Row],[Minutes for Rate]]),\"\")","v":""},{"$f":"IF(TableOutpatientRates[[#This Row],[RN Group Allowed]]=\"Y\",IF(NOT(ISBLANK(TableOutpatientRates[[#This Row],[Standard Rate]])),TableOutpatientRates[Standard Rate],INDEX(TableOutpatientHourlyRates[Hourly Rate],MATCH(\"RN Group\",TableOutpatientHourlyRates[Group Name],0))/60*TableOutpatientRates[[#This Row],[Minutes for Rate]]),\"\")","v":""}]
["99441","Telephone Evaluation and Management Service, 5-10 Minutes","8","","","","","Y","Y","","","Y","","","","",null,{"$f":"IF(TableOutpatientRates[[#This Row],[AOD Group Allowed]]=\"Y\",IF(NOT(ISBLANK(TableOutpatientRates[[#This Row],[Standard Rate]])),TableOutpatientRates[Standard Rate],INDEX(TableOutpatientHourlyRates[Hourly Rate],MATCH(\"AOD Group\",TableOutpatientHourlyRates[Group Name],0))/60*TableOutpatientRates[[#This Row],[Minutes for Rate]]),\"\")","v":""},{"$f":"IF(TableOutpatientRates[[#This Row],[LPHA Group Allowed]]=\"Y\",IF(NOT(ISBLANK(TableOutpatientRates[[#This Row],[Standard Rate]])),TableOutpatientRates[Standard Rate],INDEX(TableOutpatientHourlyRates[Hourly Rate],MATCH(\"LPHA Group\",TableOutpatientHourlyRates[Group Name],0))/60*TableOutpatientRates[[#This Row],[Minutes for Rate]]),\"\")","v":""},{"$f":"IF(TableOutpatientRates[[#This Row],[LVN Group Allowed]]=\"Y\",IF(NOT(ISBLANK(TableOutpatientRates[[#This Row],[Standard Rate]])),TableOutpatientRates[Standard Rate],INDEX(TableOutpatientHourlyRates[Hourly Rate],MATCH(\"LVN Group\",TableOutpatientHourlyRates[Group Name],0))/60*TableOutpatientRates[[#This Row],[Minutes for Rate]]),\"\")","v":""},{"$f":"IF(TableOutpatientRates[[#This Row],[MA Group Allowed]]=\"Y\",IF(NOT(ISBLANK(TableOutpatientRates[[#This Row],[Standard Rate]])),TableOutpatientRates[Standard Rate],INDEX(TableOutpatientHourlyRates[Hourly Rate],MATCH(\"MA Group\",TableOutpatientHourlyRates[Group Name],0))/60*TableOutpatientRates[[#This Row],[Minutes for Rate]]),\"\")","v":""},{"$f":"IF(TableOutpatientRates[[#This Row],[MD Group Allowed]]=\"Y\",IF(NOT(ISBLANK(TableOutpatientRates[[#This Row],[Standard Rate]])),TableOutpatientRates[Standard Rate],INDEX(TableOutpatientHourlyRates[Hourly Rate],MATCH(\"MD Group\",TableOutpatientHourlyRates[Group Name],0))/60*TableOutpatientRates[[#This Row],[Minutes for Rate]]),\"\")","v":18.666666666666668},{"$f":"IF(TableOutpatientRates[[#This Row],[NP Group Allowed]]=\"Y\",IF(NOT(ISBLANK(TableOutpatientRates[[#This Row],[Standard Rate]])),TableOutpatientRates[Standard Rate],INDEX(TableOutpatientHourlyRates[Hourly Rate],MATCH(\"NP Group\",TableOutpatientHourlyRates[Group Name],0))/60*TableOutpatientRates[[#This Row],[Minutes for Rate]]),\"\")","v":20},{"$f":"IF(TableOutpatientRates[[#This Row],[OT Group Allowed]]=\"Y\",IF(NOT(ISBLANK(TableOutpatientRates[[#This Row],[Standard Rate]])),TableOutpatientRates[Standard Rate],INDEX(TableOutpatientHourlyRates[Hourly Rate],MATCH(\"OT Group\",TableOutpatientHourlyRates[Group Name],0))/60*TableOutpatientRates[[#This Row],[Minutes for Rate]]),\"\")","v":""},{"$f":"IF(TableOutpatientRates[[#This Row],[PA Group Allowed]]=\"Y\",IF(NOT(ISBLANK(TableOutpatientRates[[#This Row],[Standard Rate]])),TableOutpatientRates[Standard Rate],INDEX(TableOutpatientHourlyRates[Hourly Rate],MATCH(\"PA Group\",TableOutpatientHourlyRates[Group Name],0))/60*TableOutpatientRates[[#This Row],[Minutes for Rate]]),\"\")","v":22.666666666666668},{"$f":"IF(TableOutpatientRates[[#This Row],[PEER Group Allowed]]=\"Y\",IF(NOT(ISBLANK(TableOutpatientRates[[#This Row],[Standard Rate]])),TableOutpatientRates[Standard Rate],INDEX(TableOutpatientHourlyRates[Hourly Rate],MATCH(\"PEER Group\",TableOutpatientHourlyRates[Group Name],0))/60*TableOutpatientRates[[#This Row],[Minutes for Rate]]),\"\")","v":""},{"$f":"IF(TableOutpatientRates[[#This Row],[PHARM Group Allowed]]=\"Y\",IF(NOT(ISBLANK(TableOutpatientRates[[#This Row],[Standard Rate]])),TableOutpatientRates[Standard Rate],INDEX(TableOutpatientHourlyRates[Hourly Rate],MATCH(\"PHARM Group\",TableOutpatientHourlyRates[Group Name],0))/60*TableOutpatientRates[[#This Row],[Minutes for Rate]]),\"\")","v":""},{"$f":"IF(TableOutpatientRates[[#This Row],[PSY Group Allowed]]=\"Y\",IF(NOT(ISBLANK(TableOutpatientRates[[#This Row],[Standard Rate]])),TableOutpatientRates[Standard Rate],INDEX(TableOutpatientHourlyRates[Hourly Rate],MATCH(\"PSY Group\",TableOutpatientHourlyRates[Group Name],0))/60*TableOutpatientRates[[#This Row],[Minutes for Rate]]),\"\")","v":""},{"$f":"IF(TableOutpatientRates[[#This Row],[PT Group Allowed]]=\"Y\",IF(NOT(ISBLANK(TableOutpatientRates[[#This Row],[Standard Rate]])),TableOutpatientRates[Standard Rate],INDEX(TableOutpatientHourlyRates[Hourly Rate],MATCH(\"PT Group\",TableOutpatientHourlyRates[Group Name],0))/60*TableOutpatientRates[[#This Row],[Minutes for Rate]]),\"\")","v":""},{"$f":"IF(TableOutpatientRates[[#This Row],[RN Group Allowed]]=\"Y\",IF(NOT(ISBLANK(TableOutpatientRates[[#This Row],[Standard Rate]])),TableOutpatientRates[Standard Rate],INDEX(TableOutpatientHourlyRates[Hourly Rate],MATCH(\"RN Group\",TableOutpatientHourlyRates[Group Name],0))/60*TableOutpatientRates[[#This Row],[Minutes for Rate]]),\"\")","v":""}]
["99442","Telephone Evaluation and Management Service, 11-20 Minutes","16","","","","","Y","Y","","","Y","","","","",null,{"$f":"IF(TableOutpatientRates[[#This Row],[AOD Group Allowed]]=\"Y\",IF(NOT(ISBLANK(TableOutpatientRates[[#This Row],[Standard Rate]])),TableOutpatientRates[Standard Rate],INDEX(TableOutpatientHourlyRates[Hourly Rate],MATCH(\"AOD Group\",TableOutpatientHourlyRates[Group Name],0))/60*TableOutpatientRates[[#This Row],[Minutes for Rate]]),\"\")","v":""},{"$f":"IF(TableOutpatientRates[[#This Row],[LPHA Group Allowed]]=\"Y\",IF(NOT(ISBLANK(TableOutpatientRates[[#This Row],[Standard Rate]])),TableOutpatientRates[Standard Rate],INDEX(TableOutpatientHourlyRates[Hourly Rate],MATCH(\"LPHA Group\",TableOutpatientHourlyRates[Group Name],0))/60*TableOutpatientRates[[#This Row],[Minutes for Rate]]),\"\")","v":""},{"$f":"IF(TableOutpatientRates[[#This Row],[LVN Group Allowed]]=\"Y\",IF(NOT(ISBLANK(TableOutpatientRates[[#This Row],[Standard Rate]])),TableOutpatientRates[Standard Rate],INDEX(TableOutpatientHourlyRates[Hourly Rate],MATCH(\"LVN Group\",TableOutpatientHourlyRates[Group Name],0))/60*TableOutpatientRates[[#This Row],[Minutes for Rate]]),\"\")","v":""},{"$f":"IF(TableOutpatientRates[[#This Row],[MA Group Allowed]]=\"Y\",IF(NOT(ISBLANK(TableOutpatientRates[[#This Row],[Standard Rate]])),TableOutpatientRates[Standard Rate],INDEX(TableOutpatientHourlyRates[Hourly Rate],MATCH(\"MA Group\",TableOutpatientHourlyRates[Group Name],0))/60*TableOutpatientRates[[#This Row],[Minutes for Rate]]),\"\")","v":""},{"$f":"IF(TableOutpatientRates[[#This Row],[MD Group Allowed]]=\"Y\",IF(NOT(ISBLANK(TableOutpatientRates[[#This Row],[Standard Rate]])),TableOutpatientRates[Standard Rate],INDEX(TableOutpatientHourlyRates[Hourly Rate],MATCH(\"MD Group\",TableOutpatientHourlyRates[Group Name],0))/60*TableOutpatientRates[[#This Row],[Minutes for Rate]]),\"\")","v":37.333333333333336},{"$f":"IF(TableOutpatientRates[[#This Row],[NP Group Allowed]]=\"Y\",IF(NOT(ISBLANK(TableOutpatientRates[[#This Row],[Standard Rate]])),TableOutpatientRates[Standard Rate],INDEX(TableOutpatientHourlyRates[Hourly Rate],MATCH(\"NP Group\",TableOutpatientHourlyRates[Group Name],0))/60*TableOutpatientRates[[#This Row],[Minutes for Rate]]),\"\")","v":40},{"$f":"IF(TableOutpatientRates[[#This Row],[OT Group Allowed]]=\"Y\",IF(NOT(ISBLANK(TableOutpatientRates[[#This Row],[Standard Rate]])),TableOutpatientRates[Standard Rate],INDEX(TableOutpatientHourlyRates[Hourly Rate],MATCH(\"OT Group\",TableOutpatientHourlyRates[Group Name],0))/60*TableOutpatientRates[[#This Row],[Minutes for Rate]]),\"\")","v":""},{"$f":"IF(TableOutpatientRates[[#This Row],[PA Group Allowed]]=\"Y\",IF(NOT(ISBLANK(TableOutpatientRates[[#This Row],[Standard Rate]])),TableOutpatientRates[Standard Rate],INDEX(TableOutpatientHourlyRates[Hourly Rate],MATCH(\"PA Group\",TableOutpatientHourlyRates[Group Name],0))/60*TableOutpatientRates[[#This Row],[Minutes for Rate]]),\"\")","v":45.333333333333336},{"$f":"IF(TableOutpatientRates[[#This Row],[PEER Group Allowed]]=\"Y\",IF(NOT(ISBLANK(TableOutpatientRates[[#This Row],[Standard Rate]])),TableOutpatientRates[Standard Rate],INDEX(TableOutpatientHourlyRates[Hourly Rate],MATCH(\"PEER Group\",TableOutpatientHourlyRates[Group Name],0))/60*TableOutpatientRates[[#This Row],[Minutes for Rate]]),\"\")","v":""},{"$f":"IF(TableOutpatientRates[[#This Row],[PHARM Group Allowed]]=\"Y\",IF(NOT(ISBLANK(TableOutpatientRates[[#This Row],[Standard Rate]])),TableOutpatientRates[Standard Rate],INDEX(TableOutpatientHourlyRates[Hourly Rate],MATCH(\"PHARM Group\",TableOutpatientHourlyRates[Group Name],0))/60*TableOutpatientRates[[#This Row],[Minutes for Rate]]),\"\")","v":""},{"$f":"IF(TableOutpatientRates[[#This Row],[PSY Group Allowed]]=\"Y\",IF(NOT(ISBLANK(TableOutpatientRates[[#This Row],[Standard Rate]])),TableOutpatientRates[Standard Rate],INDEX(TableOutpatientHourlyRates[Hourly Rate],MATCH(\"PSY Group\",TableOutpatientHourlyRates[Group Name],0))/60*TableOutpatientRates[[#This Row],[Minutes for Rate]]),\"\")","v":""},{"$f":"IF(TableOutpatientRates[[#This Row],[PT Group Allowed]]=\"Y\",IF(NOT(ISBLANK(TableOutpatientRates[[#This Row],[Standard Rate]])),TableOutpatientRates[Standard Rate],INDEX(TableOutpatientHourlyRates[Hourly Rate],MATCH(\"PT Group\",TableOutpatientHourlyRates[Group Name],0))/60*TableOutpatientRates[[#This Row],[Minutes for Rate]]),\"\")","v":""},{"$f":"IF(TableOutpatientRates[[#This Row],[RN Group Allowed]]=\"Y\",IF(NOT(ISBLANK(TableOutpatientRates[[#This Row],[Standard Rate]])),TableOutpatientRates[Standard Rate],INDEX(TableOutpatientHourlyRates[Hourly Rate],MATCH(\"RN Group\",TableOutpatientHourlyRates[Group Name],0))/60*TableOutpatientRates[[#This Row],[Minutes for Rate]]),\"\")","v":""}]
["99443","Telephone Evaluation and Management Service, 21-30 Minutes","26","","","","","Y","Y","","","Y","","","","",null,{"$f":"IF(TableOutpatientRates[[#This Row],[AOD Group Allowed]]=\"Y\",IF(NOT(ISBLANK(TableOutpatientRates[[#This Row],[Standard Rate]])),TableOutpatientRates[Standard Rate],INDEX(TableOutpatientHourlyRates[Hourly Rate],MATCH(\"AOD Group\",TableOutpatientHourlyRates[Group Name],0))/60*TableOutpatientRates[[#This Row],[Minutes for Rate]]),\"\")","v":""},{"$f":"IF(TableOutpatientRates[[#This Row],[LPHA Group Allowed]]=\"Y\",IF(NOT(ISBLANK(TableOutpatientRates[[#This Row],[Standard Rate]])),TableOutpatientRates[Standard Rate],INDEX(TableOutpatientHourlyRates[Hourly Rate],MATCH(\"LPHA Group\",TableOutpatientHourlyRates[Group Name],0))/60*TableOutpatientRates[[#This Row],[Minutes for Rate]]),\"\")","v":""},{"$f":"IF(TableOutpatientRates[[#This Row],[LVN Group Allowed]]=\"Y\",IF(NOT(ISBLANK(TableOutpatientRates[[#This Row],[Standard Rate]])),TableOutpatientRates[Standard Rate],INDEX(TableOutpatientHourlyRates[Hourly Rate],MATCH(\"LVN Group\",TableOutpatientHourlyRates[Group Name],0))/60*TableOutpatientRates[[#This Row],[Minutes for Rate]]),\"\")","v":""},{"$f":"IF(TableOutpatientRates[[#This Row],[MA Group Allowed]]=\"Y\",IF(NOT(ISBLANK(TableOutpatientRates[[#This Row],[Standard Rate]])),TableOutpatientRates[Standard Rate],INDEX(TableOutpatientHourlyRates[Hourly Rate],MATCH(\"MA Group\",TableOutpatientHourlyRates[Group Name],0))/60*TableOutpatientRates[[#This Row],[Minutes for Rate]]),\"\")","v":""},{"$f":"IF(TableOutpatientRates[[#This Row],[MD Group Allowed]]=\"Y\",IF(NOT(ISBLANK(TableOutpatientRates[[#This Row],[Standard Rate]])),TableOutpatientRates[Standard Rate],INDEX(TableOutpatientHourlyRates[Hourly Rate],MATCH(\"MD Group\",TableOutpatientHourlyRates[Group Name],0))/60*TableOutpatientRates[[#This Row],[Minutes for Rate]]),\"\")","v":60.666666666666671},{"$f":"IF(TableOutpatientRates[[#This Row],[NP Group Allowed]]=\"Y\",IF(NOT(ISBLANK(TableOutpatientRates[[#This Row],[Standard Rate]])),TableOutpatientRates[Standard Rate],INDEX(TableOutpatientHourlyRates[Hourly Rate],MATCH(\"NP Group\",TableOutpatientHourlyRates[Group Name],0))/60*TableOutpatientRates[[#This Row],[Minutes for Rate]]),\"\")","v":65},{"$f":"IF(TableOutpatientRates[[#This Row],[OT Group Allowed]]=\"Y\",IF(NOT(ISBLANK(TableOutpatientRates[[#This Row],[Standard Rate]])),TableOutpatientRates[Standard Rate],INDEX(TableOutpatientHourlyRates[Hourly Rate],MATCH(\"OT Group\",TableOutpatientHourlyRates[Group Name],0))/60*TableOutpatientRates[[#This Row],[Minutes for Rate]]),\"\")","v":""},{"$f":"IF(TableOutpatientRates[[#This Row],[PA Group Allowed]]=\"Y\",IF(NOT(ISBLANK(TableOutpatientRates[[#This Row],[Standard Rate]])),TableOutpatientRates[Standard Rate],INDEX(TableOutpatientHourlyRates[Hourly Rate],MATCH(\"PA Group\",TableOutpatientHourlyRates[Group Name],0))/60*TableOutpatientRates[[#This Row],[Minutes for Rate]]),\"\")","v":73.666666666666671},{"$f":"IF(TableOutpatientRates[[#This Row],[PEER Group Allowed]]=\"Y\",IF(NOT(ISBLANK(TableOutpatientRates[[#This Row],[Standard Rate]])),TableOutpatientRates[Standard Rate],INDEX(TableOutpatientHourlyRates[Hourly Rate],MATCH(\"PEER Group\",TableOutpatientHourlyRates[Group Name],0))/60*TableOutpatientRates[[#This Row],[Minutes for Rate]]),\"\")","v":""},{"$f":"IF(TableOutpatientRates[[#This Row],[PHARM Group Allowed]]=\"Y\",IF(NOT(ISBLANK(TableOutpatientRates[[#This Row],[Standard Rate]])),TableOutpatientRates[Standard Rate],INDEX(TableOutpatientHourlyRates[Hourly Rate],MATCH(\"PHARM Group\",TableOutpatientHourlyRates[Group Name],0))/60*TableOutpatientRates[[#This Row],[Minutes for Rate]]),\"\")","v":""},{"$f":"IF(TableOutpatientRates[[#This Row],[PSY Group Allowed]]=\"Y\",IF(NOT(ISBLANK(TableOutpatientRates[[#This Row],[Standard Rate]])),TableOutpatientRates[Standard Rate],INDEX(TableOutpatientHourlyRates[Hourly Rate],MATCH(\"PSY Group\",TableOutpatientHourlyRates[Group Name],0))/60*TableOutpatientRates[[#This Row],[Minutes for Rate]]),\"\")","v":""},{"$f":"IF(TableOutpatientRates[[#This Row],[PT Group Allowed]]=\"Y\",IF(NOT(ISBLANK(TableOutpatientRates[[#This Row],[Standard Rate]])),TableOutpatientRates[Standard Rate],INDEX(TableOutpatientHourlyRates[Hourly Rate],MATCH(\"PT Group\",TableOutpatientHourlyRates[Group Name],0))/60*TableOutpatientRates[[#This Row],[Minutes for Rate]]),\"\")","v":""},{"$f":"IF(TableOutpatientRates[[#This Row],[RN Group Allowed]]=\"Y\",IF(NOT(ISBLANK(TableOutpatientRates[[#This Row],[Standard Rate]])),TableOutpatientRates[Standard Rate],INDEX(TableOutpatientHourlyRates[Hourly Rate],MATCH(\"RN Group\",TableOutpatientHourlyRates[Group Name],0))/60*TableOutpatientRates[[#This Row],[Minutes for Rate]]),\"\")","v":""}]
["99451","Inter-Professional Telephone/Internet/ Electronic Health Record Assessment Provided by a Consultative Physician, 5-15 Minutes","17","","","","","Y","","","","","","","","",null,{"$f":"IF(TableOutpatientRates[[#This Row],[AOD Group Allowed]]=\"Y\",IF(NOT(ISBLANK(TableOutpatientRates[[#This Row],[Standard Rate]])),TableOutpatientRates[Standard Rate],INDEX(TableOutpatientHourlyRates[Hourly Rate],MATCH(\"AOD Group\",TableOutpatientHourlyRates[Group Name],0))/60*TableOutpatientRates[[#This Row],[Minutes for Rate]]),\"\")","v":""},{"$f":"IF(TableOutpatientRates[[#This Row],[LPHA Group Allowed]]=\"Y\",IF(NOT(ISBLANK(TableOutpatientRates[[#This Row],[Standard Rate]])),TableOutpatientRates[Standard Rate],INDEX(TableOutpatientHourlyRates[Hourly Rate],MATCH(\"LPHA Group\",TableOutpatientHourlyRates[Group Name],0))/60*TableOutpatientRates[[#This Row],[Minutes for Rate]]),\"\")","v":""},{"$f":"IF(TableOutpatientRates[[#This Row],[LVN Group Allowed]]=\"Y\",IF(NOT(ISBLANK(TableOutpatientRates[[#This Row],[Standard Rate]])),TableOutpatientRates[Standard Rate],INDEX(TableOutpatientHourlyRates[Hourly Rate],MATCH(\"LVN Group\",TableOutpatientHourlyRates[Group Name],0))/60*TableOutpatientRates[[#This Row],[Minutes for Rate]]),\"\")","v":""},{"$f":"IF(TableOutpatientRates[[#This Row],[MA Group Allowed]]=\"Y\",IF(NOT(ISBLANK(TableOutpatientRates[[#This Row],[Standard Rate]])),TableOutpatientRates[Standard Rate],INDEX(TableOutpatientHourlyRates[Hourly Rate],MATCH(\"MA Group\",TableOutpatientHourlyRates[Group Name],0))/60*TableOutpatientRates[[#This Row],[Minutes for Rate]]),\"\")","v":""},{"$f":"IF(TableOutpatientRates[[#This Row],[MD Group Allowed]]=\"Y\",IF(NOT(ISBLANK(TableOutpatientRates[[#This Row],[Standard Rate]])),TableOutpatientRates[Standard Rate],INDEX(TableOutpatientHourlyRates[Hourly Rate],MATCH(\"MD Group\",TableOutpatientHourlyRates[Group Name],0))/60*TableOutpatientRates[[#This Row],[Minutes for Rate]]),\"\")","v":39.666666666666671},{"$f":"IF(TableOutpatientRates[[#This Row],[NP Group Allowed]]=\"Y\",IF(NOT(ISBLANK(TableOutpatientRates[[#This Row],[Standard Rate]])),TableOutpatientRates[Standard Rate],INDEX(TableOutpatientHourlyRates[Hourly Rate],MATCH(\"NP Group\",TableOutpatientHourlyRates[Group Name],0))/60*TableOutpatientRates[[#This Row],[Minutes for Rate]]),\"\")","v":""},{"$f":"IF(TableOutpatientRates[[#This Row],[OT Group Allowed]]=\"Y\",IF(NOT(ISBLANK(TableOutpatientRates[[#This Row],[Standard Rate]])),TableOutpatientRates[Standard Rate],INDEX(TableOutpatientHourlyRates[Hourly Rate],MATCH(\"OT Group\",TableOutpatientHourlyRates[Group Name],0))/60*TableOutpatientRates[[#This Row],[Minutes for Rate]]),\"\")","v":""},{"$f":"IF(TableOutpatientRates[[#This Row],[PA Group Allowed]]=\"Y\",IF(NOT(ISBLANK(TableOutpatientRates[[#This Row],[Standard Rate]])),TableOutpatientRates[Standard Rate],INDEX(TableOutpatientHourlyRates[Hourly Rate],MATCH(\"PA Group\",TableOutpatientHourlyRates[Group Name],0))/60*TableOutpatientRates[[#This Row],[Minutes for Rate]]),\"\")","v":""},{"$f":"IF(TableOutpatientRates[[#This Row],[PEER Group Allowed]]=\"Y\",IF(NOT(ISBLANK(TableOutpatientRates[[#This Row],[Standard Rate]])),TableOutpatientRates[Standard Rate],INDEX(TableOutpatientHourlyRates[Hourly Rate],MATCH(\"PEER Group\",TableOutpatientHourlyRates[Group Name],0))/60*TableOutpatientRates[[#This Row],[Minutes for Rate]]),\"\")","v":""},{"$f":"IF(TableOutpatientRates[[#This Row],[PHARM Group Allowed]]=\"Y\",IF(NOT(ISBLANK(TableOutpatientRates[[#This Row],[Standard Rate]])),TableOutpatientRates[Standard Rate],INDEX(TableOutpatientHourlyRates[Hourly Rate],MATCH(\"PHARM Group\",TableOutpatientHourlyRates[Group Name],0))/60*TableOutpatientRates[[#This Row],[Minutes for Rate]]),\"\")","v":""},{"$f":"IF(TableOutpatientRates[[#This Row],[PSY Group Allowed]]=\"Y\",IF(NOT(ISBLANK(TableOutpatientRates[[#This Row],[Standard Rate]])),TableOutpatientRates[Standard Rate],INDEX(TableOutpatientHourlyRates[Hourly Rate],MATCH(\"PSY Group\",TableOutpatientHourlyRates[Group Name],0))/60*TableOutpatientRates[[#This Row],[Minutes for Rate]]),\"\")","v":""},{"$f":"IF(TableOutpatientRates[[#This Row],[PT Group Allowed]]=\"Y\",IF(NOT(ISBLANK(TableOutpatientRates[[#This Row],[Standard Rate]])),TableOutpatientRates[Standard Rate],INDEX(TableOutpatientHourlyRates[Hourly Rate],MATCH(\"PT Group\",TableOutpatientHourlyRates[Group Name],0))/60*TableOutpatientRates[[#This Row],[Minutes for Rate]]),\"\")","v":""},{"$f":"IF(TableOutpatientRates[[#This Row],[RN Group Allowed]]=\"Y\",IF(NOT(ISBLANK(TableOutpatientRates[[#This Row],[Standard Rate]])),TableOutpatientRates[Standard Rate],INDEX(TableOutpatientHourlyRates[Hourly Rate],MATCH(\"RN Group\",TableOutpatientHourlyRates[Group Name],0))/60*TableOutpatientRates[[#This Row],[Minutes for Rate]]),\"\")","v":""}]
["99491","Chronic care management services, first 30 minutes provided personally by a physician or other qualified health care professional, per calendar month. At least 30 minutes of service must be provided before 1 unit of this code can be reported.","23","","","","","Y","Y","","","Y","","","","",null,{"$f":"IF(TableOutpatientRates[[#This Row],[AOD Group Allowed]]=\"Y\",IF(NOT(ISBLANK(TableOutpatientRates[[#This Row],[Standard Rate]])),TableOutpatientRates[Standard Rate],INDEX(TableOutpatientHourlyRates[Hourly Rate],MATCH(\"AOD Group\",TableOutpatientHourlyRates[Group Name],0))/60*TableOutpatientRates[[#This Row],[Minutes for Rate]]),\"\")","v":""},{"$f":"IF(TableOutpatientRates[[#This Row],[LPHA Group Allowed]]=\"Y\",IF(NOT(ISBLANK(TableOutpatientRates[[#This Row],[Standard Rate]])),TableOutpatientRates[Standard Rate],INDEX(TableOutpatientHourlyRates[Hourly Rate],MATCH(\"LPHA Group\",TableOutpatientHourlyRates[Group Name],0))/60*TableOutpatientRates[[#This Row],[Minutes for Rate]]),\"\")","v":""},{"$f":"IF(TableOutpatientRates[[#This Row],[LVN Group Allowed]]=\"Y\",IF(NOT(ISBLANK(TableOutpatientRates[[#This Row],[Standard Rate]])),TableOutpatientRates[Standard Rate],INDEX(TableOutpatientHourlyRates[Hourly Rate],MATCH(\"LVN Group\",TableOutpatientHourlyRates[Group Name],0))/60*TableOutpatientRates[[#This Row],[Minutes for Rate]]),\"\")","v":""},{"$f":"IF(TableOutpatientRates[[#This Row],[MA Group Allowed]]=\"Y\",IF(NOT(ISBLANK(TableOutpatientRates[[#This Row],[Standard Rate]])),TableOutpatientRates[Standard Rate],INDEX(TableOutpatientHourlyRates[Hourly Rate],MATCH(\"MA Group\",TableOutpatientHourlyRates[Group Name],0))/60*TableOutpatientRates[[#This Row],[Minutes for Rate]]),\"\")","v":""},{"$f":"IF(TableOutpatientRates[[#This Row],[MD Group Allowed]]=\"Y\",IF(NOT(ISBLANK(TableOutpatientRates[[#This Row],[Standard Rate]])),TableOutpatientRates[Standard Rate],INDEX(TableOutpatientHourlyRates[Hourly Rate],MATCH(\"MD Group\",TableOutpatientHourlyRates[Group Name],0))/60*TableOutpatientRates[[#This Row],[Minutes for Rate]]),\"\")","v":53.666666666666671},{"$f":"IF(TableOutpatientRates[[#This Row],[NP Group Allowed]]=\"Y\",IF(NOT(ISBLANK(TableOutpatientRates[[#This Row],[Standard Rate]])),TableOutpatientRates[Standard Rate],INDEX(TableOutpatientHourlyRates[Hourly Rate],MATCH(\"NP Group\",TableOutpatientHourlyRates[Group Name],0))/60*TableOutpatientRates[[#This Row],[Minutes for Rate]]),\"\")","v":57.5},{"$f":"IF(TableOutpatientRates[[#This Row],[OT Group Allowed]]=\"Y\",IF(NOT(ISBLANK(TableOutpatientRates[[#This Row],[Standard Rate]])),TableOutpatientRates[Standard Rate],INDEX(TableOutpatientHourlyRates[Hourly Rate],MATCH(\"OT Group\",TableOutpatientHourlyRates[Group Name],0))/60*TableOutpatientRates[[#This Row],[Minutes for Rate]]),\"\")","v":""},{"$f":"IF(TableOutpatientRates[[#This Row],[PA Group Allowed]]=\"Y\",IF(NOT(ISBLANK(TableOutpatientRates[[#This Row],[Standard Rate]])),TableOutpatientRates[Standard Rate],INDEX(TableOutpatientHourlyRates[Hourly Rate],MATCH(\"PA Group\",TableOutpatientHourlyRates[Group Name],0))/60*TableOutpatientRates[[#This Row],[Minutes for Rate]]),\"\")","v":65.166666666666671},{"$f":"IF(TableOutpatientRates[[#This Row],[PEER Group Allowed]]=\"Y\",IF(NOT(ISBLANK(TableOutpatientRates[[#This Row],[Standard Rate]])),TableOutpatientRates[Standard Rate],INDEX(TableOutpatientHourlyRates[Hourly Rate],MATCH(\"PEER Group\",TableOutpatientHourlyRates[Group Name],0))/60*TableOutpatientRates[[#This Row],[Minutes for Rate]]),\"\")","v":""},{"$f":"IF(TableOutpatientRates[[#This Row],[PHARM Group Allowed]]=\"Y\",IF(NOT(ISBLANK(TableOutpatientRates[[#This Row],[Standard Rate]])),TableOutpatientRates[Standard Rate],INDEX(TableOutpatientHourlyRates[Hourly Rate],MATCH(\"PHARM Group\",TableOutpatientHourlyRates[Group Name],0))/60*TableOutpatientRates[[#This Row],[Minutes for Rate]]),\"\")","v":""},{"$f":"IF(TableOutpatientRates[[#This Row],[PSY Group Allowed]]=\"Y\",IF(NOT(ISBLANK(TableOutpatientRates[[#This Row],[Standard Rate]])),TableOutpatientRates[Standard Rate],INDEX(TableOutpatientHourlyRates[Hourly Rate],MATCH(\"PSY Group\",TableOutpatientHourlyRates[Group Name],0))/60*TableOutpatientRates[[#This Row],[Minutes for Rate]]),\"\")","v":""},{"$f":"IF(TableOutpatientRates[[#This Row],[PT Group Allowed]]=\"Y\",IF(NOT(ISBLANK(TableOutpatientRates[[#This Row],[Standard Rate]])),TableOutpatientRates[Standard Rate],INDEX(TableOutpatientHourlyRates[Hourly Rate],MATCH(\"PT Group\",TableOutpatientHourlyRates[Group Name],0))/60*TableOutpatientRates[[#This Row],[Minutes for Rate]]),\"\")","v":""},{"$f":"IF(TableOutpatientRates[[#This Row],[RN Group Allowed]]=\"Y\",IF(NOT(ISBLANK(TableOutpatientRates[[#This Row],[Standard Rate]])),TableOutpatientRates[Standard Rate],INDEX(TableOutpatientHourlyRates[Hourly Rate],MATCH(\"RN Group\",TableOutpatientHourlyRates[Group Name],0))/60*TableOutpatientRates[[#This Row],[Minutes for Rate]]),\"\")","v":""}]
["99495","Transitional Care Management Services: Communication (direct contact, telephone, electronic) within 14 calendar days.","15","","","","","Y","Y","","","Y","","","","",null,{"$f":"IF(TableOutpatientRates[[#This Row],[AOD Group Allowed]]=\"Y\",IF(NOT(ISBLANK(TableOutpatientRates[[#This Row],[Standard Rate]])),TableOutpatientRates[Standard Rate],INDEX(TableOutpatientHourlyRates[Hourly Rate],MATCH(\"AOD Group\",TableOutpatientHourlyRates[Group Name],0))/60*TableOutpatientRates[[#This Row],[Minutes for Rate]]),\"\")","v":""},{"$f":"IF(TableOutpatientRates[[#This Row],[LPHA Group Allowed]]=\"Y\",IF(NOT(ISBLANK(TableOutpatientRates[[#This Row],[Standard Rate]])),TableOutpatientRates[Standard Rate],INDEX(TableOutpatientHourlyRates[Hourly Rate],MATCH(\"LPHA Group\",TableOutpatientHourlyRates[Group Name],0))/60*TableOutpatientRates[[#This Row],[Minutes for Rate]]),\"\")","v":""},{"$f":"IF(TableOutpatientRates[[#This Row],[LVN Group Allowed]]=\"Y\",IF(NOT(ISBLANK(TableOutpatientRates[[#This Row],[Standard Rate]])),TableOutpatientRates[Standard Rate],INDEX(TableOutpatientHourlyRates[Hourly Rate],MATCH(\"LVN Group\",TableOutpatientHourlyRates[Group Name],0))/60*TableOutpatientRates[[#This Row],[Minutes for Rate]]),\"\")","v":""},{"$f":"IF(TableOutpatientRates[[#This Row],[MA Group Allowed]]=\"Y\",IF(NOT(ISBLANK(TableOutpatientRates[[#This Row],[Standard Rate]])),TableOutpatientRates[Standard Rate],INDEX(TableOutpatientHourlyRates[Hourly Rate],MATCH(\"MA Group\",TableOutpatientHourlyRates[Group Name],0))/60*TableOutpatientRates[[#This Row],[Minutes for Rate]]),\"\")","v":""},{"$f":"IF(TableOutpatientRates[[#This Row],[MD Group Allowed]]=\"Y\",IF(NOT(ISBLANK(TableOutpatientRates[[#This Row],[Standard Rate]])),TableOutpatientRates[Standard Rate],INDEX(TableOutpatientHourlyRates[Hourly Rate],MATCH(\"MD Group\",TableOutpatientHourlyRates[Group Name],0))/60*TableOutpatientRates[[#This Row],[Minutes for Rate]]),\"\")","v":35},{"$f":"IF(TableOutpatientRates[[#This Row],[NP Group Allowed]]=\"Y\",IF(NOT(ISBLANK(TableOutpatientRates[[#This Row],[Standard Rate]])),TableOutpatientRates[Standard Rate],INDEX(TableOutpatientHourlyRates[Hourly Rate],MATCH(\"NP Group\",TableOutpatientHourlyRates[Group Name],0))/60*TableOutpatientRates[[#This Row],[Minutes for Rate]]),\"\")","v":37.5},{"$f":"IF(TableOutpatientRates[[#This Row],[OT Group Allowed]]=\"Y\",IF(NOT(ISBLANK(TableOutpatientRates[[#This Row],[Standard Rate]])),TableOutpatientRates[Standard Rate],INDEX(TableOutpatientHourlyRates[Hourly Rate],MATCH(\"OT Group\",TableOutpatientHourlyRates[Group Name],0))/60*TableOutpatientRates[[#This Row],[Minutes for Rate]]),\"\")","v":""},{"$f":"IF(TableOutpatientRates[[#This Row],[PA Group Allowed]]=\"Y\",IF(NOT(ISBLANK(TableOutpatientRates[[#This Row],[Standard Rate]])),TableOutpatientRates[Standard Rate],INDEX(TableOutpatientHourlyRates[Hourly Rate],MATCH(\"PA Group\",TableOutpatientHourlyRates[Group Name],0))/60*TableOutpatientRates[[#This Row],[Minutes for Rate]]),\"\")","v":42.5},{"$f":"IF(TableOutpatientRates[[#This Row],[PEER Group Allowed]]=\"Y\",IF(NOT(ISBLANK(TableOutpatientRates[[#This Row],[Standard Rate]])),TableOutpatientRates[Standard Rate],INDEX(TableOutpatientHourlyRates[Hourly Rate],MATCH(\"PEER Group\",TableOutpatientHourlyRates[Group Name],0))/60*TableOutpatientRates[[#This Row],[Minutes for Rate]]),\"\")","v":""},{"$f":"IF(TableOutpatientRates[[#This Row],[PHARM Group Allowed]]=\"Y\",IF(NOT(ISBLANK(TableOutpatientRates[[#This Row],[Standard Rate]])),TableOutpatientRates[Standard Rate],INDEX(TableOutpatientHourlyRates[Hourly Rate],MATCH(\"PHARM Group\",TableOutpatientHourlyRates[Group Name],0))/60*TableOutpatientRates[[#This Row],[Minutes for Rate]]),\"\")","v":""},{"$f":"IF(TableOutpatientRates[[#This Row],[PSY Group Allowed]]=\"Y\",IF(NOT(ISBLANK(TableOutpatientRates[[#This Row],[Standard Rate]])),TableOutpatientRates[Standard Rate],INDEX(TableOutpatientHourlyRates[Hourly Rate],MATCH(\"PSY Group\",TableOutpatientHourlyRates[Group Name],0))/60*TableOutpatientRates[[#This Row],[Minutes for Rate]]),\"\")","v":""},{"$f":"IF(TableOutpatientRates[[#This Row],[PT Group Allowed]]=\"Y\",IF(NOT(ISBLANK(TableOutpatientRates[[#This Row],[Standard Rate]])),TableOutpatientRates[Standard Rate],INDEX(TableOutpatientHourlyRates[Hourly Rate],MATCH(\"PT Group\",TableOutpatientHourlyRates[Group Name],0))/60*TableOutpatientRates[[#This Row],[Minutes for Rate]]),\"\")","v":""},{"$f":"IF(TableOutpatientRates[[#This Row],[RN Group Allowed]]=\"Y\",IF(NOT(ISBLANK(TableOutpatientRates[[#This Row],[Standard Rate]])),TableOutpatientRates[Standard Rate],INDEX(TableOutpatientHourlyRates[Hourly Rate],MATCH(\"RN Group\",TableOutpatientHourlyRates[Group Name],0))/60*TableOutpatientRates[[#This Row],[Minutes for Rate]]),\"\")","v":""}]
["99496","Transitional Care Management Services: Communication (direct contact, telephone, electronic) within 7 calendar days.","15","","","","","Y","Y","","","Y","","","","",null,{"$f":"IF(TableOutpatientRates[[#This Row],[AOD Group Allowed]]=\"Y\",IF(NOT(ISBLANK(TableOutpatientRates[[#This Row],[Standard Rate]])),TableOutpatientRates[Standard Rate],INDEX(TableOutpatientHourlyRates[Hourly Rate],MATCH(\"AOD Group\",TableOutpatientHourlyRates[Group Name],0))/60*TableOutpatientRates[[#This Row],[Minutes for Rate]]),\"\")","v":""},{"$f":"IF(TableOutpatientRates[[#This Row],[LPHA Group Allowed]]=\"Y\",IF(NOT(ISBLANK(TableOutpatientRates[[#This Row],[Standard Rate]])),TableOutpatientRates[Standard Rate],INDEX(TableOutpatientHourlyRates[Hourly Rate],MATCH(\"LPHA Group\",TableOutpatientHourlyRates[Group Name],0))/60*TableOutpatientRates[[#This Row],[Minutes for Rate]]),\"\")","v":""},{"$f":"IF(TableOutpatientRates[[#This Row],[LVN Group Allowed]]=\"Y\",IF(NOT(ISBLANK(TableOutpatientRates[[#This Row],[Standard Rate]])),TableOutpatientRates[Standard Rate],INDEX(TableOutpatientHourlyRates[Hourly Rate],MATCH(\"LVN Group\",TableOutpatientHourlyRates[Group Name],0))/60*TableOutpatientRates[[#This Row],[Minutes for Rate]]),\"\")","v":""},{"$f":"IF(TableOutpatientRates[[#This Row],[MA Group Allowed]]=\"Y\",IF(NOT(ISBLANK(TableOutpatientRates[[#This Row],[Standard Rate]])),TableOutpatientRates[Standard Rate],INDEX(TableOutpatientHourlyRates[Hourly Rate],MATCH(\"MA Group\",TableOutpatientHourlyRates[Group Name],0))/60*TableOutpatientRates[[#This Row],[Minutes for Rate]]),\"\")","v":""},{"$f":"IF(TableOutpatientRates[[#This Row],[MD Group Allowed]]=\"Y\",IF(NOT(ISBLANK(TableOutpatientRates[[#This Row],[Standard Rate]])),TableOutpatientRates[Standard Rate],INDEX(TableOutpatientHourlyRates[Hourly Rate],MATCH(\"MD Group\",TableOutpatientHourlyRates[Group Name],0))/60*TableOutpatientRates[[#This Row],[Minutes for Rate]]),\"\")","v":35},{"$f":"IF(TableOutpatientRates[[#This Row],[NP Group Allowed]]=\"Y\",IF(NOT(ISBLANK(TableOutpatientRates[[#This Row],[Standard Rate]])),TableOutpatientRates[Standard Rate],INDEX(TableOutpatientHourlyRates[Hourly Rate],MATCH(\"NP Group\",TableOutpatientHourlyRates[Group Name],0))/60*TableOutpatientRates[[#This Row],[Minutes for Rate]]),\"\")","v":37.5},{"$f":"IF(TableOutpatientRates[[#This Row],[OT Group Allowed]]=\"Y\",IF(NOT(ISBLANK(TableOutpatientRates[[#This Row],[Standard Rate]])),TableOutpatientRates[Standard Rate],INDEX(TableOutpatientHourlyRates[Hourly Rate],MATCH(\"OT Group\",TableOutpatientHourlyRates[Group Name],0))/60*TableOutpatientRates[[#This Row],[Minutes for Rate]]),\"\")","v":""},{"$f":"IF(TableOutpatientRates[[#This Row],[PA Group Allowed]]=\"Y\",IF(NOT(ISBLANK(TableOutpatientRates[[#This Row],[Standard Rate]])),TableOutpatientRates[Standard Rate],INDEX(TableOutpatientHourlyRates[Hourly Rate],MATCH(\"PA Group\",TableOutpatientHourlyRates[Group Name],0))/60*TableOutpatientRates[[#This Row],[Minutes for Rate]]),\"\")","v":42.5},{"$f":"IF(TableOutpatientRates[[#This Row],[PEER Group Allowed]]=\"Y\",IF(NOT(ISBLANK(TableOutpatientRates[[#This Row],[Standard Rate]])),TableOutpatientRates[Standard Rate],INDEX(TableOutpatientHourlyRates[Hourly Rate],MATCH(\"PEER Group\",TableOutpatientHourlyRates[Group Name],0))/60*TableOutpatientRates[[#This Row],[Minutes for Rate]]),\"\")","v":""},{"$f":"IF(TableOutpatientRates[[#This Row],[PHARM Group Allowed]]=\"Y\",IF(NOT(ISBLANK(TableOutpatientRates[[#This Row],[Standard Rate]])),TableOutpatientRates[Standard Rate],INDEX(TableOutpatientHourlyRates[Hourly Rate],MATCH(\"PHARM Group\",TableOutpatientHourlyRates[Group Name],0))/60*TableOutpatientRates[[#This Row],[Minutes for Rate]]),\"\")","v":""},{"$f":"IF(TableOutpatientRates[[#This Row],[PSY Group Allowed]]=\"Y\",IF(NOT(ISBLANK(TableOutpatientRates[[#This Row],[Standard Rate]])),TableOutpatientRates[Standard Rate],INDEX(TableOutpatientHourlyRates[Hourly Rate],MATCH(\"PSY Group\",TableOutpatientHourlyRates[Group Name],0))/60*TableOutpatientRates[[#This Row],[Minutes for Rate]]),\"\")","v":""},{"$f":"IF(TableOutpatientRates[[#This Row],[PT Group Allowed]]=\"Y\",IF(NOT(ISBLANK(TableOutpatientRates[[#This Row],[Standard Rate]])),TableOutpatientRates[Standard Rate],INDEX(TableOutpatientHourlyRates[Hourly Rate],MATCH(\"PT Group\",TableOutpatientHourlyRates[Group Name],0))/60*TableOutpatientRates[[#This Row],[Minutes for Rate]]),\"\")","v":""},{"$f":"IF(TableOutpatientRates[[#This Row],[RN Group Allowed]]=\"Y\",IF(NOT(ISBLANK(TableOutpatientRates[[#This Row],[Standard Rate]])),TableOutpatientRates[Standard Rate],INDEX(TableOutpatientHourlyRates[Hourly Rate],MATCH(\"RN Group\",TableOutpatientHourlyRates[Group Name],0))/60*TableOutpatientRates[[#This Row],[Minutes for Rate]]),\"\")","v":""}]
["G0396","Alcohol and/or substance (other than tobacco) abuse structured assessment.15-30 Minutes. (Note: Use codes G2011, G0396, and G0397 to determine the ASAM Criteria).","23","Y","Y","Y","","Y","Y","","","Y","Y","Y","Y","Y",null,{"$f":"IF(TableOutpatientRates[[#This Row],[AOD Group Allowed]]=\"Y\",IF(NOT(ISBLANK(TableOutpatientRates[[#This Row],[Standard Rate]])),TableOutpatientRates[Standard Rate],INDEX(TableOutpatientHourlyRates[Hourly Rate],MATCH(\"AOD Group\",TableOutpatientHourlyRates[Group Name],0))/60*TableOutpatientRates[[#This Row],[Minutes for Rate]]),\"\")","v":38.333333333333336},{"$f":"IF(TableOutpatientRates[[#This Row],[LPHA Group Allowed]]=\"Y\",IF(NOT(ISBLANK(TableOutpatientRates[[#This Row],[Standard Rate]])),TableOutpatientRates[Standard Rate],INDEX(TableOutpatientHourlyRates[Hourly Rate],MATCH(\"LPHA Group\",TableOutpatientHourlyRates[Group Name],0))/60*TableOutpatientRates[[#This Row],[Minutes for Rate]]),\"\")","v":42.166666666666664},{"$f":"IF(TableOutpatientRates[[#This Row],[LVN Group Allowed]]=\"Y\",IF(NOT(ISBLANK(TableOutpatientRates[[#This Row],[Standard Rate]])),TableOutpatientRates[Standard Rate],INDEX(TableOutpatientHourlyRates[Hourly Rate],MATCH(\"LVN Group\",TableOutpatientHourlyRates[Group Name],0))/60*TableOutpatientRates[[#This Row],[Minutes for Rate]]),\"\")","v":46},{"$f":"IF(TableOutpatientRates[[#This Row],[MA Group Allowed]]=\"Y\",IF(NOT(ISBLANK(TableOutpatientRates[[#This Row],[Standard Rate]])),TableOutpatientRates[Standard Rate],INDEX(TableOutpatientHourlyRates[Hourly Rate],MATCH(\"MA Group\",TableOutpatientHourlyRates[Group Name],0))/60*TableOutpatientRates[[#This Row],[Minutes for Rate]]),\"\")","v":""},{"$f":"IF(TableOutpatientRates[[#This Row],[MD Group Allowed]]=\"Y\",IF(NOT(ISBLANK(TableOutpatientRates[[#This Row],[Standard Rate]])),TableOutpatientRates[Standard Rate],INDEX(TableOutpatientHourlyRates[Hourly Rate],MATCH(\"MD Group\",TableOutpatientHourlyRates[Group Name],0))/60*TableOutpatientRates[[#This Row],[Minutes for Rate]]),\"\")","v":53.666666666666671},{"$f":"IF(TableOutpatientRates[[#This Row],[NP Group Allowed]]=\"Y\",IF(NOT(ISBLANK(TableOutpatientRates[[#This Row],[Standard Rate]])),TableOutpatientRates[Standard Rate],INDEX(TableOutpatientHourlyRates[Hourly Rate],MATCH(\"NP Group\",TableOutpatientHourlyRates[Group Name],0))/60*TableOutpatientRates[[#This Row],[Minutes for Rate]]),\"\")","v":57.5},{"$f":"IF(TableOutpatientRates[[#This Row],[OT Group Allowed]]=\"Y\",IF(NOT(ISBLANK(TableOutpatientRates[[#This Row],[Standard Rate]])),TableOutpatientRates[Standard Rate],INDEX(TableOutpatientHourlyRates[Hourly Rate],MATCH(\"OT Group\",TableOutpatientHourlyRates[Group Name],0))/60*TableOutpatientRates[[#This Row],[Minutes for Rate]]),\"\")","v":""},{"$f":"IF(TableOutpatientRates[[#This Row],[PA Group Allowed]]=\"Y\",IF(NOT(ISBLANK(TableOutpatientRates[[#This Row],[Standard Rate]])),TableOutpatientRates[Standard Rate],INDEX(TableOutpatientHourlyRates[Hourly Rate],MATCH(\"PA Group\",TableOutpatientHourlyRates[Group Name],0))/60*TableOutpatientRates[[#This Row],[Minutes for Rate]]),\"\")","v":65.166666666666671},{"$f":"IF(TableOutpatientRates[[#This Row],[PEER Group Allowed]]=\"Y\",IF(NOT(ISBLANK(TableOutpatientRates[[#This Row],[Standard Rate]])),TableOutpatientRates[Standard Rate],INDEX(TableOutpatientHourlyRates[Hourly Rate],MATCH(\"PEER Group\",TableOutpatientHourlyRates[Group Name],0))/60*TableOutpatientRates[[#This Row],[Minutes for Rate]]),\"\")","v":""},{"$f":"IF(TableOutpatientRates[[#This Row],[PHARM Group Allowed]]=\"Y\",IF(NOT(ISBLANK(TableOutpatientRates[[#This Row],[Standard Rate]])),TableOutpatientRates[Standard Rate],INDEX(TableOutpatientHourlyRates[Hourly Rate],MATCH(\"PHARM Group\",TableOutpatientHourlyRates[Group Name],0))/60*TableOutpatientRates[[#This Row],[Minutes for Rate]]),\"\")","v":72.833333333333329},{"$f":"IF(TableOutpatientRates[[#This Row],[PSY Group Allowed]]=\"Y\",IF(NOT(ISBLANK(TableOutpatientRates[[#This Row],[Standard Rate]])),TableOutpatientRates[Standard Rate],INDEX(TableOutpatientHourlyRates[Hourly Rate],MATCH(\"PSY Group\",TableOutpatientHourlyRates[Group Name],0))/60*TableOutpatientRates[[#This Row],[Minutes for Rate]]),\"\")","v":76.666666666666671},{"$f":"IF(TableOutpatientRates[[#This Row],[PT Group Allowed]]=\"Y\",IF(NOT(ISBLANK(TableOutpatientRates[[#This Row],[Standard Rate]])),TableOutpatientRates[Standard Rate],INDEX(TableOutpatientHourlyRates[Hourly Rate],MATCH(\"PT Group\",TableOutpatientHourlyRates[Group Name],0))/60*TableOutpatientRates[[#This Row],[Minutes for Rate]]),\"\")","v":80.5},{"$f":"IF(TableOutpatientRates[[#This Row],[RN Group Allowed]]=\"Y\",IF(NOT(ISBLANK(TableOutpatientRates[[#This Row],[Standard Rate]])),TableOutpatientRates[Standard Rate],INDEX(TableOutpatientHourlyRates[Hourly Rate],MATCH(\"RN Group\",TableOutpatientHourlyRates[Group Name],0))/60*TableOutpatientRates[[#This Row],[Minutes for Rate]]),\"\")","v":84.333333333333329}]
["G0397","Alcohol and/or substance (other than tobacco) abuse structured assessment.30+ Minutes. (Note: Use codes G2011, G0396, and G0397 to determine the ASAM Criteria)","60","Y","Y","Y","","Y","Y","","","Y","Y","Y","Y","Y",null,{"$f":"IF(TableOutpatientRates[[#This Row],[AOD Group Allowed]]=\"Y\",IF(NOT(ISBLANK(TableOutpatientRates[[#This Row],[Standard Rate]])),TableOutpatientRates[Standard Rate],INDEX(TableOutpatientHourlyRates[Hourly Rate],MATCH(\"AOD Group\",TableOutpatientHourlyRates[Group Name],0))/60*TableOutpatientRates[[#This Row],[Minutes for Rate]]),\"\")","v":100},{"$f":"IF(TableOutpatientRates[[#This Row],[LPHA Group Allowed]]=\"Y\",IF(NOT(ISBLANK(TableOutpatientRates[[#This Row],[Standard Rate]])),TableOutpatientRates[Standard Rate],INDEX(TableOutpatientHourlyRates[Hourly Rate],MATCH(\"LPHA Group\",TableOutpatientHourlyRates[Group Name],0))/60*TableOutpatientRates[[#This Row],[Minutes for Rate]]),\"\")","v":110},{"$f":"IF(TableOutpatientRates[[#This Row],[LVN Group Allowed]]=\"Y\",IF(NOT(ISBLANK(TableOutpatientRates[[#This Row],[Standard Rate]])),TableOutpatientRates[Standard Rate],INDEX(TableOutpatientHourlyRates[Hourly Rate],MATCH(\"LVN Group\",TableOutpatientHourlyRates[Group Name],0))/60*TableOutpatientRates[[#This Row],[Minutes for Rate]]),\"\")","v":120},{"$f":"IF(TableOutpatientRates[[#This Row],[MA Group Allowed]]=\"Y\",IF(NOT(ISBLANK(TableOutpatientRates[[#This Row],[Standard Rate]])),TableOutpatientRates[Standard Rate],INDEX(TableOutpatientHourlyRates[Hourly Rate],MATCH(\"MA Group\",TableOutpatientHourlyRates[Group Name],0))/60*TableOutpatientRates[[#This Row],[Minutes for Rate]]),\"\")","v":""},{"$f":"IF(TableOutpatientRates[[#This Row],[MD Group Allowed]]=\"Y\",IF(NOT(ISBLANK(TableOutpatientRates[[#This Row],[Standard Rate]])),TableOutpatientRates[Standard Rate],INDEX(TableOutpatientHourlyRates[Hourly Rate],MATCH(\"MD Group\",TableOutpatientHourlyRates[Group Name],0))/60*TableOutpatientRates[[#This Row],[Minutes for Rate]]),\"\")","v":140},{"$f":"IF(TableOutpatientRates[[#This Row],[NP Group Allowed]]=\"Y\",IF(NOT(ISBLANK(TableOutpatientRates[[#This Row],[Standard Rate]])),TableOutpatientRates[Standard Rate],INDEX(TableOutpatientHourlyRates[Hourly Rate],MATCH(\"NP Group\",TableOutpatientHourlyRates[Group Name],0))/60*TableOutpatientRates[[#This Row],[Minutes for Rate]]),\"\")","v":150},{"$f":"IF(TableOutpatientRates[[#This Row],[OT Group Allowed]]=\"Y\",IF(NOT(ISBLANK(TableOutpatientRates[[#This Row],[Standard Rate]])),TableOutpatientRates[Standard Rate],INDEX(TableOutpatientHourlyRates[Hourly Rate],MATCH(\"OT Group\",TableOutpatientHourlyRates[Group Name],0))/60*TableOutpatientRates[[#This Row],[Minutes for Rate]]),\"\")","v":""},{"$f":"IF(TableOutpatientRates[[#This Row],[PA Group Allowed]]=\"Y\",IF(NOT(ISBLANK(TableOutpatientRates[[#This Row],[Standard Rate]])),TableOutpatientRates[Standard Rate],INDEX(TableOutpatientHourlyRates[Hourly Rate],MATCH(\"PA Group\",TableOutpatientHourlyRates[Group Name],0))/60*TableOutpatientRates[[#This Row],[Minutes for Rate]]),\"\")","v":170},{"$f":"IF(TableOutpatientRates[[#This Row],[PEER Group Allowed]]=\"Y\",IF(NOT(ISBLANK(TableOutpatientRates[[#This Row],[Standard Rate]])),TableOutpatientRates[Standard Rate],INDEX(TableOutpatientHourlyRates[Hourly Rate],MATCH(\"PEER Group\",TableOutpatientHourlyRates[Group Name],0))/60*TableOutpatientRates[[#This Row],[Minutes for Rate]]),\"\")","v":""},{"$f":"IF(TableOutpatientRates[[#This Row],[PHARM Group Allowed]]=\"Y\",IF(NOT(ISBLANK(TableOutpatientRates[[#This Row],[Standard Rate]])),TableOutpatientRates[Standard Rate],INDEX(TableOutpatientHourlyRates[Hourly Rate],MATCH(\"PHARM Group\",TableOutpatientHourlyRates[Group Name],0))/60*TableOutpatientRates[[#This Row],[Minutes for Rate]]),\"\")","v":190},{"$f":"IF(TableOutpatientRates[[#This Row],[PSY Group Allowed]]=\"Y\",IF(NOT(ISBLANK(TableOutpatientRates[[#This Row],[Standard Rate]])),TableOutpatientRates[Standard Rate],INDEX(TableOutpatientHourlyRates[Hourly Rate],MATCH(\"PSY Group\",TableOutpatientHourlyRates[Group Name],0))/60*TableOutpatientRates[[#This Row],[Minutes for Rate]]),\"\")","v":200},{"$f":"IF(TableOutpatientRates[[#This Row],[PT Group Allowed]]=\"Y\",IF(NOT(ISBLANK(TableOutpatientRates[[#This Row],[Standard Rate]])),TableOutpatientRates[Standard Rate],INDEX(TableOutpatientHourlyRates[Hourly Rate],MATCH(\"PT Group\",TableOutpatientHourlyRates[Group Name],0))/60*TableOutpatientRates[[#This Row],[Minutes for Rate]]),\"\")","v":210},{"$f":"IF(TableOutpatientRates[[#This Row],[RN Group Allowed]]=\"Y\",IF(NOT(ISBLANK(TableOutpatientRates[[#This Row],[Standard Rate]])),TableOutpatientRates[Standard Rate],INDEX(TableOutpatientHourlyRates[Hourly Rate],MATCH(\"RN Group\",TableOutpatientHourlyRates[Group Name],0))/60*TableOutpatientRates[[#This Row],[Minutes for Rate]]),\"\")","v":220}]
["G2011","Alcohol and/or substance (other than tobacco) abuse structured assessment 5 -14 Min. (Note: Use codes G2011, G0396, and G0397 to determine the ASAM Criteria).","10","Y","Y","Y","","Y","Y","","","Y","Y","Y","Y","Y",null,{"$f":"IF(TableOutpatientRates[[#This Row],[AOD Group Allowed]]=\"Y\",IF(NOT(ISBLANK(TableOutpatientRates[[#This Row],[Standard Rate]])),TableOutpatientRates[Standard Rate],INDEX(TableOutpatientHourlyRates[Hourly Rate],MATCH(\"AOD Group\",TableOutpatientHourlyRates[Group Name],0))/60*TableOutpatientRates[[#This Row],[Minutes for Rate]]),\"\")","v":16.666666666666668},{"$f":"IF(TableOutpatientRates[[#This Row],[LPHA Group Allowed]]=\"Y\",IF(NOT(ISBLANK(TableOutpatientRates[[#This Row],[Standard Rate]])),TableOutpatientRates[Standard Rate],INDEX(TableOutpatientHourlyRates[Hourly Rate],MATCH(\"LPHA Group\",TableOutpatientHourlyRates[Group Name],0))/60*TableOutpatientRates[[#This Row],[Minutes for Rate]]),\"\")","v":18.333333333333332},{"$f":"IF(TableOutpatientRates[[#This Row],[LVN Group Allowed]]=\"Y\",IF(NOT(ISBLANK(TableOutpatientRates[[#This Row],[Standard Rate]])),TableOutpatientRates[Standard Rate],INDEX(TableOutpatientHourlyRates[Hourly Rate],MATCH(\"LVN Group\",TableOutpatientHourlyRates[Group Name],0))/60*TableOutpatientRates[[#This Row],[Minutes for Rate]]),\"\")","v":20},{"$f":"IF(TableOutpatientRates[[#This Row],[MA Group Allowed]]=\"Y\",IF(NOT(ISBLANK(TableOutpatientRates[[#This Row],[Standard Rate]])),TableOutpatientRates[Standard Rate],INDEX(TableOutpatientHourlyRates[Hourly Rate],MATCH(\"MA Group\",TableOutpatientHourlyRates[Group Name],0))/60*TableOutpatientRates[[#This Row],[Minutes for Rate]]),\"\")","v":""},{"$f":"IF(TableOutpatientRates[[#This Row],[MD Group Allowed]]=\"Y\",IF(NOT(ISBLANK(TableOutpatientRates[[#This Row],[Standard Rate]])),TableOutpatientRates[Standard Rate],INDEX(TableOutpatientHourlyRates[Hourly Rate],MATCH(\"MD Group\",TableOutpatientHourlyRates[Group Name],0))/60*TableOutpatientRates[[#This Row],[Minutes for Rate]]),\"\")","v":23.333333333333336},{"$f":"IF(TableOutpatientRates[[#This Row],[NP Group Allowed]]=\"Y\",IF(NOT(ISBLANK(TableOutpatientRates[[#This Row],[Standard Rate]])),TableOutpatientRates[Standard Rate],INDEX(TableOutpatientHourlyRates[Hourly Rate],MATCH(\"NP Group\",TableOutpatientHourlyRates[Group Name],0))/60*TableOutpatientRates[[#This Row],[Minutes for Rate]]),\"\")","v":25},{"$f":"IF(TableOutpatientRates[[#This Row],[OT Group Allowed]]=\"Y\",IF(NOT(ISBLANK(TableOutpatientRates[[#This Row],[Standard Rate]])),TableOutpatientRates[Standard Rate],INDEX(TableOutpatientHourlyRates[Hourly Rate],MATCH(\"OT Group\",TableOutpatientHourlyRates[Group Name],0))/60*TableOutpatientRates[[#This Row],[Minutes for Rate]]),\"\")","v":""},{"$f":"IF(TableOutpatientRates[[#This Row],[PA Group Allowed]]=\"Y\",IF(NOT(ISBLANK(TableOutpatientRates[[#This Row],[Standard Rate]])),TableOutpatientRates[Standard Rate],INDEX(TableOutpatientHourlyRates[Hourly Rate],MATCH(\"PA Group\",TableOutpatientHourlyRates[Group Name],0))/60*TableOutpatientRates[[#This Row],[Minutes for Rate]]),\"\")","v":28.333333333333336},{"$f":"IF(TableOutpatientRates[[#This Row],[PEER Group Allowed]]=\"Y\",IF(NOT(ISBLANK(TableOutpatientRates[[#This Row],[Standard Rate]])),TableOutpatientRates[Standard Rate],INDEX(TableOutpatientHourlyRates[Hourly Rate],MATCH(\"PEER Group\",TableOutpatientHourlyRates[Group Name],0))/60*TableOutpatientRates[[#This Row],[Minutes for Rate]]),\"\")","v":""},{"$f":"IF(TableOutpatientRates[[#This Row],[PHARM Group Allowed]]=\"Y\",IF(NOT(ISBLANK(TableOutpatientRates[[#This Row],[Standard Rate]])),TableOutpatientRates[Standard Rate],INDEX(TableOutpatientHourlyRates[Hourly Rate],MATCH(\"PHARM Group\",TableOutpatientHourlyRates[Group Name],0))/60*TableOutpatientRates[[#This Row],[Minutes for Rate]]),\"\")","v":31.666666666666664},{"$f":"IF(TableOutpatientRates[[#This Row],[PSY Group Allowed]]=\"Y\",IF(NOT(ISBLANK(TableOutpatientRates[[#This Row],[Standard Rate]])),TableOutpatientRates[Standard Rate],INDEX(TableOutpatientHourlyRates[Hourly Rate],MATCH(\"PSY Group\",TableOutpatientHourlyRates[Group Name],0))/60*TableOutpatientRates[[#This Row],[Minutes for Rate]]),\"\")","v":33.333333333333336},{"$f":"IF(TableOutpatientRates[[#This Row],[PT Group Allowed]]=\"Y\",IF(NOT(ISBLANK(TableOutpatientRates[[#This Row],[Standard Rate]])),TableOutpatientRates[Standard Rate],INDEX(TableOutpatientHourlyRates[Hourly Rate],MATCH(\"PT Group\",TableOutpatientHourlyRates[Group Name],0))/60*TableOutpatientRates[[#This Row],[Minutes for Rate]]),\"\")","v":35},{"$f":"IF(TableOutpatientRates[[#This Row],[RN Group Allowed]]=\"Y\",IF(NOT(ISBLANK(TableOutpatientRates[[#This Row],[Standard Rate]])),TableOutpatientRates[Standard Rate],INDEX(TableOutpatientHourlyRates[Hourly Rate],MATCH(\"RN Group\",TableOutpatientHourlyRates[Group Name],0))/60*TableOutpatientRates[[#This Row],[Minutes for Rate]]),\"\")","v":36.666666666666664}]
["G2212","Prolonged Office or Other Outpatient Evaluation and Management Service(s) beyond the Maximum Time; Each Additional 15 Minutes","15","Y","Y","Y","Y","Y","Y","Y","","Y","Y","Y","Y","Y",null,{"$f":"IF(TableOutpatientRates[[#This Row],[AOD Group Allowed]]=\"Y\",IF(NOT(ISBLANK(TableOutpatientRates[[#This Row],[Standard Rate]])),TableOutpatientRates[Standard Rate],INDEX(TableOutpatientHourlyRates[Hourly Rate],MATCH(\"AOD Group\",TableOutpatientHourlyRates[Group Name],0))/60*TableOutpatientRates[[#This Row],[Minutes for Rate]]),\"\")","v":25},{"$f":"IF(TableOutpatientRates[[#This Row],[LPHA Group Allowed]]=\"Y\",IF(NOT(ISBLANK(TableOutpatientRates[[#This Row],[Standard Rate]])),TableOutpatientRates[Standard Rate],INDEX(TableOutpatientHourlyRates[Hourly Rate],MATCH(\"LPHA Group\",TableOutpatientHourlyRates[Group Name],0))/60*TableOutpatientRates[[#This Row],[Minutes for Rate]]),\"\")","v":27.5},{"$f":"IF(TableOutpatientRates[[#This Row],[LVN Group Allowed]]=\"Y\",IF(NOT(ISBLANK(TableOutpatientRates[[#This Row],[Standard Rate]])),TableOutpatientRates[Standard Rate],INDEX(TableOutpatientHourlyRates[Hourly Rate],MATCH(\"LVN Group\",TableOutpatientHourlyRates[Group Name],0))/60*TableOutpatientRates[[#This Row],[Minutes for Rate]]),\"\")","v":30},{"$f":"IF(TableOutpatientRates[[#This Row],[MA Group Allowed]]=\"Y\",IF(NOT(ISBLANK(TableOutpatientRates[[#This Row],[Standard Rate]])),TableOutpatientRates[Standard Rate],INDEX(TableOutpatientHourlyRates[Hourly Rate],MATCH(\"MA Group\",TableOutpatientHourlyRates[Group Name],0))/60*TableOutpatientRates[[#This Row],[Minutes for Rate]]),\"\")","v":32.5},{"$f":"IF(TableOutpatientRates[[#This Row],[MD Group Allowed]]=\"Y\",IF(NOT(ISBLANK(TableOutpatientRates[[#This Row],[Standard Rate]])),TableOutpatientRates[Standard Rate],INDEX(TableOutpatientHourlyRates[Hourly Rate],MATCH(\"MD Group\",TableOutpatientHourlyRates[Group Name],0))/60*TableOutpatientRates[[#This Row],[Minutes for Rate]]),\"\")","v":35},{"$f":"IF(TableOutpatientRates[[#This Row],[NP Group Allowed]]=\"Y\",IF(NOT(ISBLANK(TableOutpatientRates[[#This Row],[Standard Rate]])),TableOutpatientRates[Standard Rate],INDEX(TableOutpatientHourlyRates[Hourly Rate],MATCH(\"NP Group\",TableOutpatientHourlyRates[Group Name],0))/60*TableOutpatientRates[[#This Row],[Minutes for Rate]]),\"\")","v":37.5},{"$f":"IF(TableOutpatientRates[[#This Row],[OT Group Allowed]]=\"Y\",IF(NOT(ISBLANK(TableOutpatientRates[[#This Row],[Standard Rate]])),TableOutpatientRates[Standard Rate],INDEX(TableOutpatientHourlyRates[Hourly Rate],MATCH(\"OT Group\",TableOutpatientHourlyRates[Group Name],0))/60*TableOutpatientRates[[#This Row],[Minutes for Rate]]),\"\")","v":40},{"$f":"IF(TableOutpatientRates[[#This Row],[PA Group Allowed]]=\"Y\",IF(NOT(ISBLANK(TableOutpatientRates[[#This Row],[Standard Rate]])),TableOutpatientRates[Standard Rate],INDEX(TableOutpatientHourlyRates[Hourly Rate],MATCH(\"PA Group\",TableOutpatientHourlyRates[Group Name],0))/60*TableOutpatientRates[[#This Row],[Minutes for Rate]]),\"\")","v":42.5},{"$f":"IF(TableOutpatientRates[[#This Row],[PEER Group Allowed]]=\"Y\",IF(NOT(ISBLANK(TableOutpatientRates[[#This Row],[Standard Rate]])),TableOutpatientRates[Standard Rate],INDEX(TableOutpatientHourlyRates[Hourly Rate],MATCH(\"PEER Group\",TableOutpatientHourlyRates[Group Name],0))/60*TableOutpatientRates[[#This Row],[Minutes for Rate]]),\"\")","v":""},{"$f":"IF(TableOutpatientRates[[#This Row],[PHARM Group Allowed]]=\"Y\",IF(NOT(ISBLANK(TableOutpatientRates[[#This Row],[Standard Rate]])),TableOutpatientRates[Standard Rate],INDEX(TableOutpatientHourlyRates[Hourly Rate],MATCH(\"PHARM Group\",TableOutpatientHourlyRates[Group Name],0))/60*TableOutpatientRates[[#This Row],[Minutes for Rate]]),\"\")","v":47.5},{"$f":"IF(TableOutpatientRates[[#This Row],[PSY Group Allowed]]=\"Y\",IF(NOT(ISBLANK(TableOutpatientRates[[#This Row],[Standard Rate]])),TableOutpatientRates[Standard Rate],INDEX(TableOutpatientHourlyRates[Hourly Rate],MATCH(\"PSY Group\",TableOutpatientHourlyRates[Group Name],0))/60*TableOutpatientRates[[#This Row],[Minutes for Rate]]),\"\")","v":50},{"$f":"IF(TableOutpatientRates[[#This Row],[PT Group Allowed]]=\"Y\",IF(NOT(ISBLANK(TableOutpatientRates[[#This Row],[Standard Rate]])),TableOutpatientRates[Standard Rate],INDEX(TableOutpatientHourlyRates[Hourly Rate],MATCH(\"PT Group\",TableOutpatientHourlyRates[Group Name],0))/60*TableOutpatientRates[[#This Row],[Minutes for Rate]]),\"\")","v":52.5},{"$f":"IF(TableOutpatientRates[[#This Row],[RN Group Allowed]]=\"Y\",IF(NOT(ISBLANK(TableOutpatientRates[[#This Row],[Standard Rate]])),TableOutpatientRates[Standard Rate],INDEX(TableOutpatientHourlyRates[Hourly Rate],MATCH(\"RN Group\",TableOutpatientHourlyRates[Group Name],0))/60*TableOutpatientRates[[#This Row],[Minutes for Rate]]),\"\")","v":55}]
["H0001","Alcohol and/or drug assessment. (Note: Use this code for screening to determine the appropriate delivery system for beneficiaries seeking services)","15","Y","Y","Y","Y","Y","Y","Y","","Y","Y","Y","Y","Y",null,{"$f":"IF(TableOutpatientRates[[#This Row],[AOD Group Allowed]]=\"Y\",IF(NOT(ISBLANK(TableOutpatientRates[[#This Row],[Standard Rate]])),TableOutpatientRates[Standard Rate],INDEX(TableOutpatientHourlyRates[Hourly Rate],MATCH(\"AOD Group\",TableOutpatientHourlyRates[Group Name],0))/60*TableOutpatientRates[[#This Row],[Minutes for Rate]]),\"\")","v":25},{"$f":"IF(TableOutpatientRates[[#This Row],[LPHA Group Allowed]]=\"Y\",IF(NOT(ISBLANK(TableOutpatientRates[[#This Row],[Standard Rate]])),TableOutpatientRates[Standard Rate],INDEX(TableOutpatientHourlyRates[Hourly Rate],MATCH(\"LPHA Group\",TableOutpatientHourlyRates[Group Name],0))/60*TableOutpatientRates[[#This Row],[Minutes for Rate]]),\"\")","v":27.5},{"$f":"IF(TableOutpatientRates[[#This Row],[LVN Group Allowed]]=\"Y\",IF(NOT(ISBLANK(TableOutpatientRates[[#This Row],[Standard Rate]])),TableOutpatientRates[Standard Rate],INDEX(TableOutpatientHourlyRates[Hourly Rate],MATCH(\"LVN Group\",TableOutpatientHourlyRates[Group Name],0))/60*TableOutpatientRates[[#This Row],[Minutes for Rate]]),\"\")","v":30},{"$f":"IF(TableOutpatientRates[[#This Row],[MA Group Allowed]]=\"Y\",IF(NOT(ISBLANK(TableOutpatientRates[[#This Row],[Standard Rate]])),TableOutpatientRates[Standard Rate],INDEX(TableOutpatientHourlyRates[Hourly Rate],MATCH(\"MA Group\",TableOutpatientHourlyRates[Group Name],0))/60*TableOutpatientRates[[#This Row],[Minutes for Rate]]),\"\")","v":32.5},{"$f":"IF(TableOutpatientRates[[#This Row],[MD Group Allowed]]=\"Y\",IF(NOT(ISBLANK(TableOutpatientRates[[#This Row],[Standard Rate]])),TableOutpatientRates[Standard Rate],INDEX(TableOutpatientHourlyRates[Hourly Rate],MATCH(\"MD Group\",TableOutpatientHourlyRates[Group Name],0))/60*TableOutpatientRates[[#This Row],[Minutes for Rate]]),\"\")","v":35},{"$f":"IF(TableOutpatientRates[[#This Row],[NP Group Allowed]]=\"Y\",IF(NOT(ISBLANK(TableOutpatientRates[[#This Row],[Standard Rate]])),TableOutpatientRates[Standard Rate],INDEX(TableOutpatientHourlyRates[Hourly Rate],MATCH(\"NP Group\",TableOutpatientHourlyRates[Group Name],0))/60*TableOutpatientRates[[#This Row],[Minutes for Rate]]),\"\")","v":37.5},{"$f":"IF(TableOutpatientRates[[#This Row],[OT Group Allowed]]=\"Y\",IF(NOT(ISBLANK(TableOutpatientRates[[#This Row],[Standard Rate]])),TableOutpatientRates[Standard Rate],INDEX(TableOutpatientHourlyRates[Hourly Rate],MATCH(\"OT Group\",TableOutpatientHourlyRates[Group Name],0))/60*TableOutpatientRates[[#This Row],[Minutes for Rate]]),\"\")","v":40},{"$f":"IF(TableOutpatientRates[[#This Row],[PA Group Allowed]]=\"Y\",IF(NOT(ISBLANK(TableOutpatientRates[[#This Row],[Standard Rate]])),TableOutpatientRates[Standard Rate],INDEX(TableOutpatientHourlyRates[Hourly Rate],MATCH(\"PA Group\",TableOutpatientHourlyRates[Group Name],0))/60*TableOutpatientRates[[#This Row],[Minutes for Rate]]),\"\")","v":42.5},{"$f":"IF(TableOutpatientRates[[#This Row],[PEER Group Allowed]]=\"Y\",IF(NOT(ISBLANK(TableOutpatientRates[[#This Row],[Standard Rate]])),TableOutpatientRates[Standard Rate],INDEX(TableOutpatientHourlyRates[Hourly Rate],MATCH(\"PEER Group\",TableOutpatientHourlyRates[Group Name],0))/60*TableOutpatientRates[[#This Row],[Minutes for Rate]]),\"\")","v":""},{"$f":"IF(TableOutpatientRates[[#This Row],[PHARM Group Allowed]]=\"Y\",IF(NOT(ISBLANK(TableOutpatientRates[[#This Row],[Standard Rate]])),TableOutpatientRates[Standard Rate],INDEX(TableOutpatientHourlyRates[Hourly Rate],MATCH(\"PHARM Group\",TableOutpatientHourlyRates[Group Name],0))/60*TableOutpatientRates[[#This Row],[Minutes for Rate]]),\"\")","v":47.5},{"$f":"IF(TableOutpatientRates[[#This Row],[PSY Group Allowed]]=\"Y\",IF(NOT(ISBLANK(TableOutpatientRates[[#This Row],[Standard Rate]])),TableOutpatientRates[Standard Rate],INDEX(TableOutpatientHourlyRates[Hourly Rate],MATCH(\"PSY Group\",TableOutpatientHourlyRates[Group Name],0))/60*TableOutpatientRates[[#This Row],[Minutes for Rate]]),\"\")","v":50},{"$f":"IF(TableOutpatientRates[[#This Row],[PT Group Allowed]]=\"Y\",IF(NOT(ISBLANK(TableOutpatientRates[[#This Row],[Standard Rate]])),TableOutpatientRates[Standard Rate],INDEX(TableOutpatientHourlyRates[Hourly Rate],MATCH(\"PT Group\",TableOutpatientHourlyRates[Group Name],0))/60*TableOutpatientRates[[#This Row],[Minutes for Rate]]),\"\")","v":52.5},{"$f":"IF(TableOutpatientRates[[#This Row],[RN Group Allowed]]=\"Y\",IF(NOT(ISBLANK(TableOutpatientRates[[#This Row],[Standard Rate]])),TableOutpatientRates[Standard Rate],INDEX(TableOutpatientHourlyRates[Hourly Rate],MATCH(\"RN Group\",TableOutpatientHourlyRates[Group Name],0))/60*TableOutpatientRates[[#This Row],[Minutes for Rate]]),\"\")","v":55}]
["H0003","Alcohol and/or drug screening. Laboratory analysis","15","","","Y","Y","Y","Y","","","Y","","Y","Y","Y",null,{"$f":"IF(TableOutpatientRates[[#This Row],[AOD Group Allowed]]=\"Y\",IF(NOT(ISBLANK(TableOutpatientRates[[#This Row],[Standard Rate]])),TableOutpatientRates[Standard Rate],INDEX(TableOutpatientHourlyRates[Hourly Rate],MATCH(\"AOD Group\",TableOutpatientHourlyRates[Group Name],0))/60*TableOutpatientRates[[#This Row],[Minutes for Rate]]),\"\")","v":""},{"$f":"IF(TableOutpatientRates[[#This Row],[LPHA Group Allowed]]=\"Y\",IF(NOT(ISBLANK(TableOutpatientRates[[#This Row],[Standard Rate]])),TableOutpatientRates[Standard Rate],INDEX(TableOutpatientHourlyRates[Hourly Rate],MATCH(\"LPHA Group\",TableOutpatientHourlyRates[Group Name],0))/60*TableOutpatientRates[[#This Row],[Minutes for Rate]]),\"\")","v":""},{"$f":"IF(TableOutpatientRates[[#This Row],[LVN Group Allowed]]=\"Y\",IF(NOT(ISBLANK(TableOutpatientRates[[#This Row],[Standard Rate]])),TableOutpatientRates[Standard Rate],INDEX(TableOutpatientHourlyRates[Hourly Rate],MATCH(\"LVN Group\",TableOutpatientHourlyRates[Group Name],0))/60*TableOutpatientRates[[#This Row],[Minutes for Rate]]),\"\")","v":30},{"$f":"IF(TableOutpatientRates[[#This Row],[MA Group Allowed]]=\"Y\",IF(NOT(ISBLANK(TableOutpatientRates[[#This Row],[Standard Rate]])),TableOutpatientRates[Standard Rate],INDEX(TableOutpatientHourlyRates[Hourly Rate],MATCH(\"MA Group\",TableOutpatientHourlyRates[Group Name],0))/60*TableOutpatientRates[[#This Row],[Minutes for Rate]]),\"\")","v":32.5},{"$f":"IF(TableOutpatientRates[[#This Row],[MD Group Allowed]]=\"Y\",IF(NOT(ISBLANK(TableOutpatientRates[[#This Row],[Standard Rate]])),TableOutpatientRates[Standard Rate],INDEX(TableOutpatientHourlyRates[Hourly Rate],MATCH(\"MD Group\",TableOutpatientHourlyRates[Group Name],0))/60*TableOutpatientRates[[#This Row],[Minutes for Rate]]),\"\")","v":35},{"$f":"IF(TableOutpatientRates[[#This Row],[NP Group Allowed]]=\"Y\",IF(NOT(ISBLANK(TableOutpatientRates[[#This Row],[Standard Rate]])),TableOutpatientRates[Standard Rate],INDEX(TableOutpatientHourlyRates[Hourly Rate],MATCH(\"NP Group\",TableOutpatientHourlyRates[Group Name],0))/60*TableOutpatientRates[[#This Row],[Minutes for Rate]]),\"\")","v":37.5},{"$f":"IF(TableOutpatientRates[[#This Row],[OT Group Allowed]]=\"Y\",IF(NOT(ISBLANK(TableOutpatientRates[[#This Row],[Standard Rate]])),TableOutpatientRates[Standard Rate],INDEX(TableOutpatientHourlyRates[Hourly Rate],MATCH(\"OT Group\",TableOutpatientHourlyRates[Group Name],0))/60*TableOutpatientRates[[#This Row],[Minutes for Rate]]),\"\")","v":""},{"$f":"IF(TableOutpatientRates[[#This Row],[PA Group Allowed]]=\"Y\",IF(NOT(ISBLANK(TableOutpatientRates[[#This Row],[Standard Rate]])),TableOutpatientRates[Standard Rate],INDEX(TableOutpatientHourlyRates[Hourly Rate],MATCH(\"PA Group\",TableOutpatientHourlyRates[Group Name],0))/60*TableOutpatientRates[[#This Row],[Minutes for Rate]]),\"\")","v":42.5},{"$f":"IF(TableOutpatientRates[[#This Row],[PEER Group Allowed]]=\"Y\",IF(NOT(ISBLANK(TableOutpatientRates[[#This Row],[Standard Rate]])),TableOutpatientRates[Standard Rate],INDEX(TableOutpatientHourlyRates[Hourly Rate],MATCH(\"PEER Group\",TableOutpatientHourlyRates[Group Name],0))/60*TableOutpatientRates[[#This Row],[Minutes for Rate]]),\"\")","v":""},{"$f":"IF(TableOutpatientRates[[#This Row],[PHARM Group Allowed]]=\"Y\",IF(NOT(ISBLANK(TableOutpatientRates[[#This Row],[Standard Rate]])),TableOutpatientRates[Standard Rate],INDEX(TableOutpatientHourlyRates[Hourly Rate],MATCH(\"PHARM Group\",TableOutpatientHourlyRates[Group Name],0))/60*TableOutpatientRates[[#This Row],[Minutes for Rate]]),\"\")","v":47.5},{"$f":"IF(TableOutpatientRates[[#This Row],[PSY Group Allowed]]=\"Y\",IF(NOT(ISBLANK(TableOutpatientRates[[#This Row],[Standard Rate]])),TableOutpatientRates[Standard Rate],INDEX(TableOutpatientHourlyRates[Hourly Rate],MATCH(\"PSY Group\",TableOutpatientHourlyRates[Group Name],0))/60*TableOutpatientRates[[#This Row],[Minutes for Rate]]),\"\")","v":""},{"$f":"IF(TableOutpatientRates[[#This Row],[PT Group Allowed]]=\"Y\",IF(NOT(ISBLANK(TableOutpatientRates[[#This Row],[Standard Rate]])),TableOutpatientRates[Standard Rate],INDEX(TableOutpatientHourlyRates[Hourly Rate],MATCH(\"PT Group\",TableOutpatientHourlyRates[Group Name],0))/60*TableOutpatientRates[[#This Row],[Minutes for Rate]]),\"\")","v":52.5},{"$f":"IF(TableOutpatientRates[[#This Row],[RN Group Allowed]]=\"Y\",IF(NOT(ISBLANK(TableOutpatientRates[[#This Row],[Standard Rate]])),TableOutpatientRates[Standard Rate],INDEX(TableOutpatientHourlyRates[Hourly Rate],MATCH(\"RN Group\",TableOutpatientHourlyRates[Group Name],0))/60*TableOutpatientRates[[#This Row],[Minutes for Rate]]),\"\")","v":55}]
["H0004","Behavioral health counseling and therapy, 15 minutes.","15","Y","Y","","","Y","Y","Y","","Y","Y","","Y","",null,{"$f":"IF(TableOutpatientRates[[#This Row],[AOD Group Allowed]]=\"Y\",IF(NOT(ISBLANK(TableOutpatientRates[[#This Row],[Standard Rate]])),TableOutpatientRates[Standard Rate],INDEX(TableOutpatientHourlyRates[Hourly Rate],MATCH(\"AOD Group\",TableOutpatientHourlyRates[Group Name],0))/60*TableOutpatientRates[[#This Row],[Minutes for Rate]]),\"\")","v":25},{"$f":"IF(TableOutpatientRates[[#This Row],[LPHA Group Allowed]]=\"Y\",IF(NOT(ISBLANK(TableOutpatientRates[[#This Row],[Standard Rate]])),TableOutpatientRates[Standard Rate],INDEX(TableOutpatientHourlyRates[Hourly Rate],MATCH(\"LPHA Group\",TableOutpatientHourlyRates[Group Name],0))/60*TableOutpatientRates[[#This Row],[Minutes for Rate]]),\"\")","v":27.5},{"$f":"IF(TableOutpatientRates[[#This Row],[LVN Group Allowed]]=\"Y\",IF(NOT(ISBLANK(TableOutpatientRates[[#This Row],[Standard Rate]])),TableOutpatientRates[Standard Rate],INDEX(TableOutpatientHourlyRates[Hourly Rate],MATCH(\"LVN Group\",TableOutpatientHourlyRates[Group Name],0))/60*TableOutpatientRates[[#This Row],[Minutes for Rate]]),\"\")","v":""},{"$f":"IF(TableOutpatientRates[[#This Row],[MA Group Allowed]]=\"Y\",IF(NOT(ISBLANK(TableOutpatientRates[[#This Row],[Standard Rate]])),TableOutpatientRates[Standard Rate],INDEX(TableOutpatientHourlyRates[Hourly Rate],MATCH(\"MA Group\",TableOutpatientHourlyRates[Group Name],0))/60*TableOutpatientRates[[#This Row],[Minutes for Rate]]),\"\")","v":""},{"$f":"IF(TableOutpatientRates[[#This Row],[MD Group Allowed]]=\"Y\",IF(NOT(ISBLANK(TableOutpatientRates[[#This Row],[Standard Rate]])),TableOutpatientRates[Standard Rate],INDEX(TableOutpatientHourlyRates[Hourly Rate],MATCH(\"MD Group\",TableOutpatientHourlyRates[Group Name],0))/60*TableOutpatientRates[[#This Row],[Minutes for Rate]]),\"\")","v":35},{"$f":"IF(TableOutpatientRates[[#This Row],[NP Group Allowed]]=\"Y\",IF(NOT(ISBLANK(TableOutpatientRates[[#This Row],[Standard Rate]])),TableOutpatientRates[Standard Rate],INDEX(TableOutpatientHourlyRates[Hourly Rate],MATCH(\"NP Group\",TableOutpatientHourlyRates[Group Name],0))/60*TableOutpatientRates[[#This Row],[Minutes for Rate]]),\"\")","v":37.5},{"$f":"IF(TableOutpatientRates[[#This Row],[OT Group Allowed]]=\"Y\",IF(NOT(ISBLANK(TableOutpatientRates[[#This Row],[Standard Rate]])),TableOutpatientRates[Standard Rate],INDEX(TableOutpatientHourlyRates[Hourly Rate],MATCH(\"OT Group\",TableOutpatientHourlyRates[Group Name],0))/60*TableOutpatientRates[[#This Row],[Minutes for Rate]]),\"\")","v":40},{"$f":"IF(TableOutpatientRates[[#This Row],[PA Group Allowed]]=\"Y\",IF(NOT(ISBLANK(TableOutpatientRates[[#This Row],[Standard Rate]])),TableOutpatientRates[Standard Rate],INDEX(TableOutpatientHourlyRates[Hourly Rate],MATCH(\"PA Group\",TableOutpatientHourlyRates[Group Name],0))/60*TableOutpatientRates[[#This Row],[Minutes for Rate]]),\"\")","v":42.5},{"$f":"IF(TableOutpatientRates[[#This Row],[PEER Group Allowed]]=\"Y\",IF(NOT(ISBLANK(TableOutpatientRates[[#This Row],[Standard Rate]])),TableOutpatientRates[Standard Rate],INDEX(TableOutpatientHourlyRates[Hourly Rate],MATCH(\"PEER Group\",TableOutpatientHourlyRates[Group Name],0))/60*TableOutpatientRates[[#This Row],[Minutes for Rate]]),\"\")","v":""},{"$f":"IF(TableOutpatientRates[[#This Row],[PHARM Group Allowed]]=\"Y\",IF(NOT(ISBLANK(TableOutpatientRates[[#This Row],[Standard Rate]])),TableOutpatientRates[Standard Rate],INDEX(TableOutpatientHourlyRates[Hourly Rate],MATCH(\"PHARM Group\",TableOutpatientHourlyRates[Group Name],0))/60*TableOutpatientRates[[#This Row],[Minutes for Rate]]),\"\")","v":""},{"$f":"IF(TableOutpatientRates[[#This Row],[PSY Group Allowed]]=\"Y\",IF(NOT(ISBLANK(TableOutpatientRates[[#This Row],[Standard Rate]])),TableOutpatientRates[Standard Rate],INDEX(TableOutpatientHourlyRates[Hourly Rate],MATCH(\"PSY Group\",TableOutpatientHourlyRates[Group Name],0))/60*TableOutpatientRates[[#This Row],[Minutes for Rate]]),\"\")","v":50},{"$f":"IF(TableOutpatientRates[[#This Row],[PT Group Allowed]]=\"Y\",IF(NOT(ISBLANK(TableOutpatientRates[[#This Row],[Standard Rate]])),TableOutpatientRates[Standard Rate],INDEX(TableOutpatientHourlyRates[Hourly Rate],MATCH(\"PT Group\",TableOutpatientHourlyRates[Group Name],0))/60*TableOutpatientRates[[#This Row],[Minutes for Rate]]),\"\")","v":""},{"$f":"IF(TableOutpatientRates[[#This Row],[RN Group Allowed]]=\"Y\",IF(NOT(ISBLANK(TableOutpatientRates[[#This Row],[Standard Rate]])),TableOutpatientRates[Standard Rate],INDEX(TableOutpatientHourlyRates[Hourly Rate],MATCH(\"RN Group\",TableOutpatientHourlyRates[Group Name],0))/60*TableOutpatientRates[[#This Row],[Minutes for Rate]]),\"\")","v":55}]
["H0005","Alcohol and/or drug services; group counseling by a clinician, 15 minutes.","15","Y","Y","","","Y","Y","Y","","Y","Y","","Y","",null,{"$f":"IF(TableOutpatientRates[[#This Row],[AOD Group Allowed]]=\"Y\",IF(NOT(ISBLANK(TableOutpatientRates[[#This Row],[Standard Rate]])),TableOutpatientRates[Standard Rate],INDEX(TableOutpatientHourlyRates[Hourly Rate],MATCH(\"AOD Group\",TableOutpatientHourlyRates[Group Name],0))/60*TableOutpatientRates[[#This Row],[Minutes for Rate]]),\"\")","v":25},{"$f":"IF(TableOutpatientRates[[#This Row],[LPHA Group Allowed]]=\"Y\",IF(NOT(ISBLANK(TableOutpatientRates[[#This Row],[Standard Rate]])),TableOutpatientRates[Standard Rate],INDEX(TableOutpatientHourlyRates[Hourly Rate],MATCH(\"LPHA Group\",TableOutpatientHourlyRates[Group Name],0))/60*TableOutpatientRates[[#This Row],[Minutes for Rate]]),\"\")","v":27.5},{"$f":"IF(TableOutpatientRates[[#This Row],[LVN Group Allowed]]=\"Y\",IF(NOT(ISBLANK(TableOutpatientRates[[#This Row],[Standard Rate]])),TableOutpatientRates[Standard Rate],INDEX(TableOutpatientHourlyRates[Hourly Rate],MATCH(\"LVN Group\",TableOutpatientHourlyRates[Group Name],0))/60*TableOutpatientRates[[#This Row],[Minutes for Rate]]),\"\")","v":""},{"$f":"IF(TableOutpatientRates[[#This Row],[MA Group Allowed]]=\"Y\",IF(NOT(ISBLANK(TableOutpatientRates[[#This Row],[Standard Rate]])),TableOutpatientRates[Standard Rate],INDEX(TableOutpatientHourlyRates[Hourly Rate],MATCH(\"MA Group\",TableOutpatientHourlyRates[Group Name],0))/60*TableOutpatientRates[[#This Row],[Minutes for Rate]]),\"\")","v":""},{"$f":"IF(TableOutpatientRates[[#This Row],[MD Group Allowed]]=\"Y\",IF(NOT(ISBLANK(TableOutpatientRates[[#This Row],[Standard Rate]])),TableOutpatientRates[Standard Rate],INDEX(TableOutpatientHourlyRates[Hourly Rate],MATCH(\"MD Group\",TableOutpatientHourlyRates[Group Name],0))/60*TableOutpatientRates[[#This Row],[Minutes for Rate]]),\"\")","v":35},{"$f":"IF(TableOutpatientRates[[#This Row],[NP Group Allowed]]=\"Y\",IF(NOT(ISBLANK(TableOutpatientRates[[#This Row],[Standard Rate]])),TableOutpatientRates[Standard Rate],INDEX(TableOutpatientHourlyRates[Hourly Rate],MATCH(\"NP Group\",TableOutpatientHourlyRates[Group Name],0))/60*TableOutpatientRates[[#This Row],[Minutes for Rate]]),\"\")","v":37.5},{"$f":"IF(TableOutpatientRates[[#This Row],[OT Group Allowed]]=\"Y\",IF(NOT(ISBLANK(TableOutpatientRates[[#This Row],[Standard Rate]])),TableOutpatientRates[Standard Rate],INDEX(TableOutpatientHourlyRates[Hourly Rate],MATCH(\"OT Group\",TableOutpatientHourlyRates[Group Name],0))/60*TableOutpatientRates[[#This Row],[Minutes for Rate]]),\"\")","v":40},{"$f":"IF(TableOutpatientRates[[#This Row],[PA Group Allowed]]=\"Y\",IF(NOT(ISBLANK(TableOutpatientRates[[#This Row],[Standard Rate]])),TableOutpatientRates[Standard Rate],INDEX(TableOutpatientHourlyRates[Hourly Rate],MATCH(\"PA Group\",TableOutpatientHourlyRates[Group Name],0))/60*TableOutpatientRates[[#This Row],[Minutes for Rate]]),\"\")","v":42.5},{"$f":"IF(TableOutpatientRates[[#This Row],[PEER Group Allowed]]=\"Y\",IF(NOT(ISBLANK(TableOutpatientRates[[#This Row],[Standard Rate]])),TableOutpatientRates[Standard Rate],INDEX(TableOutpatientHourlyRates[Hourly Rate],MATCH(\"PEER Group\",TableOutpatientHourlyRates[Group Name],0))/60*TableOutpatientRates[[#This Row],[Minutes for Rate]]),\"\")","v":""},{"$f":"IF(TableOutpatientRates[[#This Row],[PHARM Group Allowed]]=\"Y\",IF(NOT(ISBLANK(TableOutpatientRates[[#This Row],[Standard Rate]])),TableOutpatientRates[Standard Rate],INDEX(TableOutpatientHourlyRates[Hourly Rate],MATCH(\"PHARM Group\",TableOutpatientHourlyRates[Group Name],0))/60*TableOutpatientRates[[#This Row],[Minutes for Rate]]),\"\")","v":""},{"$f":"IF(TableOutpatientRates[[#This Row],[PSY Group Allowed]]=\"Y\",IF(NOT(ISBLANK(TableOutpatientRates[[#This Row],[Standard Rate]])),TableOutpatientRates[Standard Rate],INDEX(TableOutpatientHourlyRates[Hourly Rate],MATCH(\"PSY Group\",TableOutpatientHourlyRates[Group Name],0))/60*TableOutpatientRates[[#This Row],[Minutes for Rate]]),\"\")","v":50},{"$f":"IF(TableOutpatientRates[[#This Row],[PT Group Allowed]]=\"Y\",IF(NOT(ISBLANK(TableOutpatientRates[[#This Row],[Standard Rate]])),TableOutpatientRates[Standard Rate],INDEX(TableOutpatientHourlyRates[Hourly Rate],MATCH(\"PT Group\",TableOutpatientHourlyRates[Group Name],0))/60*TableOutpatientRates[[#This Row],[Minutes for Rate]]),\"\")","v":""},{"$f":"IF(TableOutpatientRates[[#This Row],[RN Group Allowed]]=\"Y\",IF(NOT(ISBLANK(TableOutpatientRates[[#This Row],[Standard Rate]])),TableOutpatientRates[Standard Rate],INDEX(TableOutpatientHourlyRates[Hourly Rate],MATCH(\"RN Group\",TableOutpatientHourlyRates[Group Name],0))/60*TableOutpatientRates[[#This Row],[Minutes for Rate]]),\"\")","v":55}]
["H0007","Alcohol and/or drug services; crisis intervention (outpatient),","15","","Y","Y","","Y","Y","Y","","Y","Y","Y","Y","",null,{"$f":"IF(TableOutpatientRates[[#This Row],[AOD Group Allowed]]=\"Y\",IF(NOT(ISBLANK(TableOutpatientRates[[#This Row],[Standard Rate]])),TableOutpatientRates[Standard Rate],INDEX(TableOutpatientHourlyRates[Hourly Rate],MATCH(\"AOD Group\",TableOutpatientHourlyRates[Group Name],0))/60*TableOutpatientRates[[#This Row],[Minutes for Rate]]),\"\")","v":""},{"$f":"IF(TableOutpatientRates[[#This Row],[LPHA Group Allowed]]=\"Y\",IF(NOT(ISBLANK(TableOutpatientRates[[#This Row],[Standard Rate]])),TableOutpatientRates[Standard Rate],INDEX(TableOutpatientHourlyRates[Hourly Rate],MATCH(\"LPHA Group\",TableOutpatientHourlyRates[Group Name],0))/60*TableOutpatientRates[[#This Row],[Minutes for Rate]]),\"\")","v":27.5},{"$f":"IF(TableOutpatientRates[[#This Row],[LVN Group Allowed]]=\"Y\",IF(NOT(ISBLANK(TableOutpatientRates[[#This Row],[Standard Rate]])),TableOutpatientRates[Standard Rate],INDEX(TableOutpatientHourlyRates[Hourly Rate],MATCH(\"LVN Group\",TableOutpatientHourlyRates[Group Name],0))/60*TableOutpatientRates[[#This Row],[Minutes for Rate]]),\"\")","v":30},{"$f":"IF(TableOutpatientRates[[#This Row],[MA Group Allowed]]=\"Y\",IF(NOT(ISBLANK(TableOutpatientRates[[#This Row],[Standard Rate]])),TableOutpatientRates[Standard Rate],INDEX(TableOutpatientHourlyRates[Hourly Rate],MATCH(\"MA Group\",TableOutpatientHourlyRates[Group Name],0))/60*TableOutpatientRates[[#This Row],[Minutes for Rate]]),\"\")","v":""},{"$f":"IF(TableOutpatientRates[[#This Row],[MD Group Allowed]]=\"Y\",IF(NOT(ISBLANK(TableOutpatientRates[[#This Row],[Standard Rate]])),TableOutpatientRates[Standard Rate],INDEX(TableOutpatientHourlyRates[Hourly Rate],MATCH(\"MD Group\",TableOutpatientHourlyRates[Group Name],0))/60*TableOutpatientRates[[#This Row],[Minutes for Rate]]),\"\")","v":35},{"$f":"IF(TableOutpatientRates[[#This Row],[NP Group Allowed]]=\"Y\",IF(NOT(ISBLANK(TableOutpatientRates[[#This Row],[Standard Rate]])),TableOutpatientRates[Standard Rate],INDEX(TableOutpatientHourlyRates[Hourly Rate],MATCH(\"NP Group\",TableOutpatientHourlyRates[Group Name],0))/60*TableOutpatientRates[[#This Row],[Minutes for Rate]]),\"\")","v":37.5},{"$f":"IF(TableOutpatientRates[[#This Row],[OT Group Allowed]]=\"Y\",IF(NOT(ISBLANK(TableOutpatientRates[[#This Row],[Standard Rate]])),TableOutpatientRates[Standard Rate],INDEX(TableOutpatientHourlyRates[Hourly Rate],MATCH(\"OT Group\",TableOutpatientHourlyRates[Group Name],0))/60*TableOutpatientRates[[#This Row],[Minutes for Rate]]),\"\")","v":40},{"$f":"IF(TableOutpatientRates[[#This Row],[PA Group Allowed]]=\"Y\",IF(NOT(ISBLANK(TableOutpatientRates[[#This Row],[Standard Rate]])),TableOutpatientRates[Standard Rate],INDEX(TableOutpatientHourlyRates[Hourly Rate],MATCH(\"PA Group\",TableOutpatientHourlyRates[Group Name],0))/60*TableOutpatientRates[[#This Row],[Minutes for Rate]]),\"\")","v":42.5},{"$f":"IF(TableOutpatientRates[[#This Row],[PEER Group Allowed]]=\"Y\",IF(NOT(ISBLANK(TableOutpatientRates[[#This Row],[Standard Rate]])),TableOutpatientRates[Standard Rate],INDEX(TableOutpatientHourlyRates[Hourly Rate],MATCH(\"PEER Group\",TableOutpatientHourlyRates[Group Name],0))/60*TableOutpatientRates[[#This Row],[Minutes for Rate]]),\"\")","v":""},{"$f":"IF(TableOutpatientRates[[#This Row],[PHARM Group Allowed]]=\"Y\",IF(NOT(ISBLANK(TableOutpatientRates[[#This Row],[Standard Rate]])),TableOutpatientRates[Standard Rate],INDEX(TableOutpatientHourlyRates[Hourly Rate],MATCH(\"PHARM Group\",TableOutpatientHourlyRates[Group Name],0))/60*TableOutpatientRates[[#This Row],[Minutes for Rate]]),\"\")","v":""},{"$f":"IF(TableOutpatientRates[[#This Row],[PSY Group Allowed]]=\"Y\",IF(NOT(ISBLANK(TableOutpatientRates[[#This Row],[Standard Rate]])),TableOutpatientRates[Standard Rate],INDEX(TableOutpatientHourlyRates[Hourly Rate],MATCH(\"PSY Group\",TableOutpatientHourlyRates[Group Name],0))/60*TableOutpatientRates[[#This Row],[Minutes for Rate]]),\"\")","v":50},{"$f":"IF(TableOutpatientRates[[#This Row],[PT Group Allowed]]=\"Y\",IF(NOT(ISBLANK(TableOutpatientRates[[#This Row],[Standard Rate]])),TableOutpatientRates[Standard Rate],INDEX(TableOutpatientHourlyRates[Hourly Rate],MATCH(\"PT Group\",TableOutpatientHourlyRates[Group Name],0))/60*TableOutpatientRates[[#This Row],[Minutes for Rate]]),\"\")","v":52.5},{"$f":"IF(TableOutpatientRates[[#This Row],[RN Group Allowed]]=\"Y\",IF(NOT(ISBLANK(TableOutpatientRates[[#This Row],[Standard Rate]])),TableOutpatientRates[Standard Rate],INDEX(TableOutpatientHourlyRates[Hourly Rate],MATCH(\"RN Group\",TableOutpatientHourlyRates[Group Name],0))/60*TableOutpatientRates[[#This Row],[Minutes for Rate]]),\"\")","v":55}]
["H0008","Alcohol and/or drug services: (hospital inpatient) Subacute detoxification","15","","","Y","","Y","Y","","","Y","","Y","Y","Y",null,{"$f":"IF(TableOutpatientRates[[#This Row],[AOD Group Allowed]]=\"Y\",IF(NOT(ISBLANK(TableOutpatientRates[[#This Row],[Standard Rate]])),TableOutpatientRates[Standard Rate],INDEX(TableOutpatientHourlyRates[Hourly Rate],MATCH(\"AOD Group\",TableOutpatientHourlyRates[Group Name],0))/60*TableOutpatientRates[[#This Row],[Minutes for Rate]]),\"\")","v":""},{"$f":"IF(TableOutpatientRates[[#This Row],[LPHA Group Allowed]]=\"Y\",IF(NOT(ISBLANK(TableOutpatientRates[[#This Row],[Standard Rate]])),TableOutpatientRates[Standard Rate],INDEX(TableOutpatientHourlyRates[Hourly Rate],MATCH(\"LPHA Group\",TableOutpatientHourlyRates[Group Name],0))/60*TableOutpatientRates[[#This Row],[Minutes for Rate]]),\"\")","v":""},{"$f":"IF(TableOutpatientRates[[#This Row],[LVN Group Allowed]]=\"Y\",IF(NOT(ISBLANK(TableOutpatientRates[[#This Row],[Standard Rate]])),TableOutpatientRates[Standard Rate],INDEX(TableOutpatientHourlyRates[Hourly Rate],MATCH(\"LVN Group\",TableOutpatientHourlyRates[Group Name],0))/60*TableOutpatientRates[[#This Row],[Minutes for Rate]]),\"\")","v":30},{"$f":"IF(TableOutpatientRates[[#This Row],[MA Group Allowed]]=\"Y\",IF(NOT(ISBLANK(TableOutpatientRates[[#This Row],[Standard Rate]])),TableOutpatientRates[Standard Rate],INDEX(TableOutpatientHourlyRates[Hourly Rate],MATCH(\"MA Group\",TableOutpatientHourlyRates[Group Name],0))/60*TableOutpatientRates[[#This Row],[Minutes for Rate]]),\"\")","v":""},{"$f":"IF(TableOutpatientRates[[#This Row],[MD Group Allowed]]=\"Y\",IF(NOT(ISBLANK(TableOutpatientRates[[#This Row],[Standard Rate]])),TableOutpatientRates[Standard Rate],INDEX(TableOutpatientHourlyRates[Hourly Rate],MATCH(\"MD Group\",TableOutpatientHourlyRates[Group Name],0))/60*TableOutpatientRates[[#This Row],[Minutes for Rate]]),\"\")","v":35},{"$f":"IF(TableOutpatientRates[[#This Row],[NP Group Allowed]]=\"Y\",IF(NOT(ISBLANK(TableOutpatientRates[[#This Row],[Standard Rate]])),TableOutpatientRates[Standard Rate],INDEX(TableOutpatientHourlyRates[Hourly Rate],MATCH(\"NP Group\",TableOutpatientHourlyRates[Group Name],0))/60*TableOutpatientRates[[#This Row],[Minutes for Rate]]),\"\")","v":37.5},{"$f":"IF(TableOutpatientRates[[#This Row],[OT Group Allowed]]=\"Y\",IF(NOT(ISBLANK(TableOutpatientRates[[#This Row],[Standard Rate]])),TableOutpatientRates[Standard Rate],INDEX(TableOutpatientHourlyRates[Hourly Rate],MATCH(\"OT Group\",TableOutpatientHourlyRates[Group Name],0))/60*TableOutpatientRates[[#This Row],[Minutes for Rate]]),\"\")","v":""},{"$f":"IF(TableOutpatientRates[[#This Row],[PA Group Allowed]]=\"Y\",IF(NOT(ISBLANK(TableOutpatientRates[[#This Row],[Standard Rate]])),TableOutpatientRates[Standard Rate],INDEX(TableOutpatientHourlyRates[Hourly Rate],MATCH(\"PA Group\",TableOutpatientHourlyRates[Group Name],0))/60*TableOutpatientRates[[#This Row],[Minutes for Rate]]),\"\")","v":42.5},{"$f":"IF(TableOutpatientRates[[#This Row],[PEER Group Allowed]]=\"Y\",IF(NOT(ISBLANK(TableOutpatientRates[[#This Row],[Standard Rate]])),TableOutpatientRates[Standard Rate],INDEX(TableOutpatientHourlyRates[Hourly Rate],MATCH(\"PEER Group\",TableOutpatientHourlyRates[Group Name],0))/60*TableOutpatientRates[[#This Row],[Minutes for Rate]]),\"\")","v":""},{"$f":"IF(TableOutpatientRates[[#This Row],[PHARM Group Allowed]]=\"Y\",IF(NOT(ISBLANK(TableOutpatientRates[[#This Row],[Standard Rate]])),TableOutpatientRates[Standard Rate],INDEX(TableOutpatientHourlyRates[Hourly Rate],MATCH(\"PHARM Group\",TableOutpatientHourlyRates[Group Name],0))/60*TableOutpatientRates[[#This Row],[Minutes for Rate]]),\"\")","v":47.5},{"$f":"IF(TableOutpatientRates[[#This Row],[PSY Group Allowed]]=\"Y\",IF(NOT(ISBLANK(TableOutpatientRates[[#This Row],[Standard Rate]])),TableOutpatientRates[Standard Rate],INDEX(TableOutpatientHourlyRates[Hourly Rate],MATCH(\"PSY Group\",TableOutpatientHourlyRates[Group Name],0))/60*TableOutpatientRates[[#This Row],[Minutes for Rate]]),\"\")","v":""},{"$f":"IF(TableOutpatientRates[[#This Row],[PT Group Allowed]]=\"Y\",IF(NOT(ISBLANK(TableOutpatientRates[[#This Row],[Standard Rate]])),TableOutpatientRates[Standard Rate],INDEX(TableOutpatientHourlyRates[Hourly Rate],MATCH(\"PT Group\",TableOutpatientHourlyRates[Group Name],0))/60*TableOutpatientRates[[#This Row],[Minutes for Rate]]),\"\")","v":52.5},{"$f":"IF(TableOutpatientRates[[#This Row],[RN Group Allowed]]=\"Y\",IF(NOT(ISBLANK(TableOutpatientRates[[#This Row],[Standard Rate]])),TableOutpatientRates[Standard Rate],INDEX(TableOutpatientHourlyRates[Hourly Rate],MATCH(\"RN Group\",TableOutpatientHourlyRates[Group Name],0))/60*TableOutpatientRates[[#This Row],[Minutes for Rate]]),\"\")","v":55}]
["H0009","Alcohol and/or drug services: (hospital inpatient) Acute detoxification","15","","","Y","","Y","Y","","","Y","","Y","Y","Y",null,{"$f":"IF(TableOutpatientRates[[#This Row],[AOD Group Allowed]]=\"Y\",IF(NOT(ISBLANK(TableOutpatientRates[[#This Row],[Standard Rate]])),TableOutpatientRates[Standard Rate],INDEX(TableOutpatientHourlyRates[Hourly Rate],MATCH(\"AOD Group\",TableOutpatientHourlyRates[Group Name],0))/60*TableOutpatientRates[[#This Row],[Minutes for Rate]]),\"\")","v":""},{"$f":"IF(TableOutpatientRates[[#This Row],[LPHA Group Allowed]]=\"Y\",IF(NOT(ISBLANK(TableOutpatientRates[[#This Row],[Standard Rate]])),TableOutpatientRates[Standard Rate],INDEX(TableOutpatientHourlyRates[Hourly Rate],MATCH(\"LPHA Group\",TableOutpatientHourlyRates[Group Name],0))/60*TableOutpatientRates[[#This Row],[Minutes for Rate]]),\"\")","v":""},{"$f":"IF(TableOutpatientRates[[#This Row],[LVN Group Allowed]]=\"Y\",IF(NOT(ISBLANK(TableOutpatientRates[[#This Row],[Standard Rate]])),TableOutpatientRates[Standard Rate],INDEX(TableOutpatientHourlyRates[Hourly Rate],MATCH(\"LVN Group\",TableOutpatientHourlyRates[Group Name],0))/60*TableOutpatientRates[[#This Row],[Minutes for Rate]]),\"\")","v":30},{"$f":"IF(TableOutpatientRates[[#This Row],[MA Group Allowed]]=\"Y\",IF(NOT(ISBLANK(TableOutpatientRates[[#This Row],[Standard Rate]])),TableOutpatientRates[Standard Rate],INDEX(TableOutpatientHourlyRates[Hourly Rate],MATCH(\"MA Group\",TableOutpatientHourlyRates[Group Name],0))/60*TableOutpatientRates[[#This Row],[Minutes for Rate]]),\"\")","v":""},{"$f":"IF(TableOutpatientRates[[#This Row],[MD Group Allowed]]=\"Y\",IF(NOT(ISBLANK(TableOutpatientRates[[#This Row],[Standard Rate]])),TableOutpatientRates[Standard Rate],INDEX(TableOutpatientHourlyRates[Hourly Rate],MATCH(\"MD Group\",TableOutpatientHourlyRates[Group Name],0))/60*TableOutpatientRates[[#This Row],[Minutes for Rate]]),\"\")","v":35},{"$f":"IF(TableOutpatientRates[[#This Row],[NP Group Allowed]]=\"Y\",IF(NOT(ISBLANK(TableOutpatientRates[[#This Row],[Standard Rate]])),TableOutpatientRates[Standard Rate],INDEX(TableOutpatientHourlyRates[Hourly Rate],MATCH(\"NP Group\",TableOutpatientHourlyRates[Group Name],0))/60*TableOutpatientRates[[#This Row],[Minutes for Rate]]),\"\")","v":37.5},{"$f":"IF(TableOutpatientRates[[#This Row],[OT Group Allowed]]=\"Y\",IF(NOT(ISBLANK(TableOutpatientRates[[#This Row],[Standard Rate]])),TableOutpatientRates[Standard Rate],INDEX(TableOutpatientHourlyRates[Hourly Rate],MATCH(\"OT Group\",TableOutpatientHourlyRates[Group Name],0))/60*TableOutpatientRates[[#This Row],[Minutes for Rate]]),\"\")","v":""},{"$f":"IF(TableOutpatientRates[[#This Row],[PA Group Allowed]]=\"Y\",IF(NOT(ISBLANK(TableOutpatientRates[[#This Row],[Standard Rate]])),TableOutpatientRates[Standard Rate],INDEX(TableOutpatientHourlyRates[Hourly Rate],MATCH(\"PA Group\",TableOutpatientHourlyRates[Group Name],0))/60*TableOutpatientRates[[#This Row],[Minutes for Rate]]),\"\")","v":42.5},{"$f":"IF(TableOutpatientRates[[#This Row],[PEER Group Allowed]]=\"Y\",IF(NOT(ISBLANK(TableOutpatientRates[[#This Row],[Standard Rate]])),TableOutpatientRates[Standard Rate],INDEX(TableOutpatientHourlyRates[Hourly Rate],MATCH(\"PEER Group\",TableOutpatientHourlyRates[Group Name],0))/60*TableOutpatientRates[[#This Row],[Minutes for Rate]]),\"\")","v":""},{"$f":"IF(TableOutpatientRates[[#This Row],[PHARM Group Allowed]]=\"Y\",IF(NOT(ISBLANK(TableOutpatientRates[[#This Row],[Standard Rate]])),TableOutpatientRates[Standard Rate],INDEX(TableOutpatientHourlyRates[Hourly Rate],MATCH(\"PHARM Group\",TableOutpatientHourlyRates[Group Name],0))/60*TableOutpatientRates[[#This Row],[Minutes for Rate]]),\"\")","v":47.5},{"$f":"IF(TableOutpatientRates[[#This Row],[PSY Group Allowed]]=\"Y\",IF(NOT(ISBLANK(TableOutpatientRates[[#This Row],[Standard Rate]])),TableOutpatientRates[Standard Rate],INDEX(TableOutpatientHourlyRates[Hourly Rate],MATCH(\"PSY Group\",TableOutpatientHourlyRates[Group Name],0))/60*TableOutpatientRates[[#This Row],[Minutes for Rate]]),\"\")","v":""},{"$f":"IF(TableOutpatientRates[[#This Row],[PT Group Allowed]]=\"Y\",IF(NOT(ISBLANK(TableOutpatientRates[[#This Row],[Standard Rate]])),TableOutpatientRates[Standard Rate],INDEX(TableOutpatientHourlyRates[Hourly Rate],MATCH(\"PT Group\",TableOutpatientHourlyRates[Group Name],0))/60*TableOutpatientRates[[#This Row],[Minutes for Rate]]),\"\")","v":52.5},{"$f":"IF(TableOutpatientRates[[#This Row],[RN Group Allowed]]=\"Y\",IF(NOT(ISBLANK(TableOutpatientRates[[#This Row],[Standard Rate]])),TableOutpatientRates[Standard Rate],INDEX(TableOutpatientHourlyRates[Hourly Rate],MATCH(\"RN Group\",TableOutpatientHourlyRates[Group Name],0))/60*TableOutpatientRates[[#This Row],[Minutes for Rate]]),\"\")","v":55}]
["H0025","Behavioral Health Prevention Education service, delivery of service with target population to affect knowledge, attitude, and/or behavior.","15","","","","","","","","Y","","","","","",null,{"$f":"IF(TableOutpatientRates[[#This Row],[AOD Group Allowed]]=\"Y\",IF(NOT(ISBLANK(TableOutpatientRates[[#This Row],[Standard Rate]])),TableOutpatientRates[Standard Rate],INDEX(TableOutpatientHourlyRates[Hourly Rate],MATCH(\"AOD Group\",TableOutpatientHourlyRates[Group Name],0))/60*TableOutpatientRates[[#This Row],[Minutes for Rate]]),\"\")","v":""},{"$f":"IF(TableOutpatientRates[[#This Row],[LPHA Group Allowed]]=\"Y\",IF(NOT(ISBLANK(TableOutpatientRates[[#This Row],[Standard Rate]])),TableOutpatientRates[Standard Rate],INDEX(TableOutpatientHourlyRates[Hourly Rate],MATCH(\"LPHA Group\",TableOutpatientHourlyRates[Group Name],0))/60*TableOutpatientRates[[#This Row],[Minutes for Rate]]),\"\")","v":""},{"$f":"IF(TableOutpatientRates[[#This Row],[LVN Group Allowed]]=\"Y\",IF(NOT(ISBLANK(TableOutpatientRates[[#This Row],[Standard Rate]])),TableOutpatientRates[Standard Rate],INDEX(TableOutpatientHourlyRates[Hourly Rate],MATCH(\"LVN Group\",TableOutpatientHourlyRates[Group Name],0))/60*TableOutpatientRates[[#This Row],[Minutes for Rate]]),\"\")","v":""},{"$f":"IF(TableOutpatientRates[[#This Row],[MA Group Allowed]]=\"Y\",IF(NOT(ISBLANK(TableOutpatientRates[[#This Row],[Standard Rate]])),TableOutpatientRates[Standard Rate],INDEX(TableOutpatientHourlyRates[Hourly Rate],MATCH(\"MA Group\",TableOutpatientHourlyRates[Group Name],0))/60*TableOutpatientRates[[#This Row],[Minutes for Rate]]),\"\")","v":""},{"$f":"IF(TableOutpatientRates[[#This Row],[MD Group Allowed]]=\"Y\",IF(NOT(ISBLANK(TableOutpatientRates[[#This Row],[Standard Rate]])),TableOutpatientRates[Standard Rate],INDEX(TableOutpatientHourlyRates[Hourly Rate],MATCH(\"MD Group\",TableOutpatientHourlyRates[Group Name],0))/60*TableOutpatientRates[[#This Row],[Minutes for Rate]]),\"\")","v":""},{"$f":"IF(TableOutpatientRates[[#This Row],[NP Group Allowed]]=\"Y\",IF(NOT(ISBLANK(TableOutpatientRates[[#This Row],[Standard Rate]])),TableOutpatientRates[Standard Rate],INDEX(TableOutpatientHourlyRates[Hourly Rate],MATCH(\"NP Group\",TableOutpatientHourlyRates[Group Name],0))/60*TableOutpatientRates[[#This Row],[Minutes for Rate]]),\"\")","v":""},{"$f":"IF(TableOutpatientRates[[#This Row],[OT Group Allowed]]=\"Y\",IF(NOT(ISBLANK(TableOutpatientRates[[#This Row],[Standard Rate]])),TableOutpatientRates[Standard Rate],INDEX(TableOutpatientHourlyRates[Hourly Rate],MATCH(\"OT Group\",TableOutpatientHourlyRates[Group Name],0))/60*TableOutpatientRates[[#This Row],[Minutes for Rate]]),\"\")","v":""},{"$f":"IF(TableOutpatientRates[[#This Row],[PA Group Allowed]]=\"Y\",IF(NOT(ISBLANK(TableOutpatientRates[[#This Row],[Standard Rate]])),TableOutpatientRates[Standard Rate],INDEX(TableOutpatientHourlyRates[Hourly Rate],MATCH(\"PA Group\",TableOutpatientHourlyRates[Group Name],0))/60*TableOutpatientRates[[#This Row],[Minutes for Rate]]),\"\")","v":""},{"$f":"IF(TableOutpatientRates[[#This Row],[PEER Group Allowed]]=\"Y\",IF(NOT(ISBLANK(TableOutpatientRates[[#This Row],[Standard Rate]])),TableOutpatientRates[Standard Rate],INDEX(TableOutpatientHourlyRates[Hourly Rate],MATCH(\"PEER Group\",TableOutpatientHourlyRates[Group Name],0))/60*TableOutpatientRates[[#This Row],[Minutes for Rate]]),\"\")","v":45},{"$f":"IF(TableOutpatientRates[[#This Row],[PHARM Group Allowed]]=\"Y\",IF(NOT(ISBLANK(TableOutpatientRates[[#This Row],[Standard Rate]])),TableOutpatientRates[Standard Rate],INDEX(TableOutpatientHourlyRates[Hourly Rate],MATCH(\"PHARM Group\",TableOutpatientHourlyRates[Group Name],0))/60*TableOutpatientRates[[#This Row],[Minutes for Rate]]),\"\")","v":""},{"$f":"IF(TableOutpatientRates[[#This Row],[PSY Group Allowed]]=\"Y\",IF(NOT(ISBLANK(TableOutpatientRates[[#This Row],[Standard Rate]])),TableOutpatientRates[Standard Rate],INDEX(TableOutpatientHourlyRates[Hourly Rate],MATCH(\"PSY Group\",TableOutpatientHourlyRates[Group Name],0))/60*TableOutpatientRates[[#This Row],[Minutes for Rate]]),\"\")","v":""},{"$f":"IF(TableOutpatientRates[[#This Row],[PT Group Allowed]]=\"Y\",IF(NOT(ISBLANK(TableOutpatientRates[[#This Row],[Standard Rate]])),TableOutpatientRates[Standard Rate],INDEX(TableOutpatientHourlyRates[Hourly Rate],MATCH(\"PT Group\",TableOutpatientHourlyRates[Group Name],0))/60*TableOutpatientRates[[#This Row],[Minutes for Rate]]),\"\")","v":""},{"$f":"IF(TableOutpatientRates[[#This Row],[RN Group Allowed]]=\"Y\",IF(NOT(ISBLANK(TableOutpatientRates[[#This Row],[Standard Rate]])),TableOutpatientRates[Standard Rate],INDEX(TableOutpatientHourlyRates[Hourly Rate],MATCH(\"RN Group\",TableOutpatientHourlyRates[Group Name],0))/60*TableOutpatientRates[[#This Row],[Minutes for Rate]]),\"\")","v":""}]
["H0033","Oral Medication Administration, Direct Observation, 15 Minutes","15","","","Y","Y","Y","Y","Y","","Y","","Y","Y","Y",null,{"$f":"IF(TableOutpatientRates[[#This Row],[AOD Group Allowed]]=\"Y\",IF(NOT(ISBLANK(TableOutpatientRates[[#This Row],[Standard Rate]])),TableOutpatientRates[Standard Rate],INDEX(TableOutpatientHourlyRates[Hourly Rate],MATCH(\"AOD Group\",TableOutpatientHourlyRates[Group Name],0))/60*TableOutpatientRates[[#This Row],[Minutes for Rate]]),\"\")","v":""},{"$f":"IF(TableOutpatientRates[[#This Row],[LPHA Group Allowed]]=\"Y\",IF(NOT(ISBLANK(TableOutpatientRates[[#This Row],[Standard Rate]])),TableOutpatientRates[Standard Rate],INDEX(TableOutpatientHourlyRates[Hourly Rate],MATCH(\"LPHA Group\",TableOutpatientHourlyRates[Group Name],0))/60*TableOutpatientRates[[#This Row],[Minutes for Rate]]),\"\")","v":""},{"$f":"IF(TableOutpatientRates[[#This Row],[LVN Group Allowed]]=\"Y\",IF(NOT(ISBLANK(TableOutpatientRates[[#This Row],[Standard Rate]])),TableOutpatientRates[Standard Rate],INDEX(TableOutpatientHourlyRates[Hourly Rate],MATCH(\"LVN Group\",TableOutpatientHourlyRates[Group Name],0))/60*TableOutpatientRates[[#This Row],[Minutes for Rate]]),\"\")","v":30},{"$f":"IF(TableOutpatientRates[[#This Row],[MA Group Allowed]]=\"Y\",IF(NOT(ISBLANK(TableOutpatientRates[[#This Row],[Standard Rate]])),TableOutpatientRates[Standard Rate],INDEX(TableOutpatientHourlyRates[Hourly Rate],MATCH(\"MA Group\",TableOutpatientHourlyRates[Group Name],0))/60*TableOutpatientRates[[#This Row],[Minutes for Rate]]),\"\")","v":32.5},{"$f":"IF(TableOutpatientRates[[#This Row],[MD Group Allowed]]=\"Y\",IF(NOT(ISBLANK(TableOutpatientRates[[#This Row],[Standard Rate]])),TableOutpatientRates[Standard Rate],INDEX(TableOutpatientHourlyRates[Hourly Rate],MATCH(\"MD Group\",TableOutpatientHourlyRates[Group Name],0))/60*TableOutpatientRates[[#This Row],[Minutes for Rate]]),\"\")","v":35},{"$f":"IF(TableOutpatientRates[[#This Row],[NP Group Allowed]]=\"Y\",IF(NOT(ISBLANK(TableOutpatientRates[[#This Row],[Standard Rate]])),TableOutpatientRates[Standard Rate],INDEX(TableOutpatientHourlyRates[Hourly Rate],MATCH(\"NP Group\",TableOutpatientHourlyRates[Group Name],0))/60*TableOutpatientRates[[#This Row],[Minutes for Rate]]),\"\")","v":37.5},{"$f":"IF(TableOutpatientRates[[#This Row],[OT Group Allowed]]=\"Y\",IF(NOT(ISBLANK(TableOutpatientRates[[#This Row],[Standard Rate]])),TableOutpatientRates[Standard Rate],INDEX(TableOutpatientHourlyRates[Hourly Rate],MATCH(\"OT Group\",TableOutpatientHourlyRates[Group Name],0))/60*TableOutpatientRates[[#This Row],[Minutes for Rate]]),\"\")","v":40},{"$f":"IF(TableOutpatientRates[[#This Row],[PA Group Allowed]]=\"Y\",IF(NOT(ISBLANK(TableOutpatientRates[[#This Row],[Standard Rate]])),TableOutpatientRates[Standard Rate],INDEX(TableOutpatientHourlyRates[Hourly Rate],MATCH(\"PA Group\",TableOutpatientHourlyRates[Group Name],0))/60*TableOutpatientRates[[#This Row],[Minutes for Rate]]),\"\")","v":42.5},{"$f":"IF(TableOutpatientRates[[#This Row],[PEER Group Allowed]]=\"Y\",IF(NOT(ISBLANK(TableOutpatientRates[[#This Row],[Standard Rate]])),TableOutpatientRates[Standard Rate],INDEX(TableOutpatientHourlyRates[Hourly Rate],MATCH(\"PEER Group\",TableOutpatientHourlyRates[Group Name],0))/60*TableOutpatientRates[[#This Row],[Minutes for Rate]]),\"\")","v":""},{"$f":"IF(TableOutpatientRates[[#This Row],[PHARM Group Allowed]]=\"Y\",IF(NOT(ISBLANK(TableOutpatientRates[[#This Row],[Standard Rate]])),TableOutpatientRates[Standard Rate],INDEX(TableOutpatientHourlyRates[Hourly Rate],MATCH(\"PHARM Group\",TableOutpatientHourlyRates[Group Name],0))/60*TableOutpatientRates[[#This Row],[Minutes for Rate]]),\"\")","v":47.5},{"$f":"IF(TableOutpatientRates[[#This Row],[PSY Group Allowed]]=\"Y\",IF(NOT(ISBLANK(TableOutpatientRates[[#This Row],[Standard Rate]])),TableOutpatientRates[Standard Rate],INDEX(TableOutpatientHourlyRates[Hourly Rate],MATCH(\"PSY Group\",TableOutpatientHourlyRates[Group Name],0))/60*TableOutpatientRates[[#This Row],[Minutes for Rate]]),\"\")","v":""},{"$f":"IF(TableOutpatientRates[[#This Row],[PT Group Allowed]]=\"Y\",IF(NOT(ISBLANK(TableOutpatientRates[[#This Row],[Standard Rate]])),TableOutpatientRates[Standard Rate],INDEX(TableOutpatientHourlyRates[Hourly Rate],MATCH(\"PT Group\",TableOutpatientHourlyRates[Group Name],0))/60*TableOutpatientRates[[#This Row],[Minutes for Rate]]),\"\")","v":52.5},{"$f":"IF(TableOutpatientRates[[#This Row],[RN Group Allowed]]=\"Y\",IF(NOT(ISBLANK(TableOutpatientRates[[#This Row],[Standard Rate]])),TableOutpatientRates[Standard Rate],INDEX(TableOutpatientHourlyRates[Hourly Rate],MATCH(\"RN Group\",TableOutpatientHourlyRates[Group Name],0))/60*TableOutpatientRates[[#This Row],[Minutes for Rate]]),\"\")","v":55}]
["H0034","Medication Training and Support, per 15 Minutes","15","","","Y","Y","Y","Y","","","Y","","Y","Y","Y",null,{"$f":"IF(TableOutpatientRates[[#This Row],[AOD Group Allowed]]=\"Y\",IF(NOT(ISBLANK(TableOutpatientRates[[#This Row],[Standard Rate]])),TableOutpatientRates[Standard Rate],INDEX(TableOutpatientHourlyRates[Hourly Rate],MATCH(\"AOD Group\",TableOutpatientHourlyRates[Group Name],0))/60*TableOutpatientRates[[#This Row],[Minutes for Rate]]),\"\")","v":""},{"$f":"IF(TableOutpatientRates[[#This Row],[LPHA Group Allowed]]=\"Y\",IF(NOT(ISBLANK(TableOutpatientRates[[#This Row],[Standard Rate]])),TableOutpatientRates[Standard Rate],INDEX(TableOutpatientHourlyRates[Hourly Rate],MATCH(\"LPHA Group\",TableOutpatientHourlyRates[Group Name],0))/60*TableOutpatientRates[[#This Row],[Minutes for Rate]]),\"\")","v":""},{"$f":"IF(TableOutpatientRates[[#This Row],[LVN Group Allowed]]=\"Y\",IF(NOT(ISBLANK(TableOutpatientRates[[#This Row],[Standard Rate]])),TableOutpatientRates[Standard Rate],INDEX(TableOutpatientHourlyRates[Hourly Rate],MATCH(\"LVN Group\",TableOutpatientHourlyRates[Group Name],0))/60*TableOutpatientRates[[#This Row],[Minutes for Rate]]),\"\")","v":30},{"$f":"IF(TableOutpatientRates[[#This Row],[MA Group Allowed]]=\"Y\",IF(NOT(ISBLANK(TableOutpatientRates[[#This Row],[Standard Rate]])),TableOutpatientRates[Standard Rate],INDEX(TableOutpatientHourlyRates[Hourly Rate],MATCH(\"MA Group\",TableOutpatientHourlyRates[Group Name],0))/60*TableOutpatientRates[[#This Row],[Minutes for Rate]]),\"\")","v":32.5},{"$f":"IF(TableOutpatientRates[[#This Row],[MD Group Allowed]]=\"Y\",IF(NOT(ISBLANK(TableOutpatientRates[[#This Row],[Standard Rate]])),TableOutpatientRates[Standard Rate],INDEX(TableOutpatientHourlyRates[Hourly Rate],MATCH(\"MD Group\",TableOutpatientHourlyRates[Group Name],0))/60*TableOutpatientRates[[#This Row],[Minutes for Rate]]),\"\")","v":35},{"$f":"IF(TableOutpatientRates[[#This Row],[NP Group Allowed]]=\"Y\",IF(NOT(ISBLANK(TableOutpatientRates[[#This Row],[Standard Rate]])),TableOutpatientRates[Standard Rate],INDEX(TableOutpatientHourlyRates[Hourly Rate],MATCH(\"NP Group\",TableOutpatientHourlyRates[Group Name],0))/60*TableOutpatientRates[[#This Row],[Minutes for Rate]]),\"\")","v":37.5},{"$f":"IF(TableOutpatientRates[[#This Row],[OT Group Allowed]]=\"Y\",IF(NOT(ISBLANK(TableOutpatientRates[[#This Row],[Standard Rate]])),TableOutpatientRates[Standard Rate],INDEX(TableOutpatientHourlyRates[Hourly Rate],MATCH(\"OT Group\",TableOutpatientHourlyRates[Group Name],0))/60*TableOutpatientRates[[#This Row],[Minutes for Rate]]),\"\")","v":""},{"$f":"IF(TableOutpatientRates[[#This Row],[PA Group Allowed]]=\"Y\",IF(NOT(ISBLANK(TableOutpatientRates[[#This Row],[Standard Rate]])),TableOutpatientRates[Standard Rate],INDEX(TableOutpatientHourlyRates[Hourly Rate],MATCH(\"PA Group\",TableOutpatientHourlyRates[Group Name],0))/60*TableOutpatientRates[[#This Row],[Minutes for Rate]]),\"\")","v":42.5},{"$f":"IF(TableOutpatientRates[[#This Row],[PEER Group Allowed]]=\"Y\",IF(NOT(ISBLANK(TableOutpatientRates[[#This Row],[Standard Rate]])),TableOutpatientRates[Standard Rate],INDEX(TableOutpatientHourlyRates[Hourly Rate],MATCH(\"PEER Group\",TableOutpatientHourlyRates[Group Name],0))/60*TableOutpatientRates[[#This Row],[Minutes for Rate]]),\"\")","v":""},{"$f":"IF(TableOutpatientRates[[#This Row],[PHARM Group Allowed]]=\"Y\",IF(NOT(ISBLANK(TableOutpatientRates[[#This Row],[Standard Rate]])),TableOutpatientRates[Standard Rate],INDEX(TableOutpatientHourlyRates[Hourly Rate],MATCH(\"PHARM Group\",TableOutpatientHourlyRates[Group Name],0))/60*TableOutpatientRates[[#This Row],[Minutes for Rate]]),\"\")","v":47.5},{"$f":"IF(TableOutpatientRates[[#This Row],[PSY Group Allowed]]=\"Y\",IF(NOT(ISBLANK(TableOutpatientRates[[#This Row],[Standard Rate]])),TableOutpatientRates[Standard Rate],INDEX(TableOutpatientHourlyRates[Hourly Rate],MATCH(\"PSY Group\",TableOutpatientHourlyRates[Group Name],0))/60*TableOutpatientRates[[#This Row],[Minutes for Rate]]),\"\")","v":""},{"$f":"IF(TableOutpatientRates[[#This Row],[PT Group Allowed]]=\"Y\",IF(NOT(ISBLANK(TableOutpatientRates[[#This Row],[Standard Rate]])),TableOutpatientRates[Standard Rate],INDEX(TableOutpatientHourlyRates[Hourly Rate],MATCH(\"PT Group\",TableOutpatientHourlyRates[Group Name],0))/60*TableOutpatientRates[[#This Row],[Minutes for Rate]]),\"\")","v":52.5},{"$f":"IF(TableOutpatientRates[[#This Row],[RN Group Allowed]]=\"Y\",IF(NOT(ISBLANK(TableOutpatientRates[[#This Row],[Standard Rate]])),TableOutpatientRates[Standard Rate],INDEX(TableOutpatientHourlyRates[Hourly Rate],MATCH(\"RN Group\",TableOutpatientHourlyRates[Group Name],0))/60*TableOutpatientRates[[#This Row],[Minutes for Rate]]),\"\")","v":55}]
["H0038","Self-help/peer services, per 15 minutes","15","","","","","","","","Y","","","","","",null,{"$f":"IF(TableOutpatientRates[[#This Row],[AOD Group Allowed]]=\"Y\",IF(NOT(ISBLANK(TableOutpatientRates[[#This Row],[Standard Rate]])),TableOutpatientRates[Standard Rate],INDEX(TableOutpatientHourlyRates[Hourly Rate],MATCH(\"AOD Group\",TableOutpatientHourlyRates[Group Name],0))/60*TableOutpatientRates[[#This Row],[Minutes for Rate]]),\"\")","v":""},{"$f":"IF(TableOutpatientRates[[#This Row],[LPHA Group Allowed]]=\"Y\",IF(NOT(ISBLANK(TableOutpatientRates[[#This Row],[Standard Rate]])),TableOutpatientRates[Standard Rate],INDEX(TableOutpatientHourlyRates[Hourly Rate],MATCH(\"LPHA Group\",TableOutpatientHourlyRates[Group Name],0))/60*TableOutpatientRates[[#This Row],[Minutes for Rate]]),\"\")","v":""},{"$f":"IF(TableOutpatientRates[[#This Row],[LVN Group Allowed]]=\"Y\",IF(NOT(ISBLANK(TableOutpatientRates[[#This Row],[Standard Rate]])),TableOutpatientRates[Standard Rate],INDEX(TableOutpatientHourlyRates[Hourly Rate],MATCH(\"LVN Group\",TableOutpatientHourlyRates[Group Name],0))/60*TableOutpatientRates[[#This Row],[Minutes for Rate]]),\"\")","v":""},{"$f":"IF(TableOutpatientRates[[#This Row],[MA Group Allowed]]=\"Y\",IF(NOT(ISBLANK(TableOutpatientRates[[#This Row],[Standard Rate]])),TableOutpatientRates[Standard Rate],INDEX(TableOutpatientHourlyRates[Hourly Rate],MATCH(\"MA Group\",TableOutpatientHourlyRates[Group Name],0))/60*TableOutpatientRates[[#This Row],[Minutes for Rate]]),\"\")","v":""},{"$f":"IF(TableOutpatientRates[[#This Row],[MD Group Allowed]]=\"Y\",IF(NOT(ISBLANK(TableOutpatientRates[[#This Row],[Standard Rate]])),TableOutpatientRates[Standard Rate],INDEX(TableOutpatientHourlyRates[Hourly Rate],MATCH(\"MD Group\",TableOutpatientHourlyRates[Group Name],0))/60*TableOutpatientRates[[#This Row],[Minutes for Rate]]),\"\")","v":""},{"$f":"IF(TableOutpatientRates[[#This Row],[NP Group Allowed]]=\"Y\",IF(NOT(ISBLANK(TableOutpatientRates[[#This Row],[Standard Rate]])),TableOutpatientRates[Standard Rate],INDEX(TableOutpatientHourlyRates[Hourly Rate],MATCH(\"NP Group\",TableOutpatientHourlyRates[Group Name],0))/60*TableOutpatientRates[[#This Row],[Minutes for Rate]]),\"\")","v":""},{"$f":"IF(TableOutpatientRates[[#This Row],[OT Group Allowed]]=\"Y\",IF(NOT(ISBLANK(TableOutpatientRates[[#This Row],[Standard Rate]])),TableOutpatientRates[Standard Rate],INDEX(TableOutpatientHourlyRates[Hourly Rate],MATCH(\"OT Group\",TableOutpatientHourlyRates[Group Name],0))/60*TableOutpatientRates[[#This Row],[Minutes for Rate]]),\"\")","v":""},{"$f":"IF(TableOutpatientRates[[#This Row],[PA Group Allowed]]=\"Y\",IF(NOT(ISBLANK(TableOutpatientRates[[#This Row],[Standard Rate]])),TableOutpatientRates[Standard Rate],INDEX(TableOutpatientHourlyRates[Hourly Rate],MATCH(\"PA Group\",TableOutpatientHourlyRates[Group Name],0))/60*TableOutpatientRates[[#This Row],[Minutes for Rate]]),\"\")","v":""},{"$f":"IF(TableOutpatientRates[[#This Row],[PEER Group Allowed]]=\"Y\",IF(NOT(ISBLANK(TableOutpatientRates[[#This Row],[Standard Rate]])),TableOutpatientRates[Standard Rate],INDEX(TableOutpatientHourlyRates[Hourly Rate],MATCH(\"PEER Group\",TableOutpatientHourlyRates[Group Name],0))/60*TableOutpatientRates[[#This Row],[Minutes for Rate]]),\"\")","v":45},{"$f":"IF(TableOutpatientRates[[#This Row],[PHARM Group Allowed]]=\"Y\",IF(NOT(ISBLANK(TableOutpatientRates[[#This Row],[Standard Rate]])),TableOutpatientRates[Standard Rate],INDEX(TableOutpatientHourlyRates[Hourly Rate],MATCH(\"PHARM Group\",TableOutpatientHourlyRates[Group Name],0))/60*TableOutpatientRates[[#This Row],[Minutes for Rate]]),\"\")","v":""},{"$f":"IF(TableOutpatientRates[[#This Row],[PSY Group Allowed]]=\"Y\",IF(NOT(ISBLANK(TableOutpatientRates[[#This Row],[Standard Rate]])),TableOutpatientRates[Standard Rate],INDEX(TableOutpatientHourlyRates[Hourly Rate],MATCH(\"PSY Group\",TableOutpatientHourlyRates[Group Name],0))/60*TableOutpatientRates[[#This Row],[Minutes for Rate]]),\"\")","v":""},{"$f":"IF(TableOutpatientRates[[#This Row],[PT Group Allowed]]=\"Y\",IF(NOT(ISBLANK(TableOutpatientRates[[#This Row],[Standard Rate]])),TableOutpatientRates[Standard Rate],INDEX(TableOutpatientHourlyRates[Hourly Rate],MATCH(\"PT Group\",TableOutpatientHourlyRates[Group Name],0))/60*TableOutpatientRates[[#This Row],[Minutes for Rate]]),\"\")","v":""},{"$f":"IF(TableOutpatientRates[[#This Row],[RN Group Allowed]]=\"Y\",IF(NOT(ISBLANK(TableOutpatientRates[[#This Row],[Standard Rate]])),TableOutpatientRates[Standard Rate],INDEX(TableOutpatientHourlyRates[Hourly Rate],MATCH(\"RN Group\",TableOutpatientHourlyRates[Group Name],0))/60*TableOutpatientRates[[#This Row],[Minutes for Rate]]),\"\")","v":""}]
["H0048","Alcohol and/or other drug testing. (Note: Use this code to submit claims for point of care tests)","15","","","Y","Y","Y","Y","","","Y","","Y","Y","Y",null,{"$f":"IF(TableOutpatientRates[[#This Row],[AOD Group Allowed]]=\"Y\",IF(NOT(ISBLANK(TableOutpatientRates[[#This Row],[Standard Rate]])),TableOutpatientRates[Standard Rate],INDEX(TableOutpatientHourlyRates[Hourly Rate],MATCH(\"AOD Group\",TableOutpatientHourlyRates[Group Name],0))/60*TableOutpatientRates[[#This Row],[Minutes for Rate]]),\"\")","v":""},{"$f":"IF(TableOutpatientRates[[#This Row],[LPHA Group Allowed]]=\"Y\",IF(NOT(ISBLANK(TableOutpatientRates[[#This Row],[Standard Rate]])),TableOutpatientRates[Standard Rate],INDEX(TableOutpatientHourlyRates[Hourly Rate],MATCH(\"LPHA Group\",TableOutpatientHourlyRates[Group Name],0))/60*TableOutpatientRates[[#This Row],[Minutes for Rate]]),\"\")","v":""},{"$f":"IF(TableOutpatientRates[[#This Row],[LVN Group Allowed]]=\"Y\",IF(NOT(ISBLANK(TableOutpatientRates[[#This Row],[Standard Rate]])),TableOutpatientRates[Standard Rate],INDEX(TableOutpatientHourlyRates[Hourly Rate],MATCH(\"LVN Group\",TableOutpatientHourlyRates[Group Name],0))/60*TableOutpatientRates[[#This Row],[Minutes for Rate]]),\"\")","v":30},{"$f":"IF(TableOutpatientRates[[#This Row],[MA Group Allowed]]=\"Y\",IF(NOT(ISBLANK(TableOutpatientRates[[#This Row],[Standard Rate]])),TableOutpatientRates[Standard Rate],INDEX(TableOutpatientHourlyRates[Hourly Rate],MATCH(\"MA Group\",TableOutpatientHourlyRates[Group Name],0))/60*TableOutpatientRates[[#This Row],[Minutes for Rate]]),\"\")","v":32.5},{"$f":"IF(TableOutpatientRates[[#This Row],[MD Group Allowed]]=\"Y\",IF(NOT(ISBLANK(TableOutpatientRates[[#This Row],[Standard Rate]])),TableOutpatientRates[Standard Rate],INDEX(TableOutpatientHourlyRates[Hourly Rate],MATCH(\"MD Group\",TableOutpatientHourlyRates[Group Name],0))/60*TableOutpatientRates[[#This Row],[Minutes for Rate]]),\"\")","v":35},{"$f":"IF(TableOutpatientRates[[#This Row],[NP Group Allowed]]=\"Y\",IF(NOT(ISBLANK(TableOutpatientRates[[#This Row],[Standard Rate]])),TableOutpatientRates[Standard Rate],INDEX(TableOutpatientHourlyRates[Hourly Rate],MATCH(\"NP Group\",TableOutpatientHourlyRates[Group Name],0))/60*TableOutpatientRates[[#This Row],[Minutes for Rate]]),\"\")","v":37.5},{"$f":"IF(TableOutpatientRates[[#This Row],[OT Group Allowed]]=\"Y\",IF(NOT(ISBLANK(TableOutpatientRates[[#This Row],[Standard Rate]])),TableOutpatientRates[Standard Rate],INDEX(TableOutpatientHourlyRates[Hourly Rate],MATCH(\"OT Group\",TableOutpatientHourlyRates[Group Name],0))/60*TableOutpatientRates[[#This Row],[Minutes for Rate]]),\"\")","v":""},{"$f":"IF(TableOutpatientRates[[#This Row],[PA Group Allowed]]=\"Y\",IF(NOT(ISBLANK(TableOutpatientRates[[#This Row],[Standard Rate]])),TableOutpatientRates[Standard Rate],INDEX(TableOutpatientHourlyRates[Hourly Rate],MATCH(\"PA Group\",TableOutpatientHourlyRates[Group Name],0))/60*TableOutpatientRates[[#This Row],[Minutes for Rate]]),\"\")","v":42.5},{"$f":"IF(TableOutpatientRates[[#This Row],[PEER Group Allowed]]=\"Y\",IF(NOT(ISBLANK(TableOutpatientRates[[#This Row],[Standard Rate]])),TableOutpatientRates[Standard Rate],INDEX(TableOutpatientHourlyRates[Hourly Rate],MATCH(\"PEER Group\",TableOutpatientHourlyRates[Group Name],0))/60*TableOutpatientRates[[#This Row],[Minutes for Rate]]),\"\")","v":""},{"$f":"IF(TableOutpatientRates[[#This Row],[PHARM Group Allowed]]=\"Y\",IF(NOT(ISBLANK(TableOutpatientRates[[#This Row],[Standard Rate]])),TableOutpatientRates[Standard Rate],INDEX(TableOutpatientHourlyRates[Hourly Rate],MATCH(\"PHARM Group\",TableOutpatientHourlyRates[Group Name],0))/60*TableOutpatientRates[[#This Row],[Minutes for Rate]]),\"\")","v":47.5},{"$f":"IF(TableOutpatientRates[[#This Row],[PSY Group Allowed]]=\"Y\",IF(NOT(ISBLANK(TableOutpatientRates[[#This Row],[Standard Rate]])),TableOutpatientRates[Standard Rate],INDEX(TableOutpatientHourlyRates[Hourly Rate],MATCH(\"PSY Group\",TableOutpatientHourlyRates[Group Name],0))/60*TableOutpatientRates[[#This Row],[Minutes for Rate]]),\"\")","v":""},{"$f":"IF(TableOutpatientRates[[#This Row],[PT Group Allowed]]=\"Y\",IF(NOT(ISBLANK(TableOutpatientRates[[#This Row],[Standard Rate]])),TableOutpatientRates[Standard Rate],INDEX(TableOutpatientHourlyRates[Hourly Rate],MATCH(\"PT Group\",TableOutpatientHourlyRates[Group Name],0))/60*TableOutpatientRates[[#This Row],[Minutes for Rate]]),\"\")","v":52.5},{"$f":"IF(TableOutpatientRates[[#This Row],[RN Group Allowed]]=\"Y\",IF(NOT(ISBLANK(TableOutpatientRates[[#This Row],[Standard Rate]])),TableOutpatientRates[Standard Rate],INDEX(TableOutpatientHourlyRates[Hourly Rate],MATCH(\"RN Group\",TableOutpatientHourlyRates[Group Name],0))/60*TableOutpatientRates[[#This Row],[Minutes for Rate]]),\"\")","v":55}]
["H0049","Alcohol and/or drug screening","15","Y","Y","Y","Y","Y","Y","","","Y","Y","Y","Y","Y",null,{"$f":"IF(TableOutpatientRates[[#This Row],[AOD Group Allowed]]=\"Y\",IF(NOT(ISBLANK(TableOutpatientRates[[#This Row],[Standard Rate]])),TableOutpatientRates[Standard Rate],INDEX(TableOutpatientHourlyRates[Hourly Rate],MATCH(\"AOD Group\",TableOutpatientHourlyRates[Group Name],0))/60*TableOutpatientRates[[#This Row],[Minutes for Rate]]),\"\")","v":25},{"$f":"IF(TableOutpatientRates[[#This Row],[LPHA Group Allowed]]=\"Y\",IF(NOT(ISBLANK(TableOutpatientRates[[#This Row],[Standard Rate]])),TableOutpatientRates[Standard Rate],INDEX(TableOutpatientHourlyRates[Hourly Rate],MATCH(\"LPHA Group\",TableOutpatientHourlyRates[Group Name],0))/60*TableOutpatientRates[[#This Row],[Minutes for Rate]]),\"\")","v":27.5},{"$f":"IF(TableOutpatientRates[[#This Row],[LVN Group Allowed]]=\"Y\",IF(NOT(ISBLANK(TableOutpatientRates[[#This Row],[Standard Rate]])),TableOutpatientRates[Standard Rate],INDEX(TableOutpatientHourlyRates[Hourly Rate],MATCH(\"LVN Group\",TableOutpatientHourlyRates[Group Name],0))/60*TableOutpatientRates[[#This Row],[Minutes for Rate]]),\"\")","v":30},{"$f":"IF(TableOutpatientRates[[#This Row],[MA Group Allowed]]=\"Y\",IF(NOT(ISBLANK(TableOutpatientRates[[#This Row],[Standard Rate]])),TableOutpatientRates[Standard Rate],INDEX(TableOutpatientHourlyRates[Hourly Rate],MATCH(\"MA Group\",TableOutpatientHourlyRates[Group Name],0))/60*TableOutpatientRates[[#This Row],[Minutes for Rate]]),\"\")","v":32.5},{"$f":"IF(TableOutpatientRates[[#This Row],[MD Group Allowed]]=\"Y\",IF(NOT(ISBLANK(TableOutpatientRates[[#This Row],[Standard Rate]])),TableOutpatientRates[Standard Rate],INDEX(TableOutpatientHourlyRates[Hourly Rate],MATCH(\"MD Group\",TableOutpatientHourlyRates[Group Name],0))/60*TableOutpatientRates[[#This Row],[Minutes for Rate]]),\"\")","v":35},{"$f":"IF(TableOutpatientRates[[#This Row],[NP Group Allowed]]=\"Y\",IF(NOT(ISBLANK(TableOutpatientRates[[#This Row],[Standard Rate]])),TableOutpatientRates[Standard Rate],INDEX(TableOutpatientHourlyRates[Hourly Rate],MATCH(\"NP Group\",TableOutpatientHourlyRates[Group Name],0))/60*TableOutpatientRates[[#This Row],[Minutes for Rate]]),\"\")","v":37.5},{"$f":"IF(TableOutpatientRates[[#This Row],[OT Group Allowed]]=\"Y\",IF(NOT(ISBLANK(TableOutpatientRates[[#This Row],[Standard Rate]])),TableOutpatientRates[Standard Rate],INDEX(TableOutpatientHourlyRates[Hourly Rate],MATCH(\"OT Group\",TableOutpatientHourlyRates[Group Name],0))/60*TableOutpatientRates[[#This Row],[Minutes for Rate]]),\"\")","v":""},{"$f":"IF(TableOutpatientRates[[#This Row],[PA Group Allowed]]=\"Y\",IF(NOT(ISBLANK(TableOutpatientRates[[#This Row],[Standard Rate]])),TableOutpatientRates[Standard Rate],INDEX(TableOutpatientHourlyRates[Hourly Rate],MATCH(\"PA Group\",TableOutpatientHourlyRates[Group Name],0))/60*TableOutpatientRates[[#This Row],[Minutes for Rate]]),\"\")","v":42.5},{"$f":"IF(TableOutpatientRates[[#This Row],[PEER Group Allowed]]=\"Y\",IF(NOT(ISBLANK(TableOutpatientRates[[#This Row],[Standard Rate]])),TableOutpatientRates[Standard Rate],INDEX(TableOutpatientHourlyRates[Hourly Rate],MATCH(\"PEER Group\",TableOutpatientHourlyRates[Group Name],0))/60*TableOutpatientRates[[#This Row],[Minutes for Rate]]),\"\")","v":""},{"$f":"IF(TableOutpatientRates[[#This Row],[PHARM Group Allowed]]=\"Y\",IF(NOT(ISBLANK(TableOutpatientRates[[#This Row],[Standard Rate]])),TableOutpatientRates[Standard Rate],INDEX(TableOutpatientHourlyRates[Hourly Rate],MATCH(\"PHARM Group\",TableOutpatientHourlyRates[Group Name],0))/60*TableOutpatientRates[[#This Row],[Minutes for Rate]]),\"\")","v":47.5},{"$f":"IF(TableOutpatientRates[[#This Row],[PSY Group Allowed]]=\"Y\",IF(NOT(ISBLANK(TableOutpatientRates[[#This Row],[Standard Rate]])),TableOutpatientRates[Standard Rate],INDEX(TableOutpatientHourlyRates[Hourly Rate],MATCH(\"PSY Group\",TableOutpatientHourlyRates[Group Name],0))/60*TableOutpatientRates[[#This Row],[Minutes for Rate]]),\"\")","v":50},{"$f":"IF(TableOutpatientRates[[#This Row],[PT Group Allowed]]=\"Y\",IF(NOT(ISBLANK(TableOutpatientRates[[#This Row],[Standard Rate]])),TableOutpatientRates[Standard Rate],INDEX(TableOutpatientHourlyRates[Hourly Rate],MATCH(\"PT Group\",TableOutpatientHourlyRates[Group Name],0))/60*TableOutpatientRates[[#This Row],[Minutes for Rate]]),\"\")","v":52.5},{"$f":"IF(TableOutpatientRates[[#This Row],[RN Group Allowed]]=\"Y\",IF(NOT(ISBLANK(TableOutpatientRates[[#This Row],[Standard Rate]])),TableOutpatientRates[Standard Rate],INDEX(TableOutpatientHourlyRates[Hourly Rate],MATCH(\"RN Group\",TableOutpatientHourlyRates[Group Name],0))/60*TableOutpatientRates[[#This Row],[Minutes for Rate]]),\"\")","v":55}]
["H0050","Alcohol and/or Drug Services, brief intervention, 15 minutes (Code must be used to submit claims for Contingency Management Services)","15","Y","Y","Y","","Y","Y","Y","Y","Y","Y","Y","Y","Y",null,{"$f":"IF(TableOutpatientRates[[#This Row],[AOD Group Allowed]]=\"Y\",IF(NOT(ISBLANK(TableOutpatientRates[[#This Row],[Standard Rate]])),TableOutpatientRates[Standard Rate],INDEX(TableOutpatientHourlyRates[Hourly Rate],MATCH(\"AOD Group\",TableOutpatientHourlyRates[Group Name],0))/60*TableOutpatientRates[[#This Row],[Minutes for Rate]]),\"\")","v":25},{"$f":"IF(TableOutpatientRates[[#This Row],[LPHA Group Allowed]]=\"Y\",IF(NOT(ISBLANK(TableOutpatientRates[[#This Row],[Standard Rate]])),TableOutpatientRates[Standard Rate],INDEX(TableOutpatientHourlyRates[Hourly Rate],MATCH(\"LPHA Group\",TableOutpatientHourlyRates[Group Name],0))/60*TableOutpatientRates[[#This Row],[Minutes for Rate]]),\"\")","v":27.5},{"$f":"IF(TableOutpatientRates[[#This Row],[LVN Group Allowed]]=\"Y\",IF(NOT(ISBLANK(TableOutpatientRates[[#This Row],[Standard Rate]])),TableOutpatientRates[Standard Rate],INDEX(TableOutpatientHourlyRates[Hourly Rate],MATCH(\"LVN Group\",TableOutpatientHourlyRates[Group Name],0))/60*TableOutpatientRates[[#This Row],[Minutes for Rate]]),\"\")","v":30},{"$f":"IF(TableOutpatientRates[[#This Row],[MA Group Allowed]]=\"Y\",IF(NOT(ISBLANK(TableOutpatientRates[[#This Row],[Standard Rate]])),TableOutpatientRates[Standard Rate],INDEX(TableOutpatientHourlyRates[Hourly Rate],MATCH(\"MA Group\",TableOutpatientHourlyRates[Group Name],0))/60*TableOutpatientRates[[#This Row],[Minutes for Rate]]),\"\")","v":""},{"$f":"IF(TableOutpatientRates[[#This Row],[MD Group Allowed]]=\"Y\",IF(NOT(ISBLANK(TableOutpatientRates[[#This Row],[Standard Rate]])),TableOutpatientRates[Standard Rate],INDEX(TableOutpatientHourlyRates[Hourly Rate],MATCH(\"MD Group\",TableOutpatientHourlyRates[Group Name],0))/60*TableOutpatientRates[[#This Row],[Minutes for Rate]]),\"\")","v":35},{"$f":"IF(TableOutpatientRates[[#This Row],[NP Group Allowed]]=\"Y\",IF(NOT(ISBLANK(TableOutpatientRates[[#This Row],[Standard Rate]])),TableOutpatientRates[Standard Rate],INDEX(TableOutpatientHourlyRates[Hourly Rate],MATCH(\"NP Group\",TableOutpatientHourlyRates[Group Name],0))/60*TableOutpatientRates[[#This Row],[Minutes for Rate]]),\"\")","v":37.5},{"$f":"IF(TableOutpatientRates[[#This Row],[OT Group Allowed]]=\"Y\",IF(NOT(ISBLANK(TableOutpatientRates[[#This Row],[Standard Rate]])),TableOutpatientRates[Standard Rate],INDEX(TableOutpatientHourlyRates[Hourly Rate],MATCH(\"OT Group\",TableOutpatientHourlyRates[Group Name],0))/60*TableOutpatientRates[[#This Row],[Minutes for Rate]]),\"\")","v":40},{"$f":"IF(TableOutpatientRates[[#This Row],[PA Group Allowed]]=\"Y\",IF(NOT(ISBLANK(TableOutpatientRates[[#This Row],[Standard Rate]])),TableOutpatientRates[Standard Rate],INDEX(TableOutpatientHourlyRates[Hourly Rate],MATCH(\"PA Group\",TableOutpatientHourlyRates[Group Name],0))/60*TableOutpatientRates[[#This Row],[Minutes for Rate]]),\"\")","v":42.5},{"$f":"IF(TableOutpatientRates[[#This Row],[PEER Group Allowed]]=\"Y\",IF(NOT(ISBLANK(TableOutpatientRates[[#This Row],[Standard Rate]])),TableOutpatientRates[Standard Rate],INDEX(TableOutpatientHourlyRates[Hourly Rate],MATCH(\"PEER Group\",TableOutpatientHourlyRates[Group Name],0))/60*TableOutpatientRates[[#This Row],[Minutes for Rate]]),\"\")","v":45},{"$f":"IF(TableOutpatientRates[[#This Row],[PHARM Group Allowed]]=\"Y\",IF(NOT(ISBLANK(TableOutpatientRates[[#This Row],[Standard Rate]])),TableOutpatientRates[Standard Rate],INDEX(TableOutpatientHourlyRates[Hourly Rate],MATCH(\"PHARM Group\",TableOutpatientHourlyRates[Group Name],0))/60*TableOutpatientRates[[#This Row],[Minutes for Rate]]),\"\")","v":47.5},{"$f":"IF(TableOutpatientRates[[#This Row],[PSY Group Allowed]]=\"Y\",IF(NOT(ISBLANK(TableOutpatientRates[[#This Row],[Standard Rate]])),TableOutpatientRates[Standard Rate],INDEX(TableOutpatientHourlyRates[Hourly Rate],MATCH(\"PSY Group\",TableOutpatientHourlyRates[Group Name],0))/60*TableOutpatientRates[[#This Row],[Minutes for Rate]]),\"\")","v":50},{"$f":"IF(TableOutpatientRates[[#This Row],[PT Group Allowed]]=\"Y\",IF(NOT(ISBLANK(TableOutpatientRates[[#This Row],[Standard Rate]])),TableOutpatientRates[Standard Rate],INDEX(TableOutpatientHourlyRates[Hourly Rate],MATCH(\"PT Group\",TableOutpatientHourlyRates[Group Name],0))/60*TableOutpatientRates[[#This Row],[Minutes for Rate]]),\"\")","v":52.5},{"$f":"IF(TableOutpatientRates[[#This Row],[RN Group Allowed]]=\"Y\",IF(NOT(ISBLANK(TableOutpatientRates[[#This Row],[Standard Rate]])),TableOutpatientRates[Standard Rate],INDEX(TableOutpatientHourlyRates[Hourly Rate],MATCH(\"RN Group\",TableOutpatientHourlyRates[Group Name],0))/60*TableOutpatientRates[[#This Row],[Minutes for Rate]]),\"\")","v":55}]
["H1000","Prenatal Care, at risk assessment.","15","Y","Y","Y","","Y","Y","","","Y","Y","Y","Y","Y",null,{"$f":"IF(TableOutpatientRates[[#This Row],[AOD Group Allowed]]=\"Y\",IF(NOT(ISBLANK(TableOutpatientRates[[#This Row],[Standard Rate]])),TableOutpatientRates[Standard Rate],INDEX(TableOutpatientHourlyRates[Hourly Rate],MATCH(\"AOD Group\",TableOutpatientHourlyRates[Group Name],0))/60*TableOutpatientRates[[#This Row],[Minutes for Rate]]),\"\")","v":25},{"$f":"IF(TableOutpatientRates[[#This Row],[LPHA Group Allowed]]=\"Y\",IF(NOT(ISBLANK(TableOutpatientRates[[#This Row],[Standard Rate]])),TableOutpatientRates[Standard Rate],INDEX(TableOutpatientHourlyRates[Hourly Rate],MATCH(\"LPHA Group\",TableOutpatientHourlyRates[Group Name],0))/60*TableOutpatientRates[[#This Row],[Minutes for Rate]]),\"\")","v":27.5},{"$f":"IF(TableOutpatientRates[[#This Row],[LVN Group Allowed]]=\"Y\",IF(NOT(ISBLANK(TableOutpatientRates[[#This Row],[Standard Rate]])),TableOutpatientRates[Standard Rate],INDEX(TableOutpatientHourlyRates[Hourly Rate],MATCH(\"LVN Group\",TableOutpatientHourlyRates[Group Name],0))/60*TableOutpatientRates[[#This Row],[Minutes for Rate]]),\"\")","v":30},{"$f":"IF(TableOutpatientRates[[#This Row],[MA Group Allowed]]=\"Y\",IF(NOT(ISBLANK(TableOutpatientRates[[#This Row],[Standard Rate]])),TableOutpatientRates[Standard Rate],INDEX(TableOutpatientHourlyRates[Hourly Rate],MATCH(\"MA Group\",TableOutpatientHourlyRates[Group Name],0))/60*TableOutpatientRates[[#This Row],[Minutes for Rate]]),\"\")","v":""},{"$f":"IF(TableOutpatientRates[[#This Row],[MD Group Allowed]]=\"Y\",IF(NOT(ISBLANK(TableOutpatientRates[[#This Row],[Standard Rate]])),TableOutpatientRates[Standard Rate],INDEX(TableOutpatientHourlyRates[Hourly Rate],MATCH(\"MD Group\",TableOutpatientHourlyRates[Group Name],0))/60*TableOutpatientRates[[#This Row],[Minutes for Rate]]),\"\")","v":35},{"$f":"IF(TableOutpatientRates[[#This Row],[NP Group Allowed]]=\"Y\",IF(NOT(ISBLANK(TableOutpatientRates[[#This Row],[Standard Rate]])),TableOutpatientRates[Standard Rate],INDEX(TableOutpatientHourlyRates[Hourly Rate],MATCH(\"NP Group\",TableOutpatientHourlyRates[Group Name],0))/60*TableOutpatientRates[[#This Row],[Minutes for Rate]]),\"\")","v":37.5},{"$f":"IF(TableOutpatientRates[[#This Row],[OT Group Allowed]]=\"Y\",IF(NOT(ISBLANK(TableOutpatientRates[[#This Row],[Standard Rate]])),TableOutpatientRates[Standard Rate],INDEX(TableOutpatientHourlyRates[Hourly Rate],MATCH(\"OT Group\",TableOutpatientHourlyRates[Group Name],0))/60*TableOutpatientRates[[#This Row],[Minutes for Rate]]),\"\")","v":""},{"$f":"IF(TableOutpatientRates[[#This Row],[PA Group Allowed]]=\"Y\",IF(NOT(ISBLANK(TableOutpatientRates[[#This Row],[Standard Rate]])),TableOutpatientRates[Standard Rate],INDEX(TableOutpatientHourlyRates[Hourly Rate],MATCH(\"PA Group\",TableOutpatientHourlyRates[Group Name],0))/60*TableOutpatientRates[[#This Row],[Minutes for Rate]]),\"\")","v":42.5},{"$f":"IF(TableOutpatientRates[[#This Row],[PEER Group Allowed]]=\"Y\",IF(NOT(ISBLANK(TableOutpatientRates[[#This Row],[Standard Rate]])),TableOutpatientRates[Standard Rate],INDEX(TableOutpatientHourlyRates[Hourly Rate],MATCH(\"PEER Group\",TableOutpatientHourlyRates[Group Name],0))/60*TableOutpatientRates[[#This Row],[Minutes for Rate]]),\"\")","v":""},{"$f":"IF(TableOutpatientRates[[#This Row],[PHARM Group Allowed]]=\"Y\",IF(NOT(ISBLANK(TableOutpatientRates[[#This Row],[Standard Rate]])),TableOutpatientRates[Standard Rate],INDEX(TableOutpatientHourlyRates[Hourly Rate],MATCH(\"PHARM Group\",TableOutpatientHourlyRates[Group Name],0))/60*TableOutpatientRates[[#This Row],[Minutes for Rate]]),\"\")","v":47.5},{"$f":"IF(TableOutpatientRates[[#This Row],[PSY Group Allowed]]=\"Y\",IF(NOT(ISBLANK(TableOutpatientRates[[#This Row],[Standard Rate]])),TableOutpatientRates[Standard Rate],INDEX(TableOutpatientHourlyRates[Hourly Rate],MATCH(\"PSY Group\",TableOutpatientHourlyRates[Group Name],0))/60*TableOutpatientRates[[#This Row],[Minutes for Rate]]),\"\")","v":50},{"$f":"IF(TableOutpatientRates[[#This Row],[PT Group Allowed]]=\"Y\",IF(NOT(ISBLANK(TableOutpatientRates[[#This Row],[Standard Rate]])),TableOutpatientRates[Standard Rate],INDEX(TableOutpatientHourlyRates[Hourly Rate],MATCH(\"PT Group\",TableOutpatientHourlyRates[Group Name],0))/60*TableOutpatientRates[[#This Row],[Minutes for Rate]]),\"\")","v":52.5},{"$f":"IF(TableOutpatientRates[[#This Row],[RN Group Allowed]]=\"Y\",IF(NOT(ISBLANK(TableOutpatientRates[[#This Row],[Standard Rate]])),TableOutpatientRates[Standard Rate],INDEX(TableOutpatientHourlyRates[Hourly Rate],MATCH(\"RN Group\",TableOutpatientHourlyRates[Group Name],0))/60*TableOutpatientRates[[#This Row],[Minutes for Rate]]),\"\")","v":55}]
["H2014","Skills training and development, per 15 minutes. (Use this code to submit claims for Patient Education Services).","15","Y","Y","Y","Y","Y","Y","Y","","Y","","Y","Y","",null,{"$f":"IF(TableOutpatientRates[[#This Row],[AOD Group Allowed]]=\"Y\",IF(NOT(ISBLANK(TableOutpatientRates[[#This Row],[Standard Rate]])),TableOutpatientRates[Standard Rate],INDEX(TableOutpatientHourlyRates[Hourly Rate],MATCH(\"AOD Group\",TableOutpatientHourlyRates[Group Name],0))/60*TableOutpatientRates[[#This Row],[Minutes for Rate]]),\"\")","v":25},{"$f":"IF(TableOutpatientRates[[#This Row],[LPHA Group Allowed]]=\"Y\",IF(NOT(ISBLANK(TableOutpatientRates[[#This Row],[Standard Rate]])),TableOutpatientRates[Standard Rate],INDEX(TableOutpatientHourlyRates[Hourly Rate],MATCH(\"LPHA Group\",TableOutpatientHourlyRates[Group Name],0))/60*TableOutpatientRates[[#This Row],[Minutes for Rate]]),\"\")","v":27.5},{"$f":"IF(TableOutpatientRates[[#This Row],[LVN Group Allowed]]=\"Y\",IF(NOT(ISBLANK(TableOutpatientRates[[#This Row],[Standard Rate]])),TableOutpatientRates[Standard Rate],INDEX(TableOutpatientHourlyRates[Hourly Rate],MATCH(\"LVN Group\",TableOutpatientHourlyRates[Group Name],0))/60*TableOutpatientRates[[#This Row],[Minutes for Rate]]),\"\")","v":30},{"$f":"IF(TableOutpatientRates[[#This Row],[MA Group Allowed]]=\"Y\",IF(NOT(ISBLANK(TableOutpatientRates[[#This Row],[Standard Rate]])),TableOutpatientRates[Standard Rate],INDEX(TableOutpatientHourlyRates[Hourly Rate],MATCH(\"MA Group\",TableOutpatientHourlyRates[Group Name],0))/60*TableOutpatientRates[[#This Row],[Minutes for Rate]]),\"\")","v":32.5},{"$f":"IF(TableOutpatientRates[[#This Row],[MD Group Allowed]]=\"Y\",IF(NOT(ISBLANK(TableOutpatientRates[[#This Row],[Standard Rate]])),TableOutpatientRates[Standard Rate],INDEX(TableOutpatientHourlyRates[Hourly Rate],MATCH(\"MD Group\",TableOutpatientHourlyRates[Group Name],0))/60*TableOutpatientRates[[#This Row],[Minutes for Rate]]),\"\")","v":35},{"$f":"IF(TableOutpatientRates[[#This Row],[NP Group Allowed]]=\"Y\",IF(NOT(ISBLANK(TableOutpatientRates[[#This Row],[Standard Rate]])),TableOutpatientRates[Standard Rate],INDEX(TableOutpatientHourlyRates[Hourly Rate],MATCH(\"NP Group\",TableOutpatientHourlyRates[Group Name],0))/60*TableOutpatientRates[[#This Row],[Minutes for Rate]]),\"\")","v":37.5},{"$f":"IF(TableOutpatientRates[[#This Row],[OT Group Allowed]]=\"Y\",IF(NOT(ISBLANK(TableOutpatientRates[[#This Row],[Standard Rate]])),TableOutpatientRates[Standard Rate],INDEX(TableOutpatientHourlyRates[Hourly Rate],MATCH(\"OT Group\",TableOutpatientHourlyRates[Group Name],0))/60*TableOutpatientRates[[#This Row],[Minutes for Rate]]),\"\")","v":40},{"$f":"IF(TableOutpatientRates[[#This Row],[PA Group Allowed]]=\"Y\",IF(NOT(ISBLANK(TableOutpatientRates[[#This Row],[Standard Rate]])),TableOutpatientRates[Standard Rate],INDEX(TableOutpatientHourlyRates[Hourly Rate],MATCH(\"PA Group\",TableOutpatientHourlyRates[Group Name],0))/60*TableOutpatientRates[[#This Row],[Minutes for Rate]]),\"\")","v":42.5},{"$f":"IF(TableOutpatientRates[[#This Row],[PEER Group Allowed]]=\"Y\",IF(NOT(ISBLANK(TableOutpatientRates[[#This Row],[Standard Rate]])),TableOutpatientRates[Standard Rate],INDEX(TableOutpatientHourlyRates[Hourly Rate],MATCH(\"PEER Group\",TableOutpatientHourlyRates[Group Name],0))/60*TableOutpatientRates[[#This Row],[Minutes for Rate]]),\"\")","v":""},{"$f":"IF(TableOutpatientRates[[#This Row],[PHARM Group Allowed]]=\"Y\",IF(NOT(ISBLANK(TableOutpatientRates[[#This Row],[Standard Rate]])),TableOutpatientRates[Standard Rate],INDEX(TableOutpatientHourlyRates[Hourly Rate],MATCH(\"PHARM Group\",TableOutpatientHourlyRates[Group Name],0))/60*TableOutpatientRates[[#This Row],[Minutes for Rate]]),\"\")","v":""},{"$f":"IF(TableOutpatientRates[[#This Row],[PSY Group Allowed]]=\"Y\",IF(NOT(ISBLANK(TableOutpatientRates[[#This Row],[Standard Rate]])),TableOutpatientRates[Standard Rate],INDEX(TableOutpatientHourlyRates[Hourly Rate],MATCH(\"PSY Group\",TableOutpatientHourlyRates[Group Name],0))/60*TableOutpatientRates[[#This Row],[Minutes for Rate]]),\"\")","v":""},{"$f":"IF(TableOutpatientRates[[#This Row],[PT Group Allowed]]=\"Y\",IF(NOT(ISBLANK(TableOutpatientRates[[#This Row],[Standard Rate]])),TableOutpatientRates[Standard Rate],INDEX(TableOutpatientHourlyRates[Hourly Rate],MATCH(\"PT Group\",TableOutpatientHourlyRates[Group Name],0))/60*TableOutpatientRates[[#This Row],[Minutes for Rate]]),\"\")","v":52.5},{"$f":"IF(TableOutpatientRates[[#This Row],[RN Group Allowed]]=\"Y\",IF(NOT(ISBLANK(TableOutpatientRates[[#This Row],[Standard Rate]])),TableOutpatientRates[Standard Rate],INDEX(TableOutpatientHourlyRates[Hourly Rate],MATCH(\"RN Group\",TableOutpatientHourlyRates[Group Name],0))/60*TableOutpatientRates[[#This Row],[Minutes for Rate]]),\"\")","v":55}]
["H2015","Comprehensive community support services, per 15 minutes","15","Y","Y","Y","","Y","Y","Y","","Y","","Y","Y","",null,{"$f":"IF(TableOutpatientRates[[#This Row],[AOD Group Allowed]]=\"Y\",IF(NOT(ISBLANK(TableOutpatientRates[[#This Row],[Standard Rate]])),TableOutpatientRates[Standard Rate],INDEX(TableOutpatientHourlyRates[Hourly Rate],MATCH(\"AOD Group\",TableOutpatientHourlyRates[Group Name],0))/60*TableOutpatientRates[[#This Row],[Minutes for Rate]]),\"\")","v":25},{"$f":"IF(TableOutpatientRates[[#This Row],[LPHA Group Allowed]]=\"Y\",IF(NOT(ISBLANK(TableOutpatientRates[[#This Row],[Standard Rate]])),TableOutpatientRates[Standard Rate],INDEX(TableOutpatientHourlyRates[Hourly Rate],MATCH(\"LPHA Group\",TableOutpatientHourlyRates[Group Name],0))/60*TableOutpatientRates[[#This Row],[Minutes for Rate]]),\"\")","v":27.5},{"$f":"IF(TableOutpatientRates[[#This Row],[LVN Group Allowed]]=\"Y\",IF(NOT(ISBLANK(TableOutpatientRates[[#This Row],[Standard Rate]])),TableOutpatientRates[Standard Rate],INDEX(TableOutpatientHourlyRates[Hourly Rate],MATCH(\"LVN Group\",TableOutpatientHourlyRates[Group Name],0))/60*TableOutpatientRates[[#This Row],[Minutes for Rate]]),\"\")","v":30},{"$f":"IF(TableOutpatientRates[[#This Row],[MA Group Allowed]]=\"Y\",IF(NOT(ISBLANK(TableOutpatientRates[[#This Row],[Standard Rate]])),TableOutpatientRates[Standard Rate],INDEX(TableOutpatientHourlyRates[Hourly Rate],MATCH(\"MA Group\",TableOutpatientHourlyRates[Group Name],0))/60*TableOutpatientRates[[#This Row],[Minutes for Rate]]),\"\")","v":""},{"$f":"IF(TableOutpatientRates[[#This Row],[MD Group Allowed]]=\"Y\",IF(NOT(ISBLANK(TableOutpatientRates[[#This Row],[Standard Rate]])),TableOutpatientRates[Standard Rate],INDEX(TableOutpatientHourlyRates[Hourly Rate],MATCH(\"MD Group\",TableOutpatientHourlyRates[Group Name],0))/60*TableOutpatientRates[[#This Row],[Minutes for Rate]]),\"\")","v":35},{"$f":"IF(TableOutpatientRates[[#This Row],[NP Group Allowed]]=\"Y\",IF(NOT(ISBLANK(TableOutpatientRates[[#This Row],[Standard Rate]])),TableOutpatientRates[Standard Rate],INDEX(TableOutpatientHourlyRates[Hourly Rate],MATCH(\"NP Group\",TableOutpatientHourlyRates[Group Name],0))/60*TableOutpatientRates[[#This Row],[Minutes for Rate]]),\"\")","v":37.5},{"$f":"IF(TableOutpatientRates[[#This Row],[OT Group Allowed]]=\"Y\",IF(NOT(ISBLANK(TableOutpatientRates[[#This Row],[Standard Rate]])),TableOutpatientRates[Standard Rate],INDEX(TableOutpatientHourlyRates[Hourly Rate],MATCH(\"OT Group\",TableOutpatientHourlyRates[Group Name],0))/60*TableOutpatientRates[[#This Row],[Minutes for Rate]]),\"\")","v":40},{"$f":"IF(TableOutpatientRates[[#This Row],[PA Group Allowed]]=\"Y\",IF(NOT(ISBLANK(TableOutpatientRates[[#This Row],[Standard Rate]])),TableOutpatientRates[Standard Rate],INDEX(TableOutpatientHourlyRates[Hourly Rate],MATCH(\"PA Group\",TableOutpatientHourlyRates[Group Name],0))/60*TableOutpatientRates[[#This Row],[Minutes for Rate]]),\"\")","v":42.5},{"$f":"IF(TableOutpatientRates[[#This Row],[PEER Group Allowed]]=\"Y\",IF(NOT(ISBLANK(TableOutpatientRates[[#This Row],[Standard Rate]])),TableOutpatientRates[Standard Rate],INDEX(TableOutpatientHourlyRates[Hourly Rate],MATCH(\"PEER Group\",TableOutpatientHourlyRates[Group Name],0))/60*TableOutpatientRates[[#This Row],[Minutes for Rate]]),\"\")","v":""},{"$f":"IF(TableOutpatientRates[[#This Row],[PHARM Group Allowed]]=\"Y\",IF(NOT(ISBLANK(TableOutpatientRates[[#This Row],[Standard Rate]])),TableOutpatientRates[Standard Rate],INDEX(TableOutpatientHourlyRates[Hourly Rate],MATCH(\"PHARM Group\",TableOutpatientHourlyRates[Group Name],0))/60*TableOutpatientRates[[#This Row],[Minutes for Rate]]),\"\")","v":""},{"$f":"IF(TableOutpatientRates[[#This Row],[PSY Group Allowed]]=\"Y\",IF(NOT(ISBLANK(TableOutpatientRates[[#This Row],[Standard Rate]])),TableOutpatientRates[Standard Rate],INDEX(TableOutpatientHourlyRates[Hourly Rate],MATCH(\"PSY Group\",TableOutpatientHourlyRates[Group Name],0))/60*TableOutpatientRates[[#This Row],[Minutes for Rate]]),\"\")","v":""},{"$f":"IF(TableOutpatientRates[[#This Row],[PT Group Allowed]]=\"Y\",IF(NOT(ISBLANK(TableOutpatientRates[[#This Row],[Standard Rate]])),TableOutpatientRates[Standard Rate],INDEX(TableOutpatientHourlyRates[Hourly Rate],MATCH(\"PT Group\",TableOutpatientHourlyRates[Group Name],0))/60*TableOutpatientRates[[#This Row],[Minutes for Rate]]),\"\")","v":52.5},{"$f":"IF(TableOutpatientRates[[#This Row],[RN Group Allowed]]=\"Y\",IF(NOT(ISBLANK(TableOutpatientRates[[#This Row],[Standard Rate]])),TableOutpatientRates[Standard Rate],INDEX(TableOutpatientHourlyRates[Hourly Rate],MATCH(\"RN Group\",TableOutpatientHourlyRates[Group Name],0))/60*TableOutpatientRates[[#This Row],[Minutes for Rate]]),\"\")","v":55}]
["H2017","Psychosocial Rehabilitation, per 15 Minutes","15","Y","Y","Y","Y","Y","Y","Y","","Y","","Y","","Y",null,{"$f":"IF(TableOutpatientRates[[#This Row],[AOD Group Allowed]]=\"Y\",IF(NOT(ISBLANK(TableOutpatientRates[[#This Row],[Standard Rate]])),TableOutpatientRates[Standard Rate],INDEX(TableOutpatientHourlyRates[Hourly Rate],MATCH(\"AOD Group\",TableOutpatientHourlyRates[Group Name],0))/60*TableOutpatientRates[[#This Row],[Minutes for Rate]]),\"\")","v":25},{"$f":"IF(TableOutpatientRates[[#This Row],[LPHA Group Allowed]]=\"Y\",IF(NOT(ISBLANK(TableOutpatientRates[[#This Row],[Standard Rate]])),TableOutpatientRates[Standard Rate],INDEX(TableOutpatientHourlyRates[Hourly Rate],MATCH(\"LPHA Group\",TableOutpatientHourlyRates[Group Name],0))/60*TableOutpatientRates[[#This Row],[Minutes for Rate]]),\"\")","v":27.5},{"$f":"IF(TableOutpatientRates[[#This Row],[LVN Group Allowed]]=\"Y\",IF(NOT(ISBLANK(TableOutpatientRates[[#This Row],[Standard Rate]])),TableOutpatientRates[Standard Rate],INDEX(TableOutpatientHourlyRates[Hourly Rate],MATCH(\"LVN Group\",TableOutpatientHourlyRates[Group Name],0))/60*TableOutpatientRates[[#This Row],[Minutes for Rate]]),\"\")","v":30},{"$f":"IF(TableOutpatientRates[[#This Row],[MA Group Allowed]]=\"Y\",IF(NOT(ISBLANK(TableOutpatientRates[[#This Row],[Standard Rate]])),TableOutpatientRates[Standard Rate],INDEX(TableOutpatientHourlyRates[Hourly Rate],MATCH(\"MA Group\",TableOutpatientHourlyRates[Group Name],0))/60*TableOutpatientRates[[#This Row],[Minutes for Rate]]),\"\")","v":32.5},{"$f":"IF(TableOutpatientRates[[#This Row],[MD Group Allowed]]=\"Y\",IF(NOT(ISBLANK(TableOutpatientRates[[#This Row],[Standard Rate]])),TableOutpatientRates[Standard Rate],INDEX(TableOutpatientHourlyRates[Hourly Rate],MATCH(\"MD Group\",TableOutpatientHourlyRates[Group Name],0))/60*TableOutpatientRates[[#This Row],[Minutes for Rate]]),\"\")","v":35},{"$f":"IF(TableOutpatientRates[[#This Row],[NP Group Allowed]]=\"Y\",IF(NOT(ISBLANK(TableOutpatientRates[[#This Row],[Standard Rate]])),TableOutpatientRates[Standard Rate],INDEX(TableOutpatientHourlyRates[Hourly Rate],MATCH(\"NP Group\",TableOutpatientHourlyRates[Group Name],0))/60*TableOutpatientRates[[#This Row],[Minutes for Rate]]),\"\")","v":37.5},{"$f":"IF(TableOutpatientRates[[#This Row],[OT Group Allowed]]=\"Y\",IF(NOT(ISBLANK(TableOutpatientRates[[#This Row],[Standard Rate]])),TableOutpatientRates[Standard Rate],INDEX(TableOutpatientHourlyRates[Hourly Rate],MATCH(\"OT Group\",TableOutpatientHourlyRates[Group Name],0))/60*TableOutpatientRates[[#This Row],[Minutes for Rate]]),\"\")","v":40},{"$f":"IF(TableOutpatientRates[[#This Row],[PA Group Allowed]]=\"Y\",IF(NOT(ISBLANK(TableOutpatientRates[[#This Row],[Standard Rate]])),TableOutpatientRates[Standard Rate],INDEX(TableOutpatientHourlyRates[Hourly Rate],MATCH(\"PA Group\",TableOutpatientHourlyRates[Group Name],0))/60*TableOutpatientRates[[#This Row],[Minutes for Rate]]),\"\")","v":42.5},{"$f":"IF(TableOutpatientRates[[#This Row],[PEER Group Allowed]]=\"Y\",IF(NOT(ISBLANK(TableOutpatientRates[[#This Row],[Standard Rate]])),TableOutpatientRates[Standard Rate],INDEX(TableOutpatientHourlyRates[Hourly Rate],MATCH(\"PEER Group\",TableOutpatientHourlyRates[Group Name],0))/60*TableOutpatientRates[[#This Row],[Minutes for Rate]]),\"\")","v":""},{"$f":"IF(TableOutpatientRates[[#This Row],[PHARM Group Allowed]]=\"Y\",IF(NOT(ISBLANK(TableOutpatientRates[[#This Row],[Standard Rate]])),TableOutpatientRates[Standard Rate],INDEX(TableOutpatientHourlyRates[Hourly Rate],MATCH(\"PHARM Group\",TableOutpatientHourlyRates[Group Name],0))/60*TableOutpatientRates[[#This Row],[Minutes for Rate]]),\"\")","v":47.5},{"$f":"IF(TableOutpatientRates[[#This Row],[PSY Group Allowed]]=\"Y\",IF(NOT(ISBLANK(TableOutpatientRates[[#This Row],[Standard Rate]])),TableOutpatientRates[Standard Rate],INDEX(TableOutpatientHourlyRates[Hourly Rate],MATCH(\"PSY Group\",TableOutpatientHourlyRates[Group Name],0))/60*TableOutpatientRates[[#This Row],[Minutes for Rate]]),\"\")","v":""},{"$f":"IF(TableOutpatientRates[[#This Row],[PT Group Allowed]]=\"Y\",IF(NOT(ISBLANK(TableOutpatientRates[[#This Row],[Standard Rate]])),TableOutpatientRates[Standard Rate],INDEX(TableOutpatientHourlyRates[Hourly Rate],MATCH(\"PT Group\",TableOutpatientHourlyRates[Group Name],0))/60*TableOutpatientRates[[#This Row],[Minutes for Rate]]),\"\")","v":52.5},{"$f":"IF(TableOutpatientRates[[#This Row],[RN Group Allowed]]=\"Y\",IF(NOT(ISBLANK(TableOutpatientRates[[#This Row],[Standard Rate]])),TableOutpatientRates[Standard Rate],INDEX(TableOutpatientHourlyRates[Hourly Rate],MATCH(\"RN Group\",TableOutpatientHourlyRates[Group Name],0))/60*TableOutpatientRates[[#This Row],[Minutes for Rate]]),\"\")","v":""}]
["H2021","Community-Based Wrap-Around Services, per 15 Minutes","15","Y","Y","Y","Y","Y","Y","Y","","Y","","Y","","Y",null,{"$f":"IF(TableOutpatientRates[[#This Row],[AOD Group Allowed]]=\"Y\",IF(NOT(ISBLANK(TableOutpatientRates[[#This Row],[Standard Rate]])),TableOutpatientRates[Standard Rate],INDEX(TableOutpatientHourlyRates[Hourly Rate],MATCH(\"AOD Group\",TableOutpatientHourlyRates[Group Name],0))/60*TableOutpatientRates[[#This Row],[Minutes for Rate]]),\"\")","v":25},{"$f":"IF(TableOutpatientRates[[#This Row],[LPHA Group Allowed]]=\"Y\",IF(NOT(ISBLANK(TableOutpatientRates[[#This Row],[Standard Rate]])),TableOutpatientRates[Standard Rate],INDEX(TableOutpatientHourlyRates[Hourly Rate],MATCH(\"LPHA Group\",TableOutpatientHourlyRates[Group Name],0))/60*TableOutpatientRates[[#This Row],[Minutes for Rate]]),\"\")","v":27.5},{"$f":"IF(TableOutpatientRates[[#This Row],[LVN Group Allowed]]=\"Y\",IF(NOT(ISBLANK(TableOutpatientRates[[#This Row],[Standard Rate]])),TableOutpatientRates[Standard Rate],INDEX(TableOutpatientHourlyRates[Hourly Rate],MATCH(\"LVN Group\",TableOutpatientHourlyRates[Group Name],0))/60*TableOutpatientRates[[#This Row],[Minutes for Rate]]),\"\")","v":30},{"$f":"IF(TableOutpatientRates[[#This Row],[MA Group Allowed]]=\"Y\",IF(NOT(ISBLANK(TableOutpatientRates[[#This Row],[Standard Rate]])),TableOutpatientRates[Standard Rate],INDEX(TableOutpatientHourlyRates[Hourly Rate],MATCH(\"MA Group\",TableOutpatientHourlyRates[Group Name],0))/60*TableOutpatientRates[[#This Row],[Minutes for Rate]]),\"\")","v":32.5},{"$f":"IF(TableOutpatientRates[[#This Row],[MD Group Allowed]]=\"Y\",IF(NOT(ISBLANK(TableOutpatientRates[[#This Row],[Standard Rate]])),TableOutpatientRates[Standard Rate],INDEX(TableOutpatientHourlyRates[Hourly Rate],MATCH(\"MD Group\",TableOutpatientHourlyRates[Group Name],0))/60*TableOutpatientRates[[#This Row],[Minutes for Rate]]),\"\")","v":35},{"$f":"IF(TableOutpatientRates[[#This Row],[NP Group Allowed]]=\"Y\",IF(NOT(ISBLANK(TableOutpatientRates[[#This Row],[Standard Rate]])),TableOutpatientRates[Standard Rate],INDEX(TableOutpatientHourlyRates[Hourly Rate],MATCH(\"NP Group\",TableOutpatientHourlyRates[Group Name],0))/60*TableOutpatientRates[[#This Row],[Minutes for Rate]]),\"\")","v":37.5},{"$f":"IF(TableOutpatientRates[[#This Row],[OT Group Allowed]]=\"Y\",IF(NOT(ISBLANK(TableOutpatientRates[[#This Row],[Standard Rate]])),TableOutpatientRates[Standard Rate],INDEX(TableOutpatientHourlyRates[Hourly Rate],MATCH(\"OT Group\",TableOutpatientHourlyRates[Group Name],0))/60*TableOutpatientRates[[#This Row],[Minutes for Rate]]),\"\")","v":40},{"$f":"IF(TableOutpatientRates[[#This Row],[PA Group Allowed]]=\"Y\",IF(NOT(ISBLANK(TableOutpatientRates[[#This Row],[Standard Rate]])),TableOutpatientRates[Standard Rate],INDEX(TableOutpatientHourlyRates[Hourly Rate],MATCH(\"PA Group\",TableOutpatientHourlyRates[Group Name],0))/60*TableOutpatientRates[[#This Row],[Minutes for Rate]]),\"\")","v":42.5},{"$f":"IF(TableOutpatientRates[[#This Row],[PEER Group Allowed]]=\"Y\",IF(NOT(ISBLANK(TableOutpatientRates[[#This Row],[Standard Rate]])),TableOutpatientRates[Standard Rate],INDEX(TableOutpatientHourlyRates[Hourly Rate],MATCH(\"PEER Group\",TableOutpatientHourlyRates[Group Name],0))/60*TableOutpatientRates[[#This Row],[Minutes for Rate]]),\"\")","v":""},{"$f":"IF(TableOutpatientRates[[#This Row],[PHARM Group Allowed]]=\"Y\",IF(NOT(ISBLANK(TableOutpatientRates[[#This Row],[Standard Rate]])),TableOutpatientRates[Standard Rate],INDEX(TableOutpatientHourlyRates[Hourly Rate],MATCH(\"PHARM Group\",TableOutpatientHourlyRates[Group Name],0))/60*TableOutpatientRates[[#This Row],[Minutes for Rate]]),\"\")","v":47.5},{"$f":"IF(TableOutpatientRates[[#This Row],[PSY Group Allowed]]=\"Y\",IF(NOT(ISBLANK(TableOutpatientRates[[#This Row],[Standard Rate]])),TableOutpatientRates[Standard Rate],INDEX(TableOutpatientHourlyRates[Hourly Rate],MATCH(\"PSY Group\",TableOutpatientHourlyRates[Group Name],0))/60*TableOutpatientRates[[#This Row],[Minutes for Rate]]),\"\")","v":""},{"$f":"IF(TableOutpatientRates[[#This Row],[PT Group Allowed]]=\"Y\",IF(NOT(ISBLANK(TableOutpatientRates[[#This Row],[Standard Rate]])),TableOutpatientRates[Standard Rate],INDEX(TableOutpatientHourlyRates[Hourly Rate],MATCH(\"PT Group\",TableOutpatientHourlyRates[Group Name],0))/60*TableOutpatientRates[[#This Row],[Minutes for Rate]]),\"\")","v":52.5},{"$f":"IF(TableOutpatientRates[[#This Row],[RN Group Allowed]]=\"Y\",IF(NOT(ISBLANK(TableOutpatientRates[[#This Row],[Standard Rate]])),TableOutpatientRates[Standard Rate],INDEX(TableOutpatientHourlyRates[Hourly Rate],MATCH(\"RN Group\",TableOutpatientHourlyRates[Group Name],0))/60*TableOutpatientRates[[#This Row],[Minutes for Rate]]),\"\")","v":""}]
["H2027","Psychoeducational Service, per 15 minutes","15","Y","Y","Y","Y","Y","Y","Y","","Y","Y","Y","","",null,{"$f":"IF(TableOutpatientRates[[#This Row],[AOD Group Allowed]]=\"Y\",IF(NOT(ISBLANK(TableOutpatientRates[[#This Row],[Standard Rate]])),TableOutpatientRates[Standard Rate],INDEX(TableOutpatientHourlyRates[Hourly Rate],MATCH(\"AOD Group\",TableOutpatientHourlyRates[Group Name],0))/60*TableOutpatientRates[[#This Row],[Minutes for Rate]]),\"\")","v":25},{"$f":"IF(TableOutpatientRates[[#This Row],[LPHA Group Allowed]]=\"Y\",IF(NOT(ISBLANK(TableOutpatientRates[[#This Row],[Standard Rate]])),TableOutpatientRates[Standard Rate],INDEX(TableOutpatientHourlyRates[Hourly Rate],MATCH(\"LPHA Group\",TableOutpatientHourlyRates[Group Name],0))/60*TableOutpatientRates[[#This Row],[Minutes for Rate]]),\"\")","v":27.5},{"$f":"IF(TableOutpatientRates[[#This Row],[LVN Group Allowed]]=\"Y\",IF(NOT(ISBLANK(TableOutpatientRates[[#This Row],[Standard Rate]])),TableOutpatientRates[Standard Rate],INDEX(TableOutpatientHourlyRates[Hourly Rate],MATCH(\"LVN Group\",TableOutpatientHourlyRates[Group Name],0))/60*TableOutpatientRates[[#This Row],[Minutes for Rate]]),\"\")","v":30},{"$f":"IF(TableOutpatientRates[[#This Row],[MA Group Allowed]]=\"Y\",IF(NOT(ISBLANK(TableOutpatientRates[[#This Row],[Standard Rate]])),TableOutpatientRates[Standard Rate],INDEX(TableOutpatientHourlyRates[Hourly Rate],MATCH(\"MA Group\",TableOutpatientHourlyRates[Group Name],0))/60*TableOutpatientRates[[#This Row],[Minutes for Rate]]),\"\")","v":32.5},{"$f":"IF(TableOutpatientRates[[#This Row],[MD Group Allowed]]=\"Y\",IF(NOT(ISBLANK(TableOutpatientRates[[#This Row],[Standard Rate]])),TableOutpatientRates[Standard Rate],INDEX(TableOutpatientHourlyRates[Hourly Rate],MATCH(\"MD Group\",TableOutpatientHourlyRates[Group Name],0))/60*TableOutpatientRates[[#This Row],[Minutes for Rate]]),\"\")","v":35},{"$f":"IF(TableOutpatientRates[[#This Row],[NP Group Allowed]]=\"Y\",IF(NOT(ISBLANK(TableOutpatientRates[[#This Row],[Standard Rate]])),TableOutpatientRates[Standard Rate],INDEX(TableOutpatientHourlyRates[Hourly Rate],MATCH(\"NP Group\",TableOutpatientHourlyRates[Group Name],0))/60*TableOutpatientRates[[#This Row],[Minutes for Rate]]),\"\")","v":37.5},{"$f":"IF(TableOutpatientRates[[#This Row],[OT Group Allowed]]=\"Y\",IF(NOT(ISBLANK(TableOutpatientRates[[#This Row],[Standard Rate]])),TableOutpatientRates[Standard Rate],INDEX(TableOutpatientHourlyRates[Hourly Rate],MATCH(\"OT Group\",TableOutpatientHourlyRates[Group Name],0))/60*TableOutpatientRates[[#This Row],[Minutes for Rate]]),\"\")","v":40},{"$f":"IF(TableOutpatientRates[[#This Row],[PA Group Allowed]]=\"Y\",IF(NOT(ISBLANK(TableOutpatientRates[[#This Row],[Standard Rate]])),TableOutpatientRates[Standard Rate],INDEX(TableOutpatientHourlyRates[Hourly Rate],MATCH(\"PA Group\",TableOutpatientHourlyRates[Group Name],0))/60*TableOutpatientRates[[#This Row],[Minutes for Rate]]),\"\")","v":42.5},{"$f":"IF(TableOutpatientRates[[#This Row],[PEER Group Allowed]]=\"Y\",IF(NOT(ISBLANK(TableOutpatientRates[[#This Row],[Standard Rate]])),TableOutpatientRates[Standard Rate],INDEX(TableOutpatientHourlyRates[Hourly Rate],MATCH(\"PEER Group\",TableOutpatientHourlyRates[Group Name],0))/60*TableOutpatientRates[[#This Row],[Minutes for Rate]]),\"\")","v":""},{"$f":"IF(TableOutpatientRates[[#This Row],[PHARM Group Allowed]]=\"Y\",IF(NOT(ISBLANK(TableOutpatientRates[[#This Row],[Standard Rate]])),TableOutpatientRates[Standard Rate],INDEX(TableOutpatientHourlyRates[Hourly Rate],MATCH(\"PHARM Group\",TableOutpatientHourlyRates[Group Name],0))/60*TableOutpatientRates[[#This Row],[Minutes for Rate]]),\"\")","v":""},{"$f":"IF(TableOutpatientRates[[#This Row],[PSY Group Allowed]]=\"Y\",IF(NOT(ISBLANK(TableOutpatientRates[[#This Row],[Standard Rate]])),TableOutpatientRates[Standard Rate],INDEX(TableOutpatientHourlyRates[Hourly Rate],MATCH(\"PSY Group\",TableOutpatientHourlyRates[Group Name],0))/60*TableOutpatientRates[[#This Row],[Minutes for Rate]]),\"\")","v":50},{"$f":"IF(TableOutpatientRates[[#This Row],[PT Group Allowed]]=\"Y\",IF(NOT(ISBLANK(TableOutpatientRates[[#This Row],[Standard Rate]])),TableOutpatientRates[Standard Rate],INDEX(TableOutpatientHourlyRates[Hourly Rate],MATCH(\"PT Group\",TableOutpatientHourlyRates[Group Name],0))/60*TableOutpatientRates[[#This Row],[Minutes for Rate]]),\"\")","v":52.5},{"$f":"IF(TableOutpatientRates[[#This Row],[RN Group Allowed]]=\"Y\",IF(NOT(ISBLANK(TableOutpatientRates[[#This Row],[Standard Rate]])),TableOutpatientRates[Standard Rate],INDEX(TableOutpatientHourlyRates[Hourly Rate],MATCH(\"RN Group\",TableOutpatientHourlyRates[Group Name],0))/60*TableOutpatientRates[[#This Row],[Minutes for Rate]]),\"\")","v":""}]
["H2035","Alcohol and/or other drug treatment program, Per Hour","60","Y","Y","Y","","Y","Y","","","Y","Y","Y","","Y",null,{"$f":"IF(TableOutpatientRates[[#This Row],[AOD Group Allowed]]=\"Y\",IF(NOT(ISBLANK(TableOutpatientRates[[#This Row],[Standard Rate]])),TableOutpatientRates[Standard Rate],INDEX(TableOutpatientHourlyRates[Hourly Rate],MATCH(\"AOD Group\",TableOutpatientHourlyRates[Group Name],0))/60*TableOutpatientRates[[#This Row],[Minutes for Rate]]),\"\")","v":100},{"$f":"IF(TableOutpatientRates[[#This Row],[LPHA Group Allowed]]=\"Y\",IF(NOT(ISBLANK(TableOutpatientRates[[#This Row],[Standard Rate]])),TableOutpatientRates[Standard Rate],INDEX(TableOutpatientHourlyRates[Hourly Rate],MATCH(\"LPHA Group\",TableOutpatientHourlyRates[Group Name],0))/60*TableOutpatientRates[[#This Row],[Minutes for Rate]]),\"\")","v":110},{"$f":"IF(TableOutpatientRates[[#This Row],[LVN Group Allowed]]=\"Y\",IF(NOT(ISBLANK(TableOutpatientRates[[#This Row],[Standard Rate]])),TableOutpatientRates[Standard Rate],INDEX(TableOutpatientHourlyRates[Hourly Rate],MATCH(\"LVN Group\",TableOutpatientHourlyRates[Group Name],0))/60*TableOutpatientRates[[#This Row],[Minutes for Rate]]),\"\")","v":120},{"$f":"IF(TableOutpatientRates[[#This Row],[MA Group Allowed]]=\"Y\",IF(NOT(ISBLANK(TableOutpatientRates[[#This Row],[Standard Rate]])),TableOutpatientRates[Standard Rate],INDEX(TableOutpatientHourlyRates[Hourly Rate],MATCH(\"MA Group\",TableOutpatientHourlyRates[Group Name],0))/60*TableOutpatientRates[[#This Row],[Minutes for Rate]]),\"\")","v":""},{"$f":"IF(TableOutpatientRates[[#This Row],[MD Group Allowed]]=\"Y\",IF(NOT(ISBLANK(TableOutpatientRates[[#This Row],[Standard Rate]])),TableOutpatientRates[Standard Rate],INDEX(TableOutpatientHourlyRates[Hourly Rate],MATCH(\"MD Group\",TableOutpatientHourlyRates[Group Name],0))/60*TableOutpatientRates[[#This Row],[Minutes for Rate]]),\"\")","v":140},{"$f":"IF(TableOutpatientRates[[#This Row],[NP Group Allowed]]=\"Y\",IF(NOT(ISBLANK(TableOutpatientRates[[#This Row],[Standard Rate]])),TableOutpatientRates[Standard Rate],INDEX(TableOutpatientHourlyRates[Hourly Rate],MATCH(\"NP Group\",TableOutpatientHourlyRates[Group Name],0))/60*TableOutpatientRates[[#This Row],[Minutes for Rate]]),\"\")","v":150},{"$f":"IF(TableOutpatientRates[[#This Row],[OT Group Allowed]]=\"Y\",IF(NOT(ISBLANK(TableOutpatientRates[[#This Row],[Standard Rate]])),TableOutpatientRates[Standard Rate],INDEX(TableOutpatientHourlyRates[Hourly Rate],MATCH(\"OT Group\",TableOutpatientHourlyRates[Group Name],0))/60*TableOutpatientRates[[#This Row],[Minutes for Rate]]),\"\")","v":""},{"$f":"IF(TableOutpatientRates[[#This Row],[PA Group Allowed]]=\"Y\",IF(NOT(ISBLANK(TableOutpatientRates[[#This Row],[Standard Rate]])),TableOutpatientRates[Standard Rate],INDEX(TableOutpatientHourlyRates[Hourly Rate],MATCH(\"PA Group\",TableOutpatientHourlyRates[Group Name],0))/60*TableOutpatientRates[[#This Row],[Minutes for Rate]]),\"\")","v":170},{"$f":"IF(TableOutpatientRates[[#This Row],[PEER Group Allowed]]=\"Y\",IF(NOT(ISBLANK(TableOutpatientRates[[#This Row],[Standard Rate]])),TableOutpatientRates[Standard Rate],INDEX(TableOutpatientHourlyRates[Hourly Rate],MATCH(\"PEER Group\",TableOutpatientHourlyRates[Group Name],0))/60*TableOutpatientRates[[#This Row],[Minutes for Rate]]),\"\")","v":""},{"$f":"IF(TableOutpatientRates[[#This Row],[PHARM Group Allowed]]=\"Y\",IF(NOT(ISBLANK(TableOutpatientRates[[#This Row],[Standard Rate]])),TableOutpatientRates[Standard Rate],INDEX(TableOutpatientHourlyRates[Hourly Rate],MATCH(\"PHARM Group\",TableOutpatientHourlyRates[Group Name],0))/60*TableOutpatientRates[[#This Row],[Minutes for Rate]]),\"\")","v":190},{"$f":"IF(TableOutpatientRates[[#This Row],[PSY Group Allowed]]=\"Y\",IF(NOT(ISBLANK(TableOutpatientRates[[#This Row],[Standard Rate]])),TableOutpatientRates[Standard Rate],INDEX(TableOutpatientHourlyRates[Hourly Rate],MATCH(\"PSY Group\",TableOutpatientHourlyRates[Group Name],0))/60*TableOutpatientRates[[#This Row],[Minutes for Rate]]),\"\")","v":200},{"$f":"IF(TableOutpatientRates[[#This Row],[PT Group Allowed]]=\"Y\",IF(NOT(ISBLANK(TableOutpatientRates[[#This Row],[Standard Rate]])),TableOutpatientRates[Standard Rate],INDEX(TableOutpatientHourlyRates[Hourly Rate],MATCH(\"PT Group\",TableOutpatientHourlyRates[Group Name],0))/60*TableOutpatientRates[[#This Row],[Minutes for Rate]]),\"\")","v":210},{"$f":"IF(TableOutpatientRates[[#This Row],[RN Group Allowed]]=\"Y\",IF(NOT(ISBLANK(TableOutpatientRates[[#This Row],[Standard Rate]])),TableOutpatientRates[Standard Rate],INDEX(TableOutpatientHourlyRates[Hourly Rate],MATCH(\"RN Group\",TableOutpatientHourlyRates[Group Name],0))/60*TableOutpatientRates[[#This Row],[Minutes for Rate]]),\"\")","v":""}]
["T1006","Alcohol and/or substance abuse services, family/couple counseling","15","Y","Y","","","Y","Y","","","Y","Y","","Y","",null,{"$f":"IF(TableOutpatientRates[[#This Row],[AOD Group Allowed]]=\"Y\",IF(NOT(ISBLANK(TableOutpatientRates[[#This Row],[Standard Rate]])),TableOutpatientRates[Standard Rate],INDEX(TableOutpatientHourlyRates[Hourly Rate],MATCH(\"AOD Group\",TableOutpatientHourlyRates[Group Name],0))/60*TableOutpatientRates[[#This Row],[Minutes for Rate]]),\"\")","v":25},{"$f":"IF(TableOutpatientRates[[#This Row],[LPHA Group Allowed]]=\"Y\",IF(NOT(ISBLANK(TableOutpatientRates[[#This Row],[Standard Rate]])),TableOutpatientRates[Standard Rate],INDEX(TableOutpatientHourlyRates[Hourly Rate],MATCH(\"LPHA Group\",TableOutpatientHourlyRates[Group Name],0))/60*TableOutpatientRates[[#This Row],[Minutes for Rate]]),\"\")","v":27.5},{"$f":"IF(TableOutpatientRates[[#This Row],[LVN Group Allowed]]=\"Y\",IF(NOT(ISBLANK(TableOutpatientRates[[#This Row],[Standard Rate]])),TableOutpatientRates[Standard Rate],INDEX(TableOutpatientHourlyRates[Hourly Rate],MATCH(\"LVN Group\",TableOutpatientHourlyRates[Group Name],0))/60*TableOutpatientRates[[#This Row],[Minutes for Rate]]),\"\")","v":""},{"$f":"IF(TableOutpatientRates[[#This Row],[MA Group Allowed]]=\"Y\",IF(NOT(ISBLANK(TableOutpatientRates[[#This Row],[Standard Rate]])),TableOutpatientRates[Standard Rate],INDEX(TableOutpatientHourlyRates[Hourly Rate],MATCH(\"MA Group\",TableOutpatientHourlyRates[Group Name],0))/60*TableOutpatientRates[[#This Row],[Minutes for Rate]]),\"\")","v":""},{"$f":"IF(TableOutpatientRates[[#This Row],[MD Group Allowed]]=\"Y\",IF(NOT(ISBLANK(TableOutpatientRates[[#This Row],[Standard Rate]])),TableOutpatientRates[Standard Rate],INDEX(TableOutpatientHourlyRates[Hourly Rate],MATCH(\"MD Group\",TableOutpatientHourlyRates[Group Name],0))/60*TableOutpatientRates[[#This Row],[Minutes for Rate]]),\"\")","v":35},{"$f":"IF(TableOutpatientRates[[#This Row],[NP Group Allowed]]=\"Y\",IF(NOT(ISBLANK(TableOutpatientRates[[#This Row],[Standard Rate]])),TableOutpatientRates[Standard Rate],INDEX(TableOutpatientHourlyRates[Hourly Rate],MATCH(\"NP Group\",TableOutpatientHourlyRates[Group Name],0))/60*TableOutpatientRates[[#This Row],[Minutes for Rate]]),\"\")","v":37.5},{"$f":"IF(TableOutpatientRates[[#This Row],[OT Group Allowed]]=\"Y\",IF(NOT(ISBLANK(TableOutpatientRates[[#This Row],[Standard Rate]])),TableOutpatientRates[Standard Rate],INDEX(TableOutpatientHourlyRates[Hourly Rate],MATCH(\"OT Group\",TableOutpatientHourlyRates[Group Name],0))/60*TableOutpatientRates[[#This Row],[Minutes for Rate]]),\"\")","v":""},{"$f":"IF(TableOutpatientRates[[#This Row],[PA Group Allowed]]=\"Y\",IF(NOT(ISBLANK(TableOutpatientRates[[#This Row],[Standard Rate]])),TableOutpatientRates[Standard Rate],INDEX(TableOutpatientHourlyRates[Hourly Rate],MATCH(\"PA Group\",TableOutpatientHourlyRates[Group Name],0))/60*TableOutpatientRates[[#This Row],[Minutes for Rate]]),\"\")","v":42.5},{"$f":"IF(TableOutpatientRates[[#This Row],[PEER Group Allowed]]=\"Y\",IF(NOT(ISBLANK(TableOutpatientRates[[#This Row],[Standard Rate]])),TableOutpatientRates[Standard Rate],INDEX(TableOutpatientHourlyRates[Hourly Rate],MATCH(\"PEER Group\",TableOutpatientHourlyRates[Group Name],0))/60*TableOutpatientRates[[#This Row],[Minutes for Rate]]),\"\")","v":""},{"$f":"IF(TableOutpatientRates[[#This Row],[PHARM Group Allowed]]=\"Y\",IF(NOT(ISBLANK(TableOutpatientRates[[#This Row],[Standard Rate]])),TableOutpatientRates[Standard Rate],INDEX(TableOutpatientHourlyRates[Hourly Rate],MATCH(\"PHARM Group\",TableOutpatientHourlyRates[Group Name],0))/60*TableOutpatientRates[[#This Row],[Minutes for Rate]]),\"\")","v":""},{"$f":"IF(TableOutpatientRates[[#This Row],[PSY Group Allowed]]=\"Y\",IF(NOT(ISBLANK(TableOutpatientRates[[#This Row],[Standard Rate]])),TableOutpatientRates[Standard Rate],INDEX(TableOutpatientHourlyRates[Hourly Rate],MATCH(\"PSY Group\",TableOutpatientHourlyRates[Group Name],0))/60*TableOutpatientRates[[#This Row],[Minutes for Rate]]),\"\")","v":50},{"$f":"IF(TableOutpatientRates[[#This Row],[PT Group Allowed]]=\"Y\",IF(NOT(ISBLANK(TableOutpatientRates[[#This Row],[Standard Rate]])),TableOutpatientRates[Standard Rate],INDEX(TableOutpatientHourlyRates[Hourly Rate],MATCH(\"PT Group\",TableOutpatientHourlyRates[Group Name],0))/60*TableOutpatientRates[[#This Row],[Minutes for Rate]]),\"\")","v":""},{"$f":"IF(TableOutpatientRates[[#This Row],[RN Group Allowed]]=\"Y\",IF(NOT(ISBLANK(TableOutpatientRates[[#This Row],[Standard Rate]])),TableOutpatientRates[Standard Rate],INDEX(TableOutpatientHourlyRates[Hourly Rate],MATCH(\"RN Group\",TableOutpatientHourlyRates[Group Name],0))/60*TableOutpatientRates[[#This Row],[Minutes for Rate]]),\"\")","v":55}]
["T1007","Alcohol and/or substance abuse services, treatment plan development and/or modification.","15","Y","Y","Y","","Y","Y","Y","","Y","Y","Y","Y","",null,{"$f":"IF(TableOutpatientRates[[#This Row],[AOD Group Allowed]]=\"Y\",IF(NOT(ISBLANK(TableOutpatientRates[[#This Row],[Standard Rate]])),TableOutpatientRates[Standard Rate],INDEX(TableOutpatientHourlyRates[Hourly Rate],MATCH(\"AOD Group\",TableOutpatientHourlyRates[Group Name],0))/60*TableOutpatientRates[[#This Row],[Minutes for Rate]]),\"\")","v":25},{"$f":"IF(TableOutpatientRates[[#This Row],[LPHA Group Allowed]]=\"Y\",IF(NOT(ISBLANK(TableOutpatientRates[[#This Row],[Standard Rate]])),TableOutpatientRates[Standard Rate],INDEX(TableOutpatientHourlyRates[Hourly Rate],MATCH(\"LPHA Group\",TableOutpatientHourlyRates[Group Name],0))/60*TableOutpatientRates[[#This Row],[Minutes for Rate]]),\"\")","v":27.5},{"$f":"IF(TableOutpatientRates[[#This Row],[LVN Group Allowed]]=\"Y\",IF(NOT(ISBLANK(TableOutpatientRates[[#This Row],[Standard Rate]])),TableOutpatientRates[Standard Rate],INDEX(TableOutpatientHourlyRates[Hourly Rate],MATCH(\"LVN Group\",TableOutpatientHourlyRates[Group Name],0))/60*TableOutpatientRates[[#This Row],[Minutes for Rate]]),\"\")","v":30},{"$f":"IF(TableOutpatientRates[[#This Row],[MA Group Allowed]]=\"Y\",IF(NOT(ISBLANK(TableOutpatientRates[[#This Row],[Standard Rate]])),TableOutpatientRates[Standard Rate],INDEX(TableOutpatientHourlyRates[Hourly Rate],MATCH(\"MA Group\",TableOutpatientHourlyRates[Group Name],0))/60*TableOutpatientRates[[#This Row],[Minutes for Rate]]),\"\")","v":""},{"$f":"IF(TableOutpatientRates[[#This Row],[MD Group Allowed]]=\"Y\",IF(NOT(ISBLANK(TableOutpatientRates[[#This Row],[Standard Rate]])),TableOutpatientRates[Standard Rate],INDEX(TableOutpatientHourlyRates[Hourly Rate],MATCH(\"MD Group\",TableOutpatientHourlyRates[Group Name],0))/60*TableOutpatientRates[[#This Row],[Minutes for Rate]]),\"\")","v":35},{"$f":"IF(TableOutpatientRates[[#This Row],[NP Group Allowed]]=\"Y\",IF(NOT(ISBLANK(TableOutpatientRates[[#This Row],[Standard Rate]])),TableOutpatientRates[Standard Rate],INDEX(TableOutpatientHourlyRates[Hourly Rate],MATCH(\"NP Group\",TableOutpatientHourlyRates[Group Name],0))/60*TableOutpatientRates[[#This Row],[Minutes for Rate]]),\"\")","v":37.5},{"$f":"IF(TableOutpatientRates[[#This Row],[OT Group Allowed]]=\"Y\",IF(NOT(ISBLANK(TableOutpatientRates[[#This Row],[Standard Rate]])),TableOutpatientRates[Standard Rate],INDEX(TableOutpatientHourlyRates[Hourly Rate],MATCH(\"OT Group\",TableOutpatientHourlyRates[Group Name],0))/60*TableOutpatientRates[[#This Row],[Minutes for Rate]]),\"\")","v":40},{"$f":"IF(TableOutpatientRates[[#This Row],[PA Group Allowed]]=\"Y\",IF(NOT(ISBLANK(TableOutpatientRates[[#This Row],[Standard Rate]])),TableOutpatientRates[Standard Rate],INDEX(TableOutpatientHourlyRates[Hourly Rate],MATCH(\"PA Group\",TableOutpatientHourlyRates[Group Name],0))/60*TableOutpatientRates[[#This Row],[Minutes for Rate]]),\"\")","v":42.5},{"$f":"IF(TableOutpatientRates[[#This Row],[PEER Group Allowed]]=\"Y\",IF(NOT(ISBLANK(TableOutpatientRates[[#This Row],[Standard Rate]])),TableOutpatientRates[Standard Rate],INDEX(TableOutpatientHourlyRates[Hourly Rate],MATCH(\"PEER Group\",TableOutpatientHourlyRates[Group Name],0))/60*TableOutpatientRates[[#This Row],[Minutes for Rate]]),\"\")","v":""},{"$f":"IF(TableOutpatientRates[[#This Row],[PHARM Group Allowed]]=\"Y\",IF(NOT(ISBLANK(TableOutpatientRates[[#This Row],[Standard Rate]])),TableOutpatientRates[Standard Rate],INDEX(TableOutpatientHourlyRates[Hourly Rate],MATCH(\"PHARM Group\",TableOutpatientHourlyRates[Group Name],0))/60*TableOutpatientRates[[#This Row],[Minutes for Rate]]),\"\")","v":""},{"$f":"IF(TableOutpatientRates[[#This Row],[PSY Group Allowed]]=\"Y\",IF(NOT(ISBLANK(TableOutpatientRates[[#This Row],[Standard Rate]])),TableOutpatientRates[Standard Rate],INDEX(TableOutpatientHourlyRates[Hourly Rate],MATCH(\"PSY Group\",TableOutpatientHourlyRates[Group Name],0))/60*TableOutpatientRates[[#This Row],[Minutes for Rate]]),\"\")","v":50},{"$f":"IF(TableOutpatientRates[[#This Row],[PT Group Allowed]]=\"Y\",IF(NOT(ISBLANK(TableOutpatientRates[[#This Row],[Standard Rate]])),TableOutpatientRates[Standard Rate],INDEX(TableOutpatientHourlyRates[Hourly Rate],MATCH(\"PT Group\",TableOutpatientHourlyRates[Group Name],0))/60*TableOutpatientRates[[#This Row],[Minutes for Rate]]),\"\")","v":52.5},{"$f":"IF(TableOutpatientRates[[#This Row],[RN Group Allowed]]=\"Y\",IF(NOT(ISBLANK(TableOutpatientRates[[#This Row],[Standard Rate]])),TableOutpatientRates[Standard Rate],INDEX(TableOutpatientHourlyRates[Hourly Rate],MATCH(\"RN Group\",TableOutpatientHourlyRates[Group Name],0))/60*TableOutpatientRates[[#This Row],[Minutes for Rate]]),\"\")","v":55}]
["T1013","Sign Language or Oral Interpretive Services, 15 Minutes","","Y","Y","Y","Y","Y","Y","Y","","Y","Y","Y","Y","Y",30,{"$f":"IF(TableOutpatientRates[[#This Row],[AOD Group Allowed]]=\"Y\",IF(NOT(ISBLANK(TableOutpatientRates[[#This Row],[Standard Rate]])),TableOutpatientRates[Standard Rate],INDEX(TableOutpatientHourlyRates[Hourly Rate],MATCH(\"AOD Group\",TableOutpatientHourlyRates[Group Name],0))/60*TableOutpatientRates[[#This Row],[Minutes for Rate]]),\"\")","v":30},{"$f":"IF(TableOutpatientRates[[#This Row],[LPHA Group Allowed]]=\"Y\",IF(NOT(ISBLANK(TableOutpatientRates[[#This Row],[Standard Rate]])),TableOutpatientRates[Standard Rate],INDEX(TableOutpatientHourlyRates[Hourly Rate],MATCH(\"LPHA Group\",TableOutpatientHourlyRates[Group Name],0))/60*TableOutpatientRates[[#This Row],[Minutes for Rate]]),\"\")","v":30},{"$f":"IF(TableOutpatientRates[[#This Row],[LVN Group Allowed]]=\"Y\",IF(NOT(ISBLANK(TableOutpatientRates[[#This Row],[Standard Rate]])),TableOutpatientRates[Standard Rate],INDEX(TableOutpatientHourlyRates[Hourly Rate],MATCH(\"LVN Group\",TableOutpatientHourlyRates[Group Name],0))/60*TableOutpatientRates[[#This Row],[Minutes for Rate]]),\"\")","v":30},{"$f":"IF(TableOutpatientRates[[#This Row],[MA Group Allowed]]=\"Y\",IF(NOT(ISBLANK(TableOutpatientRates[[#This Row],[Standard Rate]])),TableOutpatientRates[Standard Rate],INDEX(TableOutpatientHourlyRates[Hourly Rate],MATCH(\"MA Group\",TableOutpatientHourlyRates[Group Name],0))/60*TableOutpatientRates[[#This Row],[Minutes for Rate]]),\"\")","v":30},{"$f":"IF(TableOutpatientRates[[#This Row],[MD Group Allowed]]=\"Y\",IF(NOT(ISBLANK(TableOutpatientRates[[#This Row],[Standard Rate]])),TableOutpatientRates[Standard Rate],INDEX(TableOutpatientHourlyRates[Hourly Rate],MATCH(\"MD Group\",TableOutpatientHourlyRates[Group Name],0))/60*TableOutpatientRates[[#This Row],[Minutes for Rate]]),\"\")","v":30},{"$f":"IF(TableOutpatientRates[[#This Row],[NP Group Allowed]]=\"Y\",IF(NOT(ISBLANK(TableOutpatientRates[[#This Row],[Standard Rate]])),TableOutpatientRates[Standard Rate],INDEX(TableOutpatientHourlyRates[Hourly Rate],MATCH(\"NP Group\",TableOutpatientHourlyRates[Group Name],0))/60*TableOutpatientRates[[#This Row],[Minutes for Rate]]),\"\")","v":30},{"$f":"IF(TableOutpatientRates[[#This Row],[OT Group Allowed]]=\"Y\",IF(NOT(ISBLANK(TableOutpatientRates[[#This Row],[Standard Rate]])),TableOutpatientRates[Standard Rate],INDEX(TableOutpatientHourlyRates[Hourly Rate],MATCH(\"OT Group\",TableOutpatientHourlyRates[Group Name],0))/60*TableOutpatientRates[[#This Row],[Minutes for Rate]]),\"\")","v":30},{"$f":"IF(TableOutpatientRates[[#This Row],[PA Group Allowed]]=\"Y\",IF(NOT(ISBLANK(TableOutpatientRates[[#This Row],[Standard Rate]])),TableOutpatientRates[Standard Rate],INDEX(TableOutpatientHourlyRates[Hourly Rate],MATCH(\"PA Group\",TableOutpatientHourlyRates[Group Name],0))/60*TableOutpatientRates[[#This Row],[Minutes for Rate]]),\"\")","v":30},{"$f":"IF(TableOutpatientRates[[#This Row],[PEER Group Allowed]]=\"Y\",IF(NOT(ISBLANK(TableOutpatientRates[[#This Row],[Standard Rate]])),TableOutpatientRates[Standard Rate],INDEX(TableOutpatientHourlyRates[Hourly Rate],MATCH(\"PEER Group\",TableOutpatientHourlyRates[Group Name],0))/60*TableOutpatientRates[[#This Row],[Minutes for Rate]]),\"\")","v":""},{"$f":"IF(TableOutpatientRates[[#This Row],[PHARM Group Allowed]]=\"Y\",IF(NOT(ISBLANK(TableOutpatientRates[[#This Row],[Standard Rate]])),TableOutpatientRates[Standard Rate],INDEX(TableOutpatientHourlyRates[Hourly Rate],MATCH(\"PHARM Group\",TableOutpatientHourlyRates[Group Name],0))/60*TableOutpatientRates[[#This Row],[Minutes for Rate]]),\"\")","v":30},{"$f":"IF(TableOutpatientRates[[#This Row],[PSY Group Allowed]]=\"Y\",IF(NOT(ISBLANK(TableOutpatientRates[[#This Row],[Standard Rate]])),TableOutpatientRates[Standard Rate],INDEX(TableOutpatientHourlyRates[Hourly Rate],MATCH(\"PSY Group\",TableOutpatientHourlyRates[Group Name],0))/60*TableOutpatientRates[[#This Row],[Minutes for Rate]]),\"\")","v":30},{"$f":"IF(TableOutpatientRates[[#This Row],[PT Group Allowed]]=\"Y\",IF(NOT(ISBLANK(TableOutpatientRates[[#This Row],[Standard Rate]])),TableOutpatientRates[Standard Rate],INDEX(TableOutpatientHourlyRates[Hourly Rate],MATCH(\"PT Group\",TableOutpatientHourlyRates[Group Name],0))/60*TableOutpatientRates[[#This Row],[Minutes for Rate]]),\"\")","v":30},{"$f":"IF(TableOutpatientRates[[#This Row],[RN Group Allowed]]=\"Y\",IF(NOT(ISBLANK(TableOutpatientRates[[#This Row],[Standard Rate]])),TableOutpatientRates[Standard Rate],INDEX(TableOutpatientHourlyRates[Hourly Rate],MATCH(\"RN Group\",TableOutpatientHourlyRates[Group Name],0))/60*TableOutpatientRates[[#This Row],[Minutes for Rate]]),\"\")","v":30}]
["T1017","Targeted Case Management, Each 15 Minutes","15","Y","Y","Y","Y","Y","","Y","","Y","Y","Y","Y","Y",null,{"$f":"IF(TableOutpatientRates[[#This Row],[AOD Group Allowed]]=\"Y\",IF(NOT(ISBLANK(TableOutpatientRates[[#This Row],[Standard Rate]])),TableOutpatientRates[Standard Rate],INDEX(TableOutpatientHourlyRates[Hourly Rate],MATCH(\"AOD Group\",TableOutpatientHourlyRates[Group Name],0))/60*TableOutpatientRates[[#This Row],[Minutes for Rate]]),\"\")","v":25},{"$f":"IF(TableOutpatientRates[[#This Row],[LPHA Group Allowed]]=\"Y\",IF(NOT(ISBLANK(TableOutpatientRates[[#This Row],[Standard Rate]])),TableOutpatientRates[Standard Rate],INDEX(TableOutpatientHourlyRates[Hourly Rate],MATCH(\"LPHA Group\",TableOutpatientHourlyRates[Group Name],0))/60*TableOutpatientRates[[#This Row],[Minutes for Rate]]),\"\")","v":27.5},{"$f":"IF(TableOutpatientRates[[#This Row],[LVN Group Allowed]]=\"Y\",IF(NOT(ISBLANK(TableOutpatientRates[[#This Row],[Standard Rate]])),TableOutpatientRates[Standard Rate],INDEX(TableOutpatientHourlyRates[Hourly Rate],MATCH(\"LVN Group\",TableOutpatientHourlyRates[Group Name],0))/60*TableOutpatientRates[[#This Row],[Minutes for Rate]]),\"\")","v":30},{"$f":"IF(TableOutpatientRates[[#This Row],[MA Group Allowed]]=\"Y\",IF(NOT(ISBLANK(TableOutpatientRates[[#This Row],[Standard Rate]])),TableOutpatientRates[Standard Rate],INDEX(TableOutpatientHourlyRates[Hourly Rate],MATCH(\"MA Group\",TableOutpatientHourlyRates[Group Name],0))/60*TableOutpatientRates[[#This Row],[Minutes for Rate]]),\"\")","v":32.5},{"$f":"IF(TableOutpatientRates[[#This Row],[MD Group Allowed]]=\"Y\",IF(NOT(ISBLANK(TableOutpatientRates[[#This Row],[Standard Rate]])),TableOutpatientRates[Standard Rate],INDEX(TableOutpatientHourlyRates[Hourly Rate],MATCH(\"MD Group\",TableOutpatientHourlyRates[Group Name],0))/60*TableOutpatientRates[[#This Row],[Minutes for Rate]]),\"\")","v":35},{"$f":"IF(TableOutpatientRates[[#This Row],[NP Group Allowed]]=\"Y\",IF(NOT(ISBLANK(TableOutpatientRates[[#This Row],[Standard Rate]])),TableOutpatientRates[Standard Rate],INDEX(TableOutpatientHourlyRates[Hourly Rate],MATCH(\"NP Group\",TableOutpatientHourlyRates[Group Name],0))/60*TableOutpatientRates[[#This Row],[Minutes for Rate]]),\"\")","v":""},{"$f":"IF(TableOutpatientRates[[#This Row],[OT Group Allowed]]=\"Y\",IF(NOT(ISBLANK(TableOutpatientRates[[#This Row],[Standard Rate]])),TableOutpatientRates[Standard Rate],INDEX(TableOutpatientHourlyRates[Hourly Rate],MATCH(\"OT Group\",TableOutpatientHourlyRates[Group Name],0))/60*TableOutpatientRates[[#This Row],[Minutes for Rate]]),\"\")","v":40},{"$f":"IF(TableOutpatientRates[[#This Row],[PA Group Allowed]]=\"Y\",IF(NOT(ISBLANK(TableOutpatientRates[[#This Row],[Standard Rate]])),TableOutpatientRates[Standard Rate],INDEX(TableOutpatientHourlyRates[Hourly Rate],MATCH(\"PA Group\",TableOutpatientHourlyRates[Group Name],0))/60*TableOutpatientRates[[#This Row],[Minutes for Rate]]),\"\")","v":42.5},{"$f":"IF(TableOutpatientRates[[#This Row],[PEER Group Allowed]]=\"Y\",IF(NOT(ISBLANK(TableOutpatientRates[[#This Row],[Standard Rate]])),TableOutpatientRates[Standard Rate],INDEX(TableOutpatientHourlyRates[Hourly Rate],MATCH(\"PEER Group\",TableOutpatientHourlyRates[Group Name],0))/60*TableOutpatientRates[[#This Row],[Minutes for Rate]]),\"\")","v":""},{"$f":"IF(TableOutpatientRates[[#This Row],[PHARM Group Allowed]]=\"Y\",IF(NOT(ISBLANK(TableOutpatientRates[[#This Row],[Standard Rate]])),TableOutpatientRates[Standard Rate],INDEX(TableOutpatientHourlyRates[Hourly Rate],MATCH(\"PHARM Group\",TableOutpatientHourlyRates[Group Name],0))/60*TableOutpatientRates[[#This Row],[Minutes for Rate]]),\"\")","v":47.5},{"$f":"IF(TableOutpatientRates[[#This Row],[PSY Group Allowed]]=\"Y\",IF(NOT(ISBLANK(TableOutpatientRates[[#This Row],[Standard Rate]])),TableOutpatientRates[Standard Rate],INDEX(TableOutpatientHourlyRates[Hourly Rate],MATCH(\"PSY Group\",TableOutpatientHourlyRates[Group Name],0))/60*TableOutpatientRates[[#This Row],[Minutes for Rate]]),\"\")","v":50},{"$f":"IF(TableOutpatientRates[[#This Row],[PT Group Allowed]]=\"Y\",IF(NOT(ISBLANK(TableOutpatientRates[[#This Row],[Standard Rate]])),TableOutpatientRates[Standard Rate],INDEX(TableOutpatientHourlyRates[Hourly Rate],MATCH(\"PT Group\",TableOutpatientHourlyRates[Group Name],0))/60*TableOutpatientRates[[#This Row],[Minutes for Rate]]),\"\")","v":52.5},{"$f":"IF(TableOutpatientRates[[#This Row],[RN Group Allowed]]=\"Y\",IF(NOT(ISBLANK(TableOutpatientRates[[#This Row],[Standard Rate]])),TableOutpatientRates[Standard Rate],INDEX(TableOutpatientHourlyRates[Hourly Rate],MATCH(\"RN Group\",TableOutpatientHourlyRates[Group Name],0))/60*TableOutpatientRates[[#This Row],[Minutes for Rate]]),\"\")","v":55}]

{"sheet":"NTP Rates","index":3,"n_rows":10,"n_cols":3,"rows_kept":10,"cut":false,"hidden":false,"merged":[]}
["NTP Service","Non-Perinatal Rate","Perinatal Rate"]
["Buprenorphine - Naloxone Combo Film",100,115]
["Buprenorphine - Naloxone Combo Tablets",110,125]
["Buprenorphine Injectable (Sublocade)",120,135]
["Buprenorphine Mono",130,145]
["Disulfiram",140,155]
["Methadone",150,165]
["Naloxone HCL - 2 pack (Generic)",160,175]
["Naloxone HCL - 2 pack Narcan",170,185]
["Naltrexone Injectable (Vivitrol)",180,195]

{"sheet":"Other Rates","index":4,"n_rows":12,"n_cols":6,"rows_kept":12,"cut":false,"hidden":false,"merged":[]}
["BillingCode","Modifier","Rate Type","Description","Time Base","Rate"]
["H0012","","24 Hour Day Service","Alcohol and Drug Services; (Residential Addiction Outpatient). Sub-Acute Detoxification 3.2","24 Hours",100]
["H0019","U1","24 Hour Day Service","Behavioral Health Long Term Residential 3.1","24 Hours",110]
["H0019","U2","24 Hour Day Service","Behavioral Health Long Term Residential 3.3","24 Hours",120]
["H0019","U3","24 Hour Day Service","Behavioral Health Long Term Residential 3.5","24 Hours",130]
["H0014","U4","Ambulatory Withdrawl Management","Ambulatory Withdrawal Management 1","1 Hour",140]
["H0014","U5","Ambulatory Withdrawl Management","Ambulatory Withdrawal Management 2","1 Hour",150]
["953","","Inpatient Withdrawl Management","Withdrawal Management and Residential Hospital with ASAM 3.7 and 4.0 Services","24 Hour",160]
["A0140","","Mobile Crisis","Transportation, mileage","1 Mile",170]
["H2011","","Mobile Crisis","Mobile Crisis","1 Encounter",180]
["T2007","","Mobile Crisis","Transportation, staff time, per 15 minutes","15 Minutes",190]
["S0201","","Partial Hospitalization","Partial Hospitalization Services; less than 24 hours, per diem","24 Hours",200]

{"sheet":"Invoice Summary","index":5,"n_rows":10,"n_cols":2,"rows_kept":10,"cut":false,"hidden":false,"merged":[]}
["Version:","V_20240719"]
[]
[]
[]
[]
[]
[]
[]
[]
["Important Note","Before you can create the invoice, you might need to click the ENABLE CONTENT button at the top of your Excel document. It will be listed in the Security warning section in yellow."]